Workbook

Sheet Int
C5: Ον/μο παραγωγού: | I5: Είδος καλλιέργειας | K5: Στρέμματα
C7: Νομός: | H7: 1
H8: 2
A9: 1 | D9: ΑΦΜ: | H9: 3
H10: 4
H11: 5
A12: 2 | H12: 6
A13: 3 | D13: Πλήθος καλλιεργειών: | H13: 7
A14: 4 | E14: max=12 | H14: 8
A15: 5 | H15: 9
A16: 6 | H16: 10
A17: 7 | C17: =m!E18 -> Δηλώστε Νομό | H17: 11
A18: 8 | H18: 12
A19: 9 | J19: ΣΥΝΟΛΟ ΣΤΡΕΜΜΑΤΩΝ | K19: =m!K19 -> 0
A20: 10 | C20: TEReS 2.05
A21: 12
A22: 12

Sheet inf
C1: ΕΛΛΗΝΙΚΗ ΔΗΜΟΚΡΑΤΙΑ - ΥΠΟΥΡΓΕΙΟ ΑΓΡΟΤΙΚΗΣ ΑΝΑΠΤΥΞΗΣ & ΤΡΟΦΙΜΩΝ
B2: TEReS - Λογισμικό υπολογισμού της απαραίτητης ισχύος των γεωργικών ελκυστήρων
B3: (TEMPORAL ENERGY REQUIREMENTS SATISFACTION criterion for selection of Farm Tractor Power)
B5: Το παρόν λογισμικό υπολογίζει την Αιτιολογούμενη ισχύ των ελκυστήρων μιας γεωργικής εκμετάλλευσης με βάση τη κάλυψη των εποχικών αναγκών αυτής
B6: Οι εποχικές ανάγκες αναγνωρίζονται από τις καλλιέργειες που δηλώνονται στο σύστημα και την έκταση αυτών
B7: Οι ανάγκες θα πρέπει να καλύπτονται έγκαιρα εντός του διαθέσιμου διαστήματος για εργασία στον αγρό
B8: Οι απαιτήσεις σε ισχύ διαφοροποιούνται ανάλογα με τη περιοχή της Ελλάδος. Σε περιοχές με λιγότερες διαθέσιμες ημέρες για εργασία υπολογίζεται υψηλότερη ισχύς
B11: Το παρόν λογισμικό αναπτύχθηκε από το Τμήμα Αξιοποίησης Φυσικών Πόρων & Γεωργικής Μηχανικής του Γεωπονικού Πανεπιστήμιου Αθηνών
B12: σε συνεργασία με το Τμήμα Γεωπονίας Φυτικής Παραγωγής & Αγροτικού Περιβάλλοντος του Πανεπιστημίου Θεσσαλίας

Sheet pr
C15: =m!D5 -> 0
C16: Ονοματεπώνυμο παραγωγού
C18: ΑΦΜ: | D18: =m!E9 -> 0
C19: Νομός: | D19: =m!D7 -> 0
C20: Ημερομηνία: | D20: =m!S3 -> 2017-12-13
C22: Καλλιέργειες | D22: Στρέμματα
B23: =IF(C23="","",1) ->  | C23: =IF(m!O7=0,"",m!O7) ->  | D23: =IF(B23="","",m!Y7) -> 
B24: =IF(C24="","",IF(MAX(B$23,B23)>0,MAX(B$23:B23)+1,1)) ->  | C24: =IF(m!O8=0,"",m!O8) ->  | D24: =IF(B24="","",m!Y8) -> 
B25: =IF(C25="","",IF(MAX(B$23,B24)>0,MAX(B$23:B24)+1,1)) ->  | C25: =IF(m!O9=0,"",m!O9) ->  | D25: =IF(B25="","",m!Y9) -> 
B26: =IF(C26="","",IF(MAX(B$23,B25)>0,MAX(B$23:B25)+1,1)) ->  | C26: =IF(m!O10=0,"",m!O10) ->  | D26: =IF(B26="","",m!Y10) -> 
B27: =IF(C27="","",IF(MAX(B$23,B26)>0,MAX(B$23:B26)+1,1)) ->  | C27: =IF(m!O11=0,"",m!O11) ->  | D27: =IF(B27="","",m!Y11) -> 
B28: =IF(C28="","",IF(MAX(B$23,B27)>0,MAX(B$23:B27)+1,1)) ->  | C28: =IF(m!O12=0,"",m!O12) ->  | D28: =IF(B28="","",m!Y12) -> 
B29: =IF(C29="","",IF(MAX(B$23,B28)>0,MAX(B$23:B28)+1,1)) ->  | C29: =IF(m!O13=0,"",m!O13) ->  | D29: =IF(B29="","",m!Y13) -> 
B30: =IF(C30="","",IF(MAX(B$23,B29)>0,MAX(B$23:B29)+1,1)) ->  | C30: =IF(m!O14=0,"",m!O14) ->  | D30: =IF(B30="","",m!Y14) -> 
B31: =IF(C31="","",IF(MAX(B$23,B30)>0,MAX(B$23:B30)+1,1)) ->  | C31: =IF(m!O15=0,"",m!O15) ->  | D31: =IF(B31="","",m!Y15) -> 
B32: =IF(C32="","",IF(MAX(B$23,B31)>0,MAX(B$23:B31)+1,1)) ->  | C32: =IF(m!O16=0,"",m!O16) ->  | D32: =IF(B32="","",m!Y16) -> 
B33: =IF(C33="","",IF(MAX(B$23,B32)>0,MAX(B$23:B32)+1,1)) ->  | C33: =IF(m!O17=0,"",m!O17) ->  | D33: =IF(B33="","",m!Y17) -> 
B34: =IF(C34="","",IF(MAX(B$23,B33)>0,MAX(B$23:B33)+1,1)) ->  | C34: =IF(m!O18=0,"",m!O18) ->  | D34: =IF(B34="","",m!Y18) -> 
C35: ΣΥΝΟΛΟ | D35: =IF(SUM(B23:B34)=0,"",m!Y19) -> 
C38: =m!E18 -> Δηλώστε Νομό
D43: TEReS 2.05

Sheet m
I1: Τύπος εδάφους | J1: βαρύ
S3: =TODAY() -> 43082
D5: =Int!D5 -> 0 | I5: Είδος καλλιέργειας
K6: =YEAR(S3)-1 -> 2016 | L6: =K6-1 -> 2015 | M6: =L6-1 -> 2014 | O6: print filter | W6: min | X6: max | Y6: range
D7: =Int!D7 -> 0 | H7: 1 | I7: =Int!I7 -> 0 | J7: =IF(SUM(S7:U7)=0,0,Int!J7) -> 0 | K7: =Int!K7 -> 0 | L7: =K7 -> 0 | M7: =K7 -> 0 | O7: =IF(H7<=E$28,Int!J7,"") ->  | Q7: =MAX(K7:M7) -> 0 | R7: =COUNTIF(Q8:Q$18,">0") -> 0 | S7: =K7 -> 0 | T7: =L7 -> 0 | U7: =M7 -> 0 | W7: =ROUND(MIN(S7:U7),0) -> 0 | X7: =ROUND(MAX(S7:U7),0) -> 0 | Y7: =IF(W7=X7,W7,CONCATENATE(W7, " - ",X7)) -> 0
H8: 2 | I8: =Int!I8 -> 0 | J8: =IF(SUM(S8:U8)=0,0,Int!J8) -> 0 | K8: =Int!K8 -> 0 | L8: =K8 -> 0 | M8: =K8 -> 0 | O8: =IF(H8<=E$28,Int!J8,"") ->  | Q8: =MAX(K8:M8) -> 0 | R8: =COUNTIF(Q9:Q$18,">0") -> 0 | S8: =IF($E$28<$H8,0,K8) -> 0 | T8: =IF($E$28<$H8,0,L8) -> 0 | U8: =IF($E$28<$H8,0,M8) -> 0 | W8: 0 | X8: 0 | Y8: =IF(W8=X8,W8,CONCATENATE(W8, " - ",X8)) -> 0
D9: ΑΦΜ: | E9: =Int!E9 -> 0 | H9: 3 | I9: =Int!I9 -> 0 | J9: =IF(SUM(S9:U9)=0,0,Int!J9) -> 0 | K9: =Int!K9 -> 0 | L9: 0 | M9: 0 | O9: =IF(H9<=E$28,Int!J9,"") ->  | Q9: 0 | R9: =COUNTIF(Q10:Q$18,">0") -> 0 | S9: 0 | T9: 0 | U9: 0 | W9: 0 | X9: 0 | Y9: 0
H10: 4 | I10: =Int!I10 -> 0 | J10: =IF(SUM(S10:U10)=0,0,Int!J10) -> 0 | K10: =Int!K10 -> 0 | L10: 0 | M10: 0 | O10: =IF(H10<=E$28,Int!J10,"") ->  | Q10: 0 | R10: =COUNTIF(Q11:Q$18,">0") -> 0 | S10: 0 | T10: 0 | U10: 0 | W10: 0 | X10: 0 | Y10: 0
D11: Έτος δήλωσης ΟΣΔΕ: | E11: =Int!E11 -> 0 | H11: 5 | I11: =Int!I11 -> 0 | J11: =IF(SUM(S11:U11)=0,0,Int!J11) -> 0 | K11: =Int!K11 -> 0 | L11: 0 | M11: 0 | O11: =IF(H11<=E$28,Int!J11,"") ->  | Q11: 0 | R11: =COUNTIF(Q12:Q$18,">0") -> 0 | S11: 0 | T11: 0 | U11: 0 | W11: 0 | X11: 0 | Y11: 0
H12: 6 | I12: =Int!I12 -> 0 | J12: =IF(SUM(S12:U12)=0,0,Int!J12) -> 0 | K12: =Int!K12 -> 0 | L12: 0 | M12: 0 | O12: =IF(H12<=E$28,Int!J12,"") ->  | Q12: 0 | R12: =COUNTIF(Q13:Q$18,">0") -> 0 | S12: 0 | T12: 0 | U12: 0 | W12: 0 | X12: 0 | Y12: 0
D13: Πλήθος καλλιεργειών | E13: =MAX(E29:G29) -> 0 | H13: 7 | I13: =Int!I13 -> 0 | J13: =IF(SUM(S13:U13)=0,0,Int!J13) -> 0 | K13: =Int!K13 -> 0 | L13: 0 | M13: 0 | O13: =IF(H13<=E$28,Int!J13,"") ->  | Q13: 0 | R13: =COUNTIF(Q14:Q$18,">0") -> 0 | S13: 0 | T13: 0 | U13: 0 | W13: 0 | X13: 0 | Y13: 0
E14: max=12 | H14: 8 | I14: =Int!I14 -> 0 | J14: =IF(SUM(S14:U14)=0,0,Int!J14) -> 0 | K14: =Int!K14 -> 0 | L14: 0 | M14: 0 | O14: =IF(H14<=E$28,Int!J14,"") ->  | Q14: 0 | R14: =COUNTIF(Q15:Q$18,">0") -> 0 | S14: 0 | T14: 0 | U14: 0 | W14: 0 | X14: 0 | Y14: 0
H15: 9 | I15: =Int!I15 -> 0 | J15: =IF(SUM(S15:U15)=0,0,Int!J15) -> 0 | K15: =Int!K15 -> 0 | L15: 0 | M15: 0 | O15: =IF(H15<=E$28,Int!J15,"") ->  | Q15: 0 | R15: =COUNTIF(Q16:Q$18,">0") -> 0 | S15: 0 | T15: 0 | U15: 0 | W15: 0 | X15: 0 | Y15: 0
H16: 10 | I16: =Int!I16 -> 0 | J16: =IF(SUM(S16:U16)=0,0,Int!J16) -> 0 | K16: =Int!K16 -> 0 | L16: 0 | M16: 0 | O16: =IF(H16<=E$28,Int!J16,"") ->  | Q16: 0 | R16: =COUNTIF(Q17:Q$18,">0") -> 0 | S16: 0 | T16: 0 | U16: 0 | W16: 0 | X16: 0 | Y16: 0
E17: ='13'!N96 -> Δηλώστε Νομό | H17: 11 | I17: =Int!I17 -> 0 | J17: =IF(SUM(S17:U17)=0,0,Int!J17) -> 0 | K17: =Int!K17 -> 0 | L17: 0 | M17: 0 | O17: =IF(H17<=E$28,Int!J17,"") ->  | Q17: 0 | R17: =COUNTIF(Q18:Q$18,">0") -> 0 | S17: 0 | T17: 0 | U17: 0 | W17: 0 | X17: 0 | Y17: 0
E18: ='13'!N97 -> Δηλώστε Νομό | H18: 12 | I18: =Int!I18 -> 0 | J18: =IF(SUM(S18:U18)=0,0,Int!J18) -> 0 | K18: =Int!K18 -> 0 | L18: 0 | M18: 0 | O18: =IF(H18<=E$28,Int!J18,"") ->  | Q18: 0 | S18: 0 | T18: 0 | U18: 0 | W18: 0 | X18: 0 | Y18: 0
E19: ='13'!N98 ->  | J19: ΣΥΝΟΛΟ | K19: =S19 -> 0 | L19: =T19 -> 0 | M19: =U19 -> 0 | O19: =COUNTIF(O7:O18,"<>0") -> 12 | S19: =SUM(S7:S18) -> 0 | T19: =SUM(T7:T18) -> 0 | U19: =SUM(U7:U18) -> 0 | W19: =ROUND(MIN(S19:U19),0) -> 0 | X19: 0 | Y19: =IF(W19=X19,W19,CONCATENATE(W19, " - ",X19)) -> 0
D24: Κλιματική ζώνη | E24: ='19'!C7 -> 0
E28: =Int!E13 -> 0
E29: =COUNTIF(S7:S18,">0") -> 0 | F29: =COUNTIF(T7:T18,">0") -> 0 | G29: =COUNTIF(U7:U18,">0") -> 0 | H29: =MAX(E31:G31) -> 
H30: =IFERROR(H29,1) -> 1
D31: ΑΡΑΒΟΣΙΤΟΣ ΕΝΣΙΡΩΣΗΣ | E31: =VLOOKUP($D31,$J$7:$AA$18,2,FALSE) ->  | F31: =VLOOKUP($D31,$J$7:$AA$18,3,FALSE) ->  | G31: =VLOOKUP($D31,$J$7:$AA$18,4,FALSE) ->  | H31: =IF(H30=1,0,H29) -> 0
D35: Κλειδί περιοχής | E35: =IF(D7=0,0,1) -> 0
D37: Υπέρβαση δυνατοτήτων του συστήματος | E37: ='14'!B5 -> 0
D38: Νομός | E38: ='13'!L92 -> NOMO

Sheet 1 (hidden)
A5: 1
A6: 2
A7: 3
A8: 4
A9: 5 | B9: 31 | D9: ='21'!E3 -> ΑΜΠΕΛΩΝΕΣ ΓΙΑ ΕΠΙΤΡΑΠΕΖΙΑ ΧΡΗΣΗ | E9: 18.99768853 | F9: 4.6875 | G9: 6.762376632 | H9: 0.7559984017 | I9: 1.749067055 | J9: 2.039704105 | K9: 0.1289661719 | L9: 23.18377173 | M9: 179.7663014 | O9: 17.46628275 | P9: 4.6875 | Q9: 6.762376632 | R9: 0.7248877139 | S9: 1.677089814 | T9: 1.955766629 | U9: 0.1072683617 | V9: 23.18377173 | W9: 216.1287016 | Y9: 15.80725982 | Z9: 4.6875 | AA9: 6.762376632 | AB9: 0.6896024434 | AC9: 1.595454319 | AD9: 1.860566016 | AE9: 0.1072683617 | AF9: 23.18377173 | AG9: 216.1287016 | AI9: 18.99768853 | AJ9: 4.6875 | AK9: 7.148207071 | AL9: 0.7559984017 | AM9: 1.749067055 | AN9: 2.08929577 | AO9: 0.1257448516 | AP9: 23.18377173 | AQ9: 184.3715383 | AS9: 17.46628275 | AT9: 4.6875 | AU9: 7.148207071 | AV9: 0.7248877139 | AW9: 1.677089814 | AX9: 2.003317508 | AY9: 0.1052828414 | AZ9: 23.18377173 | BA9: 220.2046547 | BC9: 15.80725982 | BD9: 4.6875 | BE9: 7.148207071 | BF9: 0.6896024434 | BG9: 1.595454319 | BH9: 1.905802267 | BI9: 0.1052828414 | BJ9: 23.18377173 | BK9: 220.2046547 | BM9: 18.99768853 | BN9: 4.6875 | BO9: 7.933059034 | BP9: 0.7559984017 | BQ9: 1.749067055 | BR9: 2.186706521 | BS9: 0.1473282453 | BT9: 23.18377173 | BU9: 157.361351 | BW9: 17.46628275 | BX9: 4.6875 | BY9: 7.933059034 | BZ9: 0.7248877139 | CA9: 1.677089814 | CB9: 2.096719632 | CC9: 0.1211504899 | CD9: 23.18377173 | CE9: 191.3634171 | CG9: 15.80725982 | CH9: 4.6875 | CI9: 7.933059034 | CJ9: 0.6896024434 | CK9: 1.595454319 | CL9: 1.994657867 | CM9: 0.1211504899 | CN9: 23.18377173 | CO9: 191.3634171 | CQ9: 18.99768853 | CR9: 4.6875 | CS9: 9.12009094 | CT9: 0.7559984017 | CU9: 1.749067055 | CV9: 2.326296374 | CW9: 0.1697990815 | CX9: 23.18377173 | CY9: 136.5364966 | DA9: 17.46628275 | DB9: 4.6875 | DC9: 9.12009094 | DD9: 0.7248877139 | DE9: 1.677089814 | DF9: 2.230565113 | DG9: 0.1415712561 | DH9: 23.18377173 | DI9: 163.7604437 | DK9: 15.80725982 | DL9: 4.6875 | DM9: 9.12009094 | DN9: 0.6896024434 | DO9: 1.595454319 | DP9: 2.121988168 | DQ9: 0.1415712561 | DR9: 23.18377173 | DS9: 163.7604437 | DV9: =AM9 -> 1.749067055 | DW9: =AO9 -> 0.1257448516
A10: 6 | D10: ='21'!E4 -> ΑΜΠΕΛΩΝΕΣ ΓΙΑ ΠΑΡΑΓΩΓΗ ΟΙΝΟΥ | E10: 27.25223638 | F10: 4.6875 | G10: 6.44423417 | H10: 0.9054647951 | I10: 2.094870359 | J10: 2.392883539 | K10: 0.0901523479 | L10: 30.0068372 | M10: 332.8458759 | O10: 26.48270497 | P10: 4.6875 | Q10: 6.44423417 | R10: 0.8925892806 | S10: 2.065081753 | T10: 2.35885725 | U10: 0.07314368332 | V10: 30.0068372 | W10: 410.2450935 | Y10: 25.64904595 | Z10: 4.6875 | AA10: 6.44423417 | AB10: 0.8784278646 | AC10: 2.032318104 | AD10: 2.321432692 | AE10: 0.06044712094 | AF10: 30.0068372 | AG10: 496.4146635 | AI10: 27.25223638 | AJ10: 4.6875 | AK10: 6.911124714 | AL10: 0.9054647951 | AM10: 2.094870359 | AN10: 2.46603681 | AO10: 0.09937517033 | AP10: 30.0068372 | AQ10: 301.9550769 | AS10: 26.48270497 | AT10: 4.6875 | AU10: 6.911124714 | AV10: 0.8925892806 | AW10: 2.065081753 | AX10: 2.430970297 | AY10: 0.08062647461 | AZ10: 30.0068372 | BA10: 372.1710189 | BC10: 25.64904595 | BD10: 4.6875 | BE10: 6.911124714 | BF10: 0.8784278646 | BG10: 2.032318104 | BH10: 2.392401627 | BI10: 0.06526281788 | BJ10: 30.0068372 | BK10: 459.7845784 | BM10: 27.25223638 | BN10: 4.6875 | BO10: 7.638678694 | BP10: 0.9054647951 | BQ10: 2.094870359 | BR10: 2.575893581 | BS10: 0.1073944251 | BT10: 30.0068372 | BU10: 279.4077735 | BW10: 26.48270497 | BX10: 4.6875 | BY10: 7.638678694 | BZ10: 0.8925892806 | CA10: 2.065081753 | CB10: 2.539264929 | CC10: 0.08713277028 | CD10: 30.0068372 | CE10: 344.3806171 | CG10: 25.64904595 | CH10: 4.6875 | CI10: 7.638678694 | CJ10: 0.8784278646 | CK10: 2.032318104 | CL10: 2.498978105 | CM10: 0.07233163964 | CN10: 30.0068372 | CO10: 414.8507811 | CQ10: 27.25223638 | CR10: 4.6875 | CS10: 8.986668761 | CT10: 0.9054647951 | CU10: 2.094870359 | CV10: 2.767934028 | CW10: 0.1259801993 | CX10: 30.0068372 | CY10: 238.1869324 | DA10: 26.48270497 | DB10: 4.6875 | DC10: 8.986668761 | DD10: 0.8925892806 | DE10: 2.065081753 | DF10: 2.728574602 | DG10: 0.1022120445 | DH10: 30.0068372 | DI10: 293.5743761 | DK10: 25.64904595 | DL10: 4.6875 | DM10: 8.986668761 | DN10: 0.8784278646 | DO10: 2.032318104 | DP10: 2.685284277 | DQ10: 0.08745013809 | DR10: 30.0068372 | DS10: 343.1308156 | DV10: =AM10 -> 2.094870359 | DW10: =AO10 -> 0.09937517033
A11: 7 | D11: ='21'!E5 -> ΑΝΘΗ ΚΑΙ ΚΑΛΛΩΠΙΣΤΙΚΑ | E11: 51.05713971 | F11: 0 | G11: 0 | H11: 1.077472487 | I11: 1.077472487 | J11: 1.077472487 | K11: 0.3624330135 | L11: 40.58018793 | M11: 111.9660362 | O11: 39.58543906 | P11: 0 | Q11: 0 | R11: 0.9487366583 | S11: 0.9487366583 | T11: 0.9487366583 | U11: 0.3227952516 | V11: 40.58018793 | W11: 125.714947 | Y11: 29.42719348 | Z11: 0 | AA11: 0 | AB11: 0.8179982429 | AC11: 0.8179982429 | AD11: 0.8179982429 | AE11: 0.2798543428 | AF11: 40.58018793 | AG11: 145.0046747 | AI11: 51.05713971 | AJ11: 0 | AK11: 0 | AL11: 1.077472487 | AM11: 1.077472487 | AN11: 1.077472487 | AO11: 0.3681356309 | AP11: 40.58018793 | AQ11: 110.2316226 | AS11: 39.58543906 | AT11: 0 | AU11: 0 | AV11: 0.9487366583 | AW11: 0.9487366583 | AX11: 0.9487366583 | AY11: 0.3278741978 | AZ11: 40.58018793 | BA11: 123.7675554 | BC11: 29.42719348 | BD11: 0 | BE11: 0 | BF11: 0.8179982429 | BG11: 0.8179982429 | BH11: 0.8179982429 | BI11: 0.2842576454 | BJ11: 40.58018793 | BK11: 142.7584749 | BM11: 51.05713971 | BN11: 0 | BO11: 0 | BP11: 1.077472487 | BQ11: 1.077472487 | BR11: 1.077472487 | BS11: 0.4326854401 | BT11: 40.58018793 | BU11: 93.78681177 | BW11: 39.58543906 | BX11: 0 | BY11: 0 | BZ11: 0.9487366583 | CA11: 0.9487366583 | CB11: 0.9487366583 | CC11: 0.3853644681 | CD11: 40.58018793 | CE11: 105.3033979 | CG11: 29.42719348 | CH11: 0 | CI11: 0 | CJ11: 0.8179982429 | CK11: 0.8179982429 | CL11: 0.8179982429 | CM11: 0.3341000818 | CN11: 40.58018793 | CO11: 121.4611733 | CQ11: 51.05713971 | CR11: 0 | CS11: 0 | CT11: 1.077472487 | CU11: 1.077472487 | CV11: 1.077472487 | CW11: 0.518228665 | CX11: 40.58018793 | CY11: 78.30556407 | DA11: 39.58543906 | DB11: 0 | DC11: 0 | DD11: 0.9487366583 | DE11: 0.9487366583 | DF11: 0.9487366583 | DG11: 0.4615521932 | DH11: 40.58018793 | DI11: 87.92112469 | DK11: 29.42719348 | DL11: 0 | DM11: 0 | DN11: 0.8179982429 | DO11: 0.8179982429 | DP11: 0.8179982429 | DQ11: 0.4001526821 | DR11: 40.58018793 | DS11: 101.4117604 | DV11: 1.077472487 | DW11: 0.3681356309
A12: 8 | B12: 80 | D12: ='21'!E6 -> ΔΥΟΣΜΟΣ | E12: 20.07044662 | F12: 1.887 | G12: 2.526532833 | H12: 0.6755483956 | I12: 1.230595224 | J12: 1.368552686 | K12: 0.1303620987 | L12: 60.87028189 | M12: 466.932356 | O12: 15.79956531 | P12: 1.887 | Q12: 2.526532833 | R12: 0.5993776129 | S12: 1.091840692 | T12: 1.214242899 | U12: 0.09130727873 | V12: 60.87028189 | W12: 666.6531162 | Y12: 12.28513612 | Z12: 1.887 | AA12: 2.526532833 | AB12: 0.5285279207 | AC12: 0.9627791868 | AD12: 1.070712787 | AE12: 0.05876159541 | AF12: 60.87028189 | AG12: 1035.885453 | AI12: 20.07044662 | AJ12: 1.887 | AK12: 2.675796714 | AL12: 0.6755483956 | AM12: 1.230595224 | AN12: 1.398794265 | AO12: 0.1334249111 | AP12: 60.87028189 | AQ12: 456.2137714 | AS12: 15.79956531 | AT12: 1.887 | AU12: 2.675796714 | AV12: 0.5993776129 | AW12: 1.091840692 | AX12: 1.241074619 | AY12: 0.09345251164 | AZ12: 60.87028189 | BA12: 651.3498762 | BC12: 12.28513612 | BD12: 1.887 | BE12: 2.675796714 | BF12: 0.5285279207 | BG12: 0.9627791868 | BH12: 1.094372852 | BI12: 0.06014217875 | BJ12: 60.87028189 | BK12: 1012.106365 | BM12: 20.07044662 | BN12: 1.887 | BO12: 2.971797374 | BP12: 0.6755483956 | BQ12: 1.230595224 | BR12: 1.456909877 | BS12: 0.1520090188 | BT12: 60.87028189 | BU12: 400.4386212 | BW12: 15.79956531 | BX12: 1.887 | BY12: 2.971797374 | BZ12: 0.5993776129 | CA12: 1.091840692 | CB12: 1.292637463 | CC12: 0.106469058 | CD12: 60.87028189 | CE12: 571.718047 | CG12: 12.28513612 | CH12: 1.887 | CI12: 2.971797374 | CJ12: 0.5285279207 | CK12: 0.9627791868 | CL12: 1.139840688 | CM12: 0.06851909065 | CN12: 60.87028189 | CO12: 888.3696691 | CQ12: 20.07044662 | CR12: 1.887 | CS12: 3.417972031 | CT12: 0.6755483956 | CU12: 1.230595224 | CV12: 1.540372229 | CW12: 0.1648217359 | CX12: 60.87028189 | CY12: 369.3097975 | DA12: 15.79956531 | DB12: 1.887 | DC12: 3.417972031 | DD12: 0.5993776129 | DE12: 1.091840692 | DF12: 1.366689102 | DG12: 0.1154432487 | DH12: 60.87028189 | DI12: 527.2745059 | DK12: 12.28513612 | DL12: 1.887 | DM12: 3.417972031 | DN12: 0.5285279207 | DO12: 0.9627791868 | DP12: 1.20513902 | DQ12: 0.07429450931 | DR12: 60.87028189 | DS12: 819.3106389 | DV12: 1.230595224 | DW12: 0.1334249111
A13: 9 | B13: 72 | D13: ='21'!E7 -> ΛΕΒΑΝΤΑ | E13: 17.32065346 | F13: 1.124 | G13: 1.92668749 | H13: 0.2481578202 | I13: 0.7781015489 | J13: 0.9969108075 | K13: 0.1132340243 | L13: 69.55131518 | M13: 614.2262947 | O13: 13.48088655 | P13: 1.124 | Q13: 1.92668749 | R13: 0.2189298887 | S13: 0.6864570513 | T13: 0.8794950405 | U13: 0.07939784777 | V13: 69.55131518 | W13: 875.9848929 | Y13: 10.08182788 | Z13: 1.124 | AA13: 1.92668749 | AB13: 0.189328271 | AC13: 0.5936408564 | AD13: 0.7605780844 | AE13: 0.05120103399 | AF13: 69.55131518 | AG13: 1358.396692 | AI13: 17.32065346 | AJ13: 1.124 | AK13: 2.030899908 | AL13: 0.2481578202 | AM13: 0.7781015489 | AN13: 1.021888193 | AO13: 0.1157279475 | AP13: 69.55131518 | AQ13: 600.9897925 | AS13: 13.48088655 | AT13: 1.124 | AU13: 2.030899908 | AV13: 0.2189298887 | AW13: 0.6864570513 | AX13: 0.9015305992 | AY13: 0.08114654599 | AZ13: 69.55131518 | BA13: 857.1075247 | BC13: 10.08182788 | BD13: 1.124 | BE13: 2.030899908 | BF13: 0.189328271 | BG13: 0.5936408564 | BH13: 0.7796342044 | BI13: 0.05232871137 | BJ13: 69.55131518 | BK13: 1329.123408 | BM13: 17.32065346 | BN13: 1.124 | BO13: 2.249470968 | BP13: 0.2481578202 | BQ13: 0.7781015489 | BR13: 1.072386815 | BS13: 0.1267866424 | BT13: 69.55131518 | BU13: 548.5697377 | BW13: 13.48088655 | BX13: 1.124 | BY13: 2.249470968 | BZ13: 0.2189298887 | CA13: 0.6864570513 | CB13: 0.9460815132 | CC13: 0.08890072217 | CD13: 69.55131518 | CE13: 782.3481461 | CG13: 10.08182788 | CH13: 1.124 | CI13: 2.249470968 | CJ13: 0.189328271 | CK13: 0.5936408564 | CL13: 0.8181613674 | CM13: 0.05732912195 | CN13: 69.55131518 | CO13: 1213.193449 | CQ13: 17.32065346 | CR13: 1.124 | CS13: 2.624132739 | CT13: 0.2481578202 | CU13: 0.7781015489 | CV13: 1.15381874 | CW13: 0.1626549422 | CX13: 69.55131518 | CY13: 427.6003804 | DA13: 13.48088655 | DB13: 1.124 | DC13: 2.624132739 | DD13: 0.2189298887 | DE13: 0.6864570513 | DF13: 1.017922418 | DG13: 0.114050988 | DH13: 69.55131518 | DI13: 609.8265032 | DK13: 10.08182788 | DL13: 1.124 | DM13: 2.624132739 | DN13: 0.189328271 | DO13: 0.5936408564 | DP13: 0.880288628 | DQ13: 0.07354769274 | DR13: 69.55131518 | DS13: 945.6627745 | DV13: 0.7781015489 | DW13: 0.1157279475
A14: 10 | B14: 70 | D14: ='21'!E8 -> ΛΟΥΙΖΑ | E14: 12.38363077 | F14: 1.689416667 | G14: 2.969771748 | H14: 0.2098310852 | I14: 0.7927613925 | J14: 1.03508466 | K14: 0.1486174722 | L14: 69.55131518 | M14: 467.9888181 | O14: 9.14533547 | P14: 1.689416667 | Q14: 2.969771748 | R14: 0.1803207271 | S14: 0.6812685096 | T14: 0.8895117631 | U14: 0.09333292307 | V14: 69.55131518 | W14: 745.1959383 | Y14: 6.601595234 | Z14: 1.689416667 | AA14: 2.969771748 | AB14: 0.1532040604 | AC14: 0.5788192162 | AD14: 0.755746808 | AE14: 0.06971214769 | AF14: 69.55131518 | AG14: 997.6929055 | AI14: 12.38363077 | AJ14: 1.689416667 | AK14: 3.207783096 | AL14: 0.2098310852 | AM14: 0.7927613925 | AN14: 1.074122231 | AO14: 0.1607604533 | AP14: 69.55131518 | AQ14: 432.6394567 | AS14: 9.14533547 | AT14: 1.689416667 | AU14: 3.207783096 | AV14: 0.1803207271 | AW14: 0.6812685096 | AX14: 0.9230591431 | AY14: 0.1016738938 | AZ14: 69.55131518 | BA14: 684.0626692 | BC14: 6.601595234 | BD14: 1.689416667 | BE14: 3.207783096 | BF14: 0.1532040604 | BG14: 0.5788192162 | BH14: 0.7842493264 | BI14: 0.07594217847 | BJ14: 69.55131518 | BK14: 915.8456681 | BM14: 12.38363077 | BN14: 1.689416667 | BO14: 3.52014623 | BP14: 0.2098310852 | BQ14: 0.7927613925 | BR14: 1.123297978 | BS14: 0.1712649241 | BT14: 69.55131518 | BU14: 406.1036757 | BW14: 9.14533547 | BX14: 1.689416667 | BY14: 3.52014623 | BZ14: 0.1803207271 | CA14: 0.6812685096 | CB14: 0.9653188794 | CC14: 0.1111029993 | CD14: 69.55131518 | CE14: 626.0075389 | CG14: 6.601595234 | CH14: 1.689416667 | CI14: 3.52014623 | CJ14: 0.1532040604 | CK14: 0.5788192162 | CL14: 0.8201540352 | CM14: 0.08298495797 | CN14: 69.55131518 | CO14: 838.1195445 | CQ14: 12.38363077 | CR14: 1.689416667 | CS14: 4.009055008 | CT14: 0.2098310852 | CU14: 0.7927613925 | CV14: 1.196216043 | CW14: 0.2132610518 | CX14: 69.55131518 | CY14: 326.1322899 | DA14: 9.14533547 | DB14: 1.689416667 | DC14: 4.009055008 | DD14: 0.1803207271 | DE14: 0.6812685096 | DF14: 1.027981847 | DG14: 0.1327500115 | DH14: 69.55131518 | DI14: 523.9269992 | DK14: 6.601595234 | DL14: 1.689416667 | DM14: 4.009055008 | DN14: 0.1532040604 | DO14: 0.5788192162 | DP14: 0.8733937333 | DQ14: 0.09100871049 | DR14: 69.55131518 | DS14: 764.2270152 | DV14: 0.7927613925 | DW14: 0.1607604533
A15: 11 | B15: 69 | D15: ='21'!E9 -> ΜΑΣΤΙΧΟΔΕΝΔΡΑ | E15: 40.74747372 | F15: 1.5525 | G15: 2.001481544 | H15: 0.9625610692 | I15: 1.641260376 | J15: 1.790198766 | K15: 0.479048418 | L15: 60.87028189 | M15: 127.0649889 | O15: 31.41773243 | P15: 1.5525 | Q15: 2.001481544 | R15: 0.8452114405 | S15: 1.441167829 | T15: 1.57194855 | U15: 0.2979674852 | V15: 60.87028189 | W15: 204.2849805 | Y15: 24.19090415 | Z15: 1.5525 | AA15: 2.001481544 | AB15: 0.7416585348 | AC15: 1.264600039 | AD15: 1.379357878 | AE15: 0.1702201159 | AF15: 60.87028189 | AG15: 357.5974648 | AI15: 40.74747372 | AJ15: 1.5525 | AK15: 2.136447564 | AL15: 0.9625610692 | AM15: 1.641260376 | AN15: 1.832605668 | AO15: 0.5252686939 | AP15: 60.87028189 | AQ15: 115.8840848 | AS15: 31.41773243 | AT15: 1.5525 | AU15: 2.136447564 | AV15: 0.8452114405 | AW15: 1.441167829 | AX15: 1.609185459 | AY15: 0.326716436 | AZ15: 60.87028189 | BA15: 186.3092125 | BC15: 24.19090415 | BD15: 1.5525 | BE15: 2.136447564 | BF15: 0.7416585348 | BG15: 1.264600039 | BH15: 1.412032626 | BI15: 0.1866435513 | BJ15: 60.87028189 | BK15: 326.1311815 | BM15: 40.74747372 | BN15: 1.5525 | BO15: 2.345448172 | BP15: 0.9625610692 | BQ15: 1.641260376 | BR15: 1.896404247 | BS15: 0.5452823539 | BT15: 60.87028189 | BU15: 111.6307569 | BW15: 31.41773243 | BX15: 1.5525 | BY15: 2.345448172 | BZ15: 0.8452114405 | CA15: 1.441167829 | CB15: 1.665206101 | CC15: 0.3391649061 | CD15: 60.87028189 | CE15: 179.4710502 | CG15: 24.19090415 | CH15: 1.5525 | CI15: 2.345448172 | CJ15: 0.7416585348 | CK15: 1.264600039 | CL15: 1.461189778 | CM15: 0.1937549984 | CN15: 60.87028189 | CO15: 314.161092 | CQ15: 40.74747372 | CR15: 1.5525 | CS15: 2.758297385 | CT15: 0.9625610692 | CU15: 1.641260376 | CV15: 2.016505792 | CW15: 0.6939525428 | CX15: 60.87028189 | CY15: 87.71533807 | DA15: 31.41773243 | DB15: 1.5525 | DC15: 2.758297385 | DD15: 0.8452114405 | DE15: 1.441167829 | DF15: 1.770665592 | DG15: 0.4316375678 | DH15: 60.87028189 | DI15: 141.0217424 | DK15: 24.19090415 | DL15: 1.5525 | DM15: 2.758297385 | DN15: 0.7416585348 | DO15: 1.264600039 | DP15: 1.553728671 | DQ15: 0.2465819275 | DR15: 60.87028189 | DS15: 246.8562174 | DV15: 1.641260376 | DW15: 0.5252686939
A16: 12 | B16: 24 | D16: ='21'!E10 -> ΜΕΝΤΑ | E16: 51.23493919 | F16: 8.2775 | G16: 13.20800693 | H16: 0.7792347551 | I16: 3.529103363 | J16: 4.41717929 | K16: 0.2257074103 | L16: 42.19588925 | M16: 186.9495078 | O16: 50.42291127 | P16: 8.2775 | Q16: 13.20800693 | R16: 0.7730350053 | S16: 3.501025101 | T16: 4.382035315 | U16: 0.2257074103 | V16: 42.19588925 | W16: 186.9495078 | Y16: 49.54321436 | Z16: 8.2775 | AA16: 13.20800693 | AB16: 0.7662620058 | AC16: 3.470350628 | AD16: 4.34364181 | AE16: 0.2257074103 | AF16: 42.19588925 | AG16: 186.9495078 | AI16: 51.23493919 | AJ16: 8.2775 | AK16: 14.15530017 | AL16: 0.7792347551 | AM16: 3.529103363 | AN16: 4.568074899 | AO16: 0.2474844549 | AP16: 42.19588925 | AQ16: 170.4991502 | AS16: 50.42291127 | AT16: 8.2775 | AU16: 14.15530017 | AV16: 0.7730350053 | AW16: 3.501025101 | AX16: 4.531730369 | AY16: 0.2474844549 | AZ16: 42.19588925 | BA16: 170.4991502 | BC16: 49.54321436 | BD16: 8.2775 | BE16: 14.15530017 | BF16: 0.7662620058 | BG16: 3.470350628 | BH16: 4.4920253 | BI16: 0.2474844549 | BJ16: 42.19588925 | BK16: 170.4991502 | BM16: 51.23493919 | BN16: 8.2775 | BO16: 15.57425171 | BP16: 0.7792347551 | BQ16: 3.529103363 | BR16: 4.785207997 | BS16: 0.2569140474 | BT16: 42.19588925 | BU16: 164.2412693 | BW16: 50.42291127 | BX16: 8.2775 | BY16: 15.57425171 | BZ16: 0.7730350053 | CA16: 3.501025101 | CB16: 4.747135912 | CC16: 0.2569140474 | CD16: 42.19588925 | CE16: 164.2412693 | CG16: 49.54321436 | CH16: 8.2775 | CI16: 15.57425171 | CJ16: 0.7662620058 | CK16: 3.470350628 | CL16: 4.705543553 | CM16: 0.2569140474 | CN16: 42.19588925 | CO16: 164.2412693 | CQ16: 51.23493919 | CR16: 8.2775 | CS16: 18.08726198 | CT16: 0.7792347551 | CU16: 3.529103363 | CV16: 5.147331325 | CW16: 0.3269611701 | CX16: 42.19588925 | CY16: 129.0547414 | DA16: 50.42291127 | DB16: 8.2775 | DC16: 18.08726198 | DD16: 0.7730350053 | DE16: 3.501025101 | DF16: 5.106378112 | DG16: 0.3269611701 | DH16: 42.19588925 | DI16: 129.0547414 | DK16: 49.54321436 | DL16: 8.2775 | DM16: 18.08726198 | DN16: 0.7662620058 | DO16: 3.470350628 | DP16: 5.061638228 | DQ16: 0.3269611701 | DR16: 42.19588925 | DS16: 129.0547414 | DV16: 3.529103363 | DW16: 0.2474844549
A17: 13 | B17: 48 | D17: ='21'!E11 -> ΡΙΓΑΝΗ | E17: 50.9127067 | F17: 14.0875 | G17: 20.46564047 | H17: 0.7767804651 | I17: 4.543086731 | J17: 5.450787483 | K17: 0.2257074103 | L17: 42.19588925 | M17: 186.9495078 | O17: 50.9127067 | P17: 14.0875 | Q17: 20.46564047 | R17: 0.7767804651 | S17: 4.543086731 | T17: 5.450787483 | U17: 0.2257074103 | V17: 42.19588925 | W17: 186.9495078 | Y17: 50.9127067 | Z17: 14.0875 | AA17: 20.46564047 | AB17: 0.7767804651 | AC17: 4.543086731 | AD17: 5.450787483 | AE17: 0.2257074103 | AF17: 42.19588925 | AG17: 186.9495078 | AI17: 50.9127067 | AJ17: 14.0875 | AK17: 21.93817617 | AL17: 0.7767804651 | AM17: 4.543086731 | AN17: 5.639630278 | AO17: 0.2474844549 | AP17: 42.19588925 | AQ17: 170.4991502 | AS17: 50.9127067 | AT17: 14.0875 | AU17: 21.93817617 | AV17: 0.7767804651 | AW17: 4.543086731 | AX17: 5.639630278 | AY17: 0.2474844549 | AZ17: 42.19588925 | BA17: 170.4991502 | BC17: 50.9127067 | BD17: 14.0875 | BE17: 21.93817617 | BF17: 0.7767804651 | BG17: 4.543086731 | BH17: 5.639630278 | BI17: 0.2474844549 | BJ17: 42.19588925 | BK17: 170.4991502 | BM17: 50.9127067 | BN17: 14.0875 | BO17: 24.07550573 | BP17: 0.7767804651 | BQ17: 4.543086731 | BR17: 5.902990133 | BS17: 0.2569140474 | BT17: 42.19588925 | BU17: 164.2412693 | BW17: 50.9127067 | BX17: 14.0875 | BY17: 24.07550573 | BZ17: 0.7767804651 | CA17: 4.543086731 | CB17: 5.902990133 | CC17: 0.2569140474 | CD17: 42.19588925 | CE17: 164.2412693 | CG17: 50.9127067 | CH17: 14.0875 | CI17: 24.07550573 | CJ17: 0.7767804651 | CK17: 4.543086731 | CL17: 5.902990133 | CM17: 0.2569140474 | CN17: 42.19588925 | CO17: 164.2412693 | CQ17: 50.9127067 | CR17: 14.0875 | CS17: 28.41788792 | CT17: 0.7767804651 | CU17: 4.543086731 | CV17: 6.404790298 | CW17: 0.3269611701 | CX17: 42.19588925 | CY17: 129.0547414 | DA17: 50.9127067 | DB17: 14.0875 | DC17: 28.41788792 | DD17: 0.7767804651 | DE17: 4.543086731 | DF17: 6.404790298 | DG17: 0.3269611701 | DH17: 42.19588925 | DI17: 129.0547414 | DK17: 50.9127067 | DL17: 14.0875 | DM17: 28.41788792 | DN17: 0.7767804651 | DO17: 4.543086731 | DP17: 6.404790298 | DQ17: 0.3269611701 | DR17: 42.19588925 | DS17: 129.0547414 | DV17: 4.543086731 | DW17: 0.2474844549
A18: 14 | B18: 68 | D18: ='21'!E12 -> ΤΣΑΙ ΤΟΥ ΒΟΥΝΟΥ | E18: 14.85303386 | F18: 0.903 | G18: 1.479581549 | H18: 0.7402813783 | I18: 0.9605703583 | J18: 1.077930678 | K18: 0.1305603536 | L18: 60.87028189 | M18: 466.223323 | O18: 11.01219015 | P18: 0.903 | Q18: 1.479581549 | R18: 0.6374205933 | S18: 0.8271008101 | T18: 0.9281541214 | U18: 0.09713412031 | V18: 60.87028189 | W18: 626.6622038 | Y18: 7.866357892 | Z18: 0.903 | AA18: 1.479581549 | AB18: 0.5387361149 | AC18: 0.6990503314 | AD18: 0.7844587241 | AE18: 0.06972242682 | AF18: 60.87028189 | AG18: 873.0373378 | AI18: 14.85303386 | AJ18: 0.903 | AK18: 1.502123968 | AL18: 0.7402813783 | AM18: 0.9605703583 | AN18: 1.082260597 | AO18: 0.1272992138 | AP18: 60.87028189 | AQ18: 478.1669902 | AS18: 11.01219015 | AT18: 0.903 | AU18: 1.502123968 | AV18: 0.6374205933 | AW18: 0.8271008101 | AX18: 0.9318824058 | AY18: 0.0947079018 | AZ18: 60.87028189 | BA18: 642.7159797 | BC18: 7.866357892 | BD18: 0.903 | BE18: 1.502123968 | BF18: 0.5387361149 | BG18: 0.6990503314 | BH18: 0.7876098013 | BI18: 0.06798089828 | BJ18: 60.87028189 | BK18: 895.4027298 | BM18: 14.85303386 | BN18: 0.903 | BO18: 1.715134128 | BP18: 0.7402813783 | BQ18: 0.9605703583 | BR18: 1.122350936 | BS18: 0.1491494049 | BT18: 60.87028189 | BU18: 408.1161566 | BW18: 11.01219015 | BX18: 0.903 | BY18: 1.715134128 | BZ18: 0.6374205933 | CA18: 0.8271008101 | CB18: 0.9664022629 | CC18: 0.1109639783 | CD18: 60.87028189 | CE18: 548.5589361 | CG18: 7.866357892 | CH18: 0.903 | CI18: 1.715134128 | CJ18: 0.5387361149 | CK18: 0.6990503314 | CL18: 0.8167853471 | CM18: 0.07964943558 | CN18: 60.87028189 | CO18: 764.2274104 | CQ18: 14.85303386 | CR18: 0.903 | CS18: 1.988289596 | CT18: 0.7402813783 | CU18: 0.9605703583 | CV18: 1.171755582 | CW18: 0.1718980085 | CX18: 60.87028189 | CY18: 354.1069639 | DA18: 11.01219015 | DB18: 0.903 | DC18: 1.988289596 | DD18: 0.6374205933 | DE18: 0.8271008101 | DF18: 1.008942222 | DG18: 0.1278884545 | DH18: 60.87028189 | DI18: 475.9638555 | DK18: 7.866357892 | DL18: 0.903 | DM18: 1.988289596 | DN18: 0.5387361149 | DO18: 0.6990503314 | DP18: 0.8527393347 | DQ18: 0.09179774712 | DR18: 60.87028189 | DS18: 663.0912392 | DV18: 0.9605703583 | DW18: 0.1272992138
A19: 15 | B19: 13 | D19: ='21'!E13 -> ΦΑΣΚΟΜΗΛΟ | E19: 44.00532235 | F19: 1.188 | G19: 1.64878462 | H19: 0.3955473076 | I19: 1.271565291 | J19: 1.477608054 | K19: 0.5424770147 | L19: 69.67942144 | M19: 128.446772 | O19: 33.09271893 | P19: 1.188 | Q19: 1.64878462 | R19: 0.3430141648 | S19: 1.102687082 | T19: 1.281365043 | U19: 0.3376273473 | V19: 69.67942144 | W19: 206.3796728 | Y19: 23.97531745 | Z19: 1.188 | AA19: 1.64878462 | AB19: 0.2919631311 | AC19: 0.9385734063 | AD19: 1.090658603 | AE19: 0.193111822 | AF19: 69.67942144 | AG19: 360.8242143 | AI19: 44.00532235 | AJ19: 1.188 | AK19: 1.766101384 | AL19: 0.3955473076 | AM19: 1.271565291 | AN19: 1.525629138 | AO19: 0.5848159074 | AP19: 69.67942144 | AQ19: 119.1476165 | AS19: 33.09271893 | AT19: 1.188 | AU19: 1.766101384 | AV19: 0.3430141648 | AW19: 1.102687082 | AX19: 1.323008385 | AY19: 0.3639935131 | AZ19: 69.67942144 | BA19: 191.4303935 | BC19: 23.97531745 | BD19: 1.188 | BE19: 1.766101384 | BF19: 0.2919631311 | BG19: 0.9385734063 | BH19: 1.126104138 | BI19: 0.2082096903 | BJ19: 69.67942144 | BK19: 334.6598391 | BM19: 44.00532235 | BN19: 1.188 | BO19: 1.956038566 | BP19: 0.3955473076 | BQ19: 1.271565291 | BR19: 1.600323717 | BS19: 0.6082303246 | BT19: 69.67942144 | BU19: 114.5609132 | BW19: 33.09271893 | BX19: 1.188 | BY19: 1.956038566 | BZ19: 0.3430141648 | CA19: 1.102687082 | CB19: 1.387782681 | CC19: 0.3785668102 | CD19: 69.67942144 | CE19: 184.0610945 | CG19: 23.97531745 | CH19: 1.188 | CI19: 1.956038566 | CJ19: 0.2919631311 | CK19: 0.9385734063 | CL19: 1.181238032 | CM19: 0.2165458324 | CN19: 69.67942144 | CO19: 321.7767835 | CQ19: 44.00532235 | CR19: 1.188 | CS19: 2.277195055 | CT19: 0.3955473076 | CU19: 1.271565291 | CV19: 1.719254773 | CW19: 0.7246138309 | CX19: 69.67942144 | CY19: 96.16076656 | DA19: 33.09271893 | DB19: 1.188 | DC19: 2.277195055 | DD19: 0.3430141648 | DE19: 1.102687082 | DF19: 1.490918352 | DG19: 0.451004719 | DH19: 69.67942144 | DI19: 154.4982092 | DK19: 23.97531745 | DL19: 1.188 | DM19: 2.277195055 | DN19: 0.2919631311 | DO19: 0.9385734063 | DP19: 1.26902395 | DQ19: 0.257981391 | DR19: 69.67942144 | DS19: 270.0947582 | DV19: 1.271565291 | DW19: 0.5848159074
A20: 16 | B20: 32 | D20: ='21'!E14 -> ΧΑΜΟΜΗΛΙ | E20: 32.55508217 | F20: 0.30364125 | G20: 0.7449916831 | H20: 0.3402163863 | I20: 0.6260122658 | J20: 0.8906593441 | K20: 0.3233987329 | L20: 69.55131518 | M20: 215.0636601 | O20: 23.44669707 | P20: 0.30364125 | Q20: 0.6857985814 | R20: 0.2887265128 | S20: 0.5312687623 | T20: 0.7297654669 | U20: 0.199374791 | V20: 69.55131518 | W20: 348.8470876 | Y20: 16.37602918 | Z20: 0.30364125 | AA20: 0.6857985814 | AB20: 0.2412960047 | AC20: 0.4439946596 | AD20: 0.6098833454 | AE20: 0.1539159539 | AF20: 69.55131518 | AG20: 451.8785313 | AI20: 32.55508217 | AJ20: 0.30364125 | AK20: 0.7449916831 | AL20: 0.3402163863 | AM20: 0.6260122658 | AN20: 0.8906593441 | AO20: 0.3233987329 | AP20: 69.55131518 | AQ20: 215.0636601 | AS20: 23.44669707 | AT20: 0.30364125 | AU20: 0.7449916831 | AV20: 0.2887265128 | AW20: 0.5312687623 | AX20: 0.755862965 | AY20: 0.2186381636 | AZ20: 69.55131518 | BA20: 318.1115045 | BC20: 16.37602918 | BD20: 0.30364125 | BE20: 0.7449916831 | BF20: 0.2412960047 | BG20: 0.4439946596 | BH20: 0.6316936806 | BI20: 0.1687871438 | BJ20: 69.55131518 | BK20: 412.0652416 | BM20: 32.55508217 | BN20: 0.30364125 | BO20: 0.7919667579 | BP20: 0.3402163863 | BQ20: 0.6260122658 | BR20: 0.9143277218 | BS20: 0.3801042641 | BT20: 69.55131518 | BU20: 182.979571 | BW20: 23.44669707 | BX20: 0.30364125 | BY20: 0.7919667579 | BZ20: 0.2887265128 | CA20: 0.5312687623 | CB20: 0.7759492643 | CC20: 0.2366005119 | CD20: 69.55131518 | CE20: 293.9609666 | CG20: 16.37602918 | CH20: 0.30364125 | CI20: 0.7919667579 | CJ20: 0.2412960047 | CK20: 0.4439946596 | CL20: 0.6484803059 | CM20: 0.1785840758 | CN20: 69.55131518 | CO20: 389.4597817 | CQ20: 32.55508217 | CR20: 0.30364125 | CS20: 0.9822418426 | CT20: 0.3402163863 | CU20: 0.6260122658 | CV20: 1.00450952 | CW20: 0.4552520308 | CX20: 69.55131518 | CY20: 152.7754089 | DA20: 23.44669707 | DB20: 0.30364125 | DC20: 0.9822418426 | DD20: 0.2887265128 | DE20: 0.5312687623 | DF20: 0.8524825445 | DG20: 0.2888015495 | DH20: 69.55131518 | DI20: 240.8273616 | DK20: 16.37602918 | DL20: 0.30364125 | DM20: 0.9822418426 | DN20: 0.2412960047 | DO20: 0.4439946596 | DP20: 0.712441092 | DQ20: 0.2229527903 | DR20: 69.55131518 | DS20: 311.9553475 | DV20: 0.6260122658 | DW20: 0.3233987329
A21: 17 | B21: 73 | D21: ='21'!E15 -> ΛΟΙΠΑ ΑΡΩΜΑΤΙΚΑ ΦΥΤΑ | E21: 17.37087683 | F21: 0 | G21: 0 | H21: 0.2485173419 | I21: 0.2485173419 | J21: 0.2485173419 | K21: 0.1132340243 | L21: 69.55131518 | M21: 614.2262947 | O21: 13.53110992 | P21: 0 | Q21: 0 | R21: 0.2193373239 | S21: 0.2193373239 | T21: 0.2193373239 | U21: 0.07939784777 | V21: 69.55131518 | W21: 875.9848929 | Y21: 10.13205125 | Z21: 0 | AA21: 0 | AB21: 0.1897992615 | AC21: 0.1897992615 | AD21: 0.1897992615 | AE21: 0.05120103399 | AF21: 69.55131518 | AG21: 1358.396692 | AI21: 17.37087683 | AJ21: 0 | AK21: 0 | AL21: 0.2485173419 | AM21: 0.2485173419 | AN21: 0.2485173419 | AO21: 0.1157279475 | AP21: 69.55131518 | AQ21: 600.9897925 | AS21: 13.53110992 | AT21: 0 | AU21: 0 | AV21: 0.2193373239 | AW21: 0.2193373239 | AX21: 0.2193373239 | AY21: 0.08114654599 | AZ21: 69.55131518 | BA21: 857.1075247 | BC21: 10.13205125 | BD21: 0 | BE21: 0 | BF21: 0.1897992615 | BG21: 0.1897992615 | BH21: 0.1897992615 | BI21: 0.05232871137 | BJ21: 69.55131518 | BK21: 1329.123408 | BM21: 17.37087683 | BN21: 0 | BO21: 0 | BP21: 0.2485173419 | BQ21: 0.2485173419 | BR21: 0.2485173419 | BS21: 0.1267866424 | BT21: 69.55131518 | BU21: 548.5697377 | BW21: 13.53110992 | BX21: 0 | BY21: 0 | BZ21: 0.2193373239 | CA21: 0.2193373239 | CB21: 0.2193373239 | CC21: 0.08890072217 | CD21: 69.55131518 | CE21: 782.3481461 | CG21: 10.13205125 | CH21: 0 | CI21: 0 | CJ21: 0.1897992615 | CK21: 0.1897992615 | CL21: 0.1897992615 | CM21: 0.05732912195 | CN21: 69.55131518 | CO21: 1213.193449 | CQ21: 17.37087683 | CR21: 0 | CS21: 0 | CT21: 0.2485173419 | CU21: 0.2485173419 | CV21: 0.2485173419 | CW21: 0.1626549422 | CX21: 69.55131518 | CY21: 427.6003804 | DA21: 13.53110992 | DB21: 0 | DC21: 0 | DD21: 0.2193373239 | DE21: 0.2193373239 | DF21: 0.2193373239 | DG21: 0.114050988 | DH21: 69.55131518 | DI21: 609.8265032 | DK21: 10.13205125 | DL21: 0 | DM21: 0 | DN21: 0.1897992615 | DO21: 0.1897992615 | DP21: 0.1897992615 | DQ21: 0.07354769274 | DR21: 69.55131518 | DS21: 945.6627745 | DV21: 0.2485173419 | DW21: 0.1157279475
A22: 18 | B22: 63 | DV22: 0 | DW22: 0
A23: 19 | B23: 17 | D23: ='21'!E17 -> ΕΛΑΙΟΚΡΑΜΒΗ | E23: 32.13085649 | F23: 0.15 | G23: 0.2554219632 | H23: 0.3379924355 | I23: 0.4988763113 | J23: 0.586091636 | K23: 0.3826798463 | L23: 69.67942144 | M23: 182.0828092 | O23: 23.21810416 | P23: 0.15 | Q23: 0.2554219632 | R23: 0.2873156 | S23: 0.4240773807 | T23: 0.4982160912 | U23: 0.263767928 | V23: 69.67942144 | W23: 264.1694233 | Y23: 16.16656158 | Z23: 0.15 | AA23: 0.2554219632 | AB23: 0.2397478161 | AC23: 0.3538674053 | AD23: 0.4157317592 | AE23: 0.1725337903 | AF23: 69.67942144 | AG23: 403.8595646 | AI23: 32.13085649 | AJ23: 0.15 | AK23: 0.2632617038 | AL23: 0.3379924355 | AM23: 0.4988763113 | AN23: 0.5920644292 | AO23: 0.3698209805 | AP23: 69.67942144 | AQ23: 188.4139222 | AS23: 23.21810416 | AT23: 0.15 | AU23: 0.2632617038 | AV23: 0.2873156 | AW23: 0.4240773807 | AX23: 0.5032933548 | AY23: 0.2549047584 | AZ23: 69.67942144 | BA23: 273.3547301 | BC23: 16.16656158 | BD23: 0.15 | BE23: 0.2632617038 | BF23: 0.2397478161 | BG23: 0.3538674053 | BH23: 0.4199684343 | BI23: 0.1682242369 | BJ23: 69.67942144 | BK23: 414.2056026 | BM23: 32.13085649 | BN23: 0.15 | BO23: 0.2974967739 | BP23: 0.3379924355 | BQ23: 0.4988763113 | BR23: 0.6174701513 | BS23: 0.434279068 | BT23: 69.67942144 | BU23: 160.4484917 | BW23: 23.21810416 | BX23: 0.15 | BY23: 0.2974967739 | BZ23: 0.2873156 | CA23: 0.4240773807 | CB23: 0.5248898744 | CC23: 0.2993334795 | CD23: 69.67942144 | CE23: 232.7819178 | CG23: 16.16656158 | CH23: 0.15 | CI23: 0.2974967739 | CJ23: 0.2397478161 | CK23: 0.3538674053 | CL23: 0.4379894482 | CM23: 0.1970989772 | CN23: 69.67942144 | CO23: 353.525028 | CQ23: 32.13085649 | CR23: 0.15 | CS23: 0.3373470429 | CT23: 0.3379924355 | CU23: 0.4988763113 | CV23: 0.6457852898 | CW23: 0.5344138919 | CX23: 69.67942144 | CY23: 130.3847495 | DA23: 23.21810416 | DB23: 0.15 | DC23: 0.3373470429 | DD23: 0.2873156 | DE23: 0.4240773807 | DF23: 0.5489595877 | DG23: 0.3683529361 | DH23: 69.67942144 | DI23: 189.1648325 | DK23: 16.16656158 | DL23: 0.15 | DM23: 0.3373470429 | DN23: 0.2397478161 | DO23: 0.3538674053 | DP23: 0.4580741954 | DQ23: 0.2365479541 | DR23: 69.67942144 | DS23: 294.5678465 | DV23: 0.4988763113 | DW23: 0.3698209805
A24: 20 | B24: 74 | D24: ='21'!E18 -> ΗΛΙΑΝΘΟΣ | E24: 30.21886626 | F24: 0.216 | G24: 0.3288818779 | H24: 0.327781858 | I24: 0.5383155034 | J24: 0.6205449837 | K24: 0.3508552892 | L24: 60.87028189 | M24: 173.4911337 | O24: 21.55167052 | P24: 0.216 | Q24: 0.3288818779 | R24: 0.2768128832 | S24: 0.4546092559 | T24: 0.524052329 | U24: 0.2184150192 | V24: 60.87028189 | W24: 278.6909166 | Y24: 15.01396361 | Z24: 0.216 | AA24: 0.3288818779 | AB24: 0.2310433691 | AC24: 0.3794420726 | AD24: 0.4374031089 | AE24: 0.1399983809 | AF24: 60.87028189 | AG24: 434.7927562 | AI24: 30.21886626 | AJ24: 0.216 | AK24: 0.3525005118 | AL24: 0.327781858 | AM24: 0.5383155034 | AN24: 0.636407439 | AO24: 0.3443610137 | AP24: 60.87028189 | AQ24: 176.7629885 | AS24: 21.55167052 | AT24: 0.216 | AU24: 0.3525005118 | AV24: 0.2768128832 | AW24: 0.4546092559 | AX24: 0.5374482259 | AY24: 0.214372192 | AZ24: 60.87028189 | BA24: 283.9467252 | BC24: 15.01396361 | BD24: 0.216 | BE24: 0.3525005118 | BF24: 0.2310433691 | BG24: 0.3794420726 | BH24: 0.4485840666 | BI24: 0.15100614 | BJ24: 60.87028189 | BK24: 403.0980587 | BM24: 30.21886626 | BN24: 0.216 | BO24: 0.389800341 | BP24: 0.327781858 | BQ24: 0.5383155034 | BR24: 0.6606830978 | BS24: 0.3962612042 | BT24: 60.87028189 | BU24: 153.6115099 | BW24: 21.55167052 | BX24: 0.216 | BY24: 0.389800341 | BZ24: 0.2768128832 | CA24: 0.4546092559 | CB24: 0.5579491016 | CC24: 0.2466811851 | CD24: 60.87028189 | CE24: 246.7568894 | CG24: 15.01396361 | CH24: 0.216 | CI24: 0.389800341 | CJ24: 0.2310433691 | CK24: 0.3794420726 | CL24: 0.4656952333 | CM24: 0.1661683464 | CN24: 60.87028189 | CO24: 366.3169503 | CQ24: 30.21886626 | CR24: 0.216 | CS24: 0.4545486788 | CT24: 0.327781858 | CU24: 0.5383155034 | CV24: 0.7008290334 | CW24: 0.4630538143 | CX24: 60.87028189 | CY24: 131.4540125 | DA24: 21.55167052 | DB24: 0.216 | DC24: 0.4545486788 | DD24: 0.2768128832 | DE24: 0.4546092559 | DF24: 0.5918524794 | DG24: 0.2882610319 | DH24: 60.87028189 | DI24: 211.1637549 | DK24: 15.01396361 | DL24: 0.216 | DM24: 0.4545486788 | DN24: 0.2310433691 | DO24: 0.3794420726 | DP24: 0.4939928709 | DQ24: 0.189280136 | DR24: 60.87028189 | DS24: 321.5883251 | DV24: 0.5383155034 | DW24: 0.3443610137
A25: 21 | B25: 59 | D25: ='21'!E19 -> ΣΟΥΣΑΜΙ | E25: 45.77373423 | F25: 0.912 | G25: 1.190895695 | H25: 0.4034168196 | I25: 1.152792364 | J25: 1.298290197 | K25: 0.5569987152 | L25: 69.67942144 | M25: 125.0979931 | O25: 34.45512388 | P25: 0.912 | Q25: 1.190895695 | R25: 0.350003782 | S25: 1.000160796 | T25: 1.126394481 | U25: 0.346672571 | V25: 69.67942144 | W25: 200.9949078 | Y25: 24.82958161 | Z25: 0.912 | AA25: 1.190895695 | AB25: 0.2971190721 | AC25: 0.8490389619 | AD25: 0.9561990475 | AE25: 0.1982935495 | AF25: 69.67942144 | AG25: 351.3953007 | AI25: 45.77373423 | AJ25: 0.912 | AK25: 1.268663727 | AL25: 0.4034168196 | AM25: 1.152792364 | AN25: 1.336039045 | AO25: 0.5894762474 | AP25: 69.67942144 | AQ25: 118.2056474 | AS25: 34.45512388 | AT25: 0.912 | AU25: 1.268663727 | AV25: 0.350003782 | AW25: 1.000160796 | AX25: 1.159145321 | AY25: 0.366886387 | AZ25: 69.67942144 | BA25: 189.920978 | BC25: 24.82958161 | BD25: 0.912 | BE25: 1.268663727 | BF25: 0.2971190721 | BG25: 0.8490389619 | BH25: 0.9840013162 | BI25: 0.209855668 | BJ25: 69.67942144 | BK25: 332.0349749 | BM25: 45.77373423 | BN25: 0.912 | BO25: 1.397956081 | BP25: 0.4034168196 | BQ25: 1.152792364 | BR25: 1.396541435 | BS25: 0.6146777699 | BT25: 69.67942144 | BU25: 113.359267 | BW25: 34.45512388 | BX25: 0.912 | BY25: 1.397956081 | BZ25: 0.350003782 | CA25: 1.000160796 | CB25: 1.211637097 | CC25: 0.3825716595 | CD25: 69.67942144 | CE25: 182.1343001 | CG25: 24.82958161 | CH25: 0.912 | CI25: 1.397956081 | CJ25: 0.2971190721 | CK25: 0.8490389619 | CL25: 1.028561714 | CM25: 0.2188275008 | CN25: 69.67942144 | CO25: 318.4216846 | CQ25: 45.77373423 | CR25: 0.912 | CS25: 1.639048283 | CT25: 0.4034168196 | CU25: 1.152792364 | CV25: 1.502869059 | CW25: 0.7190707879 | CX25: 69.67942144 | CY25: 96.90203331 | DA25: 34.45512388 | DB25: 0.912 | DC25: 1.639048283 | DD25: 0.350003782 | DE25: 1.000160796 | DF25: 1.303886772 | DG25: 0.4475452312 | DH25: 69.67942144 | DI25: 155.6924677 | DK25: 24.82958161 | DL25: 0.912 | DM25: 1.639048283 | DN25: 0.2971190721 | DO25: 0.8490389619 | DP25: 1.10687269 | DQ25: 0.2559917913 | DR25: 69.67942144 | DS25: 272.193968 | DV25: 1.152792364 | DW25: 0.5894762474
A26: 22 | DV26: 0 | DW26: 0
A27: 23 | B27: 2 | D27: ='21'!E21 -> ΖΑΧΑΡΟΤΕΥΤΛΑ | E27: 41.00187363 | F27: 1.23255 | G27: 2.121547442 | H27: 0.3818103357 | I27: 1.248018874 | J27: 1.604934709 | K27: 0.5430373329 | L27: 60.87028189 | M27: 112.09226 | O27: 30.33962933 | P27: 1.23255 | Q27: 2.121547442 | R27: 0.3284361591 | S27: 1.073555341 | T27: 1.380577062 | U27: 0.3379975124 | V27: 60.87028189 | W27: 180.0909168 | Y27: 21.44297093 | Z27: 1.23255 | AA27: 2.121547442 | AB27: 0.2761139238 | AC27: 0.9025302774 | AD27: 1.160641236 | AE27: 0.2444021761 | AF27: 60.87028189 | AG27: 249.0578556 | AI27: 41.00187363 | AJ27: 1.23255 | AK27: 2.287749713 | AL27: 0.3818103357 | AM27: 1.248018874 | AN27: 1.66318512 | AO27: 0.5594964494 | AP27: 60.87028189 | AQ27: 108.7947599 | AS27: 30.33962933 | AT27: 1.23255 | AU27: 2.287749713 | AV27: 0.3284361591 | AW27: 1.073555341 | AX27: 1.430684509 | AY27: 0.3482420022 | AZ27: 60.87028189 | BA27: 174.7930505 | BC27: 21.44297093 | BD27: 1.23255 | BE27: 2.287749713 | BF27: 0.2761139238 | BG27: 0.9025302774 | BH27: 1.202766207 | BI27: 0.2680160451 | BJ27: 60.87028189 | BK27: 227.1143202 | BM27: 41.00187363 | BN27: 1.23255 | BO27: 2.487040939 | BP27: 0.3818103357 | BQ27: 1.248018874 | BR27: 1.73044919 | BS27: 0.6067394342 | BT27: 60.87028189 | BU27: 100.323596 | BW27: 30.33962933 | BX27: 1.23255 | BY27: 2.487040939 | BZ27: 0.3284361591 | CA27: 1.073555341 | CB27: 1.488545575 | CC27: 0.3776469996 | CD27: 60.87028189 | CE27: 161.1830147 | CG27: 21.44297093 | CH27: 1.23255 | CI27: 2.487040939 | CJ27: 0.2761139238 | CK27: 0.9025302774 | CL27: 1.251409591 | CM27: 0.283572532 | CN27: 60.87028189 | CO27: 214.6550707 | CQ27: 41.00187363 | CR27: 1.23255 | CS27: 3.001547687 | CT27: 0.3818103357 | CU27: 1.248018874 | CV27: 1.893085913 | CW27: 0.7515530501 | CX27: 60.87028189 | CY27: 80.99266165 | DA27: 30.33962933 | DB27: 1.23255 | DC27: 3.001547687 | DD27: 0.3284361591 | DE27: 1.073555341 | DF27: 1.628446922 | DG27: 0.4678026618 | DH27: 60.87028189 | DI27: 130.1195715 | DK27: 21.44297093 | DL27: 1.23255 | DM27: 3.001547687 | DN27: 0.2761139238 | DO27: 0.9025302774 | DP27: 1.36902365 | DQ27: 0.354025335 | DR27: 60.87028189 | DS27: 171.9376437 | DV27: 1.248018874 | DW27: 0.5594964494
A28: 24 | B28: 60 | DV28: 0 | DW28: 0
A29: 25 | B29: 75 | D29: ='21'!E23 -> ΚΑΠΝΟΣ | E29: 49.41426985 | F29: 1.953 | G29: 2.678634863 | H29: 0.4191524612 | I29: 1.694589391 | J29: 1.968072203 | K29: 0.3508552892 | L29: 69.67942144 | M29: 198.5987488 | O29: 38.29611948 | P29: 1.953 | Q29: 2.678634863 | R29: 0.3689973218 | S29: 1.491817428 | T29: 1.732575707 | U29: 0.280184853 | V29: 69.67942144 | W29: 248.6908935 | Y29: 28.51963004 | Z29: 1.953 | AA29: 2.678634863 | AB29: 0.3184327835 | AC29: 1.287390309 | AD29: 1.495156936 | AE29: 0.2146529941 | AF29: 69.67942144 | AG29: 324.6142534 | AI29: 49.41426985 | AJ29: 1.953 | AK29: 2.851726284 | AL29: 0.4191524612 | AM29: 1.694589391 | AN29: 2.027867267 | AO29: 0.3587656246 | AP29: 69.67942144 | AQ29: 194.2198936 | AS29: 38.29611948 | AT29: 1.953 | AU29: 2.851726284 | AV29: 0.3689973218 | AW29: 1.491817428 | AX29: 1.785215786 | AY29: 0.3052243952 | AZ29: 69.67942144 | BA29: 228.2891622 | BC29: 28.51963004 | BD29: 1.953 | BE29: 2.851726284 | BF29: 0.3184327835 | BG29: 1.287390309 | BH29: 1.540583625 | BI29: 0.2338360893 | BJ29: 69.67942144 | BK29: 297.9840351 | BM29: 49.41426985 | BN29: 1.953 | BO29: 3.142182027 | BP29: 0.4191524612 | BQ29: 1.694589391 | BR29: 2.124427973 | BS29: 0.3962612042 | BT29: 69.67942144 | BU29: 175.8421483 | BW29: 38.29611948 | BX29: 1.953 | BY29: 3.142182027 | BZ29: 0.3689973218 | CA29: 1.491817428 | CB29: 1.870222186 | CC29: 0.3335305112 | CD29: 69.67942144 | CE29: 208.9146843 | CG29: 28.51963004 | CH29: 1.953 | CI29: 3.142182027 | CJ29: 0.3184327835 | CK29: 1.287390309 | CL29: 1.613941406 | CM29: 0.255521746 | CN29: 69.67942144 | CO29: 272.6946826 | CQ29: 49.41426985 | CR29: 1.953 | CS29: 3.645360846 | CT29: 0.4191524612 | CU29: 1.694589391 | CV29: 2.282057895 | CW29: 0.4630538143 | CX29: 69.67942144 | CY29: 150.4780207 | DA29: 38.29611948 | DB29: 1.953 | DC29: 3.645360846 | DD29: 0.3689973218 | DE29: 1.491817428 | DF29: 2.008990354 | DG29: 0.3657793228 | DH29: 69.67942144 | DI29: 190.495791 | DK29: 28.51963004 | DL29: 1.953 | DM29: 3.645360846 | DN29: 0.3184327835 | DO29: 1.287390309 | DP29: 1.733693858 | DQ29: 0.2802279495 | DR29: 69.67942144 | DS29: 248.6526472 | DV29: 1.694589391 | DW29: 0.3587656246
A30: 26 | B30: 61 | DV30: 0 | DW30: 0
A31: 27 | B31: 49 | D31: ='21'!E25 -> ΑΓΓΙΝΑΡΕΣ | E31: 25.37041337 | F31: 0.63375 | G31: 1.034188603 | H31: 0.7595243824 | I31: 1.01293537 | J31: 1.144483682 | K31: 0.1449623997 | L31: 60.87028189 | M31: 419.903934 | O31: 19.90295645 | P31: 0.63375 | Q31: 1.034188603 | R31: 0.6727237259 | S31: 0.8971741685 | T31: 1.013688757 | U31: 0.1015369163 | V31: 60.87028189 | W31: 599.489172 | Y31: 15.38158323 | Z31: 0.63375 | AA31: 1.034188603 | AB31: 0.5913961166 | AC31: 0.7887120653 | AD31: 0.8911408519 | AE31: 0.06534901354 | AF31: 60.87028189 | AG31: 931.4644337 | AI31: 25.37041337 | AJ31: 0.63375 | AK31: 1.038982913 | AL31: 0.7595243824 | AM31: 1.01293537 | AN31: 1.145967187 | AO31: 0.1567133699 | AP31: 60.87028189 | AQ31: 388.4179247 | AS31: 19.90295645 | AT31: 0.63375 | AU31: 1.038982913 | AV31: 0.6727237259 | AW31: 0.8971741685 | AX31: 1.015002722 | AY31: 0.1097677216 | AZ31: 60.87028189 | BA31: 554.537172 | BC31: 15.38158323 | BD31: 0.63375 | BE31: 1.038982913 | BF31: 0.5913961166 | BG31: 0.7887120653 | BH31: 0.8922959682 | BI31: 0.07064634797 | BJ31: 60.87028189 | BK31: 861.6196539 | BM31: 25.37041337 | BN31: 0.63375 | BO31: 1.182881311 | BP31: 0.7595243824 | BQ31: 1.01293537 | BR31: 1.189632976 | BS31: 0.1783709145 | BT31: 60.87028189 | BU31: 341.2567686 | BW31: 19.90295645 | BX31: 0.63375 | BY31: 1.182881311 | BZ31: 0.6727237259 | CA31: 0.8971741685 | CB31: 1.053678258 | CC31: 0.1249374504 | CD31: 60.87028189 | CE31: 487.2060514 | CG31: 15.38158323 | CH31: 0.63375 | CI31: 1.182881311 | CJ31: 0.5913961166 | CK31: 0.7887120653 | CL31: 0.9262959014 | CM31: 0.08040956369 | CN31: 60.87028189 | CO31: 757.0030118 | CQ31: 25.37041337 | CR31: 0.63375 | CS31: 1.436411634 | CT31: 0.7595243824 | CU31: 1.01293537 | CV31: 1.26289842 | CW31: 0.1991623732 | CX31: 60.87028189 | CY31: 305.6314348 | DA31: 19.90295645 | DB31: 0.63375 | DC31: 1.436411634 | DD31: 0.6727237259 | DE31: 0.8971741685 | DF31: 1.118570714 | DG31: 0.1395005413 | DH31: 60.87028189 | DI31: 436.3444135 | DK31: 15.38158323 | DL31: 0.63375 | DM31: 1.436411634 | DN31: 0.5913961166 | DO31: 0.7887120653 | DP31: 0.9833433115 | DQ31: 0.08978234809 | DR31: 60.87028189 | DS31: 677.9760519 | DV31: 1.01293537 | DW31: 0.1567133699
A32: 28 | B32: 9 | D32: ='21'!E26 -> ΑΓΓΟΥΡΙ | E32: 53.84301644 | F32: 6.3818125 | G32: 7.54485434 | H32: 0.437532704 | I32: 3.128980267 | J32: 3.397040611 | K32: 0.3981043632 | L32: 69.67942144 | M32: 175.0280275 | O32: 42.15347002 | P32: 6.3818125 | Q32: 7.54485434 | R32: 0.3871350518 | S32: 2.768565474 | T32: 3.005749013 | U32: 0.2478285914 | V32: 69.67942144 | W32: 281.1597364 | Y32: 31.6616374 | Z32: 6.3818125 | AA32: 7.54485434 | AB32: 0.3355154432 | AC32: 2.399411956 | AD32: 2.604970042 | AE32: 0.1418133737 | AF32: 69.67942144 | AG32: 491.3459119 | AI32: 53.84301644 | AJ32: 6.3818125 | AK32: 7.92663684 | AL32: 0.437532704 | AM32: 3.128980267 | AN32: 3.480536718 | AO32: 0.4336821286 | AP32: 69.67942144 | AQ32: 160.6693402 | AS32: 42.15347002 | AT32: 6.3818125 | AU32: 7.92663684 | AV32: 0.3871350518 | AW32: 2.768565474 | AX32: 3.079627535 | AY32: 0.2699765212 | AZ32: 69.67942144 | BA32: 258.0943747 | BC32: 31.6616374 | BD32: 6.3818125 | BE32: 7.92663684 | BF32: 0.3355154432 | BG32: 2.399411956 | BH32: 2.668997789 | BI32: 0.1544869423 | BJ32: 69.67942144 | BK32: 451.0376113 | BM32: 53.84301644 | BN32: 6.3818125 | BO32: 8.941894437 | BP32: 0.437532704 | BQ32: 3.128980267 | BR32: 3.693401734 | BS32: 0.4739012488 | BT32: 69.67942144 | BU32: 147.0336312 | BW32: 42.15347002 | BX32: 6.3818125 | BY32: 8.941894437 | BZ32: 0.3871350518 | CA32: 2.768565474 | CB32: 3.267973476 | CC32: 0.295013795 | CD32: 69.67942144 | CE32: 236.1903837 | CG32: 31.6616374 | CH32: 6.3818125 | CI32: 8.941894437 | CJ32: 0.3355154432 | CK32: 2.399411956 | CL32: 2.832230159 | CM32: 0.1688138617 | CN32: 69.67942144 | CO32: 412.7588856 | CQ32: 53.84301644 | CR32: 6.3818125 | CS32: 10.12820687 | CT32: 0.437532704 | CU32: 3.128980267 | CV32: 3.927541953 | CW32: 0.5197224004 | CX32: 69.67942144 | CY32: 134.0704603 | DA32: 42.15347002 | DB32: 6.3818125 | DC32: 10.12820687 | DD32: 0.3871350518 | DE32: 2.768565474 | DF32: 3.475144015 | DG32: 0.3235384546 | DH32: 69.67942144 | DI32: 215.3667376 | DK32: 31.6616374 | DL32: 6.3818125 | DM32: 10.12820687 | DN32: 0.3355154432 | DO32: 2.399411956 | DP32: 3.011777102 | DQ32: 0.1851363457 | DR32: 69.67942144 | DS32: 376.3681365 | DV32: 3.128980267 | DW32: 0.4336821286
A33: 29 | B33: 19 | D33: ='21'!E27 -> ΑΡΑΚΑΣ | E33: 36.23791085 | F33: 0.8991 | G33: 1.652287171 | H33: 0.3589445846 | I33: 1.019324075 | J33: 1.342196295 | K33: 0.3773653241 | L33: 69.67942144 | M33: 184.6471231 | O33: 27.70962149 | P33: 0.8991 | Q33: 1.652287171 | R33: 0.3138781803 | S33: 0.8913453487 | T33: 1.173680141 | U33: 0.3340496735 | V33: 69.67942144 | W33: 208.5900001 | Y33: 20.9405949 | Z33: 0.8991 | AA33: 1.652287171 | AB33: 0.2728602904 | AC33: 0.7748635172 | AD33: 1.020302538 | AE33: 0.2762954728 | AF33: 69.67942144 | AG33: 252.1916872 | AI33: 36.23791085 | AJ33: 0.8991 | AK33: 1.689013651 | AL33: 0.3589445846 | AM33: 1.019324075 | AN33: 1.355975657 | AO33: 0.370380352 | AP33: 69.67942144 | AQ33: 188.1293677 | AS33: 27.70962149 | AT33: 0.8991 | AU33: 1.689013651 | AV33: 0.3138781803 | AW33: 0.8913453487 | AX33: 1.185729469 | AY33: 0.3278664673 | AZ33: 69.67942144 | BA33: 212.5237815 | BC33: 20.9405949 | BD33: 0.8991 | BE33: 1.689013651 | BF33: 0.2728602904 | BG33: 0.7748635172 | BH33: 1.03077725 | BI33: 0.2711812876 | BJ33: 69.67942144 | BK33: 256.9477491 | BM33: 36.23791085 | BN33: 0.8991 | BO33: 1.919160154 | BP33: 0.3589445846 | BQ33: 1.019324075 | BR33: 1.439323721 | BS33: 0.4262020336 | BT33: 69.67942144 | BU33: 163.4891811 | BW33: 27.70962149 | BX33: 0.8991 | BY33: 1.919160154 | BZ33: 0.3138781803 | CA33: 0.8913453487 | CB33: 1.258612972 | CC33: 0.3772806908 | CD33: 69.67942144 | CE33: 184.6885439 | CG33: 20.9405949 | CH33: 0.8991 | CI33: 1.919160154 | CJ33: 0.2728602904 | CK33: 0.7748635172 | CL33: 1.094136269 | CM33: 0.3120522339 | CN33: 69.67942144 | CO33: 223.2940959 | CQ33: 36.23791085 | CR33: 0.8991 | CS33: 2.248725783 | CT33: 0.3589445846 | CU33: 1.019324075 | CV33: 1.550896487 | CW33: 0.4980413807 | CX33: 69.67942144 | CY33: 139.9068915 | DA33: 27.70962149 | DB33: 0.8991 | DC33: 2.248725783 | DD33: 0.3138781803 | DE33: 0.8913453487 | DF33: 1.356177494 | DG33: 0.440874002 | DH33: 69.67942144 | DI33: 158.0483792 | DK33: 20.9405949 | DL33: 0.8991 | DM33: 2.248725783 | DN33: 0.2728602904 | DO33: 0.7748635172 | DP33: 1.178950969 | DQ33: 0.3646508303 | DR33: 69.67942144 | DS33: 191.0853223 | DV33: 1.019324075 | DW33: 0.370380352
A34: 30 | B34: 20 | D34: ='21'!E28 -> ΚΑΡΟΤΑ | E34: 72.97450371 | F34: 3.915 | G34: 4.348887364 | H34: 0.5093677028 | I34: 2.870625477 | J34: 3.020762175 | K34: 0.5815206315 | L34: 69.67942144 | M34: 119.8227847 | O34: 57.95896349 | P34: 3.915 | Q34: 4.348887364 | R34: 0.4539480287 | S34: 2.558298787 | T34: 2.692100475 | U34: 0.5361979174 | V34: 69.67942144 | W34: 129.9509364 | Y34: 44.43932153 | Z34: 3.915 | AA34: 4.348887364 | AB34: 0.3974930497 | AC34: 2.240137467 | AD34: 2.357298986 | AE34: 0.4757676319 | AF34: 69.67942144 | AG34: 146.4568347 | AI34: 72.97450371 | AJ34: 3.915 | AK34: 4.429657525 | AL34: 0.5093677028 | AM34: 2.870625477 | AN34: 3.047894427 | AO34: 0.5991461523 | AP34: 69.67942144 | AQ34: 116.2978702 | AS34: 57.95896349 | AT34: 3.915 | AU34: 4.429657525 | AV34: 0.4539480287 | AW34: 2.558298787 | AX34: 2.716280713 | AY34: 0.5524497356 | AZ34: 69.67942144 | BA34: 126.1280746 | BC34: 44.43932153 | BD34: 3.915 | BE34: 4.429657525 | BF34: 0.3974930497 | BG34: 2.240137467 | BH34: 2.378472063 | BI34: 0.4901878465 | BJ34: 69.67942144 | BK34: 142.1484069 | BM34: 72.97450371 | BN34: 3.915 | BO34: 5.075543558 | BP34: 0.5093677028 | BQ34: 2.870625477 | BR34: 3.256739147 | BS34: 0.6497370946 | BT34: 69.67942144 | BU34: 107.2424863 | BW34: 57.95896349 | BX34: 3.915 | BY34: 5.075543558 | BZ34: 0.4539480287 | CA34: 2.558298787 | CB34: 2.902402936 | CC34: 0.5990977071 | CD34: 69.67942144 | CE34: 116.3072744 | CG34: 44.43932153 | CH34: 3.915 | CI34: 5.075543558 | CJ34: 0.3974930497 | CK34: 2.240137467 | CL34: 2.541447306 | CM34: 0.5315785238 | CN34: 69.67942144 | CO34: 131.0802042 | CQ34: 72.97450371 | CR34: 3.915 | CS34: 5.883345933 | CT34: 0.5093677028 | CU34: 2.870625477 | CV34: 3.500445472 | CW34: 0.7902716275 | CX34: 69.67942144 | CY34: 88.17148309 | DA34: 57.95896349 | DB34: 3.915 | DC34: 5.883345933 | DD34: 0.4539480287 | DE34: 2.558298787 | DF34: 3.119593788 | DG34: 0.7286792211 | DH34: 69.67942144 | DI34: 95.62427392 | DK34: 44.43932153 | DL34: 3.915 | DM34: 5.883345933 | DN34: 0.3974930497 | DO34: 2.240137467 | DP34: 2.731627345 | DQ34: 0.6465560126 | DR34: 69.67942144 | DS34: 107.7701237 | DV34: 2.870625477 | DW34: 0.5991461523
A35: 31 | B35: 14 | D35: ='21'!E29 -> ΚΑΡΠΟΥΖΙ | E35: 48.03189579 | F35: 0.8373375 | G35: 1.364728939 | H35: 0.4132479364 | I35: 1.137676924 | J35: 1.414906274 | K35: 0.479618471 | L35: 69.55131518 | M35: 145.0138378 | O35: 37.70421499 | P35: 0.8373375 | Q35: 1.364728939 | R35: 0.3661346075 | S35: 1.00797332 | T35: 1.253596468 | U35: 0.2985375382 | V35: 69.55131518 | W35: 232.9734331 | Y35: 29.14121743 | Z35: 0.8373375 | AA35: 1.364728939 | AB35: 0.3218842116 | AC35: 0.886151406 | AD35: 1.102088965 | AE35: 0.1707901689 | AF35: 69.55131518 | AG35: 407.2325452 | AI35: 48.03189579 | AJ35: 0.8373375 | AK35: 1.472481258 | AL35: 0.4132479364 | AM35: 1.137676924 | AN35: 1.465107929 | AO35: 0.5258937476 | AP35: 69.55131518 | AQ35: 132.2535502 | AS35: 37.70421499 | AT35: 0.8373375 | AU35: 1.472481258 | AV35: 0.3661346075 | AW35: 1.00797332 | AX35: 1.298074762 | AY35: 0.3273414897 | AZ35: 69.55131518 | BA35: 212.4732653 | BC35: 29.14121743 | BD35: 0.8373375 | BE35: 1.472481258 | BF35: 0.3218842116 | BG35: 0.886151406 | BH35: 1.141191689 | BI35: 0.187268605 | BJ35: 69.55131518 | BK35: 371.3986933 | BM35: 48.03189579 | BN35: 0.8373375 | BO35: 1.612693607 | BP35: 0.4132479364 | BQ35: 1.137676924 | BR35: 1.527965122 | BS35: 0.5459312233 | BT35: 69.55131518 | BU35: 127.399409 | BW35: 37.70421499 | BX35: 0.8373375 | BY35: 1.612693607 | BZ35: 0.3661346075 | CA35: 1.00797332 | CB35: 1.353765769 | CC35: 0.3398137755 | CD35: 69.55131518 | CE35: 204.674796 | CG35: 29.14121743 | CH35: 0.8373375 | CI35: 1.612693607 | CJ35: 0.3218842116 | CK35: 0.886151406 | CL35: 1.190151977 | CM35: 0.1944038678 | CN35: 69.55131518 | CO35: 357.7671368 | CQ35: 48.03189579 | CR35: 0.8373375 | CS35: 1.866405783 | CT35: 0.4132479364 | CU35: 1.137676924 | CV35: 1.635575446 | CW35: 0.6947783251 | CX35: 69.55131518 | CY35: 100.1057642 | DA35: 37.70421499 | DB35: 0.8373375 | DC35: 1.866405783 | DD35: 0.3661346075 | DE35: 1.00797332 | DF35: 1.449107718 | DG35: 0.4324633502 | DH35: 69.55131518 | DI35: 160.8259177 | DK35: 29.14121743 | DL35: 0.8373375 | DM35: 1.866405783 | DN35: 0.3218842116 | DO35: 0.886151406 | DP35: 1.273971063 | DQ35: 0.2474077098 | DR35: 69.55131518 | DS35: 281.1202417 | DV35: 1.137676924 | DW35: 0.5258937476
A36: 32 | B36: 10 | D36: ='21'!E30 -> ΚΟΛΟΚΥΘΙ | E36: 45.32641626 | F36: 1.94997 | G36: 3.043694634 | H36: 1.015204747 | I36: 1.870754738 | J36: 2.210116419 | K36: 0.4453122478 | L36: 60.87028189 | M36: 136.6912368 | O36: 35.22985455 | P36: 1.94997 | Q36: 3.043694634 | R36: 0.8950213055 | S36: 1.649288336 | T36: 1.948475209 | U36: 0.2769925214 | V36: 60.87028189 | W36: 219.7542431 | Y36: 26.86981474 | Z36: 1.94997 | AA36: 3.043694634 | AB36: 0.7816463146 | AC36: 1.440368113 | AD36: 1.701656102 | AE36: 0.1582478148 | AF36: 60.87028189 | AG36: 384.6516426 | AI36: 45.32641626 | AJ36: 1.94997 | AK36: 3.278930939 | AL36: 1.015204747 | AM36: 1.870754738 | AN36: 2.276504883 | AO36: 0.4816970558 | AP36: 60.87028189 | AQ36: 126.366315 | AS36: 35.22985455 | AT36: 1.94997 | AU36: 3.278930939 | AV36: 0.8950213055 | AW36: 1.649288336 | AX36: 2.007004378 | AY36: 0.2996245504 | AZ36: 60.87028189 | BA36: 203.1551881 | BC36: 26.86981474 | BD36: 1.94997 | BE36: 3.278930939 | BF36: 0.7816463146 | BG36: 1.440368113 | BH36: 1.752771209 | BI36: 0.1711776553 | BJ36: 60.87028189 | BK36: 355.5971238 | BM36: 45.32641626 | BN36: 1.94997 | BO36: 3.603682536 | BP36: 1.015204747 | BQ36: 1.870754738 | BR36: 2.365096204 | BS36: 0.5131600119 | BT36: 60.87028189 | BU36: 118.6185215 | BW36: 35.22985455 | BX36: 1.94997 | BY36: 3.603682536 | BZ36: 0.8950213055 | CA36: 1.649288336 | CB36: 2.085107952 | CC36: 0.3192057444 | CD36: 60.87028189 | CE36: 190.6929401 | CG36: 26.86981474 | CH36: 1.94997 | CI36: 3.603682536 | CJ36: 0.7816463146 | CK36: 1.440368113 | CL36: 1.820981173 | CM36: 0.1823766093 | CN36: 60.87028189 | CO36: 333.7614519 | CQ36: 45.32641626 | CR36: 1.94997 | CS36: 4.180978432 | CT36: 1.015204747 | CU36: 1.870754738 | CV36: 2.514887905 | CW36: 0.6390080312 | CX36: 60.87028189 | CY36: 95.25745988 | DA36: 35.22985455 | DB36: 1.94997 | DC36: 4.180978432 | DD36: 0.8950213055 | DE36: 1.649288336 | DF36: 2.217166795 | DG36: 0.3974749104 | DH36: 60.87028189 | DI36: 153.1424508 | DK36: 26.86981474 | DL36: 1.94997 | DM36: 4.180978432 | DN36: 0.7816463146 | DO36: 1.440368113 | DP36: 1.936311732 | DQ36: 0.227080268 | DR36: 60.87028189 | DS36: 268.056236 | DV36: 1.870754738 | DW36: 0.4816970558
A37: 33 | B37: 76 | D37: ='21'!E31 -> ΚΡΕΜΜΥΔΙΑ ΞΕΡΑ | E37: 93.29019644 | F37: 2.436 | G37: 3.749490933 | H37: 1.456451249 | I37: 2.910279705 | J37: 3.448597751 | K37: 0.6840727884 | L37: 69.67942144 | M37: 101.8596597 | O37: 75.51659756 | P37: 2.436 | Q37: 3.749490933 | R37: 1.310385732 | S37: 2.618411707 | T37: 3.102742568 | U37: 0.5664329096 | V37: 69.67942144 | W37: 123.0144299 | Y37: 59.75911881 | Z37: 2.436 | AA37: 3.749490933 | AB37: 1.165681867 | AC37: 2.329264562 | AD37: 2.760111517 | AE37: 0.4278961056 | AF37: 69.67942144 | AG37: 162.8419154 | AI37: 93.29019644 | AJ37: 2.436 | AK37: 4.041453474 | AL37: 1.456451249 | AM37: 2.910279705 | AN37: 3.557205673 | AO37: 0.7399658324 | AP37: 69.67942144 | AQ37: 94.16572819 | AS37: 75.51659756 | AT37: 2.436 | AU37: 4.041453474 | AV37: 1.310385732 | AW37: 2.618411707 | AX37: 3.200458349 | AY37: 0.6127140365 | AZ37: 69.67942144 | BA37: 113.7225807 | BC37: 59.75911881 | BD37: 2.436 | BE37: 4.041453474 | BF37: 1.165681867 | BG37: 2.329264562 | BH37: 2.847036696 | BI37: 0.4628579054 | BJ37: 69.67942144 | BK37: 150.5417119 | BM37: 93.29019644 | BN37: 2.436 | BO37: 4.415252144 | BP37: 1.456451249 | BQ37: 2.910279705 | BR37: 3.691594736 | BS37: 0.7845019693 | BT37: 69.67942144 | BU37: 88.81994459 | BW37: 75.51659756 | BX37: 2.436 | BY37: 4.415252144 | BZ37: 1.310385732 | CA37: 2.618411707 | CB37: 3.321369715 | CC37: 0.6495913016 | CD37: 69.67942144 | CE37: 107.2665556 | CG37: 59.75911881 | CH37: 2.436 | CI37: 4.415252144 | CJ37: 1.165681867 | CK37: 2.329264562 | CL37: 2.954596008 | CM37: 0.4907158174 | CN37: 69.67942144 | CO37: 141.9954666 | CQ37: 93.29019644 | CR37: 2.436 | CS37: 5.228045868 | CT37: 1.456451249 | CU37: 2.910279705 | CV37: 3.968135515 | CW37: 0.9816213408 | CX37: 69.67942144 | CY37: 70.98401242 | DA37: 75.51659756 | DB37: 2.436 | DC37: 5.228045868 | DD37: 1.310385732 | DE37: 2.618411707 | DF37: 3.570176595 | DG37: 0.812812089 | DH37: 69.67942144 | DI37: 85.72635962 | DK37: 59.75911881 | DL37: 2.436 | DM37: 5.228045868 | DN37: 1.165681867 | DO37: 2.329264562 | DP37: 3.17592753 | DQ37: 0.6140164556 | DR37: 69.67942144 | DS37: 113.4813584 | DV37: 2.910279705 | DW37: 0.7399658324
A38: 34 | B38: 67 | D38: ='21'!E32 -> ΛΑΧΑΝΟ | E38: 53.50877938 | F38: 3.696 | G38: 4.454716069 | H38: 1.103037991 | I38: 2.596430533 | J38: 2.806345623 | K38: 0.4453122478 | L38: 60.87028189 | M38: 136.6912368 | O38: 42.6690773 | P38: 3.696 | Q38: 4.454716069 | R38: 0.9849962436 | S38: 2.318573199 | T38: 2.506024199 | U38: 0.2769925214 | V38: 60.87028189 | W38: 219.7542431 | Y38: 33.40472405 | Z38: 3.696 | AA38: 4.454716069 | AB38: 0.8715291002 | AC38: 2.051483979 | AD38: 2.217341467 | AE38: 0.1582478148 | AF38: 60.87028189 | AG38: 384.6516426 | AI38: 53.50877938 | AJ38: 3.696 | AK38: 4.675411186 | AL38: 1.103037991 | AM38: 2.596430533 | AN38: 2.86451907 | AO38: 0.4816970558 | AP38: 60.87028189 | AQ38: 126.366315 | AS38: 42.6690773 | AT38: 3.696 | AU38: 4.675411186 | AV38: 0.9849962436 | AW38: 2.318573199 | AX38: 2.557972207 | AY38: 0.2996245504 | AZ38: 60.87028189 | BA38: 203.1551881 | BC38: 33.40472405 | BD38: 3.696 | BE38: 4.675411186 | BF38: 0.8715291002 | BG38: 2.051483979 | BH38: 2.263305297 | BI38: 0.1711776553 | BJ38: 60.87028189 | BK38: 355.5971238 | BM38: 53.50877938 | BN38: 3.696 | BO38: 5.22630131 | BP38: 1.103037991 | BQ38: 2.596430533 | BR38: 3.004818924 | BS38: 0.5131600119 | BT38: 60.87028189 | BU38: 118.6185215 | BW38: 42.6690773 | BX38: 3.696 | BY38: 5.22630131 | BZ38: 0.9849962436 | CA38: 2.318573199 | CB38: 2.683257855 | CC38: 0.3192057444 | CD38: 60.87028189 | CE38: 190.6929401 | CG38: 33.40472405 | CH38: 3.696 | CI38: 5.22630131 | CJ38: 0.8715291002 | CK38: 2.051483979 | CL38: 2.374158601 | CM38: 0.1823766093 | CN38: 60.87028189 | CO38: 333.7614519 | CQ38: 53.50877938 | CR38: 3.696 | CS38: 6.069327625 | CT38: 1.103037991 | CU38: 2.596430533 | CV38: 3.207660746 | CW38: 0.6390080312 | CX38: 60.87028189 | CY38: 95.25745988 | DA38: 42.6690773 | DB38: 3.696 | DC38: 6.069327625 | DD38: 0.9849962436 | DE38: 2.318573199 | DF38: 2.864392534 | DG38: 0.3974749104 | DH38: 60.87028189 | DI38: 153.1424508 | DK38: 33.40472405 | DL38: 3.696 | DM38: 6.069327625 | DN38: 0.8715291002 | DO38: 2.051483979 | DP38: 2.534427379 | DQ38: 0.227080268 | DR38: 60.87028189 | DS38: 268.056236 | DV38: 2.596430533 | DW38: 0.4816970558
A39: 35 | B39: 21 | D39: ='21'!E33 -> ΜΑΡΟΥΛΙ | E39: 8.134689533 | F39: 0.01755 | G39: 0.03530479536 | H39: 0.3104957737 | I39: 0.3168529665 | J39: 0.3231571109 | K39: 0.1166623992 | L39: 42.19588925 | M39: 361.6922809 | O39: 7.626855885 | P39: 0.01755 | Q39: 0.03530479536 | R39: 0.3006477597 | S39: 0.306803321 | T39: 0.3129075165 | U39: 0.0946179248 | V39: 42.19588925 | W39: 445.9608403 | Y39: 6.971284737 | Z39: 0.01755 | AA39: 0.03530479536 | AB39: 0.2874362993 | AC39: 0.2933213648 | AD39: 0.2991573216 | AE39: 0.0707364109 | AF39: 42.19588925 | AG39: 596.522904 | AI39: 8.134689533 | AJ39: 0.01755 | AK39: 0.03778720276 | AL39: 0.3104957737 | AM39: 0.3168529665 | AN39: 0.3240287592 | AO39: 0.119893466 | AP39: 42.19588925 | AQ39: 351.9448611 | AS39: 7.626855885 | AT39: 0.01755 | AU39: 0.03778720276 | AV39: 0.3006477597 | AW39: 0.306803321 | AX39: 0.3137515187 | AY39: 0.09723845073 | AZ39: 42.19588925 | BA39: 433.9424264 | BC39: 6.971284737 | BD39: 0.01755 | BE39: 0.03778720276 | BF39: 0.2874362993 | BG39: 0.2933213648 | BH39: 0.2999642356 | BI39: 0.07269551748 | BJ39: 42.19588925 | BK39: 580.4469204 | BM39: 8.134689533 | BN39: 0.01755 | BO39: 0.04043865068 | BP39: 0.3104957737 | BQ39: 0.3168529665 | BR39: 0.3249571805 | BS39: 0.1317718002 | BT39: 42.19588925 | BU39: 320.2194187 | BW39: 7.626855885 | BX39: 0.01755 | BY39: 0.04043865068 | BZ39: 0.3006477597 | CA39: 0.306803321 | CB39: 0.3146504932 | CC39: 0.1068722602 | CD39: 42.19588925 | CE39: 394.8254596 | CG39: 6.971284737 | CH39: 0.01755 | CI39: 0.04043865068 | CJ39: 0.2874362993 | CK39: 0.2933213648 | CL39: 0.3008237062 | CM39: 0.07989775856 | CN39: 42.19588925 | CO39: 528.123567 | CQ39: 8.134689533 | CR39: 0.01755 | CS39: 0.04828499686 | CT39: 0.3104957737 | CU39: 0.3168529665 | CV39: 0.327689219 | CW39: 0.1647147502 | CX39: 42.19588925 | CY39: 256.1755349 | DA39: 7.626855885 | DB39: 0.01755 | DC39: 0.04828499686 | DD39: 0.3006477597 | DE39: 0.306803321 | DF39: 0.3172958794 | DG39: 0.1335903252 | DH39: 42.19588925 | DI39: 315.8603676 | DK39: 6.971284737 | DL39: 0.01755 | DM39: 0.04828499686 | DN39: 0.2874362993 | DO39: 0.2933213648 | DP39: 0.3033528454 | DQ39: 0.09987219821 | DR39: 42.19588925 | DS39: 422.4988536 | DV39: 0.3168529665 | DW39: 0.119893466
A40: 36 | B40: 77 | D40: ='21'!E34 -> ΜΕΛΙΤΖΑΝΑ | E40: 28.22068863 | F40: 1.798 | G40: 2.257595577 | H40: 0.3167594884 | I40: 1.231992565 | J40: 1.371179016 | K40: 0.1645606199 | L40: 62.70325092 | M40: 381.0343626 | O40: 25.81370816 | P40: 1.798 | Q40: 2.257595577 | R40: 0.3029500491 | S40: 1.178282646 | T40: 1.311401128 | U40: 0.1334997935 | V40: 62.70325092 | W40: 469.6879991 | Y40: 23.75490734 | Z40: 1.798 | AA40: 2.257595577 | AB40: 0.2906179933 | AC40: 1.130318807 | AD40: 1.258018493 | AE40: 0.1135143268 | AF40: 62.70325092 | AG40: 552.3818245 | AI40: 28.22068863 | AJ40: 1.798 | AK40: 2.379446797 | AL40: 0.3167594884 | AM40: 1.231992565 | AN40: 1.405771808 | AO40: 0.1628156243 | AP40: 62.70325092 | AQ40: 385.1181433 | AS40: 25.81370816 | AT40: 1.798 | AU40: 2.379446797 | AV40: 0.3029500491 | AW40: 1.178282646 | AX40: 1.344485813 | AY40: 0.1463803231 | AZ40: 62.70325092 | BA40: 428.3584678 | BC40: 23.75490734 | BD40: 1.798 | BE40: 2.379446797 | BF40: 0.2906179933 | BG40: 1.130318807 | BH40: 1.289756414 | BI40: 0.1244665882 | BJ40: 62.70325092 | BK40: 503.775767 | BM40: 28.22068863 | BN40: 1.798 | BO40: 2.647387413 | BP40: 0.3167594884 | BQ40: 1.231992565 | BR40: 1.478995509 | BS40: 0.1918019235 | BT40: 62.70325092 | BU40: 326.916695 | BW40: 25.81370816 | BX40: 1.798 | BY40: 2.647387413 | BZ40: 0.3029500491 | CA40: 1.178282646 | CB40: 1.414517255 | CC40: 0.1519576705 | CD40: 62.70325092 | CE40: 412.6362999 | CG40: 23.75490734 | CH40: 1.798 | CI40: 2.647387413 | CJ40: 0.2906179933 | CK40: 1.130318807 | CL40: 1.356937117 | CM40: 0.1292089838 | CN40: 62.70325092 | CO40: 485.2855355 | CQ40: 28.22068863 | CR40: 1.798 | CS40: 3.152629897 | CT40: 0.3167594884 | CU40: 1.231992565 | CV40: 1.608023653 | CW40: 0.2199415978 | CX40: 62.70325092 | CY40: 285.0904584 | DA40: 25.81370816 | DB40: 1.798 | DC40: 3.152629897 | DD40: 0.3029500491 | DE40: 1.178282646 | DF40: 1.537920292 | DG40: 0.1933886382 | DH40: 62.70325092 | DI40: 324.2344095 | DK40: 23.75490734 | DL40: 1.798 | DM40: 3.152629897 | DN40: 0.2906179933 | DO40: 1.130318807 | DP40: 1.47531684 | DQ40: 0.1644375657 | DR40: 62.70325092 | DS40: 381.3195036 | DV40: 1.231992565 | DW40: 0.1628156243
A41: 37 | B41: 33 | D41: ='21'!E35 -> ΜΠΑΜΙΑ | E41: 46.81530472 | F41: 6.062418 | G41: 8.201075228 | H41: 1.031743819 | I41: 2.998829309 | J41: 3.433646949 | K41: 0.4818288888 | L41: 60.87028189 | M41: 126.33174 | O41: 36.02802819 | P41: 6.062418 | Q41: 8.201075228 | R41: 0.9051033981 | S41: 2.630740838 | T41: 3.012187197 | U41: 0.2997016976 | V41: 60.87028189 | W41: 203.1028933 | Y41: 26.80031462 | Z41: 6.062418 | AA41: 8.201075228 | AB41: 0.7806347764 | AC41: 2.268964838 | AD41: 2.597955199 | AE41: 0.1712162232 | AF41: 60.87028189 | AG41: 355.5170227 | AI41: 46.81530472 | AJ41: 6.062418 | AK41: 8.56438309 | AL41: 1.031743819 | AM41: 2.998829309 | AN41: 3.50215198 | AO41: 0.4894101125 | AP41: 60.87028189 | AQ41: 124.3747939 | AS41: 36.02802819 | AT41: 6.062418 | AU41: 8.56438309 | AV41: 0.9051033981 | AW41: 2.630740838 | AX41: 3.072283642 | AY41: 0.3044172837 | AZ41: 60.87028189 | BA41: 199.9567211 | BC41: 26.80031462 | BD41: 6.062418 | BE41: 8.56438309 | BF41: 0.7806347764 | BG41: 2.268964838 | BH41: 2.649787261 | BI41: 0.1739101847 | BJ41: 60.87028189 | BK41: 350.0098743 | BM41: 46.81530472 | BN41: 6.062418 | BO41: 9.630387347 | BP41: 1.031743819 | BQ41: 2.998829309 | BR41: 3.695835216 | BS41: 0.5752244884 | BT41: 60.87028189 | BU41: 105.8200461 | BW41: 36.02802819 | BX41: 6.062418 | BY41: 9.630387347 | BZ41: 0.9051033981 | CA41: 2.630740838 | CB41: 3.242193412 | CC41: 0.3577945609 | CD41: 60.87028189 | CE41: 170.1263478 | CG41: 26.80031462 | CH41: 6.062418 | CI41: 9.630387347 | CJ41: 0.7806347764 | CK41: 2.268964838 | CL41: 2.796331264 | CM41: 0.2044040253 | CN41: 60.87028189 | CO41: 297.793949 | CQ41: 46.81530472 | CR41: 6.062418 | CS41: 11.23926131 | CT41: 1.031743819 | CU41: 2.998829309 | CV41: 3.970301881 | CW41: 0.6889481158 | CX41: 60.87028189 | CY41: 88.35249056 | DA41: 36.02802819 | DB41: 6.062418 | DC41: 11.23926131 | DD41: 0.9051033981 | DE41: 2.630740838 | DF41: 3.482970926 | DG41: 0.4285316315 | DH41: 60.87028189 | DI41: 142.0438479 | DK41: 26.80031462 | DL41: 6.062418 | DM41: 11.23926131 | DN41: 0.7806347764 | DO41: 2.268964838 | DP41: 3.003997372 | DQ41: 0.2448153216 | DR41: 60.87028189 | DS41: 248.6375506 | DV41: 2.998829309 | DW41: 0.4894101125
A42: 38 | B42: 34 | D42: ='21'!E36 -> ΜΠΡΟΚΟΛΟ | E42: 52.22052555 | F42: 9.225 | G42: 15.56734569 | H42: 0.430890033 | I42: 3.693663729 | J42: 4.78491419 | K42: 0.4161012887 | L42: 69.55131518 | M42: 167.1499634 | O42: 41.60949468 | P42: 9.225 | Q42: 15.56734569 | R42: 0.3846290216 | S42: 3.297106355 | T42: 4.271198502 | U42: 0.3372811755 | V42: 69.55131518 | W42: 206.2116721 | Y42: 32.88381841 | Z42: 9.225 | AA42: 15.56734569 | AB42: 0.3419297982 | AC42: 2.931081243 | AD42: 3.79703548 | AE42: 0.2518927195 | AF42: 69.55131518 | AG42: 276.114829 | AI42: 52.22052555 | AJ42: 9.225 | AK42: 16.80341879 | AL42: 0.430890033 | AM42: 3.693663729 | AN42: 4.969768071 | AO42: 0.4562482042 | AP42: 69.55131518 | AQ42: 152.4418387 | AS42: 41.60949468 | AT42: 9.225 | AU42: 16.80341879 | AV42: 0.3846290216 | AW42: 3.297106355 | AX42: 4.436206188 | AY42: 0.3698232493 | AZ42: 69.55131518 | BA42: 188.0663676 | BC42: 32.88381841 | BD42: 9.225 | BE42: 16.80341879 | BF42: 0.3419297982 | BG42: 2.931081243 | BH42: 3.943724996 | BI42: 0.2761962149 | BJ42: 69.55131518 | BK42: 251.8184951 | BM42: 52.22052555 | BN42: 9.225 | BO42: 18.39055033 | BP42: 0.430890033 | BQ42: 3.693663729 | BR42: 5.197490907 | BS42: 0.4736320623 | BT42: 69.55131518 | BU42: 146.8467207 | BW42: 41.60949468 | BX42: 9.225 | BY42: 18.39055033 | BZ42: 0.3846290216 | CA42: 3.297106355 | CB42: 4.639480353 | CC42: 0.3839141649 | CD42: 69.55131518 | CE42: 181.163712 | CG42: 32.88381841 | CH42: 9.225 | CI42: 18.39055033 | CJ42: 0.3419297982 | CK42: 2.931081243 | CL42: 4.124432874 | CM42: 0.2867197759 | CN42: 69.55131518 | CO42: 242.5759261 | CQ42: 52.22052555 | CR42: 9.225 | CS42: 21.23430933 | CT42: 0.430890033 | CU42: 3.693663729 | CV42: 5.582329664 | CW42: 0.6027669365 | CX42: 69.55131518 | CY42: 115.3867456 | DA42: 41.60949468 | DB42: 9.225 | DC42: 21.23430933 | DD42: 0.3846290216 | DE42: 3.297106355 | DF42: 4.983002234 | DG42: 0.4885876262 | DH42: 69.55131518 | DI42: 142.3517737 | DK42: 32.88381841 | DL42: 9.225 | DM42: 21.23430933 | DN42: 0.3419297982 | DO42: 2.931081243 | DP42: 4.429819001 | DQ42: 0.3648933733 | DR42: 69.55131518 | DS42: 190.6072301 | DV42: 3.693663729 | DW42: 0.4562482042
A43: 39 | B43: 25 | D43: ='21'!E37 -> ΠΑΤΑΤΑ | E43: 47.37206787 | F43: 4.655 | G43: 6.68746891 | H43: 0.410399668 | I43: 2.515686362 | J43: 3.003060096 | K43: 0.4458524167 | L43: 69.67942144 | M43: 156.2836016 | O43: 37.05411422 | P43: 4.655 | Q43: 6.68746891 | R43: 0.3629644136 | S43: 2.224915604 | T43: 2.655957185 | U43: 0.2775326903 | V43: 69.67942144 | W43: 251.0674377 | Y43: 28.4016768 | Z43: 4.655 | AA43: 6.68746891 | AB43: 0.3177736042 | AC43: 1.947902946 | AD43: 2.325277784 | AE43: 0.1587879837 | AF43: 69.67942144 | AG43: 438.820494 | AI43: 47.37206787 | AJ43: 4.655 | AK43: 7.189269319 | AL43: 0.410399668 | AM43: 2.515686362 | AN43: 3.111660894 | AO43: 0.4822813599 | AP43: 69.67942144 | AQ43: 144.4787778 | AS43: 37.05411422 | AT43: 4.655 | AU43: 7.189269319 | AV43: 0.3629644136 | AW43: 2.224915604 | AX43: 2.752005569 | AY43: 0.3002088546 | AZ43: 69.67942144 | BA43: 232.1031521 | BC43: 28.4016768 | BD43: 4.655 | BE43: 7.189269319 | BF43: 0.3177736042 | BG43: 1.947902946 | BH43: 2.409367683 | BI43: 0.1717619594 | BJ43: 69.67942144 | BK43: 405.6743511 | BM43: 47.37206787 | BN43: 4.655 | BO43: 7.880834614 | BP43: 0.410399668 | BQ43: 2.515686362 | BR43: 3.25539932 | BS43: 0.5137947722 | BT43: 69.67942144 | BU43: 135.6172254 | BW43: 37.05411422 | BX43: 4.655 | BY43: 7.880834614 | BZ43: 0.3629644136 | CA43: 2.224915604 | CB43: 2.879130266 | CC43: 0.3198405048 | CD43: 69.67942144 | CE43: 217.8567767 | CG43: 28.4016768 | CH43: 4.655 | CI43: 7.880834614 | CJ43: 0.3177736042 | CK43: 1.947902946 | CL43: 2.520664747 | CM43: 0.1830113696 | CN43: 69.67942144 | CO43: 380.7382109 | CQ43: 47.37206787 | CR43: 4.655 | CS43: 9.442567053 | CT43: 0.410399668 | CU43: 2.515686362 | CV43: 3.558702299 | CW43: 0.6397831554 | CX43: 69.67942144 | CY43: 108.9109972 | DA43: 37.05411422 | DB43: 4.655 | DC43: 9.442567053 | DD43: 0.3629644136 | DE43: 2.224915604 | DF43: 3.147376555 | DG43: 0.3982500345 | DH43: 69.67942144 | DI43: 174.964006 | DK43: 28.4016768 | DL43: 4.655 | DM43: 9.442567053 | DN43: 0.3177736042 | DO43: 1.947902946 | DP43: 2.755513087 | DQ43: 0.2278553921 | DR43: 69.67942144 | DS43: 305.8054531 | DV43: 2.515686362 | DW43: 0.4822813599
A44: 40 | B44: 3 | D44: ='21'!E38 -> ΠΕΠΟΝΙ | E44: 25.47119388 | F44: 9.38125 | G44: 12.0674644 | H44: 0.5494268166 | I44: 2.641420288 | J44: 2.981355029 | K44: 0.09400562633 | L44: 31.71599484 | M44: 337.3840064 | O44: 25.47119388 | P44: 9.38125 | Q44: 12.0674644 | R44: 0.5494268166 | S44: 2.641420288 | T44: 2.981355029 | U44: 0.09400562633 | V44: 31.71599484 | W44: 337.3840064 | Y44: 25.47119388 | Z44: 9.38125 | AA44: 12.0674644 | AB44: 0.5494268166 | AC44: 2.641420288 | AD44: 2.981355029 | AE44: 0.09400562633 | AF44: 31.71599484 | AG44: 337.3840064 | AI44: 25.47119388 | AJ44: 9.38125 | AK44: 12.64900899 | AL44: 0.5494268166 | AM44: 2.641420288 | AN44: 3.049963286 | AO44: 0.0965282294 | AP44: 31.71599484 | AQ44: 328.5670423 | AS44: 25.47119388 | AT44: 9.38125 | AU44: 12.64900899 | AV44: 0.5494268166 | AW44: 2.641420288 | AX44: 3.049963286 | AY44: 0.0965282294 | AZ44: 31.71599484 | BA44: 328.5670423 | BC44: 25.47119388 | BD44: 9.38125 | BE44: 12.64900899 | BF44: 0.5494268166 | BG44: 2.641420288 | BH44: 3.049963286 | BI44: 0.0965282294 | BJ44: 31.71599484 | BK44: 328.5670423 | BM44: 25.47119388 | BN44: 9.38125 | BO44: 14.22278717 | BP44: 0.5494268166 | BQ44: 2.641420288 | BR44: 3.228327491 | BS44: 0.113166286 | BT44: 31.71599484 | BU44: 280.2601017 | BW44: 25.47119388 | BX44: 9.38125 | BY44: 14.22278717 | BZ44: 0.5494268166 | CA44: 2.641420288 | CB44: 3.228327491 | CC44: 0.113166286 | CD44: 31.71599484 | CE44: 280.2601017 | CG44: 25.47119388 | CH44: 9.38125 | CI44: 14.22278717 | CJ44: 0.5494268166 | CK44: 2.641420288 | CL44: 3.228327491 | CM44: 0.113166286 | CN44: 31.71599484 | CO44: 280.2601017 | CQ44: 25.47119388 | CR44: 9.38125 | CS44: 16.48078552 | CT44: 0.5494268166 | CU44: 2.641420288 | CV44: 3.468252847 | CW44: 0.1229763666 | CX44: 31.71599484 | CY44: 257.9031705 | DA44: 25.47119388 | DB44: 9.38125 | DC44: 16.48078552 | DD44: 0.5494268166 | DE44: 2.641420288 | DF44: 3.468252847 | DG44: 0.1229763666 | DH44: 31.71599484 | DI44: 257.9031705 | DK44: 25.47119388 | DL44: 9.38125 | DM44: 16.48078552 | DN44: 0.5494268166 | DO44: 2.641420288 | DP44: 3.468252847 | DQ44: 0.1229763666 | DR44: 31.71599484 | DS44: 257.9031705 | DV44: 2.641420288 | DW44: 0.0965282294
A45: 41 | B45: 78 | D45: ='21'!E39 -> ΠΙΠΕΡΙΑ ΒΙΟΜΗΧΑΝΙΚΗ | E45: 38.93822435 | F45: 0.5546875 | G45: 0.9356875514 | H45: 0.3720779218 | I45: 0.8612827498 | J45: 1.075287862 | K45: 0.5323019451 | L45: 69.67942144 | M45: 130.9020605 | O45: 28.77032788 | P45: 0.5546875 | Q45: 0.9356875514 | R45: 0.3198292908 | S45: 0.7403380713 | T45: 0.9242917522 | U45: 0.3375241086 | V45: 69.67942144 | W45: 206.4427982 | Y45: 20.02224965 | Z45: 0.5546875 | AA45: 0.9356875514 | AB45: 0.2668100999 | AC45: 0.6176097075 | AD45: 0.7710687602 | AE45: 0.2606634345 | AF45: 69.67942144 | AG45: 267.3156731 | AI45: 38.93822435 | AJ45: 0.5546875 | AK45: 1.012323607 | AL45: 0.3720779218 | AM45: 0.8612827498 | AN45: 1.113375723 | AO45: 0.5470445116 | AP45: 69.67942144 | AQ45: 127.3743177 | AS45: 28.77032788 | AT45: 0.5546875 | AU45: 1.012323607 | AV45: 0.3198292908 | AW45: 0.7403380713 | AX45: 0.9570311673 | AY45: 0.3700896215 | AZ45: 69.67942144 | BA45: 188.2771561 | BC45: 20.02224965 | BD45: 0.5546875 | BE45: 1.012323607 | BF45: 0.2668100999 | BG45: 0.6176097075 | BH45: 0.7983808509 | BI45: 0.2835054809 | BJ45: 69.67942144 | BK45: 245.7780401 | BM45: 38.93822435 | BN45: 0.5546875 | BO45: 1.095923699 | BP45: 0.3720779218 | BQ45: 0.8612827498 | BR45: 1.153491311 | BS45: 0.6012424401 | BT45: 69.67942144 | BU45: 115.8923868 | BW45: 28.77032788 | BX45: 0.5546875 | BY45: 1.095923699 | BZ45: 0.3198292908 | CA45: 0.7403380713 | CB45: 0.9915135679 | CC45: 0.3841906862 | CD45: 69.67942144 | CE45: 181.3667638 | CG45: 20.02224965 | CH45: 0.5546875 | CI45: 1.095923699 | CJ45: 0.2668100999 | CK45: 0.6176097075 | CL45: 0.8271469865 | CM45: 0.2989316066 | CN45: 69.67942144 | CO45: 233.0948615 | CQ45: 38.93822435 | CR45: 0.5546875 | CS45: 1.320924275 | CT45: 0.3720779218 | CU45: 0.8612827498 | CV45: 1.255104965 | CW45: 0.7515530501 | CX45: 69.67942144 | CY45: 92.71390946 | DA45: 28.77032788 | DB45: 0.5546875 | DC45: 1.320924275 | DD45: 0.3198292908 | DE45: 0.7403380713 | DF45: 1.078858237 | DG45: 0.4889395406 | DH45: 69.67942144 | DI45: 142.5113243 | DK45: 20.02224965 | DL45: 0.5546875 | DM45: 1.320924275 | DN45: 0.2668100999 | DO45: 0.6176097075 | DP45: 0.9000122325 | DQ45: 0.3745499239 | DR45: 69.67942144 | DS45: 186.0350704 | DV45: 0.8612827498 | DW45: 0.5470445116
A46: 42 | B46: 35 | D46: ='21'!E40 -> ΣΚΟΡΔΑ | E46: 36.05475913 | F46: 0.448 | G46: 0.5783957556 | H46: 0.3580363562 | I46: 0.7611957346 | J46: 0.8430625813 | K46: 0.5569987152 | L46: 69.67942144 | M46: 125.0979931 | O46: 26.44302815 | P46: 0.448 | Q46: 0.5783957556 | R46: 0.3066206663 | S46: 0.6518844783 | T46: 0.7219948642 | U46: 0.346672571 | V46: 69.67942144 | W46: 200.9949078 | Y46: 18.66660519 | Z46: 0.448 | AA46: 0.5783957556 | AB46: 0.257619362 | AC46: 0.5477062764 | AD46: 0.606612263 | AE46: 0.1982935495 | AF46: 69.67942144 | AG46: 351.3953007 | AI46: 36.05475913 | AJ46: 0.448 | AK46: 0.6162913213 | AL46: 0.3580363562 | AM46: 0.7611957346 | AN46: 0.8654034955 | AO46: 0.5894762474 | AP46: 69.67942144 | AQ46: 118.2056474 | AS46: 26.44302815 | AT46: 0.448 | AU46: 0.6162913213 | AV46: 0.3066206663 | AW46: 0.6518844783 | AX46: 0.741127519 | AY46: 0.366886387 | AZ46: 69.67942144 | BA46: 189.920978 | BC46: 18.66660519 | BD46: 0.448 | BE46: 0.6162913213 | BF46: 0.257619362 | BG46: 0.5477062764 | BH46: 0.6226873123 | BI46: 0.209855668 | BJ46: 69.67942144 | BK46: 332.0349749 | BM46: 36.05475913 | BN46: 0.448 | BO46: 0.6786631027 | BP46: 0.3580363562 | BQ46: 0.7611957346 | BR46: 0.9009686619 | BS46: 0.6146777699 | BT46: 69.67942144 | BU46: 113.359267 | BW46: 26.44302815 | BX46: 0.448 | BY46: 0.6786631027 | BZ46: 0.3066206663 | CA46: 0.6518844783 | CB46: 0.7715853616 | CC46: 0.3825716595 | CD46: 69.67942144 | CE46: 182.1343001 | CG46: 18.66660519 | CH46: 0.448 | CI46: 0.6786631027 | CJ46: 0.257619362 | CK46: 0.5477062764 | CL46: 0.6482776617 | CM46: 0.2188275008 | CN46: 69.67942144 | CO46: 318.4216846 | CQ46: 36.05475913 | CR46: 0.448 | CS46: 0.7934121393 | CT46: 0.3580363562 | CU46: 0.7611957346 | CV46: 0.9629748741 | CW46: 0.7190707879 | CX46: 69.67942144 | CY46: 96.90203331 | DA46: 26.44302815 | DB46: 0.448 | DC46: 0.7934121393 | DD46: 0.3066206663 | DE46: 0.6518844783 | DF46: 0.8246871927 | DG46: 0.4475452312 | DH46: 69.67942144 | DI46: 155.6924677 | DK46: 18.66660519 | DL46: 0.448 | DM46: 0.7934121393 | DN46: 0.257619362 | DO46: 0.5477062764 | DP46: 0.6928932449 | DQ46: 0.2559917913 | DR46: 69.67942144 | DS46: 272.193968 | DV46: 0.7611957346 | DW46: 0.5894762474
A47: 43 | B47: 15 | D47: ='21'!E41 -> ΣΠΑΝΑΚΙ ΒΙΟΜΗΧΑΝΙΑΣ | E47: 31.38818035 | F47: 0.3328125 | G47: 0.5770291991 | H47: 0.3340634016 | I47: 0.6351559461 | J47: 0.7858518174 | K47: 0.1590463061 | L47: 69.55131518 | M47: 437.3022982 | O47: 26.61561799 | P47: 0.3328125 | Q47: 0.5770291991 | R47: 0.3076196733 | S47: 0.5848783905 | T47: 0.7236455061 | U47: 0.1115206713 | V47: 69.55131518 | W47: 623.662989 | Y47: 22.78362227 | Z47: 0.3328125 | AA47: 0.5770291991 | AB47: 0.2846146267 | AC47: 0.5411388127 | AD47: 0.6695283607 | AE47: 0.08317776115 | AF47: 69.55131518 | AG47: 836.1768123 | AI47: 31.38818035 | AJ47: 0.3328125 | AK47: 0.6090831617 | AL47: 0.3340634016 | AM47: 0.6351559461 | AN47: 0.8035355692 | AO47: 0.1629956883 | AP47: 69.55131518 | AQ47: 426.7064725 | AS47: 26.61561799 | AT47: 0.3328125 | AU47: 0.6090831617 | AV47: 0.3076196733 | AW47: 0.5848783905 | AX47: 0.7399294508 | AY47: 0.1142899135 | AZ47: 69.55131518 | BA47: 608.5516476 | BC47: 22.78362227 | BD47: 0.3328125 | BE47: 0.6090831617 | BF47: 0.2846146267 | BG47: 0.5411388127 | BH47: 0.684594526 | BI47: 0.09061118602 | BJ47: 69.55131518 | BK47: 767.5797904 | BM47: 31.38818035 | BN47: 0.3328125 | BO47: 0.6784184102 | BP47: 0.3340634016 | BQ47: 0.6351559461 | BR47: 0.8405150941 | BS47: 0.1857150361 | BT47: 69.55131518 | BU47: 374.5055684 | BW47: 26.61561799 | BX47: 0.3328125 | BY47: 0.6784184102 | BZ47: 0.3076196733 | CA47: 0.5848783905 | CB47: 0.7739817574 | CC47: 0.130220349 | CD47: 69.55131518 | CE47: 534.104813 | CG47: 22.78362227 | CH47: 0.3328125 | CI47: 0.6784184102 | CJ47: 0.2846146267 | CK47: 0.5411388127 | CL47: 0.716100263 | CM47: 0.09901435033 | CN47: 69.55131518 | CO47: 702.436717 | CQ47: 31.38818035 | CR47: 0.3328125 | CS47: 0.7842145207 | CT47: 0.3340634016 | CU47: 0.6351559461 | CV47: 0.8939979487 | CW47: 0.2009396863 | CX47: 69.55131518 | CY47: 346.1303064 | DA47: 26.61561799 | DB47: 0.3328125 | DC47: 0.7842145207 | DD47: 0.3076196733 | DE47: 0.5848783905 | DF47: 0.8232310262 | DG47: 0.140895625 | DH47: 69.55131518 | DI47: 493.6371529 | DK47: 22.78362227 | DL47: 0.3328125 | DM47: 0.7842145207 | DN47: 0.2846146267 | DO47: 0.5411388127 | DP47: 0.7616664717 | DQ47: 0.1085879726 | DR47: 69.55131518 | DS47: 640.5066188 | DV47: 0.6351559461 | DW47: 0.1629956883
A48: 44 | B48: 36 | D48: ='21'!E42 -> ΤΟΜΑΤΑ | E48: 48.52398075 | F48: 3.763986562 | G48: 4.689791783 | H48: 0.415359397 | I48: 2.296685086 | J48: 2.555333545 | K48: 0.1649245289 | L48: 69.67942144 | M48: 422.4927724 | O48: 46.04013988 | P48: 3.763986562 | Q48: 4.689791783 | R48: 0.4045890705 | S48: 2.237131725 | T48: 2.489073394 | U48: 0.1649245289 | V48: 69.67942144 | W48: 422.4927724 | Y48: 43.93638385 | Z48: 3.763986562 | AA48: 4.689791783 | AB48: 0.395237355 | AC48: 2.18542242 | AD48: 2.431540682 | AE48: 0.1649245289 | AF48: 69.67942144 | AG48: 422.4927724 | AI48: 48.52398075 | AJ48: 3.763986562 | AK48: 4.9056544 | AL48: 0.415359397 | AM48: 2.296685086 | AN48: 2.611960988 | AO48: 0.1735915834 | AP48: 69.67942144 | AQ48: 401.3986167 | AS48: 46.04013988 | AT48: 3.763986562 | AU48: 4.9056544 | AV48: 0.4045890705 | AW48: 2.237131725 | AX48: 2.544232479 | AY48: 0.1735915834 | AZ48: 69.67942144 | BA48: 401.3986167 | BC48: 43.93638385 | BD48: 3.763986562 | BE48: 4.9056544 | BF48: 0.395237355 | BG48: 2.18542242 | BH48: 2.485424815 | BI48: 0.1735915834 | BJ48: 69.67942144 | BK48: 401.3986167 | BM48: 48.52398075 | BN48: 3.763986562 | BO48: 5.465988792 | BP48: 0.415359397 | BQ48: 2.296685086 | BR48: 2.753524391 | BS48: 0.2035126398 | BT48: 69.67942144 | BU48: 342.3837532 | BW48: 46.04013988 | BX48: 3.763986562 | BY48: 5.465988792 | BZ48: 0.4045890705 | CA48: 2.237131725 | CB48: 2.682125123 | CC48: 0.2035126398 | CD48: 69.67942144 | CE48: 342.3837532 | CG48: 43.93638385 | CH48: 3.763986562 | CI48: 5.465988792 | CJ48: 0.395237355 | CK48: 2.18542242 | CL48: 2.620130194 | CM48: 0.2035126398 | CN48: 69.67942144 | CO48: 342.3837532 | CQ48: 48.52398075 | CR48: 3.763986562 | CS48: 6.471068322 | CT48: 0.415359397 | CU48: 2.296685086 | CV48: 2.990706156 | CW48: 0.2211546024 | CX48: 69.67942144 | CY48: 315.0710891 | DA48: 46.04013988 | DB48: 3.763986562 | DC48: 6.471068322 | DD48: 0.4045890705 | DE48: 2.237131725 | DF48: 2.913156732 | DG48: 0.2211546024 | DH48: 69.67942144 | DI48: 315.0710891 | DK48: 43.93638385 | DL48: 3.763986562 | DM48: 6.471068322 | DN48: 0.395237355 | DO48: 2.18542242 | DP48: 2.845821713 | DQ48: 0.2211546024 | DR48: 69.67942144 | DS48: 315.0710891 | DV48: 2.296685086 | DW48: 0.1735915834
A49: 45 | B49: 1 | D49: ='21'!E43 -> ΦΑΣΟΛΑΚΙΑ ΒΙΟΜΗΧΑΝΙΑΣ | E49: 21.67712009 | F49: 17.334375 | G49: 25.70945497 | H49: 0.8548973465 | I49: 3.350801515 | J49: 4.037263 | K49: 0.1275138716 | L49: 60.87028189 | M49: 477.3620401 | O49: 18.69237254 | P49: 17.334375 | Q49: 25.70945497 | R49: 0.7938626898 | S49: 3.111573939 | T49: 3.7490261 | U49: 0.1228885178 | V49: 60.87028189 | W49: 495.3292869 | Y49: 16.0291854 | Z49: 17.334375 | AA49: 25.70945497 | AB49: 0.7351380525 | AC49: 2.881400568 | AD49: 3.471698294 | AE49: 0.1228885178 | AF49: 60.87028189 | AG49: 495.3292869 | AI49: 21.67712009 | AJ49: 17.334375 | AK49: 27.79309184 | AL49: 0.8548973465 | AM49: 3.350801515 | AN49: 4.190615914 | AO49: 0.1398341214 | AP49: 60.87028189 | AQ49: 435.3034959 | AS49: 18.69237254 | AT49: 17.334375 | AU49: 27.79309184 | AV49: 0.7938626898 | AW49: 3.111573939 | AX49: 3.891430515 | AY49: 0.1298201637 | AZ49: 60.87028189 | BA49: 468.8815679 | BC49: 16.0291854 | BD49: 17.334375 | BE49: 27.79309184 | BF49: 0.7351380525 | BG49: 2.881400568 | BH49: 3.603568586 | BI49: 0.1298201637 | BJ49: 60.87028189 | BK49: 468.8815679 | BM49: 21.67712009 | BN49: 17.334375 | BO49: 30.39197736 | BP49: 0.8548973465 | BQ49: 3.350801515 | BR49: 4.374362288 | BS49: 0.1479505298 | BT49: 60.87028189 | BU49: 411.4232101 | BW49: 18.69237254 | BX49: 17.334375 | BY49: 30.39197736 | BZ49: 0.7938626898 | CA49: 3.111573939 | CB49: 4.062058476 | CC49: 0.1427874862 | CD49: 60.87028189 | CE49: 426.2998356 | CG49: 16.0291854 | CH49: 17.334375 | CI49: 30.39197736 | CJ49: 0.7351380525 | CK49: 2.881400568 | CL49: 3.761574634 | CM49: 0.1427874862 | CN49: 60.87028189 | CO49: 426.2998356 | CQ49: 21.67712009 | CR49: 17.334375 | CS49: 35.28263191 | CT49: 0.8548973465 | CU49: 3.350801515 | CV49: 4.700705804 | CW49: 0.1847084254 | CX49: 60.87028189 | CY49: 329.5479444 | DA49: 18.69237254 | DB49: 17.334375 | DC49: 35.28263191 | DD49: 0.7938626898 | DE49: 3.111573939 | DF49: 4.365102978 | DG49: 0.1675335247 | DH49: 60.87028189 | DI49: 363.3319481 | DK49: 16.0291854 | DL49: 17.334375 | DM49: 35.28263191 | DN49: 0.7351380525 | DO49: 2.881400568 | DP49: 4.042201937 | DQ49: 0.1675335247 | DR49: 60.87028189 | DS49: 363.3319481 | DV49: 3.350801515 | DW49: 0.1398341214
A50: 46 | B50: 50 | D50: ='21'!E44 -> ΦΡΑΟΥΛΑ | E50: 32.55508217 | F50: 0.30364125 | G50: 0.6857985814 | H50: 0.3402163863 | I50: 0.6260122658 | J50: 0.8599077639 | K50: 0.3183891139 | L50: 69.55131518 | M50: 218.4475289 | O50: 23.44669707 | P50: 0.30364125 | Q50: 0.6857985814 | R50: 0.2887265128 | S50: 0.5312687623 | T50: 0.7297654669 | U50: 0.199374791 | V50: 69.55131518 | W50: 348.8470876 | Y50: 16.37602918 | Z50: 0.30364125 | AA50: 0.6857985814 | AB50: 0.2412960047 | AC50: 0.4439946596 | AD50: 0.6098833454 | AE50: 0.1539159539 | AF50: 69.55131518 | AG50: 451.8785313 | AI50: 32.55508217 | AJ50: 0.30364125 | AK50: 0.7449916831 | AL50: 0.3402163863 | AM50: 0.6260122658 | AN50: 0.8906593441 | AO50: 0.3233987329 | AP50: 69.55131518 | AQ50: 215.0636601 | AS50: 23.44669707 | AT50: 0.30364125 | AU50: 0.7449916831 | AV50: 0.2887265128 | AW50: 0.5312687623 | AX50: 0.755862965 | AY50: 0.2186381636 | AZ50: 69.55131518 | BA50: 318.1115045 | BC50: 16.37602918 | BD50: 0.30364125 | BE50: 0.7449916831 | BF50: 0.2412960047 | BG50: 0.4439946596 | BH50: 0.6316936806 | BI50: 0.1687871438 | BJ50: 69.55131518 | BK50: 412.0652416 | BM50: 32.55508217 | BN50: 0.30364125 | BO50: 0.7919667579 | BP50: 0.3402163863 | BQ50: 0.6260122658 | BR50: 0.9143277218 | BS50: 0.3801042641 | BT50: 69.55131518 | BU50: 182.979571 | BW50: 23.44669707 | BX50: 0.30364125 | BY50: 0.7919667579 | BZ50: 0.2887265128 | CA50: 0.5312687623 | CB50: 0.7759492643 | CC50: 0.2366005119 | CD50: 69.55131518 | CE50: 293.9609666 | CG50: 16.37602918 | CH50: 0.30364125 | CI50: 0.7919667579 | CJ50: 0.2412960047 | CK50: 0.4439946596 | CL50: 0.6484803059 | CM50: 0.1785840758 | CN50: 69.55131518 | CO50: 389.4597817 | CQ50: 32.55508217 | CR50: 0.30364125 | CS50: 0.9822418426 | CT50: 0.3402163863 | CU50: 0.6260122658 | CV50: 1.00450952 | CW50: 0.4552520308 | CX50: 69.55131518 | CY50: 152.7754089 | DA50: 23.44669707 | DB50: 0.30364125 | DC50: 0.9822418426 | DD50: 0.2887265128 | DE50: 0.5312687623 | DF50: 0.8524825445 | DG50: 0.2888015495 | DH50: 69.55131518 | DI50: 240.8273616 | DK50: 16.37602918 | DL50: 0.30364125 | DM50: 0.9822418426 | DN50: 0.2412960047 | DO50: 0.4439946596 | DP50: 0.712441092 | DQ50: 0.2229527903 | DR50: 69.55131518 | DS50: 311.9553475 | DV50: 0.6260122658 | DW50: 0.3233987329
A51: 47 | B51: 64 | D51: ='21'!E45 -> ΛΟΙΠΑ ΕΑΡΙΝΑ ΚΗΠΕΥΤΙΚΑ | E51: 38.39658815 | F51: 0 | G51: 0 | H51: 1.190242784 | I51: 1.190242784 | J51: 1.190242784 | K51: 0.479048418 | L51: 60.87028189 | M51: 127.0649889 | O51: 29.06684687 | P51: 0 | Q51: 0 | R51: 1.035590841 | S51: 1.035590841 | T51: 1.035590841 | U51: 0.2979674852 | V51: 60.87028189 | W51: 204.2849805 | Y51: 21.84001858 | Z51: 0 | AA51: 0 | AB51: 0.8976679944 | AC51: 0.8976679944 | AD51: 0.8976679944 | AE51: 0.1702201159 | AF51: 60.87028189 | AG51: 357.5974648 | AI51: 38.39658815 | AJ51: 0 | AK51: 0 | AL51: 1.190242784 | AM51: 1.190242784 | AN51: 1.190242784 | AO51: 0.5252686939 | AP51: 60.87028189 | AQ51: 115.8840848 | AS51: 29.06684687 | AT51: 0 | AU51: 0 | AV51: 1.035590841 | AW51: 1.035590841 | AX51: 1.035590841 | AY51: 0.326716436 | AZ51: 60.87028189 | BA51: 186.3092125 | BC51: 21.84001858 | BD51: 0 | BE51: 0 | BF51: 0.8976679944 | BG51: 0.8976679944 | BH51: 0.8976679944 | BI51: 0.1866435513 | BJ51: 60.87028189 | BK51: 326.1311815 | BM51: 38.39658815 | BN51: 0 | BO51: 0 | BP51: 1.190242784 | BQ51: 1.190242784 | BR51: 1.190242784 | BS51: 0.5452823539 | BT51: 60.87028189 | BU51: 111.6307569 | BW51: 29.06684687 | BX51: 0 | BY51: 0 | BZ51: 1.035590841 | CA51: 1.035590841 | CB51: 1.035590841 | CC51: 0.3391649061 | CD51: 60.87028189 | CE51: 179.4710502 | CG51: 21.84001858 | CH51: 0 | CI51: 0 | CJ51: 0.8976679944 | CK51: 0.8976679944 | CL51: 0.8976679944 | CM51: 0.1937549984 | CN51: 60.87028189 | CO51: 314.161092 | CQ51: 38.39658815 | CR51: 0 | CS51: 0 | CT51: 1.190242784 | CU51: 1.190242784 | CV51: 1.190242784 | CW51: 0.6939525428 | CX51: 60.87028189 | CY51: 87.71533807 | DA51: 29.06684687 | DB51: 0 | DC51: 0 | DD51: 1.035590841 | DE51: 1.035590841 | DF51: 1.035590841 | DG51: 0.4316375678 | DH51: 60.87028189 | DI51: 141.0217424 | DK51: 21.84001858 | DL51: 0 | DM51: 0 | DN51: 0.8976679944 | DO51: 0.8976679944 | DP51: 0.8976679944 | DQ51: 0.2465819275 | DR51: 60.87028189 | DS51: 246.8562174 | DV51: 1.190242784 | DW51: 0.5252686939
A52: 48 | B52: 37 | D52: ='21'!E46 -> ΛΟΙΠΑ ΧΕΙΜΕΡΙΝΑ ΚΗΠΕΥΤΙΚΑ | E52: 49.94683155 | F52: 0 | G52: 0 | H52: 1.065692526 | I52: 1.065692526 | J52: 1.065692526 | K52: 0.4453122478 | L52: 60.87028189 | M52: 136.6912368 | O52: 39.10712947 | P52: 0 | Q52: 0 | R52: 0.9429874613 | S52: 0.9429874613 | T52: 0.9429874613 | U52: 0.2769925214 | V52: 60.87028189 | W52: 219.7542431 | Y52: 29.84277622 | Z52: 0 | AA52: 0 | AB52: 0.8237540439 | AC52: 0.8237540439 | AD52: 0.8237540439 | AE52: 0.1582478148 | AF52: 60.87028189 | AG52: 384.6516426 | AI52: 49.94683155 | AJ52: 0 | AK52: 0 | AL52: 1.065692526 | AM52: 1.065692526 | AN52: 1.065692526 | AO52: 0.4816970558 | AP52: 60.87028189 | AQ52: 126.366315 | AS52: 39.10712947 | AT52: 0 | AU52: 0 | AV52: 0.9429874613 | AW52: 0.9429874613 | AX52: 0.9429874613 | AY52: 0.2996245504 | AZ52: 60.87028189 | BA52: 203.1551881 | BC52: 29.84277622 | BD52: 0 | BE52: 0 | BF52: 0.8237540439 | BG52: 0.8237540439 | BH52: 0.8237540439 | BI52: 0.1711776553 | BJ52: 60.87028189 | BK52: 355.5971238 | BM52: 49.94683155 | BN52: 0 | BO52: 0 | BP52: 1.065692526 | BQ52: 1.065692526 | BR52: 1.065692526 | BS52: 0.5131600119 | BT52: 60.87028189 | BU52: 118.6185215 | BW52: 39.10712947 | BX52: 0 | BY52: 0 | BZ52: 0.9429874613 | CA52: 0.9429874613 | CB52: 0.9429874613 | CC52: 0.3192057444 | CD52: 60.87028189 | CE52: 190.6929401 | CG52: 29.84277622 | CH52: 0 | CI52: 0 | CJ52: 0.8237540439 | CK52: 0.8237540439 | CL52: 0.8237540439 | CM52: 0.1823766093 | CN52: 60.87028189 | CO52: 333.7614519 | CQ52: 49.94683155 | CR52: 0 | CS52: 0 | CT52: 1.065692526 | CU52: 1.065692526 | CV52: 1.065692526 | CW52: 0.6390080312 | CX52: 60.87028189 | CY52: 95.25745988 | DA52: 39.10712947 | DB52: 0 | DC52: 0 | DD52: 0.9429874613 | DE52: 0.9429874613 | DF52: 0.9429874613 | DG52: 0.3974749104 | DH52: 60.87028189 | DI52: 153.1424508 | DK52: 29.84277622 | DL52: 0 | DM52: 0 | DN52: 0.8237540439 | DO52: 0.8237540439 | DP52: 0.8237540439 | DQ52: 0.227080268 | DR52: 60.87028189 | DS52: 268.056236 | DV52: 1.065692526 | DW52: 0.4816970558
A53: 49 | DV53: 0 | DW53: 0
A54: 50 | B54: 51 | D54: ='21'!E48 -> ΒΑΜΒΑΚΙ | E54: 45.70147558 | F54: 0.7342875 | G54: 0.9307978074 | H54: 0.4030982759 | I54: 1.04878408 | J54: 1.162252731 | K54: 0.5569987152 | L54: 69.67942144 | M54: 125.0979931 | O54: 34.75222378 | P54: 0.7342875 | Q54: 0.9307978074 | R54: 0.3515095506 | S54: 0.9145601526 | T54: 1.013507027 | U54: 0.346672571 | V54: 69.67942144 | W54: 200.9949078 | Y54: 25.60896793 | Z54: 0.7342875 | AA54: 0.9307978074 | AB54: 0.3017462403 | AC54: 0.7850856031 | AD54: 0.8700245396 | AE54: 0.1982935495 | AF54: 69.67942144 | AG54: 351.3953007 | AI54: 45.70147558 | AJ54: 0.7342875 | AK54: 0.9874889902 | AL54: 0.4030982759 | AM54: 1.04878408 | AN54: 1.192983092 | AO54: 0.5894762474 | AP54: 69.67942144 | AQ54: 118.2056474 | AS54: 34.75222378 | AT54: 0.7342875 | AU54: 0.9874889902 | AV54: 0.3515095506 | AW54: 0.9145601526 | AX54: 1.0403045 | AY54: 0.366886387 | AZ54: 69.67942144 | BA54: 189.920978 | BC54: 25.60896793 | BD54: 0.7342875 | BE54: 0.9874889902 | BF54: 0.3017462403 | BG54: 0.7850856031 | BH54: 0.8930282864 | BI54: 0.209855668 | BJ54: 69.67942144 | BK54: 332.0349749 | BM54: 45.70147558 | BN54: 0.7342875 | BO54: 1.106346212 | BP54: 0.4030982759 | BQ54: 1.04878408 | BR54: 1.254971258 | BS54: 0.6146777699 | BT54: 69.67942144 | BU54: 113.359267 | BW54: 34.75222378 | BX54: 0.7342875 | BY54: 1.106346212 | BZ54: 0.3515095506 | CA54: 0.9145601526 | CB54: 1.094359389 | CC54: 0.3825716595 | CD54: 69.67942144 | CE54: 182.1343001 | CG54: 25.60896793 | CH54: 0.7342875 | CI54: 1.106346212 | CJ54: 0.3017462403 | CK54: 0.7850856031 | CL54: 0.9394306087 | CM54: 0.2188275008 | CN54: 69.67942144 | CO54: 318.4216846 | CQ54: 45.70147558 | CR54: 0.7342875 | CS54: 1.300039424 | CT54: 0.4030982759 | CU54: 1.04878408 | CV54: 1.349903573 | CW54: 0.7190707879 | CX54: 69.67942144 | CY54: 96.90203331 | DA54: 34.75222378 | DB54: 0.7342875 | DC54: 1.300039424 | DD54: 0.3515095506 | DE54: 0.9145601526 | DF54: 1.177142217 | DG54: 0.4475452312 | DH54: 69.67942144 | DI54: 155.6924677 | DK54: 25.60896793 | DL54: 0.7342875 | DM54: 1.300039424 | DN54: 0.3017462403 | DO54: 0.7850856031 | DP54: 1.010493848 | DQ54: 0.2559917913 | DR54: 69.67942144 | DS54: 272.193968 | DV54: 1.04878408 | DW54: 0.5894762474
A55: 51 | B55: 58 | D55: ='21'!E49 -> ΚΑΝΝΑΒΗ | E55: 38.01527773 | F55: 0.219 | G55: 0.3239001427 | H55: 0.3676418249 | I55: 0.6064100381 | J55: 0.6921954277 | K55: 0.5323019451 | L55: 69.67942144 | M55: 130.9020605 | O55: 28.77460404 | P55: 0.219 | Q55: 0.3239001427 | R55: 0.3198530582 | S55: 0.5275844369 | T55: 0.6022188158 | U55: 0.3313302591 | V55: 69.67942144 | W55: 210.302016 | Y55: 21.26282285 | Z55: 0.219 | AA55: 0.3239001427 | AB55: 0.2749516244 | AC55: 0.4535213725 | AD55: 0.5176784696 | AE55: 0.1895505378 | AF55: 69.67942144 | AG55: 367.6033962 | AI55: 38.01527773 | AJ55: 0.219 | AK55: 0.3472616499 | AL55: 0.3676418249 | AM55: 0.6064100381 | AN55: 0.7098900318 | AO55: 0.5470445116 | AP55: 69.67942144 | AQ55: 127.3743177 | AS55: 28.77460404 | AT55: 0.219 | AU55: 0.3472616499 | AV55: 0.3198530582 | AW55: 0.5275844369 | AX55: 0.6176133461 | AY55: 0.3405067395 | AZ55: 69.67942144 | BA55: 204.6344855 | BC55: 21.26282285 | BD55: 0.219 | BE55: 0.3472616499 | BF55: 0.2749516244 | BG55: 0.4535213725 | BH55: 0.5309118935 | BI55: 0.1948003052 | BJ55: 69.67942144 | BK55: 357.6966749 | BM55: 38.01527773 | BN55: 0.219 | BO55: 0.3887526746 | BP55: 0.3676418249 | BQ55: 0.6064100381 | BR55: 0.7402744807 | BS55: 0.6012424401 | BT55: 69.67942144 | BU55: 115.8923868 | BW55: 28.77460404 | BX55: 0.219 | BY55: 0.3887526746 | BZ55: 0.3198530582 | CA55: 0.5275844369 | CB55: 0.6440482026 | CC55: 0.3742421295 | CD55: 69.67942144 | CE55: 186.1880744 | CG55: 21.26282285 | CH55: 0.219 | CI55: 0.3887526746 | CJ55: 0.2749516244 | CK55: 0.4535213725 | CL55: 0.5536357868 | CM55: 0.2140999651 | CN55: 69.67942144 | CO55: 325.4527455 | CQ55: 38.01527773 | CR55: 0.219 | CS55: 0.456142052 | CT55: 0.3676418249 | CU55: 0.6064100381 | CV55: 0.7871290688 | CW55: 0.7515530501 | CX55: 69.67942144 | CY55: 92.71390946 | DA55: 28.77460404 | DB55: 0.219 | DC55: 0.456142052 | DD55: 0.3198530582 | DE55: 0.5275844369 | DF55: 0.6848122895 | DG55: 0.4678026618 | DH55: 69.67942144 | DI55: 148.9504595 | DK55: 21.26282285 | DL55: 0.219 | DM55: 0.456142052 | DN55: 0.2749516244 | DO55: 0.4535213725 | DP55: 0.5886773524 | DQ55: 0.2676249563 | DR55: 69.67942144 | DS55: 260.3621964 | DV55: 0.6064100381 | DW55: 0.5470445116
A56: 52 | D56: ='21'!E50 -> ΛΙΝΑΡΙ | E56: 46.64340534 | F56: 0.483 | G56: 0.6971989948 | H56: 0.4072311158 | I56: 0.8917338651 | J56: 1.036480561 | K56: 0.3248525664 | L56: 69.67942144 | M56: 214.495524 | O56: 35.07524593 | P56: 0.483 | Q56: 0.6971989948 | R56: 0.3531394138 | S56: 0.7732866231 | T56: 0.8988069022 | U56: 0.2168629894 | V56: 69.67942144 | W56: 321.3061926 | Y56: 25.63366704 | Z56: 0.483 | AA56: 0.6971989948 | AB56: 0.3018917179 | AC56: 0.6610670403 | AD56: 0.7683717795 | AE56: 0.1346212634 | AF56: 69.67942144 | AG56: 517.5959555 | AI56: 46.64340534 | AJ56: 0.483 | AK56: 0.7134020808 | AL56: 0.4072311158 | AM56: 0.8917338651 | AN56: 1.046615822 | AO56: 0.332007283 | AP56: 69.67942144 | AQ56: 209.8731715 | AS56: 35.07524593 | AT56: 0.483 | AU56: 0.7134020808 | AV56: 0.3531394138 | AW56: 0.7732866231 | AX56: 0.9075959164 | AY56: 0.2216392892 | AZ56: 69.67942144 | BA56: 314.3820831 | BC56: 25.63366704 | BD56: 0.483 | BE56: 0.7134020808 | BF56: 0.3018917179 | BG56: 0.6610670403 | BH56: 0.7758853294 | BI56: 0.1375862299 | BJ56: 69.67942144 | BK56: 506.4418255 | BM56: 46.64340534 | BN56: 0.483 | BO56: 0.8073326506 | BP56: 0.4072311158 | BQ56: 0.8917338651 | BR56: 1.103538316 | BS56: 0.3637331308 | BT56: 69.67942144 | BU56: 191.567431 | BW56: 35.07524593 | BX56: 0.483 | BY56: 0.8073326506 | BZ56: 0.3531394138 | CA56: 0.7732866231 | CB56: 0.9569575084 | CC56: 0.2428186269 | CD56: 69.67942144 | CE56: 286.9607754 | CG56: 25.63366704 | CH56: 0.483 | CI56: 0.8073326506 | CJ56: 0.3018917179 | CK56: 0.6610670403 | CL56: 0.8180835526 | CM56: 0.1507336517 | CN56: 69.67942144 | CO56: 462.2685157 | CQ56: 46.64340534 | CR56: 0.483 | CS56: 0.954703482 | CT56: 0.4072311158 | CU56: 0.8917338651 | CV56: 1.187359236 | CW56: 0.4666342625 | CX56: 69.67942144 | CY56: 149.3234146 | DA56: 35.07524593 | DB56: 0.483 | DC56: 0.954703482 | DD56: 0.3531394138 | DE56: 0.7732866231 | DF56: 1.029644662 | DG56: 0.3115127034 | DH56: 69.67942144 | DI56: 223.6808345 | DK56: 25.63366704 | DL56: 0.483 | DM56: 0.954703482 | DN56: 0.3018917179 | DO56: 0.6610670403 | DP56: 0.8802223249 | DQ56: 0.1933766282 | DR56: 69.67942144 | DS56: 360.3301086 | DV56: 0.8917338651 | DW56: 0.332007283
A57: 53 | B57: 18 | DV57: 0 | DW57: 0
A58: 54 | B58: 52 | D58: ='21'!E52 -> ΑΚΤΙΝΙΔΙΑ | E58: 19.31906207 | F58: 12.1875 | G58: 17.01991793 | H58: 0.7623659917 | I58: 2.675564073 | J58: 3.125162169 | K58: 0.1213513341 | L58: 30.0068372 | M58: 247.2724131 | O58: 19.31906207 | P58: 12.1875 | Q58: 17.01991793 | R58: 0.7623659917 | S58: 2.675564073 | T58: 3.125162169 | U58: 0.1213513341 | V58: 30.0068372 | W58: 247.2724131 | Y58: 19.31906207 | Z58: 12.1875 | AA58: 17.01991793 | AB58: 0.7623659917 | AC58: 2.675564073 | AD58: 3.125162169 | AE58: 0.1213513341 | AF58: 30.0068372 | AG58: 247.2724131 | AI58: 19.31906207 | AJ58: 12.1875 | AK58: 18.26079409 | AL58: 0.7623659917 | AM58: 2.675564073 | AN58: 3.230529974 | AO58: 0.1330597375 | AP58: 30.0068372 | AQ58: 225.5140267 | AS58: 19.31906207 | AT58: 12.1875 | AU58: 18.26079409 | AV58: 0.7623659917 | AW58: 2.675564073 | AX58: 3.230529974 | AY58: 0.1330597375 | AZ58: 30.0068372 | BA58: 225.5140267 | BC58: 19.31906207 | BD58: 12.1875 | BE58: 18.26079409 | BF58: 0.7623659917 | BG58: 2.675564073 | BH58: 3.230529974 | BI58: 0.1330597375 | BJ58: 30.0068372 | BK58: 225.5140267 | BM58: 19.31906207 | BN58: 12.1875 | BO58: 20.14639864 | BP58: 0.7623659917 | BQ58: 2.675564073 | BR58: 3.384370117 | BS58: 0.1381295473 | BT58: 30.0068372 | BU58: 217.2369185 | BW58: 19.31906207 | BX58: 12.1875 | BY58: 20.14639864 | BZ58: 0.7623659917 | CA58: 2.675564073 | CB58: 3.384370117 | CC58: 0.1381295473 | CD58: 30.0068372 | CE58: 217.2369185 | CG58: 19.31906207 | CH58: 12.1875 | CI58: 20.14639864 | CJ58: 0.7623659917 | CK58: 2.675564073 | CL58: 3.384370117 | CM58: 0.1381295473 | CN58: 30.0068372 | CO58: 217.2369185 | CQ58: 19.31906207 | CR58: 12.1875 | CS58: 23.84238387 | CT58: 0.7623659917 | CU58: 2.675564073 | CV58: 3.667238478 | CW58: 0.1757903036 | CX58: 30.0068372 | CY58: 170.696771 | DA58: 19.31906207 | DB58: 12.1875 | DC58: 23.84238387 | DD58: 0.7623659917 | DE58: 2.675564073 | DF58: 3.667238478 | DG58: 0.1757903036 | DH58: 30.0068372 | DI58: 170.696771 | DK58: 19.31906207 | DL58: 12.1875 | DM58: 23.84238387 | DN58: 0.7623659917 | DO58: 2.675564073 | DP58: 3.667238478 | DQ58: 0.1757903036 | DR58: 30.0068372 | DS58: 170.696771 | DV58: 2.675564073 | DW58: 0.1330597375
A59: 55 | D59: ='21'!E53 -> ΑΜΥΓΔΑΛΑ | E59: 20.57380615 | F59: 2.7 | G59: 4.581061125 | H59: 0.4937902651 | I59: 1.34000938 | J59: 1.696097001 | K59: 0.07912527296 | L59: 61.30386697 | M59: 774.7697376 | O59: 20.57380615 | P59: 2.7 | Q59: 4.581061125 | R59: 0.4937902651 | S59: 1.34000938 | T59: 1.696097001 | U59: 0.07912527296 | V59: 61.30386697 | W59: 774.7697376 | Y59: 20.57380615 | Z59: 2.7 | AA59: 4.581061125 | AB59: 0.4937902651 | AC59: 1.34000938 | AD59: 1.696097001 | AE59: 0.07912527296 | AF59: 61.30386697 | AG59: 774.7697376 | AI59: 20.57380615 | AJ59: 2.7 | AK59: 4.88414399 | AL59: 0.4937902651 | AM59: 1.34000938 | AN59: 1.746693646 | AO59: 0.08675955754 | AP59: 61.30386697 | AQ59: 706.5949702 | AS59: 20.57380615 | AT59: 2.7 | AU59: 4.88414399 | AV59: 0.4937902651 | AW59: 1.34000938 | AX59: 1.746693646 | AY59: 0.08675955754 | AZ59: 61.30386697 | BA59: 706.5949702 | BC59: 20.57380615 | BD59: 2.7 | BE59: 4.88414399 | BF59: 0.4937902651 | BG59: 1.34000938 | BH59: 1.746693646 | BI59: 0.08675955754 | BJ59: 61.30386697 | BK59: 706.5949702 | BM59: 20.57380615 | BN59: 2.7 | BO59: 5.328596634 | BP59: 0.4937902651 | BQ59: 1.34000938 | BR59: 1.818346262 | BS59: 0.09551120345 | BT59: 61.30386697 | BU59: 641.8500109 | BW59: 20.57380615 | BX59: 2.7 | BY59: 5.328596634 | BZ59: 0.4937902651 | CA59: 1.34000938 | CB59: 1.818346262 | CC59: 0.09551120345 | CD59: 61.30386697 | CE59: 641.8500109 | CG59: 20.57380615 | CH59: 2.7 | CI59: 5.328596634 | CJ59: 0.4937902651 | CK59: 1.34000938 | CL59: 1.818346262 | CM59: 0.09551120345 | CN59: 61.30386697 | CO59: 641.8500109 | CQ59: 20.57380615 | CR59: 2.7 | CS59: 6.271268032 | CT59: 0.4937902651 | CU59: 1.34000938 | CV59: 1.961676196 | CW59: 0.1146213667 | CX59: 61.30386697 | CY59: 534.838039 | DA59: 20.57380615 | DB59: 2.7 | DC59: 6.271268032 | DD59: 0.4937902651 | DE59: 1.34000938 | DF59: 1.961676196 | DG59: 0.1146213667 | DH59: 61.30386697 | DI59: 534.838039 | DK59: 20.57380615 | DL59: 2.7 | DM59: 6.271268032 | DN59: 0.4937902651 | DO59: 1.34000938 | DP59: 1.961676196 | DQ59: 0.1146213667 | DR59: 61.30386697 | DS59: 534.838039 | DV59: 1.34000938 | DW59: 0.08675955754
A60: 56 | D60: ='21'!E54 -> ΑΧΛΑΔΙΕΣ | E60: 46.94138914 | F60: 11.61 | G60: 17.6839636 | H60: 0.7458700537 | I60: 3.972514589 | J60: 4.872971107 | K60: 0.2362045624 | L60: 42.19588925 | M60: 178.6412964 | O60: 45.18065535 | P60: 11.61 | Q60: 17.6839636 | R60: 0.7317478668 | S60: 3.897299619 | T60: 4.780707034 | U60: 0.2257074103 | V60: 42.19588925 | W60: 186.9495078 | Y60: 43.27319373 | Z60: 11.61 | AA60: 17.6839636 | AB60: 0.7161346319 | AC60: 3.814143307 | AD60: 4.678701541 | AE60: 0.2257074103 | AF60: 42.19588925 | AG60: 186.9495078 | AI60: 46.94138914 | AJ60: 11.61 | AK60: 18.85040737 | AL60: 0.7458700537 | AM60: 3.972514589 | AN60: 5.027468647 | AO60: 0.2573136767 | AP60: 42.19588925 | AQ60: 163.9861891 | AS60: 45.18065535 | AT60: 11.61 | AU60: 18.85040737 | AV60: 0.7317478668 | AW60: 3.897299619 | AX60: 4.932279342 | AY60: 0.2474844549 | AZ60: 42.19588925 | BA60: 170.4991502 | BC60: 43.27319373 | BD60: 11.61 | BE60: 18.85040737 | BF60: 0.7161346319 | BG60: 3.814143307 | BH60: 4.827039766 | BI60: 0.2474844549 | BJ60: 42.19588925 | BK60: 170.4991502 | BM60: 46.94138914 | BN60: 11.61 | BO60: 20.80654443 | BP60: 0.7458700537 | BQ60: 3.972514589 | BR60: 5.276417694 | BS60: 0.2811766146 | BT60: 42.19588925 | BU60: 150.0689853 | BW60: 45.18065535 | BX60: 11.61 | BY60: 20.80654443 | BZ60: 0.7317478668 | CA60: 3.897299619 | CB60: 5.176514827 | CC60: 0.2615545476 | CD60: 42.19588925 | CE60: 161.3273011 | CG60: 43.27319373 | CH60: 11.61 | CI60: 20.80654443 | CJ60: 0.7161346319 | CK60: 3.814143307 | CL60: 5.066064021 | CM60: 0.2569140474 | CN60: 42.19588925 | CO60: 164.2412693 | CQ60: 46.94138914 | CR60: 11.61 | CS60: 24.40537219 | CT60: 0.7458700537 | CU60: 3.972514589 | CV60: 5.706122781 | CW60: 0.3269611701 | CX60: 42.19588925 | CY60: 129.0547414 | DA60: 45.18065535 | DB60: 11.61 | DC60: 24.40537219 | DD60: 0.7317478668 | DE60: 3.897299619 | DF60: 5.598083945 | DG60: 0.3269611701 | DH60: 42.19588925 | DI60: 129.0547414 | DK60: 43.27319373 | DL60: 11.61 | DM60: 24.40537219 | DN60: 0.7161346319 | DO60: 3.814143307 | DP60: 5.478638158 | DQ60: 0.3269611701 | DR60: 42.19588925 | DS60: 129.0547414 | DV60: 3.972514589 | DW60: 0.2573136767
A61: 57 | D61: ='21'!E55 -> ΒΕΡΥΚΟΚΙΕΣ | E61: 27.01977113 | F61: 3.1875 | G61: 5.034036627 | H61: 0.5658822023 | I61: 1.651115188 | J61: 2.029770118 | K61: 0.1320946509 | L61: 42.19588925 | M61: 319.4367747 | O61: 27.01977113 | P61: 3.1875 | Q61: 5.034036627 | R61: 0.5658822023 | S61: 1.651115188 | T61: 2.029770118 | U61: 0.1320946509 | V61: 42.19588925 | W61: 319.4367747 | Y61: 27.01977113 | Z61: 3.1875 | AA61: 5.034036627 | AB61: 0.5658822023 | AC61: 1.651115188 | AD61: 2.029770118 | AE61: 0.1320946509 | AF61: 42.19588925 | AG61: 319.4367747 | AI61: 27.01977113 | AJ61: 3.1875 | AK61: 5.333135623 | AL61: 0.5658822023 | AM61: 1.651115188 | AN61: 2.084641412 | AO61: 0.1424696774 | AP61: 42.19588925 | AQ61: 296.1745265 | AS61: 27.01977113 | AT61: 3.1875 | AU61: 5.333135623 | AV61: 0.5658822023 | AW61: 1.651115188 | AX61: 2.084641412 | AY61: 0.1424696774 | AZ61: 42.19588925 | BA61: 296.1745265 | BC61: 27.01977113 | BD61: 3.1875 | BE61: 5.333135623 | BF61: 0.5658822023 | BG61: 1.651115188 | BH61: 2.084641412 | BI61: 0.1424696774 | BJ61: 42.19588925 | BK61: 296.1745265 | BM61: 27.01977113 | BN61: 3.1875 | BO61: 5.840662151 | BP61: 0.5658822023 | BQ61: 1.651115188 | BR61: 2.174584145 | BS61: 0.1515887056 | BT61: 42.19588925 | BU61: 278.3577383 | BW61: 27.01977113 | BX61: 3.1875 | BY61: 5.840662151 | BZ61: 0.5658822023 | CA61: 1.651115188 | CB61: 2.174584145 | CC61: 0.1515887056 | CD61: 42.19588925 | CE61: 278.3577383 | CG61: 27.01977113 | CH61: 3.1875 | CI61: 5.840662151 | CJ61: 0.5658822023 | CK61: 1.651115188 | CL61: 2.174584145 | CM61: 0.1515887056 | CN61: 42.19588925 | CO61: 278.3577383 | CQ61: 27.01977113 | CR61: 3.1875 | CS61: 6.987882289 | CT61: 0.5658822023 | CU61: 1.651115188 | CV61: 2.365322408 | CW61: 0.1889969369 | CX61: 42.19588925 | CY61: 223.2622916 | DA61: 27.01977113 | DB61: 3.1875 | DC61: 6.987882289 | DD61: 0.5658822023 | DE61: 1.651115188 | DF61: 2.365322408 | DG61: 0.1889969369 | DH61: 42.19588925 | DI61: 223.2622916 | DK61: 27.01977113 | DL61: 3.1875 | DM61: 6.987882289 | DN61: 0.5658822023 | DO61: 1.651115188 | DP61: 2.365322408 | DQ61: 0.1889969369 | DR61: 42.19588925 | DS61: 223.2622916 | DV61: 1.651115188 | DW61: 0.1424696774
A62: 58 | D62: ='21'!E56 -> ΒΥΣΣΙΝΙΕΣ | E62: 32.5021882 | F62: 9.9 | G62: 12.8060431 | H62: 0.6206424867 | I62: 3.061706465 | J62: 3.465924219 | K62: 0.1084610409 | L62: 42.19588925 | M62: 389.0418982 | O62: 32.5021882 | P62: 9.9 | Q62: 12.8060431 | R62: 0.6206424867 | S62: 3.061706465 | T62: 3.465924219 | U62: 0.1084610409 | V62: 42.19588925 | W62: 389.0418982 | Y62: 32.5021882 | Z62: 9.9 | AA62: 12.8060431 | AB62: 0.6206424867 | AC62: 3.061706465 | AD62: 3.465924219 | AE62: 0.1084610409 | AF62: 42.19588925 | AG62: 389.0418982 | AI62: 32.5021882 | AJ62: 9.9 | AK62: 13.5311103 | AL62: 0.6206424867 | AM62: 3.061706465 | AN62: 3.559630042 | AO62: 0.1160233193 | AP62: 42.19588925 | AQ62: 363.6845548 | AS62: 32.5021882 | AT62: 9.9 | AU62: 13.5311103 | AV62: 0.6206424867 | AW62: 3.061706465 | AX62: 3.559630042 | AY62: 0.1160233193 | AZ62: 42.19588925 | BA62: 363.6845548 | BC62: 32.5021882 | BD62: 9.9 | BE62: 13.5311103 | BF62: 0.6206424867 | BG62: 3.061706465 | BH62: 3.559630042 | BI62: 0.1160233193 | BJ62: 42.19588925 | BK62: 363.6845548 | BM62: 32.5021882 | BN62: 9.9 | BO62: 15.11634489 | BP62: 0.6206424867 | BQ62: 3.061706465 | BR62: 3.756368312 | BS62: 0.1255997693 | BT62: 42.19588925 | BU62: 335.9551494 | BW62: 32.5021882 | BX62: 9.9 | BY62: 15.11634489 | BZ62: 0.6206424867 | CA62: 3.061706465 | CB62: 3.756368312 | CC62: 0.1255997693 | CD62: 42.19588925 | CE62: 335.9551494 | CG62: 32.5021882 | CH62: 9.9 | CI62: 15.11634489 | CJ62: 0.6206424867 | CK62: 3.061706465 | CL62: 3.756368312 | CM62: 0.1255997693 | CN62: 42.19588925 | CO62: 335.9551494 | CQ62: 32.5021882 | CR62: 9.9 | CS62: 17.68538733 | CT62: 0.6206424867 | CU62: 3.061706465 | CV62: 4.054984889 | CW62: 0.1483875152 | CX62: 42.19588925 | CY62: 284.3627996 | DA62: 32.5021882 | DB62: 9.9 | DC62: 17.68538733 | DD62: 0.6206424867 | DE62: 3.061706465 | DF62: 4.054984889 | DG62: 0.1483875152 | DH62: 42.19588925 | DI62: 284.3627996 | DK62: 32.5021882 | DL62: 9.9 | DM62: 17.68538733 | DN62: 0.6206424867 | DO62: 3.061706465 | DP62: 4.054984889 | DQ62: 0.1483875152 | DR62: 42.19588925 | DS62: 284.3627996 | DV62: 3.061706465 | DW62: 0.1160233193
A63: 59 | D63: ='21'!E57 -> ΓΚΟΤΖΙ ΜΠΕΡΙ | E63: 6.206085789 | F63: 0.165 | G63: 0.2900661417 | H63: 0.4320951415 | I63: 0.4640175322 | J63: 0.4868213161 | K63: 0.05598122448 | L63: 42.19588925 | M63: 753.7507377 | O63: 6.206085789 | P63: 0.165 | Q63: 0.2900661417 | R63: 0.4320951415 | S63: 0.4640175322 | T63: 0.4868213161 | U63: 0.05598122448 | V63: 42.19588925 | W63: 753.7507377 | Y63: 6.206085789 | Z63: 0.165 | AA63: 0.2900661417 | AB63: 0.4320951415 | AC63: 0.4640175322 | AD63: 0.4868213161 | AE63: 0.05598122448 | AF63: 42.19588925 | AG63: 753.7507377 | AI63: 6.206085789 | AJ63: 0.165 | AK63: 0.3148836281 | AL63: 0.4320951415 | AM63: 0.4640175322 | AN63: 0.4912205236 | AO63: 0.06098415099 | AP63: 42.19588925 | AQ63: 691.9156628 | AS63: 6.206085789 | AT63: 0.165 | AU63: 0.3148836281 | AV63: 0.4320951415 | AW63: 0.4640175322 | AX63: 0.4912205236 | AY63: 0.06098415099 | AZ63: 42.19588925 | BA63: 691.9156628 | BC63: 6.206085789 | BD63: 0.165 | BE63: 0.3148836281 | BF63: 0.4320951415 | BG63: 0.4640175322 | BH63: 0.4912205236 | BI63: 0.06098415099 | BJ63: 42.19588925 | BK63: 691.9156628 | BM63: 6.206085789 | BN63: 0.165 | BO63: 0.341670039 | BP63: 0.4320951415 | BQ63: 0.4640175322 | BR63: 0.4959249583 | BS63: 0.06663974235 | BT63: 42.19588925 | BU63: 633.1940635 | BW63: 6.206085789 | BX63: 0.165 | BY63: 0.341670039 | BZ63: 0.4320951415 | CA63: 0.4640175322 | CB63: 0.4959249583 | CC63: 0.06663974235 | CD63: 42.19588925 | CE63: 633.1940635 | CG63: 6.206085789 | CH63: 0.165 | CI63: 0.341670039 | CJ63: 0.4320951415 | CK63: 0.4640175322 | CL63: 0.4959249583 | CM63: 0.06663974235 | CN63: 42.19588925 | CO63: 633.1940635 | CQ63: 6.206085789 | CR63: 0.165 | CS63: 0.408334781 | CT63: 0.4320951415 | CU63: 0.4640175322 | CV63: 0.5074438236 | CW63: 0.07308308839 | CX63: 42.19588925 | CY63: 577.3687207 | DA63: 6.206085789 | DB63: 0.165 | DC63: 0.408334781 | DD63: 0.4320951415 | DE63: 0.4640175322 | DF63: 0.5074438236 | DG63: 0.07308308839 | DH63: 42.19588925 | DI63: 577.3687207 | DK63: 6.206085789 | DL63: 0.165 | DM63: 0.408334781 | DN63: 0.4320951415 | DO63: 0.4640175322 | DP63: 0.5074438236 | DQ63: 0.07308308839 | DR63: 42.19588925 | DS63: 577.3687207 | DV63: 0.4640175322 | DW63: 0.06098415099
A64: 60 | D64: ='21'!E58 -> ΔΑΜΑΣΚΗΝΙΕΣ | E64: 23.82457615 | F64: 4.5375 | G64: 6.810440081 | H64: 0.5313709324 | I64: 1.817221445 | J64: 2.19432264 | K64: 0.1314304604 | L64: 42.19588925 | M64: 321.0510647 | O64: 23.82457615 | P64: 4.5375 | Q64: 6.810440081 | R64: 0.5313709324 | S64: 1.817221445 | T64: 2.19432264 | U64: 0.1314304604 | V64: 42.19588925 | W64: 321.0510647 | Y64: 23.82457615 | Z64: 4.5375 | AA64: 6.810440081 | AB64: 0.5313709324 | AC64: 1.817221445 | AD64: 2.19432264 | AE64: 0.1314304604 | AF64: 42.19588925 | AG64: 321.0510647 | AI64: 23.82457615 | AJ64: 4.5375 | AK64: 7.301969667 | AL64: 0.5313709324 | AM64: 1.817221445 | AN64: 2.267639736 | AO64: 0.1431761294 | AP64: 42.19588925 | AQ64: 294.713158 | AS64: 23.82457615 | AT64: 4.5375 | AU64: 7.301969667 | AV64: 0.5313709324 | AW64: 1.817221445 | AX64: 2.267639736 | AY64: 0.1431761294 | AZ64: 42.19588925 | BA64: 294.713158 | BC64: 23.82457615 | BD64: 4.5375 | BE64: 7.301969667 | BF64: 0.5313709324 | BG64: 1.817221445 | BH64: 2.267639736 | BI64: 0.1431761294 | BJ64: 42.19588925 | BK64: 294.713158 | BM64: 23.82457615 | BN64: 4.5375 | BO64: 8.029530718 | BP64: 0.5313709324 | BQ64: 1.817221445 | BR64: 2.372007404 | BS64: 0.1564540987 | BT64: 42.19588925 | BU64: 269.7013987 | BW64: 23.82457615 | BX64: 4.5375 | BY64: 8.029530718 | BZ64: 0.5313709324 | CA64: 1.817221445 | CB64: 2.372007404 | CC64: 0.1564540987 | CD64: 42.19588925 | CE64: 269.7013987 | CG64: 23.82457615 | CH64: 4.5375 | CI64: 8.029530718 | CJ64: 0.5313709324 | CK64: 1.817221445 | CL64: 2.372007404 | CM64: 0.1564540987 | CN64: 42.19588925 | CO64: 269.7013987 | CQ64: 23.82457615 | CR64: 4.5375 | CS64: 9.383161643 | CT64: 0.5313709324 | CU64: 1.817221445 | CV64: 2.55486396 | CW64: 0.1758337198 | CX64: 42.19588925 | CY64: 239.9760939 | DA64: 23.82457615 | DB64: 4.5375 | DC64: 9.383161643 | DD64: 0.5313709324 | DE64: 1.817221445 | DF64: 2.55486396 | DG64: 0.1758337198 | DH64: 42.19588925 | DI64: 239.9760939 | DK64: 23.82457615 | DL64: 4.5375 | DM64: 9.383161643 | DN64: 0.5313709324 | DO64: 1.817221445 | DP64: 2.55486396 | DQ64: 0.1758337198 | DR64: 42.19588925 | DS64: 239.9760939 | DV64: 1.817221445 | DW64: 0.1431761294
A65: 61 | D65: ='21'!E59 -> ΕΛΑΙΩΝΕΣ ΓΙΑ ΕΛΑΙΟΠΟΙΗΣΗ | E65: 21.76437184 | F65: 0.232 | G65: 0.3715512612 | H65: 0.5078766784 | I65: 0.6316599973 | J65: 0.6955870164 | K65: 0.1338142002 | L65: 61.30386697 | M65: 458.1267673 | O65: 20.13715312 | P65: 0.232 | Q65: 0.3715512612 | R65: 0.4885221257 | S65: 0.6075882152 | T65: 0.6690790547 | U65: 0.1338142002 | V65: 61.30386697 | W65: 458.1267673 | Y65: 17.96752815 | Z65: 0.232 | AA65: 0.3715512612 | AB65: 0.4614550138 | AC65: 0.5739241141 | AD65: 0.6320079852 | AE65: 0.1338142002 | AF65: 61.30386697 | AG65: 458.1267673 | AI65: 21.76437184 | AJ65: 0.232 | AK65: 0.3843785279 | AL65: 0.5078766784 | AM65: 0.6316599973 | AN65: 0.701170632 | AO65: 0.1405608754 | AP65: 61.30386697 | AQ65: 436.1374871 | AS65: 20.13715312 | AT65: 0.232 | AU65: 0.3843785279 | AV65: 0.4885221257 | AW65: 0.6075882152 | AX65: 0.6744498856 | AY65: 0.1375203012 | AZ65: 61.30386697 | BA65: 445.780488 | BC65: 17.96752815 | BD65: 0.232 | BE65: 0.3843785279 | BF65: 0.4614550138 | BG65: 0.5739241141 | BH65: 0.6370812392 | BI65: 0.1375203012 | BJ65: 61.30386697 | BK65: 445.780488 | BM65: 21.76437184 | BN65: 0.232 | BO65: 0.4323938548 | BP65: 0.5078766784 | BQ65: 0.6316599973 | BR65: 0.7216879504 | BS65: 0.1535963093 | BT65: 61.30386697 | BU65: 399.1233073 | BW65: 20.13715312 | BX65: 0.232 | BY65: 0.4323938548 | BZ65: 0.4885221257 | CA65: 0.6075882152 | CB65: 0.6941853143 | CC65: 0.1511449977 | CD65: 61.30386697 | CE65: 405.5964002 | CG65: 17.96752815 | CH65: 0.232 | CI65: 0.4323938548 | CJ65: 0.4614550138 | CK65: 0.5739241141 | CL65: 0.6557232045 | CM65: 0.1511449977 | CN65: 61.30386697 | CO65: 405.5964002 | CQ65: 21.76437184 | CR65: 0.232 | CS65: 0.4942276393 | CT65: 0.5078766784 | CU65: 0.6316599973 | CV65: 0.7472806304 | CW65: 0.1889312471 | CX65: 61.30386697 | CY65: 324.4771201 | DA65: 20.13715312 | DB65: 0.232 | DC65: 0.4942276393 | DD65: 0.4885221257 | DE65: 0.6075882152 | DF65: 0.7188026889 | DG65: 0.1889312471 | DH65: 61.30386697 | DI65: 324.4771201 | DK65: 17.96752815 | DL65: 0.232 | DM65: 0.4942276393 | DN65: 0.4614550138 | DO65: 0.5739241141 | DP65: 0.6789766261 | DQ65: 0.1889312471 | DR65: 61.30386697 | DS65: 324.4771201 | DV65: 0.6316599973 | DW65: 0.1405608754
A66: 62 | D66: ='21'!E60 -> ΕΛΑΙΩΝΕΣ ΓΙΑ ΕΠΙΤΡΑΠΕΖΙΕΣ ΕΛΙΕΣ | E66: 16.53701246 | F66: 0.6125 | G66: 0.9622534974 | H66: 0.4427042883 | I66: 0.692057399 | J66: 0.8003242552 | K66: 0.08944856644 | L66: 42.19588925 | M66: 471.7335439 | O66: 16.53701246 | P66: 0.6125 | Q66: 0.9622534974 | R66: 0.4427042883 | S66: 0.692057399 | T66: 0.8003242552 | U66: 0.08944856644 | V66: 42.19588925 | W66: 471.7335439 | Y66: 16.53701246 | Z66: 0.6125 | AA66: 0.9622534974 | AB66: 0.4427042883 | AC66: 0.692057399 | AD66: 0.8003242552 | AE66: 0.08944856644 | AF66: 42.19588925 | AG66: 471.7335439 | AI66: 16.53701246 | AJ66: 0.6125 | AK66: 1.030907917 | AL66: 0.4427042883 | AM66: 0.692057399 | AN66: 0.8198994851 | AO66: 0.09424852108 | AP66: 42.19588925 | AQ66: 447.7087679 | AS66: 16.53701246 | AT66: 0.6125 | AU66: 1.030907917 | AV66: 0.4427042883 | AW66: 0.692057399 | AX66: 0.8198994851 | AY66: 0.09424852108 | AZ66: 42.19588925 | BA66: 447.7087679 | BC66: 16.53701246 | BD66: 0.6125 | BE66: 1.030907917 | BF66: 0.4427042883 | BG66: 0.692057399 | BH66: 0.8198994851 | BI66: 0.09424852108 | BJ66: 42.19588925 | BK66: 447.7087679 | BM66: 16.53701246 | BN66: 0.6125 | BO66: 1.11820657 | BP66: 0.4427042883 | BQ66: 0.692057399 | BR66: 0.8441353482 | BS66: 0.09916284118 | BT66: 42.19588925 | BU66: 425.5211806 | BW66: 16.53701246 | BX66: 0.6125 | BY66: 1.11820657 | BZ66: 0.4427042883 | CA66: 0.692057399 | CB66: 0.8441353482 | CC66: 0.09916284118 | CD66: 42.19588925 | CE66: 425.5211806 | CG66: 16.53701246 | CH66: 0.6125 | CI66: 1.11820657 | CJ66: 0.4427042883 | CK66: 0.692057399 | CL66: 0.8441353482 | CM66: 0.09916284118 | CN66: 42.19588925 | CO66: 425.5211806 | CQ66: 16.53701246 | CR66: 0.6125 | CS66: 1.337218497 | CT66: 0.4427042883 | CU66: 0.692057399 | CV66: 0.9020761222 | CW66: 0.1172738864 | CX66: 42.19588925 | CY66: 359.806352 | DA66: 16.53701246 | DB66: 0.6125 | DC66: 1.337218497 | DD66: 0.4427042883 | DE66: 0.692057399 | DF66: 0.9020761222 | DG66: 0.1172738864 | DH66: 42.19588925 | DI66: 359.806352 | DK66: 16.53701246 | DL66: 0.6125 | DM66: 1.337218497 | DN66: 0.4427042883 | DO66: 0.692057399 | DP66: 0.9020761222 | DQ66: 0.1172738864 | DR66: 42.19588925 | DS66: 359.806352 | DV66: 0.692057399 | DW66: 0.09424852108
A67: 63 | B67: 79 | D67: ='21'!E61 -> ΚΑΡΥΔΙΑ | E67: 42.66702735 | F67: 4.3125 | G67: 6.725251109 | H67: 0.7111011731 | I67: 2.37609736 | J67: 2.919187469 | K67: 0.1894516355 | L67: 61.30386697 | M67: 323.5858419 | O67: 41.84695955 | P67: 4.3125 | Q67: 6.725251109 | R67: 0.7042342722 | S67: 2.353152067 | T67: 2.890997709 | U67: 0.1718023338 | V67: 61.30386697 | W67: 356.8279057 | Y67: 40.95855277 | Z67: 4.3125 | AA67: 6.725251109 | AB67: 0.6967187581 | AC67: 2.328039475 | AD67: 2.860145286 | AE67: 0.1718023338 | AF67: 61.30386697 | AG67: 356.8279057 | AI67: 42.66702735 | AJ67: 4.3125 | AK67: 7.140921076 | AL67: 0.7111011731 | AM67: 2.37609736 | AN67: 3.002849086 | AO67: 0.1921920658 | AP67: 61.30386697 | AQ67: 318.9718926 | AS67: 41.84695955 | AT67: 4.3125 | AU67: 7.140921076 | AV67: 0.7042342722 | AW67: 2.353152067 | AX67: 2.973851431 | AY67: 0.1686223 | AZ67: 61.30386697 | BA67: 363.5572932 | BC67: 40.95855277 | BD67: 4.3125 | BE67: 7.140921076 | BF67: 0.6967187581 | BG67: 2.328039475 | BH67: 2.942114801 | BI67: 0.1686223 | BJ67: 61.30386697 | BK67: 363.5572932 | BM67: 42.66702735 | BN67: 4.3125 | BO67: 7.860983381 | BP67: 0.7111011731 | BQ67: 2.37609736 | BR67: 3.142508939 | BS67: 0.2174102282 | BT67: 61.30386697 | BU67: 281.9732424 | BW67: 41.84695955 | BX67: 4.3125 | BY67: 7.860983381 | BZ67: 0.7042342722 | CA67: 2.353152067 | CB67: 3.112162628 | CC67: 0.194036122 | CD67: 61.30386697 | CE67: 315.9404875 | CG67: 40.95855277 | CH67: 4.3125 | CI67: 7.860983381 | CJ67: 0.6967187581 | CK67: 2.328039475 | CL67: 3.078949956 | CM67: 0.194036122 | CN67: 61.30386697 | CO67: 315.9404875 | CQ67: 42.66702735 | CR67: 4.3125 | CS67: 9.347787898 | CT67: 0.7111011731 | CU67: 2.37609736 | CV67: 3.412846459 | CW67: 0.2631508704 | CX67: 61.30386697 | CY67: 232.9609128 | DA67: 41.84695955 | DB67: 4.3125 | DC67: 9.347787898 | DD67: 0.7042342722 | DE67: 2.353152067 | DF67: 3.379889575 | DG67: 0.2267422736 | DH67: 61.30386697 | DI67: 270.3680527 | DK67: 40.95855277 | DL67: 4.3125 | DM67: 9.347787898 | DN67: 0.6967187581 | DO67: 2.328039475 | DP67: 3.343819749 | DQ67: 0.2267422736 | DR67: 61.30386697 | DS67: 270.3680527 | DV67: 2.37609736 | DW67: 0.1921920658
A68: 64 | D68: ='21'!E62 -> ΚΕΡΑΣΙΕΣ | E68: 35.14435638 | F68: 10.63125 | G68: 13.90800572 | H68: 0.6453762795 | I68: 3.294541608 | J68: 3.751138596 | K68: 0.1084610409 | L68: 42.19588925 | M68: 389.0418982 | O68: 35.14435638 | P68: 10.63125 | Q68: 13.90800572 | R68: 0.6453762795 | S68: 3.294541608 | T68: 3.751138596 | U68: 0.1084610409 | V68: 42.19588925 | W68: 389.0418982 | Y68: 35.14435638 | Z68: 10.63125 | AA68: 13.90800572 | AB68: 0.6453762795 | AC68: 3.294541608 | AD68: 3.751138596 | AE68: 0.1084610409 | AF68: 42.19588925 | AG68: 389.0418982 | AI68: 35.14435638 | AJ68: 10.63125 | AK68: 14.71006739 | AL68: 0.6453762795 | AM68: 3.294541608 | AN68: 3.85467051 | AO68: 0.1160233193 | AP68: 42.19588925 | AQ68: 363.6845548 | AS68: 35.14435638 | AT68: 10.63125 | AU68: 14.71006739 | AV68: 0.6453762795 | AW68: 3.294541608 | AX68: 3.85467051 | AY68: 0.1160233193 | AZ68: 42.19588925 | BA68: 363.6845548 | BC68: 35.14435638 | BD68: 10.63125 | BE68: 14.71006739 | BF68: 0.6453762795 | BG68: 3.294541608 | BH68: 3.85467051 | BI68: 0.1160233193 | BJ68: 42.19588925 | BK68: 363.6845548 | BM68: 35.14435638 | BN68: 10.63125 | BO68: 16.38262864 | BP68: 0.6453762795 | BQ68: 3.294541608 | BR68: 4.06208854 | BS68: 0.1255997693 | BT68: 42.19588925 | BU68: 335.9551494 | BW68: 35.14435638 | BX68: 10.63125 | BY68: 16.38262864 | BZ68: 0.6453762795 | CA68: 3.294541608 | CB68: 4.06208854 | CC68: 0.1255997693 | CD68: 42.19588925 | CE68: 335.9551494 | CG68: 35.14435638 | CH68: 10.63125 | CI68: 16.38262864 | CJ68: 0.6453762795 | CK68: 3.294541608 | CL68: 4.06208854 | CM68: 0.1255997693 | CN68: 42.19588925 | CO68: 335.9551494 | CQ68: 35.14435638 | CR68: 10.63125 | CS68: 19.23602617 | CT68: 0.6453762795 | CU68: 3.294541608 | CV68: 4.39339928 | CW68: 0.1483875152 | CX68: 42.19588925 | CY68: 284.3627996 | DA68: 35.14435638 | DB68: 10.63125 | DC68: 19.23602617 | DD68: 0.6453762795 | DE68: 3.294541608 | DF68: 4.39339928 | DG68: 0.1483875152 | DH68: 42.19588925 | DI68: 284.3627996 | DK68: 35.14435638 | DL68: 10.63125 | DM68: 19.23602617 | DN68: 0.6453762795 | DO68: 3.294541608 | DP68: 4.39339928 | DQ68: 0.1483875152 | DR68: 42.19588925 | DS68: 284.3627996 | DV68: 3.294541608 | DW68: 0.1160233193
A69: 65 | B69: 38 | D69: ='21'!E63 -> ΚΥΔΩΝΙΕΣ | E69: 37.23300056 | F69: 3.51 | G69: 5.911188226 | H69: 0.6642770074 | I69: 2.02289216 | J69: 2.567025857 | K69: 0.1919789781 | L69: 42.19588925 | M69: 219.7943216 | O69: 35.48030665 | P69: 3.51 | Q69: 5.911188226 | R69: 0.6484535681 | S69: 1.974705769 | T69: 2.505877906 | U69: 0.1919789781 | V69: 42.19588925 | W69: 219.7943216 | Y69: 33.5815549 | Z69: 3.51 | AA69: 5.911188226 | AB69: 0.6308637927 | AC69: 1.921140437 | AD69: 2.437904142 | AE69: 0.1919789781 | AF69: 42.19588925 | AG69: 219.7943216 | AI69: 37.23300056 | AJ69: 3.51 | AK69: 6.399911162 | AL69: 0.6642770074 | AM69: 2.02289216 | AN69: 2.664198435 | AO69: 0.210501785 | AP69: 42.19588925 | AQ69: 200.4538311 | AS69: 35.48030665 | AT69: 3.51 | AU69: 6.399911162 | AV69: 0.6484535681 | AW69: 1.974705769 | AX69: 2.600735781 | AY69: 0.210501785 | AZ69: 42.19588925 | BA69: 200.4538311 | BC69: 33.5815549 | BD69: 3.51 | BE69: 6.399911162 | BF69: 0.6308637927 | BG69: 1.921140437 | BH69: 2.530188928 | BI69: 0.210501785 | BJ69: 42.19588925 | BK69: 200.4538311 | BM69: 37.23300056 | BN69: 3.51 | BO69: 6.946953323 | BP69: 0.6642770074 | BQ69: 2.02289216 | BR69: 2.768924696 | BS69: 0.2252486995 | BT69: 42.19588925 | BU69: 187.3302236 | BW69: 35.48030665 | BX69: 3.51 | BY69: 6.946953323 | BZ69: 0.6484535681 | CA69: 1.974705769 | CB69: 2.702967405 | CC69: 0.2185222728 | CD69: 42.19588925 | CE69: 193.0965146 | CG69: 33.5815549 | CH69: 3.51 | CI69: 6.946953323 | CJ69: 0.6308637927 | CK69: 1.921140437 | CL69: 2.629647445 | CM69: 0.2185222728 | CN69: 42.19588925 | CO69: 193.0965146 | CQ69: 37.23300056 | CR69: 3.51 | CS69: 8.148274911 | CT69: 0.6642770074 | CU69: 2.02289216 | CV69: 2.986045071 | CW69: 0.2781019517 | CX69: 42.19588925 | CY69: 151.7281306 | DA69: 35.48030665 | DB69: 3.51 | DC69: 8.148274911 | DD69: 0.6484535681 | DE69: 1.974705769 | DF69: 2.914915855 | DG69: 0.2781019517 | DH69: 42.19588925 | DI69: 151.7281306 | DK69: 33.5815549 | DL69: 3.51 | DM69: 8.148274911 | DN69: 0.6308637927 | DO69: 1.921140437 | DP69: 2.835846638 | DQ69: 0.2781019517 | DR69: 42.19588925 | DS69: 151.7281306 | DV69: 2.02289216 | DW69: 0.210501785
A70: 66 | B70: 81 | D70: ='21'!E64 -> ΛΕΜΟΝΙΑ | E70: 22.65514078 | F70: 14.824 | G70: 20.11736183 | H70: 0.5181656083 | I70: 3.10650052 | J70: 3.605609719 | K70: 0.08290906805 | L70: 31.71599484 | M70: 382.5395168 | O70: 22.65514078 | P70: 14.824 | Q70: 20.11736183 | R70: 0.5181656083 | S70: 3.10650052 | T70: 3.605609719 | U70: 0.08290906805 | V70: 31.71599484 | W70: 382.5395168 | Y70: 22.65514078 | Z70: 14.824 | AA70: 20.11736183 | AB70: 0.5181656083 | AC70: 3.10650052 | AD70: 3.605609719 | AE70: 0.08290906805 | AF70: 31.71599484 | AG70: 382.5395168 | AI70: 22.65514078 | AJ70: 14.824 | AK70: 20.77365522 | AL70: 0.5181656083 | AM70: 3.10650052 | AN70: 3.662755525 | AO70: 0.08410835315 | AP70: 31.71599484 | AQ70: 377.0849582 | AS70: 22.65514078 | AT70: 14.824 | AU70: 20.77365522 | AV70: 0.5181656083 | AW70: 3.10650052 | AX70: 3.662755525 | AY70: 0.08410835315 | AZ70: 31.71599484 | BA70: 377.0849582 | BC70: 22.65514078 | BD70: 14.824 | BE70: 20.77365522 | BF70: 0.5181656083 | BG70: 3.10650052 | BH70: 3.662755525 | BI70: 0.08410835315 | BJ70: 31.71599484 | BK70: 377.0849582 | BM70: 22.65514078 | BN70: 14.824 | BO70: 23.61933308 | BP70: 0.5181656083 | BQ70: 3.10650052 | BR70: 3.900866275 | BS70: 0.09514449088 | BT70: 31.71599484 | BU70: 333.3455731 | BW70: 22.65514078 | BX70: 14.824 | BY70: 23.61933308 | BZ70: 0.5181656083 | CA70: 3.10650052 | CB70: 3.900866275 | CC70: 0.09514449088 | CD70: 31.71599484 | CE70: 333.3455731 | CG70: 22.65514078 | CH70: 14.824 | CI70: 23.61933308 | CJ70: 0.5181656083 | CK70: 3.10650052 | CL70: 3.900866275 | CM70: 0.09514449088 | CN70: 31.71599484 | CO70: 333.3455731 | CQ70: 22.65514078 | CR70: 14.824 | CS70: 27.42904431 | CT70: 0.5181656083 | CU70: 3.10650052 | CV70: 4.198554178 | CW70: 0.1151618109 | CX70: 31.71599484 | CY70: 275.4037522 | DA70: 22.65514078 | DB70: 14.824 | DC70: 27.42904431 | DD70: 0.5181656083 | DE70: 3.10650052 | DF70: 4.198554178 | DG70: 0.1151618109 | DH70: 31.71599484 | DI70: 275.4037522 | DK70: 22.65514078 | DL70: 14.824 | DM70: 27.42904431 | DN70: 0.5181656083 | DO70: 3.10650052 | DP70: 4.198554178 | DQ70: 0.1151618109 | DR70: 31.71599484 | DS70: 275.4037522 | DV70: 3.10650052 | DW70: 0.08410835315
A71: 67 | B71: 39 | D71: ='21'!E65 -> ΜΑΝΤΑΡΙΝΙΑ | E71: 21.41809471 | F71: 6.6 | G71: 8.680551621 | H71: 0.5038202503 | I71: 2.050068239 | J71: 2.334014956 | K71: 0.1318133971 | L71: 31.71599484 | M71: 240.6128325 | O71: 21.41809471 | P71: 6.6 | Q71: 8.680551621 | R71: 0.5038202503 | S71: 2.050068239 | T71: 2.334014956 | U71: 0.1318133971 | V71: 31.71599484 | W71: 240.6128325 | Y71: 21.41809471 | Z71: 6.6 | AA71: 8.680551621 | AB71: 0.5038202503 | AC71: 2.050068239 | AD71: 2.334014956 | AE71: 0.1318133971 | AF71: 31.71599484 | AG71: 240.6128325 | AI71: 21.41809471 | AJ71: 6.6 | AK71: 9.069935357 | AL71: 0.5038202503 | AM71: 2.050068239 | AN71: 2.383401736 | AO71: 0.1316449455 | AP71: 31.71599484 | AQ71: 240.9207184 | AS71: 21.41809471 | AT71: 6.6 | AU71: 9.069935357 | AV71: 0.5038202503 | AW71: 2.050068239 | AX71: 2.383401736 | AY71: 0.1316449455 | AZ71: 31.71599484 | BA71: 240.9207184 | BC71: 21.41809471 | BD71: 6.6 | BE71: 9.069935357 | BF71: 0.5038202503 | BG71: 2.050068239 | BH71: 2.383401736 | BI71: 0.1316449455 | BJ71: 31.71599484 | BK71: 240.9207184 | BM71: 21.41809471 | BN71: 6.6 | BO71: 10.20419009 | BP71: 0.5038202503 | BQ71: 2.050068239 | BR71: 2.521756686 | BS71: 0.1539361835 | BT71: 31.71599484 | BU71: 206.0333971 | BW71: 21.41809471 | BX71: 6.6 | BY71: 10.20419009 | BZ71: 0.5038202503 | CA71: 2.050068239 | CB71: 2.521756686 | CC71: 0.1539361835 | CD71: 31.71599484 | CE71: 206.0333971 | CG71: 21.41809471 | CH71: 6.6 | CI71: 10.20419009 | CJ71: 0.5038202503 | CK71: 2.050068239 | CL71: 2.521756686 | CM71: 0.1539361835 | CN71: 31.71599484 | CO71: 206.0333971 | CQ71: 21.41809471 | CR71: 6.6 | CS71: 11.87508292 | CT71: 0.5038202503 | CU71: 2.050068239 | CV71: 2.712746527 | CW71: 0.1783760516 | CX71: 31.71599484 | CY71: 177.8041085 | DA71: 21.41809471 | DB71: 6.6 | DC71: 11.87508292 | DD71: 0.5038202503 | DE71: 2.050068239 | DF71: 2.712746527 | DG71: 0.1783760516 | DH71: 31.71599484 | DI71: 177.8041085 | DK71: 21.41809471 | DL71: 6.6 | DM71: 11.87508292 | DN71: 0.5038202503 | DO71: 2.050068239 | DP71: 2.712746527 | DQ71: 0.1783760516 | DR71: 31.71599484 | DS71: 177.8041085 | DV71: 2.050068239 | DW71: 0.1316449455
A72: 68 | B72: 53 | D72: ='21'!E66 -> ΜΗΛΑ | E72: 4.450951876 | F72: 1.62 | G72: 3.234358893 | H72: 0.2296739033 | I72: 0.5041628048 | J72: 0.674469238 | K72: 0.1086119468 | L72: 42.19588925 | M72: 388.5013619 | O72: 4.450951876 | P72: 1.62 | Q72: 3.234358893 | R72: 0.2296739033 | S72: 0.5041628048 | T72: 0.674469238 | U72: 0.1086119468 | V72: 42.19588925 | W72: 388.5013619 | Y72: 4.450951876 | Z72: 1.62 | AA72: 3.234358893 | AB72: 0.2296739033 | AC72: 0.5041628048 | AD72: 0.674469238 | AE72: 0.1086119468 | AF72: 42.19588925 | AG72: 388.5013619 | AI72: 4.450951876 | AJ72: 1.62 | AK72: 3.328325907 | AL72: 0.2296739033 | AM72: 0.5041628048 | AN72: 0.6830758135 | AO72: 0.1192349147 | AP72: 42.19588925 | AQ72: 353.8887024 | AS72: 4.450951876 | AT72: 1.62 | AU72: 3.328325907 | AV72: 0.2296739033 | AW72: 0.5041628048 | AX72: 0.6830758135 | AY72: 0.1192349147 | AZ72: 42.19588925 | BA72: 353.8887024 | BC72: 4.450951876 | BD72: 1.62 | BE72: 3.328325907 | BF72: 0.2296739033 | BG72: 0.5041628048 | BH72: 0.6830758135 | BI72: 0.1192349147 | BJ72: 42.19588925 | BK72: 353.8887024 | BM72: 4.450951876 | BN72: 1.62 | BO72: 3.699472109 | BP72: 0.2296739033 | BQ72: 0.5041628048 | BR72: 0.7160591524 | BS72: 0.1240087521 | BT72: 42.19588925 | BU72: 340.265413 | BW72: 4.450951876 | BX72: 1.62 | BY72: 3.699472109 | BZ72: 0.2296739033 | CA72: 0.5041628048 | CB72: 0.7160591524 | CC72: 0.1240087521 | CD72: 42.19588925 | CE72: 340.265413 | CG72: 4.450951876 | CH72: 1.62 | CI72: 3.699472109 | CJ72: 0.2296739033 | CK72: 0.5041628048 | CL72: 0.7160591524 | CM72: 0.1240087521 | CN72: 42.19588925 | CO72: 340.265413 | CQ72: 4.450951876 | CR72: 1.62 | CS72: 4.529812443 | CT72: 0.2296739033 | CU72: 0.5041628048 | CV72: 0.7848470126 | CW72: 0.1477375482 | CX72: 42.19588925 | CY72: 285.6138453 | DA72: 4.450951876 | DB72: 1.62 | DC72: 4.529812443 | DD72: 0.2296739033 | DE72: 0.5041628048 | DF72: 0.7848470126 | DG72: 0.1477375482 | DH72: 42.19588925 | DI72: 285.6138453 | DK72: 4.450951876 | DL72: 1.62 | DM72: 4.529812443 | DN72: 0.2296739033 | DO72: 0.5041628048 | DP72: 0.7848470126 | DQ72: 0.1477375482 | DR72: 42.19588925 | DS72: 285.6138453 | DV72: 0.5041628048 | DW72: 0.1192349147
A73: 69 | B73: 28 | D73: ='21'!E67 -> ΜΟΥΡΙΕΣ | E73: 32.20493825 | F73: 2.625 | G73: 3.888577831 | H73: 0.6804856249 | I73: 1.680675514 | J73: 1.990342075 | K73: 0.3504175133 | L73: 60.87028189 | M73: 173.7078758 | O73: 23.35480038 | P73: 2.625 | Q73: 3.888577831 | R73: 0.5794898049 | S73: 1.431234239 | T73: 1.694940934 | U73: 0.2179772433 | V73: 60.87028189 | W73: 279.2506272 | Y73: 16.57317064 | Z73: 2.625 | AA73: 3.888577831 | AB73: 0.4881581235 | AC73: 1.205661626 | AD73: 1.427806286 | AE73: 0.1471056868 | AF73: 60.87028189 | AG73: 413.7860556 | AI73: 32.20493825 | AJ73: 2.625 | AK73: 4.162195102 | AL73: 0.6804856249 | AM73: 1.680675514 | AN73: 2.051249448 | AO73: 0.343931341 | AP73: 60.87028189 | AQ73: 176.9838181 | AS73: 23.35480038 | AT73: 2.625 | AU73: 4.162195102 | AV73: 0.5794898049 | AW73: 1.431234239 | AX73: 1.746808601 | AY73: 0.2139425192 | AZ73: 60.87028189 | BA73: 284.5169914 | BC73: 16.57317064 | BD73: 2.625 | BE73: 4.162195102 | BF73: 0.4881581235 | BG73: 1.205661626 | BH73: 1.471499242 | BI73: 0.1586722775 | BJ73: 60.87028189 | BK73: 383.6226647 | BM73: 32.20493825 | BN73: 2.625 | BO73: 4.601719336 | BP73: 0.6804856249 | BQ73: 1.680675514 | BR73: 2.145471278 | BS73: 0.3957667736 | BT73: 60.87028189 | BU73: 153.8034165 | BW73: 23.35480038 | BX73: 2.625 | BY73: 4.601719336 | BZ73: 0.5794898049 | CA73: 1.431234239 | CB73: 1.827046284 | CC73: 0.2461867544 | CD73: 60.87028189 | CE73: 247.2524651 | CG73: 16.57317064 | CH73: 2.625 | CI73: 4.601719336 | CJ73: 0.4881581235 | CK73: 1.205661626 | CL73: 1.5390909 | CM73: 0.1746042244 | CN73: 60.87028189 | CO73: 348.6186093 | CQ73: 32.20493825 | CR73: 2.625 | CS73: 5.363373691 | CT73: 0.6804856249 | CU73: 1.680675514 | CV73: 2.299625522 | CW73: 0.4624760439 | CX73: 60.87028189 | CY73: 131.6182378 | DA73: 23.35480038 | DB73: 2.625 | DC73: 5.363373691 | DD73: 0.5794898049 | DE73: 1.431234239 | DF73: 1.958321376 | DG73: 0.2876832615 | DH73: 60.87028189 | DI73: 211.5878469 | DK73: 16.57317064 | DL73: 2.625 | DM73: 5.363373691 | DN73: 0.4881581235 | DO73: 1.205661626 | DP73: 1.649676111 | DQ73: 0.1988893316 | DR73: 60.87028189 | DS73: 306.0510155 | DV73: 1.680675514 | DW73: 0.343931341
A74: 70 | B74: 65 | D74: ='21'!E68 -> ΜΟΥΣΜΟΥΛΑ | E74: 22.65217986 | F74: 2.3625 | G74: 3.032417469 | H74: 0.5181317463 | I74: 1.327949529 | J74: 1.478977204 | K74: 0.5156506187 | L74: 17.66453792 | M74: 34.25679574 | O74: 22.65217986 | P74: 2.3625 | Q74: 3.032417469 | R74: 0.5181317463 | S74: 1.327949529 | T74: 1.478977204 | U74: 0.5156506187 | V74: 17.66453792 | W74: 34.25679574 | Y74: 22.65217986 | Z74: 2.3625 | AA74: 3.032417469 | AB74: 0.5181317463 | AC74: 1.327949529 | AD74: 1.478977204 | AE74: 0.5156506187 | AF74: 17.66453792 | AG74: 34.25679574 | AI74: 22.65217986 | AJ74: 2.3625 | AK74: 3.174231873 | AL74: 0.5181317463 | AM74: 1.327949529 | AN74: 1.509010832 | AO74: 0.5237640026 | AP74: 17.66453792 | AQ74: 33.7261397 | AS74: 22.65217986 | AT74: 2.3625 | AU74: 3.174231873 | AV74: 0.5181317463 | AW74: 1.327949529 | AX74: 1.509010832 | AY74: 0.5237640026 | AZ74: 17.66453792 | BA74: 33.7261397 | BC74: 22.65217986 | BD74: 2.3625 | BE74: 3.174231873 | BF74: 0.5181317463 | BG74: 1.327949529 | BH74: 1.509010832 | BI74: 0.5237640026 | BJ74: 17.66453792 | BK74: 33.7261397 | BM74: 22.65217986 | BN74: 2.3625 | BO74: 3.495216528 | BP74: 0.5181317463 | BQ74: 1.327949529 | BR74: 1.574875457 | BS74: 0.6156020743 | BT74: 17.66453792 | BU74: 28.69473424 | BW74: 22.65217986 | BX74: 2.3625 | BY74: 3.495216528 | BZ74: 0.5181317463 | CA74: 1.327949529 | CB74: 1.574875457 | CC74: 0.6156020743 | CD74: 17.66453792 | CE74: 28.69473424 | CG74: 22.65217986 | CH74: 2.3625 | CI74: 3.495216528 | CJ74: 0.5181317463 | CK74: 1.327949529 | CL74: 1.574875457 | CM74: 0.6156020743 | CN74: 17.66453792 | CO74: 28.69473424 | CQ74: 22.65217986 | CR74: 2.3625 | CS74: 4.251866474 | CT74: 0.5181317463 | CU74: 1.327949529 | CV74: 1.720186215 | CW74: 0.7373084729 | CX74: 17.66453792 | CY74: 23.9581377 | DA74: 22.65217986 | DB74: 2.3625 | DC74: 4.251866474 | DD74: 0.5181317463 | DE74: 1.327949529 | DF74: 1.720186215 | DG74: 0.7373084729 | DH74: 17.66453792 | DI74: 23.9581377 | DK74: 22.65217986 | DL74: 2.3625 | DM74: 4.251866474 | DN74: 0.5181317463 | DO74: 1.327949529 | DP74: 1.720186215 | DQ74: 0.7373084729 | DR74: 17.66453792 | DS74: 23.9581377 | DV74: =AM74 -> 1.327949529 | DW74: =AO74 -> 0.5237640026
A75: 71 | B75: 82 | D75: ='21'!E69 -> ΜΠΑΝΑΝΕΣ | E75: 95.83305327 | F75: 2.323 | G75: 4.741425736 | H75: 0.5837185459 | I75: 2.561197267 | J75: 3.61029139 | K75: 0.7424304397 | L75: 69.55131518 | M75: 93.68058131 | O75: 76.72331786 | P75: 2.323 | Q75: 4.741425736 | R75: 0.5222873619 | S75: 2.29165404 | T75: 3.23034034 | U75: 0.6210031552 | V75: 69.55131518 | W75: 111.9983282 | Y75: 60.40617287 | Z75: 2.323 | AA75: 4.741425736 | AB75: 0.463432503 | AC75: 2.033415023 | AD75: 2.866323826 | AE75: 0.5121373138 | AF75: 69.55131518 | AG75: 135.8059905 | AI75: 95.83305327 | AJ75: 2.323 | AK75: 5.144602552 | AL75: 0.5837185459 | AM75: 2.561197267 | AN75: 3.756802639 | AO75: 0.8015783352 | AP75: 69.55131518 | AQ75: 86.76795781 | AS75: 76.72331786 | AT75: 2.323 | AU75: 5.144602552 | AV75: 0.5222873619 | AW75: 2.29165404 | AX75: 3.361432583 | AY75: 0.6704771904 | AZ75: 69.55131518 | BA75: 103.7340512 | BC75: 60.40617287 | BD75: 2.323 | BE75: 5.144602552 | BF75: 0.463432503 | BG75: 2.033415023 | BH75: 2.982643712 | BI75: 0.552938233 | BJ75: 69.55131518 | BK75: 125.784963 | BM75: 95.83305327 | BN75: 2.323 | BO75: 5.531326404 | BP75: 0.5837185459 | BQ75: 2.561197267 | BR75: 3.892156378 | BS75: 0.8883998143 | BT75: 69.55131518 | BU75: 78.28830449 | BW75: 76.72331786 | BX75: 2.323 | BY75: 5.531326404 | BZ75: 0.5222873619 | CA75: 2.29165404 | CB75: 3.482541546 | CC75: 0.7430986908 | CD75: 69.55131518 | CE75: 93.59633658 | CG75: 60.40617287 | CH75: 2.323 | CI75: 5.531326404 | CJ75: 0.463432503 | CK75: 2.033415023 | CL75: 3.0901053 | CM75: 0.6128287179 | CN75: 69.55131518 | CO75: 113.4922583 | CQ75: 95.83305327 | CR75: 2.323 | CS75: 6.513027885 | CT75: 0.5837185459 | CU75: 2.561197267 | CV75: 4.216282356 | CW75: 1.074089939 | CX75: 69.55131518 | CY75: 64.75371626 | DA75: 76.72331786 | DB75: 2.323 | DC75: 6.513027885 | DD75: 0.5222873619 | DE75: 2.29165404 | DF75: 3.772556148 | DG75: 0.8984184991 | DH75: 69.55131518 | DI75: 77.415275 | DK75: 60.40617287 | DL75: 2.323 | DM75: 6.513027885 | DN75: 0.463432503 | DO75: 2.033415023 | DP75: 3.347439103 | DQ75: 0.7409199663 | DR75: 69.55131518 | DS75: 93.87156283 | DV75: 2.561197267 | DW75: 0.8015783352
A76: 72 | B76: 83 | D76: ='21'!E70 -> ΠΟΡΤΟΚΑΛΙΑ | E76: 49.83299888 | F76: 0.63 | G76: 0.7957690106 | H76: 0.4209246321 | I76: 1.026745537 | J76: 1.133567368 | K76: 0.4347558552 | L76: 69.55131518 | M76: 159.9778688 | O76: 40.79644459 | P76: 0.63 | Q76: 0.7957690106 | R76: 0.3808526549 | S76: 0.9289994785 | T76: 1.025651883 | U76: 0.4347558552 | V76: 69.55131518 | W76: 159.9778688 | Y76: 33.77645127 | Z76: 0.63 | AA76: 0.7957690106 | AB76: 0.3465395751 | AC76: 0.8453008806 | AD76: 0.9332453462 | AE76: 0.4347558552 | AF76: 69.55131518 | AG76: 159.9778688 | AI76: 49.83299888 | AJ76: 0.63 | AK76: 0.840235758 | AL76: 0.4209246321 | AM76: 1.026745537 | AN76: 1.160550537 | AO76: 0.4736090888 | AP76: 69.55131518 | AQ76: 146.8538439 | AS76: 40.79644459 | AT76: 0.63 | AU76: 0.840235758 | AV76: 0.3808526549 | AW76: 0.9289994785 | AX76: 1.050066258 | AY76: 0.4736090888 | AZ76: 69.55131518 | BA76: 146.8538439 | BC76: 33.77645127 | BD76: 0.63 | BE76: 0.840235758 | BF76: 0.3465395751 | BG76: 0.8453008806 | BH76: 0.9554600977 | BI76: 0.4736090888 | BJ76: 69.55131518 | BK76: 146.8538439 | BM76: 49.83299888 | BN76: 0.63 | BO76: 0.9284216504 | BP76: 0.4209246321 | BQ76: 1.026745537 | BR76: 1.212287899 | BS76: 0.5175309837 | BT76: 69.55131518 | BU76: 134.3906304 | BW76: 40.79644459 | BX76: 0.63 | BY76: 0.9284216504 | BZ76: 0.3808526549 | CA76: 0.9289994785 | CB76: 1.096878228 | CC76: 0.5175309837 | CD76: 69.55131518 | CE76: 134.3906304 | CG76: 33.77645127 | CH76: 0.63 | CI76: 0.9284216504 | CJ76: 0.3465395751 | CK76: 0.8453008806 | CL76: 0.9980545241 | CM76: 0.5175309837 | CN76: 69.55131518 | CO76: 134.3906304 | CQ76: 49.83299888 | CR76: 0.63 | CS76: 1.080338509 | CT76: 0.4209246321 | CU76: 1.026745537 | CV76: 1.296582747 | CW76: 0.5675706612 | CX76: 69.55131518 | CY76: 122.5421255 | DA76: 40.79644459 | DB76: 0.63 | DC76: 1.080338509 | DD76: 0.3808526549 | DE76: 0.9289994785 | DF76: 1.173148217 | DG76: 0.5675706612 | DH76: 69.55131518 | DI76: 122.5421255 | DK76: 33.77645127 | DL76: 0.63 | DM76: 1.080338509 | DN76: 0.3465395751 | DO76: 0.8453008806 | DP76: 1.067452936 | DQ76: 0.5675706612 | DR76: 69.55131518 | DS76: 122.5421255 | DV76: 1.026745537 | DW76: 0.4736090888
A77: 73 | B77: 40 | D77: ='21'!E71 -> ΡΟΔΑΚΙΝΙΕΣ | E77: 29.48933362 | F77: 0.065192 | G77: 0.1155546406 | H77: 0.3238010918 | I77: 0.398186203 | J77: 0.447259372 | K77: 0.3508552892 | L77: 60.87028189 | M77: 173.4911337 | O77: 21.19349154 | P77: 0.065192 | Q77: 0.1155546406 | R77: 0.2745029934 | S77: 0.3375631134 | T77: 0.3791649861 | U77: 0.3121828919 | V77: 60.87028189 | W77: 194.98276 | Y77: 14.73439465 | Z77: 0.065192 | AA77: 0.1155546406 | AB77: 0.2288821784 | AC77: 0.28146207 | AD77: 0.3161499513 | AE77: 0.2636994447 | AF77: 60.87028189 | AG77: 230.8320442 | AI77: 29.48933362 | AJ77: 0.065192 | AK77: 0.1202867132 | AL77: 0.3238010918 | AM77: 0.398186203 | AN77: 0.4515963049 | AO77: 0.3481000517 | AP77: 60.87028189 | AQ77: 174.8643288 | AS77: 21.19349154 | AT77: 0.065192 | AU77: 0.1202867132 | AV77: 0.2745029934 | AW77: 0.3375631134 | AX77: 0.3828416292 | AY77: 0.3117839361 | AZ77: 60.87028189 | BA77: 195.2322581 | BC77: 14.73439465 | BD77: 0.065192 | BE77: 0.1202867132 | BF77: 0.2288821784 | BG77: 0.28146207 | BH77: 0.3192155575 | BI77: 0.2633624486 | BJ77: 60.87028189 | BK77: 231.1274147 | BM77: 29.48933362 | BN77: 0.065192 | BO77: 0.1359396467 | BP77: 0.3238010918 | BQ77: 0.398186203 | BR77: 0.4656544789 | BS77: 0.4070433032 | BT77: 60.87028189 | BU77: 149.5425215 | BW77: 21.19349154 | BX77: 0.065192 | BY77: 0.1359396467 | BZ77: 0.2745029934 | CA77: 0.3375631134 | CB77: 0.3947594731 | CC77: 0.364577835 | CD77: 60.87028189 | CE77: 166.9610054 | CG77: 14.73439465 | CH77: 0.065192 | CI77: 0.1359396467 | CJ77: 0.2288821784 | CK77: 0.28146207 | CL77: 0.3291527245 | CM77: 0.3079572109 | CN77: 60.87028189 | CO77: 197.6582452 | CQ77: 29.48933362 | CR77: 0.065192 | CS77: 0.1541063335 | CT77: 0.3238010918 | CU77: 0.398186203 | CV77: 0.4814559091 | CW77: 0.4716680354 | CX77: 60.87028189 | CY77: 129.0532267 | DA77: 21.19349154 | DB77: 0.065192 | DC77: 0.1541063335 | DD77: 0.2745029934 | DE77: 0.3375631134 | DF77: 0.4081551657 | DG77: 0.4224604848 | DH77: 60.87028189 | DI77: 144.085149 | DK77: 14.73439465 | DL77: 0.065192 | DM77: 0.1541063335 | DN77: 0.2288821784 | DO77: 0.28146207 | DP77: 0.3403221302 | DQ77: 0.3568504174 | DR77: 60.87028189 | DS77: 170.5764626 | DV77: 0.398186203 | DW77: 0.3481000517
A78: 74 | B78: 30 | D78: ='21'!E72 -> ΡΟΔΙΕΣ | E78: 26.86196668 | F78: 0.09566025 | G78: 0.1830730271 | H78: 0.3090400265 | I78: 0.409010272 | J78: 0.4825807137 | K78: 0.5184056655 | L78: 62.70325092 | M78: 120.9540232 | O78: 18.92557281 | P78: 0.09566025 | Q78: 0.1830730271 | R78: 0.2594002234 | S78: 0.3433126678 | T78: 0.4050657981 | U78: 0.35764173 | V78: 62.70325092 | W78: 175.324202 | Y78: 12.94574021 | Z78: 0.09566025 | AA78: 0.1830730271 | AB78: 0.2145404925 | AC78: 0.2839414239 | AD78: 0.3350151925 | AE78: 0.2298905446 | AF78: 62.70325092 | AG78: 272.7526311 | AI78: 26.86196668 | AJ78: 0.09566025 | AK78: 0.1904094073 | AL78: 0.3090400265 | AM78: 0.409010272 | AN78: 0.4882513505 | AO78: 0.5177431663 | AP78: 62.70325092 | AQ78: 121.1087949 | AS78: 18.92557281 | AT78: 0.09566025 | AU78: 0.1904094073 | AV78: 0.2594002234 | AW78: 0.3433126678 | AX78: 0.4098255843 | AY78: 0.3571846799 | AZ78: 62.70325092 | BA78: 175.5485452 | BC78: 12.94574021 | BD78: 0.09566025 | BE78: 0.1904094073 | BF78: 0.2145404925 | BG78: 0.2839414239 | BH78: 0.3389518386 | BI78: 0.2295967548 | BJ78: 62.70325092 | BK78: 273.1016428 | BM78: 26.86196668 | BN78: 0.09566025 | BO78: 0.2131866983 | BP78: 0.3090400265 | BQ78: 0.409010272 | BR78: 0.5054517892 | BS78: 0.6054118279 | BT78: 62.70325092 | BU78: 103.5712354 | BW78: 18.92557281 | BX78: 0.09566025 | BY78: 0.2131866983 | BZ78: 0.2594002234 | CA78: 0.3433126678 | CB78: 0.4242631886 | CC78: 0.4176662176 | CD78: 62.70325092 | CE78: 150.1276576 | CG78: 12.94574021 | CH78: 0.09566025 | CI78: 0.2131866983 | CJ78: 0.2145404925 | CK78: 0.2839414239 | CL78: 0.3508926562 | CM78: 0.2684740235 | CN78: 62.70325092 | CO78: 233.5542564 | CQ78: 26.86196668 | CR78: 0.09566025 | CS78: 0.2465811918 | CT78: 0.3090400265 | CU78: 0.409010272 | CV78: 0.5296610364 | CW78: 0.7015307837 | CX78: 62.70325092 | CY78: 89.38061219 | DA78: 18.92557281 | DB78: 0.09566025 | DC78: 0.2465811918 | DD78: 0.2594002234 | DE78: 0.3433126678 | DF78: 0.444583806 | DG78: 0.48397751 | DH78: 62.70325092 | DI78: 129.5581915 | DK78: 12.94574021 | DL78: 0.09566025 | DM78: 0.2465811918 | DN78: 0.2145404925 | DO78: 0.2839414239 | DP78: 0.3676990999 | DQ78: 0.3110986331 | DR78: 62.70325092 | DS78: 201.5542476 | DV78: 0.409010272 | DW78: 0.5177431663
A79: 75 | B79: 41 | D79: ='21'!E73 -> ΣΥΚΑ | E79: 27.72460364 | F79: 0.115634 | G79: 0.1918019466 | H79: 0.3139630232 | I79: 0.4337411219 | J79: 0.4971151446 | K79: 0.3084822003 | L79: 62.70325092 | M79: 203.2637567 | O79: 19.67826465 | P79: 0.115634 | Q79: 0.1918019466 | R79: 0.2645082534 | S79: 0.3654191676 | T79: 0.4188106526 | U79: 0.1920368533 | V79: 62.70325092 | W79: 326.5167589 | Y79: 13.62086894 | Z79: 0.115634 | AA79: 0.1918019466 | AB79: 0.2200636117 | AC79: 0.3040187244 | AD79: 0.3484389756 | AE79: 0.1229684853 | AF79: 62.70325092 | AG79: 509.9131764 | AI79: 27.72460364 | AJ79: 0.115634 | AK79: 0.2000592974 | AL79: 0.3139630232 | AM79: 0.4337411219 | AN79: 0.5035064931 | AO79: 0.3007769241 | AP79: 62.70325092 | AQ79: 208.4709494 | AS79: 19.67826465 | AT79: 0.115634 | AU79: 0.2000592974 | AV79: 0.2645082534 | AW79: 0.3654191676 | AX79: 0.4241952498 | AY79: 0.1872401519 | AZ79: 62.70325092 | BA79: 334.8814358 | BC79: 13.62086894 | BD79: 0.115634 | BE79: 0.2000592974 | BF79: 0.2200636117 | BG79: 0.3040187244 | BH79: 0.3529188127 | BI79: 0.1247472324 | BJ79: 62.70325092 | BK79: 502.6424209 | BM79: 27.72460364 | BN79: 0.115634 | BO79: 0.2247994555 | BP79: 0.3139630232 | BQ79: 0.4337411219 | BR79: 0.5221877548 | BS79: 0.3524035846 | BT79: 62.70325092 | BU79: 177.9302302 | BW79: 19.67826465 | BX79: 0.115634 | BY79: 0.2247994555 | BZ79: 0.2645082534 | CA79: 0.3654191676 | CB79: 0.43993388 | CC79: 0.2193788666 | CD79: 62.70325092 | CE79: 285.821747 | CG79: 13.62086894 | CH79: 0.115634 | CI79: 0.2247994555 | CJ79: 0.2200636117 | CK79: 0.3040187244 | CL79: 0.3660129214 | CM79: 0.1411157332 | CN79: 62.70325092 | CO79: 444.3391925 | CQ79: 27.72460364 | CR79: 0.115634 | CS79: 0.259842875 | CT79: 0.3139630232 | CU79: 0.4337411219 | CV79: 0.5475593066 | CW79: 0.4061529741 | CX79: 62.70325092 | CY79: 154.3833356 | DA79: 19.67826465 | DB79: 0.115634 | DC79: 0.259842875 | DD79: 0.2645082534 | DE79: 0.3654191676 | DF79: 0.4613089603 | DG79: 0.2528390261 | DH79: 62.70325092 | DI79: 247.9967269 | DK79: 13.62086894 | DL79: 0.115634 | DM79: 0.259842875 | DN79: 0.2200636117 | DO79: 0.3040187244 | DP79: 0.3837964019 | DQ79: 0.1708048803 | DR79: 62.70325092 | DS79: 367.1045629 | DV79: 0.4337411219 | DW79: 0.3007769241
A80: 76 | B80: 26 | D80: ='21'!E74 -> ΦΙΣΤΙΚΙΕΣ ΑΙΓΙΝΗΣ | E80: 45.60578808 | F80: 3.88125 | G80: 6.052725998 | H80: 0.7351825401 | I80: 2.342068275 | J80: 2.872592527 | K80: 0.1894516355 | L80: 61.30386697 | M80: 323.5858419 | O80: 44.78572028 | P80: 3.88125 | Q80: 6.052725998 | R80: 0.7285426543 | S80: 2.320915615 | T80: 2.846648377 | U80: 0.1536613215 | V80: 61.30386697 | W80: 398.9544434 | Y80: 43.8973135 | Z80: 3.88125 | AA80: 6.052725998 | AB80: 0.7212804703 | AC80: 2.297780503 | AD80: 2.818272709 | AE80: 0.122377966 | AF80: 61.30386697 | AG80: 500.9387634 | AI80: 45.60578808 | AJ80: 3.88125 | AK80: 6.426828969 | AL80: 0.7351825401 | AM80: 2.342068275 | AN80: 2.954386996 | AO80: 0.1921920658 | AP80: 61.30386697 | AQ80: 318.9718926 | AS80: 44.78572028 | AT80: 3.88125 | AU80: 6.426828969 | AV80: 0.7285426543 | AW80: 2.320915615 | AX80: 2.92770411 | AY80: 0.1558840425 | AZ80: 61.30386697 | BA80: 393.2658274 | BC80: 43.8973135 | BD80: 3.88125 | BE80: 6.426828969 | BF80: 0.7212804703 | BG80: 2.297780503 | BH80: 2.898520471 | BI80: 0.12507328 | BJ80: 61.30386697 | BK80: 490.1435938 | BM80: 45.60578808 | BN80: 3.88125 | BO80: 7.074885043 | BP80: 0.7351825401 | BQ80: 2.342068275 | BR80: 3.09096085 | BS80: 0.2174102282 | BT80: 61.30386697 | BU80: 281.9732424 | BW80: 44.78572028 | BX80: 3.88125 | BY80: 7.074885043 | BZ80: 0.7285426543 | CA80: 2.320915615 | CB80: 3.063044481 | CC80: 0.176338108 | CD80: 61.30386697 | CE80: 347.6495674 | CG80: 43.8973135 | CH80: 3.88125 | CI80: 7.074885043 | CJ80: 0.7212804703 | CK80: 2.297780503 | CL80: 3.032511756 | CM80: 0.138915907 | CN80: 61.30386697 | CO80: 441.3019956 | CQ80: 45.60578808 | CR80: 3.88125 | CS80: 8.413009108 | CT80: 0.7351825401 | CU80: 2.342068275 | CV80: 3.355418887 | CW80: 0.2631508704 | CX80: 61.30386697 | CY80: 232.9609128 | DA80: 44.78572028 | DB80: 3.88125 | DC80: 8.413009108 | DD80: 0.7285426543 | DE80: 2.320915615 | DF80: 3.325114034 | DG80: 0.2134376427 | DH80: 61.30386697 | DI80: 287.2214394 | DK80: 43.8973135 | DL80: 3.88125 | DM80: 8.413009108 | DN80: 0.7212804703 | DO80: 2.297780503 | DP80: 3.291968974 | DQ80: 0.1757897515 | DR80: 61.30386697 | DS80: 348.7340214 | DV80: 2.342068275 | DW80: 0.1921920658
A81: 77 | B81: 42 | D81: ='21'!E75 -> ΦΟΥΝΤΟΥΚΙΕΣ | E81: 33.53306852 | F81: 0.5355 | G81: 0.9331787435 | H81: 0.630408195 | I81: 0.9481829651 | J81: 1.127644253 | K81: 0.1894516355 | L81: 61.30386697 | M81: 323.5858419 | O81: 32.71300072 | P81: 0.5355 | Q81: 0.9331787435 | R81: 0.6226520089 | S81: 0.9365170578 | T81: 1.113770356 | U81: 0.1536613215 | V81: 61.30386697 | W81: 398.9544434 | Y81: 31.82459394 | Z81: 0.5355 | AA81: 0.9331787435 | AB81: 0.6141389435 | AC81: 0.9237127452 | AD81: 1.098542588 | AE81: 0.1148884813 | AF81: 61.30386697 | AG81: 533.5945457 | AI81: 33.53306852 | AJ81: 0.5355 | AK81: 0.9949022824 | AL81: 0.630408195 | AM81: 0.9481829651 | AN81: 1.152996909 | AO81: 0.1921920658 | AP81: 61.30386697 | AQ81: 318.9718926 | AS81: 32.71300072 | AT81: 0.5355 | AU81: 0.9949022824 | AV81: 0.6226520089 | AW81: 0.9365170578 | AX81: 1.138811087 | AY81: 0.1558840425 | AZ81: 61.30386697 | BA81: 393.2658274 | BC81: 31.82459394 | BD81: 0.5355 | BE81: 0.9949022824 | BF81: 0.6141389435 | BG81: 0.9237127452 | BH81: 1.123240956 | BI81: 0.1165503507 | BJ81: 61.30386697 | BK81: 525.986122 | BM81: 33.53306852 | BN81: 0.5355 | BO81: 1.086996872 | BP81: 0.630408195 | BQ81: 0.9481829651 | BR81: 1.189820428 | BS81: 0.2174102282 | BT81: 61.30386697 | BU81: 281.9732424 | BW81: 32.71300072 | BX81: 0.5355 | BY81: 1.086996872 | BZ81: 0.6226520089 | CA81: 0.9365170578 | CB81: 1.17518155 | CC81: 0.176338108 | CD81: 61.30386697 | CE81: 347.6495674 | CG81: 31.82459394 | CH81: 0.5355 | CI81: 1.086996872 | CJ81: 0.6141389435 | CK81: 0.9237127452 | CL81: 1.159114153 | CM81: 0.1318433112 | CN81: 61.30386697 | CO81: 464.9751771 | CQ81: 33.53306852 | CR81: 0.5355 | CS81: 1.304354608 | CT81: 0.630408195 | CU81: 0.9481829651 | CV81: 1.272511406 | CW81: 0.2631508704 | CX81: 61.30386697 | CY81: 232.9609128 | DA81: 32.71300072 | DB81: 0.5355 | DC81: 1.304354608 | DD81: 0.6226520089 | DE81: 0.9365170578 | DF81: 1.256855145 | DG81: 0.2134376427 | DH81: 61.30386697 | DI81: 287.2214394 | DK81: 31.82459394 | DL81: 0.5355 | DM81: 1.304354608 | DN81: 0.6141389435 | DO81: 0.9237127452 | DP81: 1.239671084 | DQ81: 0.167180814 | DR81: 61.30386697 | DS81: 366.6919996 | DV81: 0.9481829651 | DW81: 0.1921920658
A82: 78 | B82: 43 | D82: ='21'!E76 -> ΧΑΡΟΥΠΙΕΣ | E82: 18.50003442 | F82: 0.0175 | G82: 0.03594002322 | H82: 0.4682431904 | I82: 0.4778031157 | J82: 0.4876738259 | K82: 0.1119164254 | L82: 61.30386697 | M82: 547.7646982 | O82: 18.50003442 | P82: 0.0175 | Q82: 0.03594002322 | R82: 0.4682431904 | S82: 0.4778031157 | T82: 0.4876738259 | U82: 0.1119164254 | V82: 61.30386697 | W82: 547.7646982 | Y82: 18.50003442 | Z82: 0.0175 | AA82: 0.03594002322 | AB82: 0.4682431904 | AC82: 0.4778031157 | AD82: 0.4876738259 | AE82: 0.1119164254 | AF82: 61.30386697 | AG82: 547.7646982 | AI82: 18.50003442 | AJ82: 0.0175 | AK82: 0.03849881481 | AL82: 0.4682431904 | AM82: 0.4778031157 | AN82: 0.4890277735 | AO82: 0.1115759354 | AP82: 61.30386697 | AQ82: 549.4362806 | AS82: 18.50003442 | AT82: 0.0175 | AU82: 0.03849881481 | AV82: 0.4682431904 | AW82: 0.4778031157 | AX82: 0.4890277735 | AY82: 0.1115759354 | AZ82: 61.30386697 | BA82: 549.4362806 | BC82: 18.50003442 | BD82: 0.0175 | BE82: 0.03849881481 | BF82: 0.4682431904 | BG82: 0.4778031157 | BH82: 0.4890277735 | BI82: 0.1115759354 | BJ82: 61.30386697 | BK82: 549.4362806 | BM82: 18.50003442 | BN82: 0.0175 | BO82: 0.04150916859 | BP82: 0.4682431904 | BQ82: 0.4778031157 | BR82: 0.490615875 | BS82: 0.1285251307 | BT82: 61.30386697 | BU82: 476.9796122 | BW82: 18.50003442 | BX82: 0.0175 | BY82: 0.04150916859 | BZ82: 0.4682431904 | CA82: 0.4778031157 | CB82: 0.490615875 | CC82: 0.1285251307 | CD82: 61.30386697 | CE82: 476.9796122 | CG82: 18.50003442 | CH82: 0.0175 | CI82: 0.04150916859 | CJ82: 0.4682431904 | CK82: 0.4778031157 | CL82: 0.490615875 | CM82: 0.1285251307 | CN82: 61.30386697 | CO82: 476.9796122 | CQ82: 18.50003442 | CR82: 0.0175 | CS82: 0.05156822215 | CT82: 0.4682431904 | CU82: 0.4778031157 | CV82: 0.4958856033 | CW82: 0.1643446991 | CX82: 61.30386697 | CY82: 373.0200445 | DA82: 18.50003442 | DB82: 0.0175 | DC82: 0.05156822215 | DD82: 0.4682431904 | DE82: 0.4778031157 | DF82: 0.4958856033 | DG82: 0.1643446991 | DH82: 61.30386697 | DI82: 373.0200445 | DK82: 18.50003442 | DL82: 0.0175 | DM82: 0.05156822215 | DN82: 0.4682431904 | DO82: 0.4778031157 | DP82: 0.4958856033 | DQ82: 0.1643446991 | DR82: 61.30386697 | DS82: 373.0200445 | DV82: 0.4778031157 | DW82: 0.1115759354
A83: 79 | B83: 23 | D83: ='21'!E77 -> ΛΟΙΠΑ ΕΣΠΕΡΙΔΟΕΙΔΗ | E83: 22.98461052 | F83: 0 | G83: 0 | H83: 0.5219198043 | I83: 0.5219198043 | J83: 0.5219198043 | K83: 0.0777272513 | L83: 42.19588925 | M83: 542.8712394 | O83: 22.98461052 | P83: 0 | Q83: 0 | R83: 0.5219198043 | S83: 0.5219198043 | T83: 0.5219198043 | U83: 0.0777272513 | V83: 42.19588925 | W83: 542.8712394 | Y83: 22.98461052 | Z83: 0 | AA83: 0 | AB83: 0.5219198043 | AC83: 0.5219198043 | AD83: 0.5219198043 | AE83: 0.0777272513 | AF83: 42.19588925 | AG83: 542.8712394 | AI83: 22.98461052 | AJ83: 0 | AK83: 0 | AL83: 0.5219198043 | AM83: 0.5219198043 | AN83: 0.5219198043 | AO83: 0.07885158108 | AP83: 42.19588925 | AQ83: 535.130541 | AS83: 22.98461052 | AT83: 0 | AU83: 0 | AV83: 0.5219198043 | AW83: 0.5219198043 | AX83: 0.5219198043 | AY83: 0.07885158108 | AZ83: 42.19588925 | BA83: 535.130541 | BC83: 22.98461052 | BD83: 0 | BE83: 0 | BF83: 0.5219198043 | BG83: 0.5219198043 | BH83: 0.5219198043 | BI83: 0.07885158108 | BJ83: 42.19588925 | BK83: 535.130541 | BM83: 22.98461052 | BN83: 0 | BO83: 0 | BP83: 0.5219198043 | BQ83: 0.5219198043 | BR83: 0.5219198043 | BS83: 0.0891979602 | BT83: 42.19588925 | BU83: 473.0589035 | BW83: 22.98461052 | BX83: 0 | BY83: 0 | BZ83: 0.5219198043 | CA83: 0.5219198043 | CB83: 0.5219198043 | CC83: 0.0891979602 | CD83: 42.19588925 | CE83: 473.0589035 | CG83: 22.98461052 | CH83: 0 | CI83: 0 | CJ83: 0.5219198043 | CK83: 0.5219198043 | CL83: 0.5219198043 | CM83: 0.0891979602 | CN83: 42.19588925 | CO83: 473.0589035 | CQ83: 22.98461052 | CR83: 0 | CS83: 0 | CT83: 0.5219198043 | CU83: 0.5219198043 | CV83: 0.5219198043 | CW83: 0.1079641977 | CX83: 42.19588925 | CY83: 390.8322401 | DA83: 22.98461052 | DB83: 0 | DC83: 0 | DD83: 0.5219198043 | DE83: 0.5219198043 | DF83: 0.5219198043 | DG83: 0.1079641977 | DH83: 42.19588925 | DI83: 390.8322401 | DK83: 22.98461052 | DL83: 0 | DM83: 0 | DN83: 0.5219198043 | DO83: 0.5219198043 | DP83: 0.5219198043 | DQ83: 0.1079641977 | DR83: 42.19588925 | DS83: 390.8322401 | DV83: 0.5219198043 | DW83: 0.07885158108
A84: 80 | B84: 12 | D84: ='21'!E78 -> ΛΟΙΠΑ ΜΗΛΟΕΙΔΗ | E84: 51.47240238 | F84: 0 | G84: 0 | H84: 0.7810384623 | I84: 0.7810384623 | J84: 0.7810384623 | K84: 0.2257074103 | L84: 42.19588925 | M84: 186.9495078 | O84: 50.66037446 | P84: 0 | Q84: 0 | R84: 0.7748531444 | S84: 0.7748531444 | T84: 0.7748531444 | U84: 0.2257074103 | V84: 42.19588925 | W84: 186.9495078 | Y84: 49.78067755 | Z84: 0 | AA84: 0 | AB84: 0.7680961773 | AC84: 0.7680961773 | AD84: 0.7680961773 | AE84: 0.2257074103 | AF84: 42.19588925 | AG84: 186.9495078 | AI84: 51.47240238 | AJ84: 0 | AK84: 0 | AL84: 0.7810384623 | AM84: 0.7810384623 | AN84: 0.7810384623 | AO84: 0.2474844549 | AP84: 42.19588925 | AQ84: 170.4991502 | AS84: 50.66037446 | AT84: 0 | AU84: 0 | AV84: 0.7748531444 | AW84: 0.7748531444 | AX84: 0.7748531444 | AY84: 0.2474844549 | AZ84: 42.19588925 | BA84: 170.4991502 | BC84: 49.78067755 | BD84: 0 | BE84: 0 | BF84: 0.7680961773 | BG84: 0.7680961773 | BH84: 0.7680961773 | BI84: 0.2474844549 | BJ84: 42.19588925 | BK84: 170.4991502 | BM84: 51.47240238 | BN84: 0 | BO84: 0 | BP84: 0.7810384623 | BQ84: 0.7810384623 | BR84: 0.7810384623 | BS84: 0.2569140474 | BT84: 42.19588925 | BU84: 164.2412693 | BW84: 50.66037446 | BX84: 0 | BY84: 0 | BZ84: 0.7748531444 | CA84: 0.7748531444 | CB84: 0.7748531444 | CC84: 0.2569140474 | CD84: 42.19588925 | CE84: 164.2412693 | CG84: 49.78067755 | CH84: 0 | CI84: 0 | CJ84: 0.7680961773 | CK84: 0.7680961773 | CL84: 0.7680961773 | CM84: 0.2569140474 | CN84: 42.19588925 | CO84: 164.2412693 | CQ84: 51.47240238 | CR84: 0 | CS84: 0 | CT84: 0.7810384623 | CU84: 0.7810384623 | CV84: 0.7810384623 | CW84: 0.3269611701 | CX84: 42.19588925 | CY84: 129.0547414 | DA84: 50.66037446 | DB84: 0 | DC84: 0 | DD84: 0.7748531444 | DE84: 0.7748531444 | DF84: 0.7748531444 | DG84: 0.3269611701 | DH84: 42.19588925 | DI84: 129.0547414 | DK84: 49.78067755 | DL84: 0 | DM84: 0 | DN84: 0.7680961773 | DO84: 0.7680961773 | DP84: 0.7680961773 | DQ84: 0.3269611701 | DR84: 42.19588925 | DS84: 129.0547414 | DV84: 0.7810384623 | DW84: 0.2474844549
A85: 81 | B85: 54 | D85: ='21'!E79 -> ΛΟΙΠΑ ΠΥΡΗΝΟΚΑΡΠΑ | E85: 51.87005305 | F85: 0 | G85: 0 | H85: 0.784049619 | I85: 0.784049619 | J85: 0.784049619 | K85: 0.1438652114 | L85: 42.19588925 | M85: 293.3015483 | O85: 51.87005305 | P85: 0 | Q85: 0 | R85: 0.784049619 | S85: 0.784049619 | T85: 0.784049619 | U85: 0.1438652114 | V85: 42.19588925 | W85: 293.3015483 | Y85: 51.87005305 | Z85: 0 | AA85: 0 | AB85: 0.784049619 | AC85: 0.784049619 | AD85: 0.784049619 | AE85: 0.1438652114 | AF85: 42.19588925 | AG85: 293.3015483 | AI85: 51.87005305 | AJ85: 0 | AK85: 0 | AL85: 0.784049619 | AM85: 0.784049619 | AN85: 0.784049619 | AO85: 0.1459462311 | AP85: 42.19588925 | AQ85: 289.119417 | AS85: 51.87005305 | AT85: 0 | AU85: 0 | AV85: 0.784049619 | AW85: 0.784049619 | AX85: 0.784049619 | AY85: 0.1459462311 | AZ85: 42.19588925 | BA85: 289.119417 | BC85: 51.87005305 | BD85: 0 | BE85: 0 | BF85: 0.784049619 | BG85: 0.784049619 | BH85: 0.784049619 | BI85: 0.1459462311 | BJ85: 42.19588925 | BK85: 289.119417 | BM85: 51.87005305 | BN85: 0 | BO85: 0 | BP85: 0.784049619 | BQ85: 0.784049619 | BR85: 0.784049619 | BS85: 0.1650963232 | BT85: 42.19588925 | BU85: 255.5834584 | BW85: 51.87005305 | BX85: 0 | BY85: 0 | BZ85: 0.784049619 | CA85: 0.784049619 | CB85: 0.784049619 | CC85: 0.1650963232 | CD85: 42.19588925 | CE85: 255.5834584 | CG85: 51.87005305 | CH85: 0 | CI85: 0 | CJ85: 0.784049619 | CK85: 0.784049619 | CL85: 0.784049619 | CM85: 0.1650963232 | CN85: 42.19588925 | CO85: 255.5834584 | CQ85: 51.87005305 | CR85: 0 | CS85: 0 | CT85: 0.784049619 | CU85: 0.784049619 | CV85: 0.784049619 | CW85: 0.199830714 | CX85: 42.19588925 | CY85: 211.1581768 | DA85: 51.87005305 | DB85: 0 | DC85: 0 | DD85: 0.784049619 | DE85: 0.784049619 | DF85: 0.784049619 | DG85: 0.199830714 | DH85: 42.19588925 | DI85: 211.1581768 | DK85: 51.87005305 | DL85: 0 | DM85: 0 | DN85: 0.784049619 | DO85: 0.784049619 | DP85: 0.784049619 | DQ85: 0.199830714 | DR85: 42.19588925 | DS85: 211.1581768 | DV85: 0.784049619 | DW85: 0.1459462311
A86: 82 | B86: 29 | D86: ='21'!E80 -> ΛΟΙΠΟΙ ΟΠΩΡΕΣ | E86: 31.67220949 | F86: 3.545749509 | G86: 5.146661256 | H86: 0.5516399559 | I86: 1.548310587 | J86: 1.836909908 | K86: 0.2164376618 | L86: 48.98310477 | M86: 322.6889543 | O86: 29.18335662 | P86: 3.545749509 | Q86: 5.146661256 | R86: 0.5363670944 | S86: 1.511853604 | T86: 1.791863673 | U86: 0.1925277934 | V86: 48.98310477 | W86: 341.0911965 | Y86: 27.10707631 | Z86: 3.545749509 | AA86: 5.146661256 | AB86: 0.5217334279 | AC86: 1.476761544 | AD86: 1.748461596 | AE86: 0.1748457722 | AF86: 48.98310477 | AG86: 366.5069695 | AI86: 31.67220949 | AJ86: 3.545749509 | AK86: 5.450242786 | AL86: 0.5516399559 | AM86: 1.548310587 | AN86: 1.885151156 | AO86: 0.2252159383 | AP86: 48.98310477 | AQ86: 307.583536 | AS86: 29.18335662 | AT86: 3.545749509 | AU86: 5.450242786 | AV86: 0.5363670944 | AW86: 1.511853604 | AX86: 1.838786468 | AY86: 0.200910333 | AZ86: 48.98310477 | BA86: 326.6923454 | BC86: 27.10707631 | BD86: 3.545749509 | BE86: 5.450242786 | BF86: 0.5217334279 | BG86: 1.476761544 | BH86: 1.794112072 | BI86: 0.1837154764 | BJ86: 48.98310477 | BK86: 349.9767699 | BM86: 31.67220949 | BN86: 3.545749509 | BO86: 6.04313962 | BP86: 0.5516399559 | BQ86: 1.548310587 | BR86: 1.969019163 | BS86: 0.2523542584 | BT86: 48.98310477 | BU86: 278.4265197 | BW86: 29.18335662 | BX86: 3.545749509 | BY86: 6.04313962 | BZ86: 0.5363670944 | CA86: 1.511853604 | CB86: 1.920796425 | CC86: 0.2240530051 | CD86: 48.98310477 | CE86: 295.1922732 | CG86: 27.10707631 | CH86: 3.545749509 | CI86: 6.04313962 | CJ86: 0.5217334279 | CK86: 1.476761544 | CL86: 1.874335132 | CM86: 0.2036070782 | CN86: 48.98310477 | CO86: 316.8992502 | CQ86: 31.67220949 | CR86: 3.545749509 | CS86: 7.10783335 | CT86: 0.5516399559 | CU86: 1.548310587 | CV86: 2.116343739 | CW86: 0.2995355148 | CX86: 48.98310477 | CY86: 233.4783178 | DA86: 29.18335662 | DB86: 3.545749509 | DC86: 7.10783335 | DD86: 0.5363670944 | DE86: 1.511853604 | DF86: 2.064706506 | DG86: 0.2671650131 | DH86: 48.98310477 | DI86: 247.3133983 | DK86: 27.10707631 | DL86: 3.545749509 | DM86: 7.10783335 | DN86: 0.5217334279 | DO86: 1.476761544 | DP86: 2.014949904 | DQ86: 0.2439250034 | DR86: 48.98310477 | DS86: 264.081177 | DV86: 1.548310587 | DW86: 0.2252159383
A87: 83 | B87: 62 | DV87: 0 | DW87: 0
A88: 84 | B88: 84 | D88: ='21'!E82 -> ΑΡΑΒΟΣΙΤΟΣ ΓΙΑ ΚΑΡΠΟ | E88: 35.94677941 | F88: 0.7337205 | G88: 0.9986147607 | H88: 0.357499816 | I88: 0.9298395509 | J88: 1.063299584 | K88: 0.5323019451 | L88: 62.70325092 | M88: 117.7963964 | O88: 27.6623486 | P88: 0.7337205 | Q88: 0.9986147607 | R88: 0.3136103263 | S88: 0.815685133 | T88: 0.9327605623 | U88: 0.3313302591 | V88: 62.70325092 | W88: 189.24698 | Y88: 21.42555792 | Z88: 0.7337205 | AA88: 0.9986147607 | AB88: 0.2760017903 | AC88: 0.7178671687 | AD88: 0.8209027686 | AE88: 0.1895505378 | AF88: 62.70325092 | AG88: 330.7996466 | AI88: 35.94677941 | AJ88: 0.7337205 | AK88: 1.069932798 | AL88: 0.357499816 | AM88: 0.9298395509 | AN88: 1.09645927 | AO88: 0.5470445116 | AP88: 62.70325092 | AQ88: 114.6218445 | AS88: 27.6623486 | AT88: 0.7337205 | AU88: 1.069932798 | AV88: 0.3136103263 | AW88: 0.815685133 | AX88: 0.9618493046 | AY88: 0.3405067395 | AZ88: 62.70325092 | BA88: 184.1468718 | BC88: 21.42555792 | BD88: 0.7337205 | BE88: 1.069932798 | BF88: 0.2760017903 | BG88: 0.7178671687 | BH88: 0.8465031532 | BI88: 0.1948003052 | BJ88: 62.70325092 | BK88: 321.8847673 | BM88: 35.94677941 | BN88: 0.7337205 | BO88: 1.191602295 | BP88: 0.357499816 | BQ88: 0.9298395509 | BR88: 1.150826806 | BS88: 0.6012424401 | BT88: 62.70325092 | BU88: 104.2894625 | BW88: 27.6623486 | BX88: 0.7337205 | BY88: 1.191602295 | BZ88: 0.3136103263 | CA88: 0.815685133 | CB88: 1.009542254 | CC88: 0.3742421295 | CD88: 62.70325092 | CE88: 167.5472802 | CG88: 21.42555792 | CH88: 0.7337205 | CI88: 1.191602295 | CJ88: 0.2760017903 | CK88: 0.7178671687 | CL88: 0.8884767054 | CM88: 0.2140999651 | CN88: 62.70325092 | CO88: 292.8690385 | CQ88: 35.94677941 | CR88: 0.7337205 | CS88: 1.401172637 | CT88: 0.357499816 | CU88: 0.9298395509 | CV88: 1.238891025 | CW88: 0.7515530501 | CX88: 62.70325092 | CY88: 83.43157001 | DA88: 27.6623486 | DB88: 0.7337205 | DC88: 1.401172637 | DD88: 0.3136103263 | DE88: 0.815685133 | DF88: 1.086795017 | DG88: 0.4678026618 | DH88: 62.70325092 | DI88: 134.0378241 | DK88: 21.42555792 | DL88: 0.7337205 | DM88: 1.401172637 | DN88: 0.2760017903 | DO88: 0.7178671687 | DP88: 0.9564652224 | DQ88: 0.2676249563 | DR88: 62.70325092 | DS88: 234.2952308 | DV88: 0.9298395509 | DW88: 0.5470445116
A89: 85 | B89: 4 | D89: ='21'!E83 -> ΑΡΑΒΟΣΙΤΟΣ ΕΝΣΙΡΩΣΗΣ | E89: 50.1520209 | F89: 0.2604035 | G89: 0.3735270265 | H89: 0.422269825 | I89: 0.7369821313 | J89: 0.837634249 | K89: 0.5424770147 | L89: 69.67942144 | M89: 128.446772 | O89: 40.77969915 | P89: 0.2604035 | Q89: 0.3735270265 | R89: 0.3807744838 | S89: 0.6645608425 | T89: 0.7553221422 | U89: 0.3376273473 | V89: 69.67942144 | W89: 206.3796728 | Y89: 33.29947837 | Z89: 0.2604035 | AA89: 0.3735270265 | AB89: 0.3440840525 | AC89: 0.6005255014 | AD89: 0.6825412801 | AE89: 0.3096014129 | AF89: 69.67942144 | AG89: 225.0617036 | AI89: 50.1520209 | AJ89: 0.2604035 | AK89: 0.3991202474 | AL89: 0.422269825 | AM89: 0.7369821313 | AN89: 0.858771089 | AO89: 0.5848159074 | AP89: 69.67942144 | AQ89: 119.1476165 | AS89: 40.77969915 | AT89: 0.2604035 | AU89: 0.3991202474 | AV89: 0.3807744838 | AW89: 0.6645608425 | AX89: 0.7743819207 | AY89: 0.3639935131 | AZ89: 69.67942144 | BA89: 191.4303935 | BC89: 33.29947837 | BD89: 0.2604035 | BE89: 0.3991202474 | BF89: 0.3440840525 | BG89: 0.6005255014 | BH89: 0.6997645083 | BI89: 0.297341565 | BJ89: 69.67942144 | BK89: 234.3413422 | BM89: 50.1520209 | BN89: 0.2604035 | BO89: 0.4350185191 | BP89: 0.422269825 | BQ89: 0.7369821313 | BR89: 0.8875708577 | BS89: 0.6082303246 | BT89: 69.67942144 | BU89: 114.5609132 | BW89: 40.77969915 | BX89: 0.2604035 | BY89: 0.4350185191 | BZ89: 0.3807744838 | CA89: 0.6645608425 | CB89: 0.8003516122 | CC89: 0.3785668102 | CD89: 69.67942144 | CE89: 184.0610945 | CG89: 33.29947837 | CH89: 0.2604035 | CI89: 0.4350185191 | CJ89: 0.3440840525 | CK89: 0.6005255014 | CL89: 0.7232318284 | CM89: 0.3608527152 | CN89: 69.67942144 | CO89: 193.0965696 | CQ89: 50.1520209 | CR89: 0.2604035 | CS89: 0.517355915 | CT89: 0.422269825 | CU89: 0.7369821313 | CV89: 0.9503359801 | CW89: 0.7246138309 | CX89: 69.67942144 | CY89: 96.16076656 | DA89: 40.77969915 | DB89: 0.2604035 | DC89: 0.517355915 | DD89: 0.3807744838 | DE89: 0.6645608425 | DF89: 0.8569489716 | DG89: 0.451004719 | DH89: 69.67942144 | DI89: 154.4982092 | DK89: 33.29947837 | DL89: 0.2604035 | DM89: 0.517355915 | DN89: 0.3440840525 | DO89: 0.6005255014 | DP89: 0.7743756146 | DQ89: 0.4137941961 | DR89: 69.67942144 | DS89: 168.3914905 | DV89: 0.7369821313 | DW89: 0.5848159074
A90: 86 | B90: 5 | D90: ='21'!E84 -> ΒΡΩΜΗ | E90: 28.79653387 | F90: 0.129503 | G90: 0.2543849923 | H90: 0.3199749189 | I90: 0.4544909568 | J90: 0.5540963481 | K90: 0.4321591363 | L90: 62.70325092 | M90: 145.0929661 | O90: 21.1004528 | P90: 0.129503 | Q90: 0.2543849923 | R90: 0.2738998011 | S90: 0.3890460637 | T90: 0.4743086741 | U90: 0.2690153109 | V90: 62.70325092 | W90: 233.0843204 | Y90: 15.28996184 | Z90: 0.129503 | AA90: 0.2543849923 | AB90: 0.2331573068 | AC90: 0.3311756054 | AD90: 0.403755434 | AE90: 0.24131525 | AF90: 62.70325092 | AG90: 259.8395705 | AI90: 28.79653387 | AJ90: 0.129503 | AK90: 0.2670812025 | AL90: 0.3199749189 | AM90: 0.4544909568 | AN90: 0.5632372234 | AO90: 0.4384103465 | AP90: 62.70325092 | AQ90: 143.024113 | AS90: 21.1004528 | AT90: 0.129503 | AU90: 0.2670812025 | AV90: 0.2738998011 | AW90: 0.3890460637 | AX90: 0.4821332997 | AY90: 0.272906635 | AZ90: 62.70325092 | BA90: 229.7608151 | BC90: 15.28996184 | BD90: 0.129503 | BE90: 0.2670812025 | BF90: 0.2331573068 | BG90: 0.3311756054 | BH90: 0.4104161493 | BI90: 0.2479986862 | BJ90: 62.70325092 | BK90: 252.8370286 | BM90: 28.79653387 | BN90: 0.129503 | BO90: 0.2956761675 | BP90: 0.3199749189 | BQ90: 0.4544909568 | BR90: 0.5833003132 | BS90: 0.4959356312 | BT90: 62.70325092 | BU90: 126.4342527 | BW90: 21.1004528 | BX90: 0.129503 | BY90: 0.2956761675 | BZ90: 0.2738998011 | CA90: 0.3890460637 | CB90: 0.4993073842 | CC90: 0.3087156254 | CD90: 62.70325092 | CE90: 203.1100656 | CG90: 15.28996184 | CH90: 0.129503 | CI90: 0.2956761675 | CJ90: 0.2331573068 | CK90: 0.3311756054 | CL90: 0.4250355951 | CM90: 0.2725689265 | CN90: 62.70325092 | CO90: 230.0454851 | CQ90: 28.79653387 | CR90: 0.129503 | CS90: 0.3508627694 | CT90: 0.3199749189 | CU90: 0.4544909568 | CV90: 0.6201885668 | CW90: 0.6002748541 | CX90: 62.70325092 | CY90: 104.4575672 | DA90: 21.1004528 | DB90: 0.129503 | DC90: 0.3508627694 | DD90: 0.2738998011 | DE90: 0.3890460637 | DF90: 0.5308838758 | DG90: 0.3736658859 | DH90: 62.70325092 | DI90: 167.8056608 | DK90: 15.28996184 | DL90: 0.129503 | DM90: 0.3508627694 | DN90: 0.2331573068 | DO90: 0.3311756054 | DP90: 0.4519150953 | DQ90: 0.3407111581 | DR90: 62.70325092 | DS90: 184.0363881 | DV90: 0.4544909568 | DW90: 0.4384103465
A91: 87 | B91: 6 | D91: ='21'!E85 -> ΚΕΧΡΙ | E91: 45.53627104 | F91: 0.2565 | G91: 0.3349394143 | H91: 0.4023690439 | I91: 0.698705143 | J91: 0.7667919777 | K91: 0.5569987152 | L91: 69.67942144 | M91: 125.0979931 | O91: 34.21766069 | P91: 0.2565 | Q91: 0.3349394143 | R91: 0.3487955915 | S91: 0.6056760015 | T91: 0.6646974101 | U91: 0.346672571 | V91: 69.67942144 | W91: 200.9949078 | Y91: 24.59211842 | Z91: 0.2565 | AA91: 0.3349394143 | AB91: 0.2956948769 | AC91: 0.5134677589 | AD91: 0.5635037358 | AE91: 0.1982935495 | AF91: 69.67942144 | AG91: 351.3953007 | AI91: 45.53627104 | AJ91: 0.2565 | AK91: 0.3568116733 | AL91: 0.4023690439 | AM91: 0.698705143 | AN91: 0.7847248935 | AO91: 0.5894762474 | AP91: 69.67942144 | AQ91: 118.2056474 | AS91: 34.21766069 | AT91: 0.2565 | AU91: 0.3568116733 | AV91: 0.3487955915 | AW91: 0.6056760015 | AX91: 0.6802426466 | AY91: 0.366886387 | AZ91: 69.67942144 | BA91: 189.920978 | BC91: 24.59211842 | BD91: 0.2565 | BE91: 0.3568116733 | BF91: 0.2956948769 | BG91: 0.5134677589 | BH91: 0.5766823623 | BI91: 0.209855668 | BJ91: 69.67942144 | BK91: 332.0349749 | BM91: 45.53627104 | BN91: 0.2565 | BO91: 0.3931751479 | BP91: 0.4023690439 | BQ91: 0.698705143 | BR91: 0.8136647575 | BS91: 0.6146777699 | BT91: 69.67942144 | BU91: 113.359267 | BW91: 34.21766069 | BX91: 0.2565 | BY91: 0.3931751479 | BZ91: 0.3487955915 | CA91: 0.6056760015 | CB91: 0.7053293106 | CC91: 0.3825716595 | CD91: 69.67942144 | CE91: 182.1343001 | CG91: 24.59211842 | CH91: 0.2565 | CI91: 0.3931751479 | CJ91: 0.2956948769 | CK91: 0.5134677589 | CL91: 0.5979498272 | CM91: 0.2188275008 | CN91: 69.67942144 | CO91: 318.4216846 | CQ91: 45.53627104 | CR91: 0.2565 | CS91: 0.4609823296 | CT91: 0.4023690439 | CU91: 0.698705143 | CV91: 0.8650470321 | CW91: 0.7190707879 | CX91: 69.67942144 | CY91: 96.90203331 | DA91: 34.21766069 | DB91: 0.2565 | DC91: 0.4609823296 | DD91: 0.3487955915 | DE91: 0.6056760015 | DF91: 0.7498702889 | DG91: 0.4475452312 | DH91: 69.67942144 | DI91: 155.6924677 | DK91: 24.59211842 | DL91: 0.2565 | DM91: 0.4609823296 | DN91: 0.2956948769 | DO91: 0.5134677589 | DP91: 0.6357098776 | DQ91: 0.2559917913 | DR91: 69.67942144 | DS91: 272.193968 | DV91: 0.698705143 | DW91: 0.5894762474
A92: 88 | B92: 44 | D92: ='21'!E86 -> ΚΡΙΘΑΡΙ | E92: 23.9389017 | F92: 0.072709 | G92: 0.1262339783 | H92: 0.2917413176 | I92: 0.365700389 | J92: 0.4117418301 | K92: 0.3291212398 | L92: 60.87028189 | M92: 184.9478992 | O92: 16.94388718 | P92: 0.072709 | Q92: 0.1262339783 | R92: 0.2454439632 | S92: 0.3076662351 | T92: 0.346401214 | U92: 0.206491521 | V92: 60.87028189 | W92: 294.7834448 | Y92: 12.02400847 | Z92: 0.072709 | AA92: 0.1262339783 | AB92: 0.206761877 | AC92: 0.2591778891 | AD92: 0.2918082168 | AE92: 0.2184851977 | AF92: 60.87028189 | AG92: 278.6013997 | AI92: 23.9389017 | AJ92: 0.072709 | AK92: 0.1300211974 | AL92: 0.2917413176 | AM92: 0.365700389 | AN92: 0.4148060009 | AO92: 0.3160884299 | AP92: 60.87028189 | AQ92: 192.5735843 | AS92: 16.94388718 | AT92: 0.072709 | AU92: 0.1300211974 | AV92: 0.2454439632 | AW92: 0.3076662351 | AX92: 0.3489791218 | AY92: 0.2097405135 | AZ92: 60.87028189 | BA92: 290.217092 | BC92: 12.02400847 | BD92: 0.072709 | BE92: 0.1300211974 | BF92: 0.206761877 | BG92: 0.2591778891 | BH92: 0.2939798451 | BI92: 0.2219229018 | BJ92: 60.87028189 | BK92: 274.2857154 | BM92: 23.9389017 | BN92: 0.072709 | BO92: 0.1503106782 | BP92: 0.2917413176 | BQ92: 0.365700389 | BR92: 0.43085091 | BS92: 0.383603847 | BT92: 60.87028189 | BU92: 158.6800611 | BW92: 16.94388718 | BX92: 0.072709 | BY92: 0.1503106782 | BZ92: 0.2454439632 | CA92: 0.3076662351 | CB92: 0.3624778134 | CC92: 0.2465169323 | CD92: 60.87028189 | CE92: 246.921302 | CG92: 12.02400847 | CH92: 0.072709 | CI92: 0.1503106782 | CJ92: 0.206761877 | CK92: 0.2591778891 | CL92: 0.3053511364 | CM92: 0.2608354107 | CN92: 60.87028189 | CO92: 233.3666343 | CQ92: 23.9389017 | CR92: 0.072709 | CS92: 0.178459165 | CT92: 0.2917413176 | CU92: 0.365700389 | CV92: 0.4521688463 | CW92: 0.4398831955 | CX92: 60.87028189 | CY92: 138.3782843 | DA92: 16.94388718 | DB92: 0.072709 | DC92: 0.178459165 | DD92: 0.2454439632 | DE92: 0.3076662351 | DF92: 0.3804127389 | DG92: 0.2952540781 | DH92: 60.87028189 | DI92: 206.1623748 | DK92: 12.02400847 | DL92: 0.072709 | DM92: 0.178459165 | DN92: 0.206761877 | DO92: 0.2591778891 | DP92: 0.3204595091 | DQ92: 0.3124033631 | DR92: 60.87028189 | DS92: 194.8451556 | DV92: 0.365700389 | DW92: 0.3160884299
A93: 89 | B93: 11 | D93: ='21'!E87 -> ΛΟΛΙΟ | E93: 31.13279467 | F93: 0.2421785714 | G93: 0.4055089252 | H93: 0.3327015951 | I93: 0.56684694 | J93: 0.6807095413 | K93: 0.3508552892 | L93: 60.87028189 | M93: 173.4911337 | O93: 22.83695258 | P93: 0.2421785714 | Q93: 0.4055089252 | R93: 0.2849475351 | S93: 0.4854850133 | T93: 0.5830044363 | U93: 0.3121828919 | V93: 60.87028189 | W93: 194.98276 | Y93: 16.3778557 | Z93: 0.2421785714 | AA93: 0.4055089252 | AB93: 0.2413094609 | AC93: 0.4111357792 | AD93: 0.4937206641 | AE93: 0.2636994447 | AF93: 60.87028189 | AG93: 230.8320442 | AI93: 31.13279467 | AJ93: 0.2421785714 | AK93: 0.4217635026 | AL93: 0.3327015951 | AM93: 0.56684694 | AN93: 0.6910153736 | AO93: 0.3481000517 | AP93: 60.87028189 | AQ93: 174.8643288 | AS93: 22.83695258 | AT93: 0.2421785714 | AU93: 0.4217635026 | AV93: 0.2849475351 | AW93: 0.4854850133 | AX93: 0.5918310291 | AY93: 0.3117839361 | AZ93: 60.87028189 | BA93: 195.2322581 | BC93: 16.3778557 | BD93: 0.2421785714 | BE93: 0.4217635026 | BF93: 0.2413094609 | BG93: 0.4111357792 | BH93: 0.5011955151 | BI93: 0.2633624486 | BJ93: 60.87028189 | BK93: 231.1274147 | BM93: 31.13279467 | BN93: 0.2421785714 | BO93: 0.4772587016 | BP93: 0.3327015951 | BQ93: 0.56684694 | BR93: 0.7250979043 | BS93: 0.4070433032 | BT93: 60.87028189 | BU93: 149.5425215 | BW93: 22.83695258 | BX93: 0.2421785714 | BY93: 0.4772587016 | BZ93: 0.2849475351 | CA93: 0.4854850133 | CB93: 0.6210215507 | CC93: 0.364577835 | CD93: 60.87028189 | CE93: 166.9610054 | CG93: 16.3778557 | CH93: 0.2421785714 | CI93: 0.4772587016 | CJ93: 0.2413094609 | CK93: 0.4111357792 | CL93: 0.5259156764 | CM93: 0.3079572109 | CN93: 60.87028189 | CO93: 197.6582452 | CQ93: 31.13279467 | CR93: 0.2421785714 | CS93: 0.541848201 | CT93: 0.3327015951 | CU93: 0.56684694 | CV93: 0.7628506394 | CW93: 0.4716680354 | CX93: 60.87028189 | CY93: 129.0532267 | DA93: 22.83695258 | DB93: 0.2421785714 | DC93: 0.541848201 | DD93: 0.2849475351 | DE93: 0.4854850133 | DF93: 0.6533554769 | DG93: 0.4224604848 | DH93: 60.87028189 | DI93: 144.085149 | DK93: 16.3778557 | DL93: 0.2421785714 | DM93: 0.541848201 | DN93: 0.2413094609 | DO93: 0.4111357792 | DP93: 0.553297848 | DQ93: 0.3568504174 | DR93: 60.87028189 | DS93: 170.5764626 | DV93: 0.56684694 | DW93: 0.3481000517
A94: 90 | B94: 8 | D94: ='21'!E88 -> ΡYZI | E94: 27.51895432 | F94: 0.1617 | G94: 0.3269792427 | H94: 0.3127964338 | I94: 0.4713272465 | J94: 0.5909388293 | K94: 0.3508552892 | L94: 60.87028189 | M94: 173.4911337 | O94: 19.2095859 | P94: 0.1617 | Q94: 0.3269792427 | R94: 0.2613393646 | S94: 0.3937908166 | T94: 0.4937255079 | U94: 0.2184150192 | V94: 60.87028189 | W94: 278.6909166 | Y94: 12.73245389 | Z94: 0.1617 | AA94: 0.3269792427 | AB94: 0.2127658317 | AC94: 0.3205993507 | AD94: 0.4019597985 | AE94: 0.149305397 | AF94: 60.87028189 | AG94: 407.6897629 | AI94: 27.51895432 | AJ94: 0.1617 | AK94: 0.3390941544 | AL94: 0.3127964338 | AM94: 0.4713272465 | AN94: 0.5987671542 | AO94: 0.3443610137 | AP94: 60.87028189 | AQ94: 176.7629885 | AS94: 19.2095859 | AT94: 0.1617 | AU94: 0.3390941544 | AV94: 0.2613393646 | AW94: 0.3937908166 | AX94: 0.5002660219 | AY94: 0.214372192 | AZ94: 60.87028189 | BA94: 283.9467252 | BC94: 12.73245389 | BD94: 0.1617 | BE94: 0.3390941544 | BF94: 0.2127658317 | BG94: 0.3205993507 | BH94: 0.4072846676 | BI94: 0.1514651093 | BJ94: 60.87028189 | BK94: 401.8765917 | BM94: 27.51895432 | BN94: 0.1617 | BO94: 0.3783532763 | BP94: 0.3127964338 | BQ94: 0.4713272465 | BR94: 0.6234603202 | BS94: 0.3962612042 | BT94: 60.87028189 | BU94: 153.6115099 | BW94: 19.2095859 | BX94: 0.1617 | BY94: 0.3783532763 | BZ94: 0.2613393646 | CA94: 0.3937908166 | CB94: 0.5208969997 | CC94: 0.2466811851 | CD94: 60.87028189 | CE94: 246.7568894 | CG94: 12.73245389 | CH94: 0.1617 | CI94: 0.3783532763 | CJ94: 0.2127658317 | CK94: 0.3205993507 | CL94: 0.4240810931 | CM94: 0.1713393518 | CN94: 60.87028189 | CO94: 355.2615394 | CQ94: 27.51895432 | CR94: 0.1617 | CS94: 0.444451811 | CT94: 0.3127964338 | CU94: 0.4713272465 | CV94: 0.6629603178 | CW94: 0.4630538143 | CX94: 60.87028189 | CY94: 131.4540125 | DA94: 19.2095859 | DB94: 0.1617 | DC94: 0.444451811 | DD94: 0.2613393646 | DE94: 0.3937908166 | DF94: 0.5538989881 | DG94: 0.2882610319 | DH94: 60.87028189 | DI94: 211.1637549 | DK94: 12.73245389 | DL94: 0.1617 | DM94: 0.444451811 | DN94: 0.2127658317 | DO94: 0.3205993507 | DP94: 0.4509492058 | DQ94: 0.207387205 | DR94: 60.87028189 | DS94: 293.5103055 | DV94: 0.4713272465 | DW94: 0.3443610137
A95: 91 | B95: 45 | D95: ='21'!E89 -> ΣΙΚΑΛΗ | E95: 34.12483877 | F95: 0.12636 | G95: 0.2165931797 | H95: 0.3483221829 | I95: 0.4917179971 | J95: 0.5725428794 | K95: 0.500622598 | L95: 62.70325092 | M95: 125.2505404 | O95: 25.22227775 | P95: 0.12636 | Q95: 0.2165931797 | R95: 0.2994594215 | S95: 0.4227396192 | T95: 0.4922263578 | U95: 0.44142559 | V95: 62.70325092 | W95: 142.0471589 | Y95: 17.95422228 | Z95: 0.12636 | AA95: 0.2165931797 | AB95: 0.2526557161 | AC95: 0.3566679607 | AD95: 0.4152943403 | AE95: 0.3624962461 | AF95: 62.70325092 | AG95: 172.9762766 | AI95: 34.12483877 | AJ95: 0.12636 | AK95: 0.2269399723 | AL95: 0.3483221829 | AM95: 0.4917179971 | AN95: 0.5810928371 | AO95: 0.4999828247 | AP95: 62.70325092 | AQ95: 125.4108098 | AS95: 25.22227775 | AT95: 0.12636 | AU95: 0.2269399723 | AV95: 0.2994594215 | AW95: 0.4227396192 | AX95: 0.4995769244 | AY95: 0.4408614679 | AZ95: 62.70325092 | BA95: 142.2289211 | BC95: 17.95422228 | BD95: 0.12636 | BE95: 0.2269399723 | BF95: 0.2526557161 | BG95: 0.3566679607 | BH95: 0.4214960575 | BI95: 0.3620329921 | BJ95: 62.70325092 | BK95: 173.1976154 | BM95: 34.12483877 | BN95: 0.12636 | BO95: 0.2535965521 | BP95: 0.3483221829 | BQ95: 0.4917179971 | BR95: 0.6025615705 | BS95: 0.5846441548 | BT95: 62.70325092 | BU95: 107.2502828 | BW95: 25.22227775 | BX95: 0.12636 | BY95: 0.2535965521 | BZ95: 0.2994594215 | CA95: 0.4227396192 | CB95: 0.5180340161 | CC95: 0.5155118687 | CD95: 62.70325092 | CE95: 121.6329918 | CG95: 17.95422228 | CH95: 0.12636 | CI95: 0.2535965521 | CJ95: 0.2526557161 | CK95: 0.3566679607 | CL95: 0.4370684169 | CM95: 0.4233354872 | CN95: 62.70325092 | CO95: 148.117162 | CQ95: 34.12483877 | CR95: 0.12636 | CS95: 0.2951203837 | CT95: 0.3483221829 | CU95: 0.4917179971 | CV95: 0.6345588002 | CW95: 0.6774659054 | CX95: 62.70325092 | CY95: 92.55558165 | DA95: 25.22227775 | DB95: 0.12636 | DC95: 0.2951203837 | DD95: 0.2994594215 | DE95: 0.4227396192 | DF95: 0.5455426629 | DG95: 0.5973577465 | DH95: 62.70325092 | DI95: 104.9676702 | DK95: 17.95422228 | DL95: 0.12636 | DM95: 0.2951203837 | DN95: 0.2526557161 | DO95: 0.3566679607 | DP95: 0.4602776277 | DQ95: 0.4905468681 | DR95: 62.70325092 | DS95: 127.8231602 | DV95: 0.4917179971 | DW95: 0.4999828247
A96: 92 | B96: 66 | D96: ='21'!E90 -> ΣΙΤΟΣ ΜΑΛΑΚΟΣ | E96: 69.0524325 | F96: 4.94325 | G96: 7.639188198 | H96: 0.4954904865 | I96: 3.127476189 | J96: 3.870608321 | K96: 0.5205470107 | L96: 69.55131518 | M96: 133.6119769 | O96: 53.46970925 | P96: 4.94325 | Q96: 7.639188198 | R96: 0.4360133036 | S96: 2.752063385 | T96: 3.405992177 | U96: 0.3238657146 | V96: 69.55131518 | W96: 214.75356 | Y96: 39.11406252 | Z96: 4.94325 | AA96: 7.639188198 | AB96: 0.3729170948 | AC96: 2.353807724 | AD96: 2.913105396 | AE96: 0.2011666299 | AF96: 69.55131518 | AG96: 345.7398237 | AI96: 69.0524325 | AJ96: 4.94325 | AK96: 8.061490478 | AL96: 0.4954904865 | AM96: 3.127476189 | AN96: 3.974447838 | AO96: 0.5320118005 | AP96: 69.55131518 | AQ96: 130.732655 | AS96: 53.46970925 | AT96: 4.94325 | AU96: 8.061490478 | AV96: 0.4360133036 | AW96: 2.752063385 | AX96: 3.497367112 | AY96: 0.3309986963 | AZ96: 69.55131518 | BA96: 210.1256469 | BC96: 39.11406252 | BD96: 4.94325 | BE96: 8.061490478 | BF96: 0.3729170948 | BG96: 2.353807724 | BH96: 2.991257312 | BI96: 0.2023992187 | BJ96: 69.55131518 | BK96: 343.6343067 | BM96: 69.0524325 | BN96: 4.94325 | BO96: 8.963356074 | BP96: 0.4954904865 | BQ96: 3.127476189 | BR96: 4.187594371 | BS96: 0.5828496171 | BT96: 69.55131518 | BU96: 119.3297776 | BW96: 53.46970925 | BX96: 4.94325 | BY96: 8.963356074 | BZ96: 0.4360133036 | CA96: 2.752063385 | CB96: 3.684928179 | CC96: 0.3626281658 | CD96: 69.55131518 | CE96: 191.7978848 | CG96: 39.11406252 | CH96: 4.94325 | CI96: 8.963356074 | CJ96: 0.3729170948 | CK96: 2.353807724 | CL96: 3.151676106 | CM96: 0.228060012 | CN96: 69.55131518 | CO96: 304.9693568 | CQ96: 69.0524325 | CR96: 4.94325 | CS96: 10.58418824 | CT96: 0.4954904865 | CU96: 3.127476189 | CV96: 4.5456082 | CW96: 0.7477394227 | CX96: 69.55131518 | CY96: 93.01544504 | DA96: 53.46970925 | DB96: 4.94325 | DC96: 10.58418824 | DD96: 0.4360133036 | DE96: 2.752063385 | DF96: 3.999967107 | DG96: 0.4652166999 | DH96: 69.55131518 | DI96: 149.5030492 | DK96: 39.11406252 | DL96: 4.94325 | DM96: 10.58418824 | DN96: 0.3729170948 | DO96: 2.353807724 | DP96: 3.421125228 | DQ96: 0.3007509233 | DR96: 69.55131518 | DS96: 231.2588584 | DV96: 3.127476189 | DW96: 0.5320118005
A97: 93 | B97: 71 | D97: ='21'!E91 -> ΣΙΤΟΣ ΣΚΛΗΡΟΣ | E97: 50.07369523 | F97: 0.24 | G97: 0.3284749567 | H97: 0.421939953 | I97: 0.7167658658 | J97: 0.798445376 | K97: 0.5323019451 | L97: 69.67942144 | M97: 130.9020605 | O97: 39.05029151 | P97: 0.24 | Q97: 0.3284749567 | R97: 0.3726129714 | S97: 0.6329721969 | T97: 0.7051029462 | U97: 0.4200911957 | V97: 69.67942144 | W97: 165.8673692 | Y97: 29.56034052 | Z97: 0.24 | AA97: 0.3284749567 | AB97: 0.3241906952 | AC97: 0.5507153864 | AD97: 0.6134725086 | AE97: 0.3164629401 | AF97: 69.67942144 | AG97: 220.1819316 | AI97: 50.07369523 | AJ97: 0.24 | AK97: 0.349859643 | AL97: 0.421939953 | AM97: 0.7167658658 | AN97: 0.8169630524 | AO97: 0.5556615515 | AP97: 69.67942144 | AQ97: 125.3990334 | AS97: 39.05029151 | AT97: 0.24 | AU97: 0.349859643 | AV97: 0.3726129714 | AW97: 0.6329721969 | AX97: 0.7214558097 | AY97: 0.457633879 | AZ97: 69.67942144 | BA97: 152.2601902 | BC97: 29.56034052 | BD97: 0.24 | BE97: 0.349859643 | BF97: 0.3241906952 | BG97: 0.5507153864 | BH97: 0.6277002639 | BI97: 0.34474458 | BJ97: 69.67942144 | BK97: 202.1189758 | BM97: 50.07369523 | BN97: 0.24 | BO97: 0.3855416419 | BP97: 0.421939953 | BQ97: 0.7167658658 | BR97: 0.8469603271 | BS97: 0.6071928858 | BT97: 69.67942144 | BU97: 114.7566499 | BW97: 39.05029151 | BX97: 0.24 | BY97: 0.3855416419 | BZ97: 0.3726129714 | CA97: 0.6329721969 | CB97: 0.7479462465 | CC97: 0.5000742536 | CD97: 69.67942144 | CE97: 139.3381502 | CG97: 29.56034052 | CH97: 0.24 | CI97: 0.3855416419 | CJ97: 0.3241906952 | CK97: 0.5507153864 | CL97: 0.6507481817 | CM97: 0.3767157469 | CN97: 69.67942144 | CO97: 184.9655132 | CQ97: 50.07369523 | CR97: 0.24 | CS97: 0.4488628837 | CT97: 0.421939953 | CU97: 0.7167658658 | CV97: 0.8977291656 | CW97: 0.7515530501 | CX97: 69.67942144 | CY97: 92.71390946 | DA97: 39.05029151 | DB97: 0.24 | DC97: 0.4488628837 | DD97: 0.3726129714 | DE97: 0.6329721969 | DF97: 0.7927799429 | DG97: 0.5484260531 | DH97: 69.67942144 | DI97: 127.0534488 | DK97: 29.56034052 | DL97: 0.24 | DM97: 0.4488628837 | DN97: 0.3241906952 | DO97: 0.5507153864 | DP97: 0.6897555924 | DQ97: 0.4131401062 | DR97: 69.67942144 | DS97: 168.6580906 | DV97: 0.7167658658 | DW97: 0.5556615515
A98: 94 | B98: 85 | D98: ='21'!E92 -> ΣΟΡΓΟ | E98: 19.9301053 | F98: 1.03125 | G98: 1.534975772 | H98: 0.8575195618 | I98: 1.144332006 | J98: 1.260931691 | K98: 0.1772230916 | L98: 60.87028189 | M98: 343.4669903 | O98: 16.29949548 | P98: 1.03125 | Q98: 1.534975772 | R98: 0.7754902112 | S98: 1.034866502 | T98: 1.140312392 | U98: 0.1242454681 | V98: 60.87028189 | W98: 489.9195343 | Y98: 13.06816853 | Z98: 1.03125 | AA98: 1.534975772 | AB98: 0.6943790392 | AC98: 0.9266262768 | AD98: 1.021043221 | AE98: 0.09501124034 | AF98: 60.87028189 | AG98: 640.6640064 | AI98: 19.9301053 | AJ98: 1.03125 | AK98: 1.645412498 | AL98: 0.8575195618 | AM98: 1.144332006 | AN98: 1.285081779 | AO98: 0.1821314397 | AP98: 60.87028189 | AQ98: 334.2107327 | AS98: 16.29949548 | AT98: 1.03125 | AU98: 1.645412498 | AV98: 0.7754902112 | AW98: 1.034866502 | AX98: 1.162152311 | AY98: 0.1219457043 | AZ98: 60.87028189 | BA98: 499.1588858 | BC98: 13.06816853 | BD98: 1.03125 | BE98: 1.645412498 | BF98: 0.6943790392 | BG98: 0.9266262768 | BH98: 1.040598828 | BI98: 0.09325259742 | BJ98: 60.87028189 | BK98: 652.7462352 | BM98: 19.9301053 | BN98: 1.03125 | BO98: 1.83061395 | BP98: 0.8575195618 | BQ98: 1.144332006 | BR98: 1.32459331 | BS98: 0.2001759434 | BT98: 60.87028189 | BU98: 304.0839017 | BW98: 16.29949548 | BX98: 1.03125 | BY98: 1.83061395 | BZ98: 0.7754902112 | CA98: 1.034866502 | CB98: 1.197884213 | CC98: 0.1403246875 | CD98: 60.87028189 | CE98: 433.7817027 | CG98: 13.06816853 | CH98: 1.03125 | CI98: 1.83061395 | CJ98: 0.6943790392 | CK98: 0.9266262768 | CL98: 1.072593408 | CM98: 0.107307114 | CN98: 60.87028189 | CO98: 567.2529959 | CQ98: 19.9301053 | CR98: 1.03125 | CS98: 2.037773236 | CT98: 0.8575195618 | CU98: 1.144332006 | CV98: 1.367437339 | CW98: 0.2502199293 | CX98: 60.87028189 | CY98: 243.2671213 | DA98: 16.29949548 | DB98: 1.03125 | DC98: 2.037773236 | DD98: 0.7754902112 | DE98: 1.034866502 | DF98: 1.236629831 | DG98: 0.1639773995 | DH98: 60.87028189 | DI98: 371.2114113 | DK98: 13.06816853 | DL98: 1.03125 | DM98: 2.037773236 | DN98: 0.6943790392 | DO98: 0.9266262768 | DP98: 1.10728649 | DQ98: 0.125394482 | DR98: 60.87028189 | DS98: 485.4303071 | DV98: 1.144332006 | DW98: 0.1821314397
A99: 95 | D99: ='21'!E93 -> ΤΡΙΤΙΚΑΛΕ | E99: 12.02561201 | F99: 0.234375 | G99: 0.4287059018 | H99: 0.666105214 | I99: 0.7227948644 | J99: 0.7666265103 | K99: 0.1300117292 | L99: 60.87028189 | M99: 468.1906953 | O99: 9.003122276 | P99: 0.234375 | Q99: 0.4287059018 | R99: 0.5763493578 | S99: 0.6254002328 | T99: 0.6633256844 | U99: 0.08084140517 | V99: 60.87028189 | W99: 752.9592263 | Y99: 6.568495281 | Z99: 0.234375 | AA99: 0.4287059018 | AB99: 0.4922913279 | AC99: 0.5341883476 | AD99: 0.5665825381 | AE99: 0.04615316138 | AF99: 60.87028189 | AG99: 1318.875676 | AI99: 12.02561201 | AJ99: 0.234375 | AK99: 0.4202763176 | AL99: 0.666105214 | AM99: 0.7227948644 | AN99: 0.7647773272 | AO99: 0.1328751731 | AP99: 60.87028189 | AQ99: 458.1012426 | AS99: 9.003122276 | AT99: 0.234375 | AU99: 0.4202763176 | AV99: 0.5763493578 | AW99: 0.6254002328 | AX99: 0.6617256736 | AY99: 0.08262189703 | AZ99: 60.87028189 | BA99: 736.7330463 | BC99: 6.568495281 | BD99: 0.234375 | BE99: 0.4202763176 | BF99: 0.4922913279 | BG99: 0.5341883476 | BH99: 0.565215882 | BI99: 0.04716966187 | BJ99: 60.87028189 | BK99: 1290.454065 | BM99: 12.02561201 | BN99: 0.234375 | BO99: 0.4856085841 | BP99: 0.666105214 | BQ99: 0.7227948644 | BR99: 0.7789943336 | BS99: 0.1455724172 | BT99: 60.87028189 | BU99: 418.1443372 | BW99: 9.003122276 | BX99: 0.234375 | BY99: 0.4856085841 | BZ99: 0.5763493578 | CA99: 0.6254002328 | CB99: 0.6740269772 | CC99: 0.09051705434 | CD99: 60.87028189 | CE99: 672.4730753 | CG99: 6.568495281 | CH99: 0.234375 | CI99: 0.4856085841 | CJ99: 0.4922913279 | CK99: 0.5341883476 | CL99: 0.5757230943 | CM99: 0.05167708561 | CN99: 60.87028189 | CO99: 1177.896957 | CQ99: 12.02561201 | CR99: 0.234375 | CS99: 0.5672965259 | CT99: 0.666105214 | CU99: 0.7227948644 | CV99: 0.7964135429 | CW99: 0.1867552658 | CX99: 60.87028189 | CY99: 325.9360941 | DA99: 9.003122276 | DB99: 0.234375 | DC99: 0.5672965259 | DD99: 0.5763493578 | DE99: 0.6254002328 | DF99: 0.6890989957 | DG99: 0.1161245851 | DH99: 60.87028189 | DI99: 524.1808343 | DK99: 6.568495281 | DL99: 0.234375 | DM99: 0.5672965259 | DN99: 0.4922913279 | DO99: 0.5341883476 | DP99: 0.5885969249 | DQ99: 0.06629667933 | DR99: 60.87028189 | DS99: 918.1497853 | DV99: 0.7227948644 | DW99: 0.1328751731
A100: 96 | B100: 22 | D100: ='21'!E94 -> ΛΟΙΠΑ ΣΙΤΗΡΑ | E100: 35.68574498 | F100: 0.7026624643 | G100: 1.080677196 | H100: 0.435727529 | I100: 0.86891494 | J100: 1.014530595 | K100: 0.4129562503 | L100: 64.25422848 | M100: 187.4822131 | O100: 27.1496236 | P100: 0.7026624643 | Q100: 1.080677196 | R100: 0.3807280276 | S100: 0.7608293367 | T100: 0.8880982921 | U100: 0.2843503578 | V100: 64.25422848 | W100: 280.3091543 | Y100: 20.16722698 | Z100: 0.7026624643 | AA100: 1.080677196 | AB100: 0.3288507558 | AC100: 0.6563295625 | AD100: 0.7656408252 | AE100: 0.2159617506 | AF100: 64.25422848 | AG100: 398.5547619 | AI100: 35.68574498 | AJ100: 0.7026624643 | AK100: 1.140650307 | AL100: 0.435727529 | AM100: 0.86891494 | AN100: 1.03584532 | AO100: 0.4225799415 | AP100: 64.25422848 | AQ100: 184.4212163 | AS100: 27.1496236 | AT100: 0.7026624643 | AU100: 1.140650307 | AV100: 0.3807280276 | AW100: 0.7608293367 | AX100: 0.9068300979 | AY100: 0.2928542967 | AZ100: 64.25422848 | BA100: 275.430152 | BC100: 20.16722698 | BD100: 0.7026624643 | BE100: 1.140650307 | BF100: 0.3288507558 | BG100: 0.6563295625 | BH100: 0.7818412121 | BI100: 0.2196954779 | BJ100: 64.25422848 | BK100: 392.5449194 | BM100: 35.68574498 | BN100: 0.7026624643 | BO100: 1.270009299 | BP100: 0.435727529 | BQ100: 0.86891494 | BR100: 1.079622982 | BS100: 0.4689524615 | BT100: 64.25422848 | BU100: 165.3369114 | BW100: 27.1496236 | BX100: 0.7026624643 | BY100: 1.270009299 | BZ100: 0.3807280276 | CA100: 0.7608293367 | CB100: 0.9451455463 | CC100: 0.3259106839 | CD100: 64.25422848 | CE100: 246.3763118 | CG100: 20.16722698 | CH100: 0.7026624643 | CI100: 1.270009299 | CJ100: 0.3288507558 | CK100: 0.6563295625 | CL100: 0.8148209224 | CM100: 0.2494647106 | CN100: 64.25422848 | CO100: 350.3267651 | CQ100: 35.68574498 | CR100: 0.7026624643 | CS100: 1.485697841 | CT100: 0.435727529 | CU100: 0.86891494 | CV100: 1.149515788 | CW100: 0.5653209284 | CX100: 64.25422848 | CY100: 135.6104677 | DA100: 27.1496236 | DB100: 0.7026624643 | DC100: 1.485697841 | DD100: 0.3807280276 | DE100: 0.7608293367 | DF100: 1.006348658 | DG100: 0.3864247147 | DH100: 64.25422848 | DI100: 204.1968212 | DK100: 20.16722698 | DL100: 0.7026624643 | DM100: 1.485697841 | DN100: 0.3288507558 | DO100: 0.6563295625 | DP100: 0.867517853 | DQ100: 0.2959076788 | DR100: 64.25422848 | DS100: 287.4307669 | DV100: 0.86891494 | DW100: 0.4225799415
A101: 97 | B101: 7 | DV101: 0 | DW101: 0
A102: 98 | B102: 27 | D102: ='21'!E96 -> ΑΡΑΧΙΔΑ | E102: 45.82202717 | F102: 0.358875 | G102: 0.4959489734 | H102: 0.4036295731 | I102: 0.7888590882 | J102: 0.8931750582 | K102: 0.5323019451 | L102: 69.67942144 | M102: 130.9020605 | O102: 34.52837144 | P102: 0.358875 | Q102: 0.4959489734 | R102: 0.350375618 | S102: 0.6847788392 | T102: 0.7753316006 | U102: 0.3313302591 | V102: 69.67942144 | W102: 210.302016 | Y102: 24.70830488 | Z102: 0.358875 | AA102: 0.4959489734 | AB102: 0.296392565 | AC102: 0.5792736313 | AD102: 0.6558747527 | AE102: 0.1895505378 | AF102: 69.67942144 | AG102: 367.6033962 | AI102: 45.82202717 | AJ102: 0.358875 | AK102: 0.5307535582 | AL102: 0.4036295731 | AM102: 0.7888590882 | AN102: 0.9177764815 | AO102: 0.5470445116 | AP102: 69.67942144 | AQ102: 127.3743177 | AS102: 34.52837144 | AT102: 0.358875 | AU102: 0.5307535582 | AV102: 0.350375618 | AW102: 0.6847788392 | AX102: 0.7966871689 | AY102: 0.3405067395 | AZ102: 69.67942144 | BA102: 204.6344855 | BC102: 24.70830488 | BD102: 0.358875 | BE102: 0.5307535582 | BF102: 0.296392565 | BG102: 0.5792736313 | BH102: 0.673940027 | BI102: 0.1948003052 | BJ102: 69.67942144 | BK102: 357.6966749 | BM102: 45.82202717 | BN102: 0.358875 | BO102: 0.5863775877 | BP102: 0.4036295731 | BQ102: 0.7888590882 | BR102: 0.9557802107 | BS102: 0.6012424401 | BT102: 69.67942144 | BU102: 115.8923868 | BW102: 34.52837144 | BX102: 0.358875 | BY102: 0.5863775877 | BZ102: 0.350375618 | CA102: 0.6847788392 | CB102: 0.8296767737 | CC102: 0.3742421295 | CD102: 69.67942144 | CE102: 186.1880744 | CG102: 24.70830488 | CH102: 0.358875 | CI102: 0.5863775877 | CJ102: 0.296392565 | CK102: 0.5792736313 | CL102: 0.7018468592 | CM102: 0.2140999651 | CN102: 69.67942144 | CO102: 325.4527455 | CQ102: 45.82202717 | CR102: 0.358875 | CS102: 0.6978726521 | CT102: 0.4036295731 | CU102: 0.7888590882 | CV102: 1.027733562 | CW102: 0.7515530501 | CX102: 69.67942144 | CY102: 92.71390946 | DA102: 34.52837144 | DB102: 0.358875 | DC102: 0.6978726521 | DD102: 0.350375618 | DE102: 0.6847788392 | DF102: 0.8921367661 | DG102: 0.4678026618 | DH102: 69.67942144 | DI102: 148.9504595 | DK102: 24.70830488 | DL102: 0.358875 | DM102: 0.6978726521 | DN102: 0.296392565 | DO102: 0.5792736313 | DP102: 0.7546835191 | DQ102: 0.2676249563 | DR102: 69.67942144 | DS102: 260.3621964 | DV102: 0.7888590882 | DW102: 0.5470445116
A103: 99 | B103: 55 | D103: ='21'!E97 -> ΒΙΚΟΣ | E103: 32.88688916 | F103: 0.2805 | G103: 0.4183504512 | H103: 0.3419457628 | I103: 0.6120665412 | J103: 0.7080044005 | K103: 0.4668178021 | L103: 60.87028189 | M103: 130.3940887 | O103: 24.19557831 | P103: 0.2805 | Q103: 0.4183504512 | R103: 0.2933011952 | S103: 0.5249950945 | T103: 0.6072850126 | U103: 0.3376754572 | V103: 60.87028189 | W103: 180.2626771 | Y103: 17.43929103 | Z103: 0.2805 | AA103: 0.4183504512 | AB103: 0.2490062466 | AC103: 0.4457092577 | AD103: 0.5155715833 | AE103: 0.2296527793 | AF103: 60.87028189 | AG103: 265.053539 | AI103: 32.88688916 | AJ103: 0.2805 | AK103: 0.4291385204 | AL103: 0.3419457628 | AM103: 0.6120665412 | AN103: 0.714969477 | AO103: 0.45113172 | AP103: 60.87028189 | AQ103: 134.9279583 | AS103: 24.19557831 | AT103: 0.2805 | AU103: 0.4291385204 | AV103: 0.2933011952 | AW103: 0.5249950945 | AX103: 0.6132592503 | AY103: 0.3263288357 | AZ103: 60.87028189 | BA103: 186.5305031 | BC103: 17.43929103 | BD103: 0.2805 | BE103: 0.4291385204 | BF103: 0.2490062466 | BG103: 0.4457092577 | BH103: 0.5206435795 | BI103: 0.2219359521 | BJ103: 60.87028189 | BK103: 274.2695869 | BM103: 32.88688916 | BN103: 0.2805 | BO103: 0.4834435826 | BP103: 0.3419457628 | BQ103: 0.6120665412 | BR103: 0.7490474168 | BS103: 0.5297618935 | BT103: 60.87028189 | BU103: 114.9012087 | BW103: 24.19557831 | BX103: 0.2805 | BY103: 0.4834435826 | BZ103: 0.2933011952 | CA103: 0.5249950945 | CB103: 0.6424893258 | CC103: 0.3832064433 | CD103: 60.87028189 | CE103: 158.8446201 | CG103: 17.43929103 | CH103: 0.2805 | CI103: 0.4834435826 | CJ103: 0.2490062466 | CK103: 0.4457092577 | CL103: 0.5454592689 | CM103: 0.2606183627 | CN103: 60.87028189 | CO103: 233.5609865 | CQ103: 32.88688916 | CR103: 0.2805 | CS103: 0.5715688141 | CT103: 0.3419457628 | CU103: 0.6120665412 | CV103: 0.8012700462 | CW103: 0.651912874 | CX103: 60.87028189 | CY103: 93.37180523 | DA103: 24.19557831 | DB103: 0.2805 | DC103: 0.5715688141 | DD103: 0.2933011952 | DE103: 0.5249950945 | DF103: 0.6872828611 | DG103: 0.4715650877 | DH103: 60.87028189 | DI103: 129.0814004 | DK103: 17.43929103 | DL103: 0.2805 | DM103: 0.5715688141 | DN103: 0.2490062466 | DO103: 0.4457092577 | DP103: 0.5834879926 | DQ103: 0.3207109984 | DR103: 60.87028189 | DS103: 189.7979246 | DV103: 0.6120665412 | DW103: 0.45113172
A104: 100 | B104: 88 | D104: ='21'!E98 -> ΚΟΥΚΙΑ | E104: 29.65080674 | F104: 0.6866125 | G104: 1.160900716 | H104: 0.3246863914 | I104: 0.8210658591 | J104: 1.032960185 | K104: 0.4668178021 | L104: 60.87028189 | M104: 130.3940887 | O104: 20.79942153 | P104: 0.6866125 | Q104: 1.160900716 | R104: 0.2719389759 | S104: 0.6876783714 | T104: 0.8651490858 | U104: 0.3376754572 | V104: 60.87028189 | W104: 180.2626771 | Y104: 13.82970178 | Z104: 0.6866125 | AA104: 1.160900716 | AB104: 0.2217441835 | AC104: 0.5607459486 | AD104: 0.7054589253 | AE104: 0.2296527793 | AF104: 60.87028189 | AG104: 265.053539 | AI104: 29.65080674 | AJ104: 0.6866125 | AK104: 1.186273804 | AL104: 0.3246863914 | AM104: 0.8210658591 | AN104: 1.04308366 | AO104: 0.45113172 | AP104: 60.87028189 | AQ104: 134.9279583 | AS104: 20.79942153 | AT104: 0.6866125 | AU104: 1.186273804 | AV104: 0.2719389759 | AW104: 0.6876783714 | AX104: 0.8736279369 | AY104: 0.3263288357 | AZ104: 60.87028189 | BA104: 186.5305031 | BC104: 13.82970178 | BD104: 0.6866125 | BE104: 1.186273804 | BF104: 0.2217441835 | BG104: 0.5607459486 | BH104: 0.7123727408 | BI104: 0.2219359521 | BJ104: 60.87028189 | BK104: 274.2695869 | BM104: 29.65080674 | BN104: 0.6866125 | BO104: 1.333192972 | BP104: 0.3246863914 | BQ104: 0.8210658591 | BR104: 1.099871863 | BS104: 0.5297618935 | BT104: 60.87028189 | BU104: 114.9012087 | BW104: 20.79942153 | BX104: 0.6866125 | BY104: 1.333192972 | BZ104: 0.2719389759 | CA104: 0.6876783714 | CB104: 0.9211905269 | CC104: 0.3832064433 | CD104: 60.87028189 | CE104: 158.8446201 | CG104: 13.82970178 | CH104: 0.6866125 | CI104: 1.333192972 | CJ104: 0.2217441835 | CK104: 0.5607459486 | CL104: 0.7511561761 | CM104: 0.2606183627 | CN104: 60.87028189 | CO104: 233.5609865 | CQ104: 29.65080674 | CR104: 0.6866125 | CS104: 1.599835776 | CT104: 0.3246863914 | CU104: 0.8210658591 | CV104: 1.196068967 | CW104: 0.651912874 | CX104: 60.87028189 | CY104: 93.37180523 | DA104: 20.79942153 | DB104: 0.6866125 | DC104: 1.599835776 | DD104: 0.2719389759 | DE104: 0.6876783714 | DF104: 1.001759786 | DG104: 0.4715650877 | DH104: 60.87028189 | DI104: 129.0814004 | DK104: 13.82970178 | DL104: 0.6866125 | DM104: 1.599835776 | DN104: 0.2217441835 | DO104: 0.5607459486 | DP104: 0.8168538735 | DQ104: 0.3207109984 | DR104: 60.87028189 | DS104: 189.7979246 | DV104: 0.8210658591 | DW104: 0.45113172
A105: 101 | B105: 56 | D105: ='21'!E99 -> ΛΑΘΟΥΡΙ / ΦΑΒΑ | E105: 29.29455007 | F105: 0.38025 | G105: 0.6588458688 | H105: 0.3227299312 | I105: 0.6444649722 | J105: 0.8020761545 | K105: 0.3084822003 | L105: 62.70325092 | M105: 203.2637567 | O105: 21.57643571 | P105: 0.38025 | Q105: 0.6588458688 | R105: 0.2769718815 | S105: 0.5530899326 | T105: 0.6883543177 | U105: 0.1920368533 | V105: 62.70325092 | W105: 326.5167589 | Y105: 15.76520848 | Z105: 0.38025 | AA105: 0.6588458688 | AB105: 0.2367531077 | AC105: 0.4727763688 | AD105: 0.5883991655 | AE105: 0.1098880234 | AF105: 62.70325092 | AG105: 570.6104178 | AI105: 29.29455007 | AJ105: 0.38025 | AK105: 0.6809893634 | AL105: 0.3227299312 | AM105: 0.6444649722 | AN105: 0.8132941999 | AO105: 0.3007769241 | AP105: 62.70325092 | AQ105: 208.4709494 | AS105: 21.57643571 | AT105: 0.38025 | AU105: 0.6809893634 | AV105: 0.2769718815 | AW105: 0.5530899326 | AX105: 0.6979818199 | AY105: 0.1872401519 | AZ105: 62.70325092 | BA105: 334.8814358 | BC105: 15.76520848 | BD105: 0.38025 | BE105: 0.6809893634 | BF105: 0.2367531077 | BG105: 0.4727763688 | BH105: 0.5966286691 | BI105: 0.1071432375 | BJ105: 62.70325092 | BK105: 585.2282641 | BM105: 29.29455007 | BN105: 0.38025 | BO105: 0.772057856 | BP105: 0.3227299312 | BQ105: 0.6444649722 | BR105: 0.8578893006 | BS105: 0.3524035846 | BT105: 62.70325092 | BU105: 177.9302302 | BW105: 21.57643571 | BX105: 0.38025 | BY105: 0.772057856 | BZ105: 0.2769718815 | CA105: 0.5530899326 | CB105: 0.7362540337 | CC105: 0.2193788666 | CD105: 62.70325092 | CE105: 285.821747 | CG105: 15.76520848 | CH105: 0.38025 | CI105: 0.772057856 | CJ105: 0.2367531077 | CK105: 0.4727763688 | CL105: 0.629343418 | CM105: 0.1255337692 | CN105: 62.70325092 | CO105: 499.493095 | CQ105: 29.29455007 | CR105: 0.38025 | CS105: 0.9167470675 | CT105: 0.3227299312 | CU105: 0.6444649722 | CV105: 0.9243276332 | CW105: 0.4061529741 | CX105: 62.70325092 | CY105: 154.3833356 | DA105: 21.57643571 | DB105: 0.38025 | DC105: 0.9167470675 | DD105: 0.2769718815 | DE105: 0.5530899326 | DF105: 0.7932724513 | DG105: 0.2528390261 | DH105: 62.70325092 | DI105: 247.9967269 | DK105: 15.76520848 | DL105: 0.38025 | DM105: 0.9167470675 | DN105: 0.2367531077 | DO105: 0.4727763688 | DP105: 0.6780822556 | DQ105: 0.1446804628 | DR105: 62.70325092 | DS105: 433.3912797 | DV105: 0.6444649722 | DW105: 0.3007769241
A106: 102 | B106: 46 | D106: ='21'!E100 -> ΛΟΙΠΑ ΚΤΗΝΟΤΡΟΦΙΚΑ ΦΥΤΑ | E106: 32.87125417 | F106: 0 | G106: 0 | H106: 0.3418644698 | I106: 0.3418644698 | J106: 0.3418644698 | K106: 0.451864722 | L106: 60.87028189 | M106: 134.709082 | O106: 24.17994333 | P106: 0 | Q106: 0 | R106: 0.2932064155 | S106: 0.2932064155 | T106: 0.2932064155 | U106: 0.3227223772 | V106: 60.87028189 | W106: 188.6150022 | Y106: 17.42365605 | Z106: 0 | AA106: 0 | AB106: 0.2488945999 | AC106: 0.2488945999 | AD106: 0.2488945999 | AE106: 0.2146996993 | AF106: 60.87028189 | AG106: 283.5135871 | AI106: 32.87125417 | AJ106: 0 | AK106: 0 | AL106: 0.3418644698 | AM106: 0.3418644698 | AN106: 0.3418644698 | AO106: 0.4366810956 | AP106: 60.87028189 | AQ106: 139.3929861 | AS106: 24.17994333 | AT106: 0 | AU106: 0 | AV106: 0.2932064155 | AW106: 0.2932064155 | AX106: 0.2932064155 | AY106: 0.3118782113 | AZ106: 60.87028189 | BA106: 195.1732429 | BC106: 17.42365605 | BD106: 0 | BE106: 0 | BF106: 0.2488945999 | BG106: 0.2488945999 | BH106: 0.2488945999 | BI106: 0.2074853277 | BJ106: 60.87028189 | BK106: 293.3715004 | BM106: 32.87125417 | BN106: 0 | BO106: 0 | BP106: 0.3418644698 | BQ106: 0.3418644698 | BR106: 0.3418644698 | BS106: 0.5127925921 | BT106: 60.87028189 | BU106: 118.7035126 | BW106: 24.17994333 | BX106: 0 | BY106: 0 | BZ106: 0.2932064155 | CA106: 0.2932064155 | CB106: 0.2932064155 | CC106: 0.3662371419 | CD106: 60.87028189 | CE106: 166.2045569 | CG106: 17.42365605 | CH106: 0 | CI106: 0 | CJ106: 0.2488945999 | CK106: 0.2488945999 | CL106: 0.2488945999 | CM106: 0.2436490612 | CN106: 60.87028189 | CO106: 249.827689 | CQ106: 32.87125417 | CR106: 0 | CS106: 0 | CT106: 0.3418644698 | CU106: 0.3418644698 | CV106: 0.3418644698 | CW106: 0.6310308396 | CX106: 60.87028189 | CY106: 96.46165935 | DA106: 24.17994333 | DB106: 0 | DC106: 0 | DD106: 0.2932064155 | DE106: 0.2932064155 | DF106: 0.2932064155 | DG106: 0.4506830534 | DH106: 60.87028189 | DI106: 135.0622826 | DK106: 17.42365605 | DL106: 0 | DM106: 0 | DN106: 0.2488945999 | DO106: 0.2488945999 | DP106: 0.2488945999 | DQ106: 0.2998289641 | DR106: 60.87028189 | DS106: 203.0166835 | DV106: 0.3418644698 | DW106: 0.4366810956
A107: 103 | B107: 16 | D107: ='21'!E101 -> ΛΟΥΠΙΝΑ | E107: 29.65080674 | F107: 0.6195 | G107: 1.047429217 | H107: 0.3246863914 | I107: 0.7864853468 | J107: 0.9864163338 | K107: 0.4668178021 | L107: 60.87028189 | M107: 130.3940887 | O107: 20.79942153 | P107: 0.6195 | Q107: 1.047429217 | R107: 0.2719389759 | S107: 0.6587156881 | T107: 0.8261665863 | U107: 0.3376754572 | V107: 60.87028189 | W107: 180.2626771 | Y107: 13.82970178 | Z107: 0.6195 | AA107: 1.047429217 | AB107: 0.2217441835 | AC107: 0.537129229 | AD107: 0.673671858 | AE107: 0.2296527793 | AF107: 60.87028189 | AG107: 265.053539 | AI107: 29.65080674 | AJ107: 0.6195 | AK107: 1.07032223 | AL107: 0.3246863914 | AM107: 0.7864853468 | AN107: 0.9959817724 | AO107: 0.45113172 | AP107: 60.87028189 | AQ107: 134.9279583 | AS107: 20.79942153 | AT107: 0.6195 | AU107: 1.07032223 | AV107: 0.2719389759 | AW107: 0.6587156881 | AX107: 0.8341780572 | AY107: 0.3263288357 | AZ107: 60.87028189 | BA107: 186.5305031 | BC107: 13.82970178 | BD107: 0.6195 | BE107: 1.07032223 | BF107: 0.2217441835 | BG107: 0.537129229 | BH107: 0.6802045628 | BI107: 0.2219359521 | BJ107: 60.87028189 | BK107: 274.2695869 | BM107: 29.65080674 | BN107: 0.6195 | BO107: 1.202880877 | BP107: 0.3246863914 | BQ107: 0.7864853468 | BR107: 1.049656765 | BS107: 0.5297618935 | BT107: 60.87028189 | BU107: 114.9012087 | BW107: 20.79942153 | BX107: 0.6195 | BY107: 1.202880877 | BZ107: 0.2719389759 | CA107: 0.6587156881 | CB107: 0.879133198 | CC107: 0.3832064433 | CD107: 60.87028189 | CE107: 158.8446201 | CG107: 13.82970178 | CH107: 0.6195 | CI107: 1.202880877 | CJ107: 0.2217441835 | CK107: 0.537129229 | CL107: 0.7168618348 | CM107: 0.2606183627 | CN107: 60.87028189 | CO107: 233.5609865 | CQ107: 29.65080674 | CR107: 0.6195 | CS107: 1.443460851 | CT107: 0.3246863914 | CU107: 0.7864853468 | CV107: 1.140637578 | CW107: 0.651912874 | CX107: 60.87028189 | CY107: 93.37180523 | DA107: 20.79942153 | DB107: 0.6195 | DC107: 1.443460851 | DD107: 0.2719389759 | DE107: 0.6587156881 | DF107: 0.9553335863 | DG107: 0.4715650877 | DH107: 60.87028189 | DI107: 129.0814004 | DK107: 13.82970178 | DL107: 0.6195 | DM107: 1.443460851 | DN107: 0.2217441835 | DO107: 0.537129229 | DP107: 0.7789970724 | DQ107: 0.3207109984 | DR107: 60.87028189 | DS107: 189.7979246 | DV107: 0.7864853468 | DW107: 0.45113172
A108: 104 | B108: 47 | D108: ='21'!E102 -> ΜΗΔΙΚΗ | E108: 19.35795527 | F108: 3.15 | G108: 5.194633248 | H108: 0.4789773127 | I108: 1.390272389 | J108: 1.743141355 | K108: 0.1066705648 | L108: 42.19588925 | M108: 395.5720054 | O108: 19.35795527 | P108: 3.15 | Q108: 5.194633248 | R108: 0.4789773127 | S108: 1.390272389 | T108: 1.743141355 | U108: 0.1066705648 | V108: 42.19588925 | W108: 395.5720054 | Y108: 19.35795527 | Z108: 3.15 | AA108: 5.194633248 | AB108: 0.4789773127 | AC108: 1.390272389 | AD108: 1.743141355 | AE108: 0.1066705648 | AF108: 42.19588925 | AG108: 395.5720054 | AI108: 19.35795527 | AJ108: 3.15 | AK108: 5.618437171 | AL108: 0.4789773127 | AM108: 1.390272389 | AN108: 1.807684685 | AO108: 0.1169769573 | AP108: 42.19588925 | AQ108: 360.7196685 | AS108: 19.35795527 | AT108: 3.15 | AU108: 5.618437171 | AV108: 0.4789773127 | AW108: 1.390272389 | AX108: 1.807684685 | AY108: 0.1169769573 | AZ108: 42.19588925 | BA108: 360.7196685 | BC108: 19.35795527 | BD108: 3.15 | BE108: 5.618437171 | BF108: 0.4789773127 | BG108: 1.390272389 | BH108: 1.807684685 | BI108: 0.1169769573 | BJ108: 42.19588925 | BK108: 360.7196685 | BM108: 19.35795527 | BN108: 3.15 | BO108: 6.136937897 | BP108: 0.4789773127 | BQ108: 1.390272389 | BR108: 1.88364424 | BS108: 0.1237666646 | BT108: 42.19588925 | BU108: 340.9309719 | BW108: 19.35795527 | BX108: 3.15 | BY108: 6.136937897 | BZ108: 0.4789773127 | CA108: 1.390272389 | CB108: 1.88364424 | CC108: 0.1237666646 | CD108: 42.19588925 | CE108: 340.9309719 | CG108: 19.35795527 | CH108: 3.15 | CI108: 6.136937897 | CJ108: 0.4789773127 | CK108: 1.390272389 | CL108: 1.88364424 | CM108: 0.1237666646 | CN108: 42.19588925 | CO108: 340.9309719 | CQ108: 19.35795527 | CR108: 3.15 | CS108: 7.229748832 | CT108: 0.4789773127 | CU108: 1.390272389 | CV108: 2.034472744 | CW108: 0.1545161465 | CX108: 42.19588925 | CY108: 273.0840123 | DA108: 19.35795527 | DB108: 3.15 | DC108: 7.229748832 | DD108: 0.4789773127 | DE108: 1.390272389 | DF108: 2.034472744 | DG108: 0.1545161465 | DH108: 42.19588925 | DI108: 273.0840123 | DK108: 19.35795527 | DL108: 3.15 | DM108: 7.229748832 | DN108: 0.4789773127 | DO108: 1.390272389 | DP108: 2.034472744 | DQ108: 0.1545161465 | DR108: 42.19588925 | DS108: 273.0840123 | DV108: 1.390272389 | DW108: 0.1169769573
A109: 105 | B109: 86 | D109: ='21'!E103 -> ΡΕΒΥΘΙ | E109: 15.43028528 | F109: 0.0765 | G109: 0.1227878364 | H109: 0.2342247624 | I109: 0.2963726756 | J109: 0.3283127393 | K109: 0.1269167091 | L109: 69.55131518 | M109: 548.0075527 | O109: 11.63422441 | P109: 0.0765 | Q109: 0.1227878364 | R109: 0.2033829525 | S109: 0.2573474691 | T109: 0.2850817889 | U109: 0.08899192282 | V109: 69.55131518 | W109: 781.5463805 | Y109: 8.584140458 | Z109: 0.0765 | AA109: 0.1227878364 | AB109: 0.1747005358 | AC109: 0.2210546173 | AD109: 0.2448776589 | AE109: 0.05738793423 | AF109: 69.55131518 | AG109: 1211.950144 | AI109: 15.43028528 | AJ109: 0.0765 | AK109: 0.119555445 | AL109: 0.2342247624 | AM109: 0.2963726756 | AN109: 0.3261838808 | AO109: 0.1299485416 | AP109: 69.55131518 | AQ109: 535.2219757 | AS109: 11.63422441 | AT109: 0.0765 | AU109: 0.119555445 | AV109: 0.2033829525 | AW109: 0.2573474691 | AX109: 0.2832332502 | AY109: 0.0911177942 | AZ109: 69.55131518 | BA109: 763.3121037 | BC109: 8.584140458 | BD109: 0.0765 | BE109: 0.119555445 | BF109: 0.1747005358 | BG109: 0.2210546173 | BH109: 0.2432898134 | BI109: 0.05875883805 | BJ109: 69.55131518 | BK109: 1183.674107 | BM109: 15.43028528 | BN109: 0.0765 | BO109: 0.1406219657 | BP109: 0.2342247624 | BQ109: 0.2963726756 | BR109: 0.3398186318 | BS109: 0.144091905 | BT109: 69.55131518 | BU109: 482.6871792 | BW109: 11.63422441 | BX109: 0.0765 | BY109: 0.1406219657 | BZ109: 0.2033829525 | CA109: 0.2573474691 | CB109: 0.29507263 | CC109: 0.1010348896 | CD109: 69.55131518 | CE109: 688.389085 | CG109: 8.584140458 | CH109: 0.0765 | CI109: 0.1406219657 | CJ109: 0.1747005358 | CK109: 0.2210546173 | CL109: 0.2534595251 | CM109: 0.06515404334 | CN109: 69.55131518 | CO109: 1067.490391 | CQ109: 15.43028528 | CR109: 0.0765 | CS109: 0.162387053 | CT109: 0.2342247624 | CU109: 0.2963726756 | CV109: 0.353353364 | CW109: 0.1743533999 | CX109: 69.55131518 | CY109: 398.9100024 | DA109: 11.63422441 | DB109: 0.0765 | DC109: 0.162387053 | DD109: 0.2033829525 | DE109: 0.2573474691 | DF109: 0.3068251611 | DG109: 0.1222537554 | DH109: 69.55131518 | DI109: 568.9094373 | DK109: 8.584140458 | DL109: 0.0765 | DM109: 0.162387053 | DN109: 0.1747005358 | DO109: 0.2210546173 | DP109: 0.2635546361 | DQ109: 0.07883738489 | DR109: 69.55131518 | DS109: 882.2123574 | DV109: 0.2963726756 | DW109: 0.1299485416
A110: 106 | B110: 57 | D110: ='21'!E104 -> ΡΟΒΗ | E110: 24.82757145 | F110: 8.5125 | G110: 13.42379517 | H110: 0.542440768 | I110: 2.489630494 | J110: 3.099127126 | K110: 0.1554545026 | L110: 42.19588925 | M110: 271.4356197 | O110: 24.82757145 | P110: 8.5125 | Q110: 13.42379517 | R110: 0.542440768 | S110: 2.489630494 | T110: 3.099127126 | U110: 0.1554545026 | V110: 42.19588925 | W110: 271.4356197 | Y110: 24.82757145 | Z110: 8.5125 | AA110: 13.42379517 | AB110: 0.542440768 | AC110: 2.489630494 | AD110: 3.099127126 | AE110: 0.1554545026 | AF110: 42.19588925 | AG110: 271.4356197 | AI110: 24.82757145 | AJ110: 8.5125 | AK110: 14.32926549 | AL110: 0.542440768 | AM110: 2.489630494 | AN110: 3.198842971 | AO110: 0.1577031622 | AP110: 42.19588925 | AQ110: 267.5652705 | AS110: 24.82757145 | AT110: 8.5125 | AU110: 14.32926549 | AV110: 0.542440768 | AW110: 2.489630494 | AX110: 3.198842971 | AY110: 0.1577031622 | AZ110: 42.19588925 | BA110: 267.5652705 | BC110: 24.82757145 | BD110: 8.5125 | BE110: 14.32926549 | BF110: 0.542440768 | BG110: 2.489630494 | BH110: 3.198842971 | BI110: 0.1577031622 | BJ110: 42.19588925 | BK110: 267.5652705 | BM110: 24.82757145 | BN110: 8.5125 | BO110: 15.42408282 | BP110: 0.542440768 | BQ110: 2.489630494 | BR110: 3.315407854 | BS110: 0.1783959204 | BT110: 42.19588925 | BU110: 236.5294518 | BW110: 24.82757145 | BX110: 8.5125 | BY110: 15.42408282 | BZ110: 0.542440768 | CA110: 2.489630494 | CB110: 3.315407854 | CC110: 0.1783959204 | CD110: 42.19588925 | CE110: 236.5294518 | CG110: 24.82757145 | CH110: 8.5125 | CI110: 15.42408282 | CJ110: 0.542440768 | CK110: 2.489630494 | CL110: 3.315407854 | CM110: 0.1783959204 | CN110: 42.19588925 | CO110: 236.5294518 | CQ110: 24.82757145 | CR110: 8.5125 | CS110: 19.01228648 | CT110: 0.542440768 | CU110: 2.489630494 | CV110: 3.671593807 | CW110: 0.2159283954 | CX110: 42.19588925 | CY110: 195.4161201 | DA110: 24.82757145 | DB110: 8.5125 | DC110: 19.01228648 | DD110: 0.542440768 | DE110: 2.489630494 | DF110: 3.671593807 | DG110: 0.2159283954 | DH110: 42.19588925 | DI110: 195.4161201 | DK110: 24.82757145 | DL110: 8.5125 | DM110: 19.01228648 | DN110: 0.542440768 | DO110: 2.489630494 | DP110: 3.671593807 | DQ110: 0.2159283954 | DR110: 42.19588925 | DS110: 195.4161201 | DV110: 2.489630494 | DW110: 0.1577031622
A111: 107 | B111: 86 | D111: ='21'!E105 -> ΣΟΓΙΑ | E111: 50.55224732 | F111: 2.21 | G111: 4.459432296 | H111: 0.4239513894 | I111: 1.816783108 | J111: 2.5450645 | K111: 0.5389152873 | L111: 69.67942144 | M111: 129.2956854 | O111: 39.07234449 | P111: 2.21 | Q111: 4.459432296 | R111: 0.3727181699 | S111: 1.597230466 | T111: 2.237501295 | U111: 0.3880784092 | V111: 69.67942144 | W111: 179.5498533 | Y111: 28.84763137 | Z111: 2.21 | AA111: 4.459432296 | AB111: 0.3202586799 | AC111: 1.372422817 | AD111: 1.922576544 | AE111: 0.2600742045 | AF111: 69.67942144 | AG111: 267.9213095 | AI111: 50.55224732 | AJ111: 2.21 | AK111: 4.649697393 | AL111: 0.4239513894 | AM111: 1.816783108 | AN111: 2.597315158 | AO111: 0.5254542476 | AP111: 69.67942144 | AQ111: 132.6079706 | AS111: 39.07234449 | AT111: 2.21 | AU111: 4.649697393 | AV111: 0.3727181699 | AW111: 1.597230466 | AX111: 2.283437622 | AY111: 0.3783849769 | AZ111: 69.67942144 | BA111: 184.1495453 | BC111: 28.84763137 | BD111: 2.21 | BE111: 4.649697393 | BF111: 0.3202586799 | BG111: 1.372422817 | BH111: 1.962047406 | BI111: 0.2795581132 | BJ111: 69.67942144 | BK111: 249.2484323 | BM111: 50.55224732 | BN111: 2.21 | BO111: 5.153963389 | BP111: 0.4239513894 | BQ111: 1.816783108 | BR111: 2.730965287 | BS111: 0.615645502 | BT111: 69.67942144 | BU111: 113.1810778 | BW111: 39.07234449 | BX111: 2.21 | BY111: 5.153963389 | BZ111: 0.3727181699 | CA111: 1.597230466 | CB111: 2.400936545 | CC111: 0.4433326214 | CD111: 69.67942144 | CE111: 157.1718797 | CG111: 28.84763137 | CH111: 2.21 | CI111: 5.153963389 | CJ111: 0.3202586799 | CK111: 1.372422817 | CL111: 2.063008542 | CM111: 0.2971033073 | CN111: 69.67942144 | CO111: 234.5292689 | CQ111: 50.55224732 | CR111: 2.21 | CS111: 6.182691048 | CT111: 0.4239513894 | CU111: 1.816783108 | CV111: 2.985120182 | CW111: 0.7095451423 | CX111: 69.67942144 | CY111: 98.20294339 | DA111: 39.07234449 | DB111: 2.21 | DC111: 6.182691048 | DD111: 0.3727181699 | DE111: 1.597230466 | DF111: 2.624377603 | DG111: 0.5109507126 | DH111: 69.67942144 | DI111: 136.3720995 | DK111: 28.84763137 | DL111: 2.21 | DM111: 6.182691048 | DN111: 0.3202586799 | DO111: 1.372422817 | DP111: 2.255000627 | DQ111: 0.3692713794 | DR111: 69.67942144 | DS111: 188.694346 | DV111: 1.816783108 | DW111: 0.5254542476
A112: 108 | D112: ='21'!E106 -> ΤΡΙΦΥΛΙ | E112: 29.01109899 | F112: 0.62475 | G112: 1.04088573 | H112: 0.321164785 | I112: 0.7806848069 | J112: 0.9729961535 | K112: 0.3084822003 | L112: 62.70325092 | M112: 203.2637567 | O112: 21.29298464 | P112: 0.62475 | Q112: 1.04088573 | R112: 0.2751465678 | S112: 0.6688240901 | T112: 0.833580033 | U112: 0.1920368533 | V112: 62.70325092 | W112: 326.5167589 | Y112: 15.48175741 | Z112: 0.62475 | AA112: 1.04088573 | AB112: 0.234615099 | AC112: 0.5703005179 | AD112: 0.7107864856 | AE112: 0.1098880234 | AF112: 62.70325092 | AG112: 570.6104178 | AI112: 29.01109899 | AJ112: 0.62475 | AK112: 1.083044043 | AL112: 0.321164785 | AM112: 0.7806848069 | AN112: 0.9903980353 | AO112: 0.3007769241 | AP112: 62.70325092 | AQ112: 208.4709494 | AS112: 21.29298464 | AT112: 0.62475 | AU112: 1.083044043 | AV112: 0.2751465678 | AW112: 0.6688240901 | AX112: 0.8484884796 | AY112: 0.1872401519 | AZ112: 62.70325092 | BA112: 334.8814358 | BC112: 15.48175741 | BD112: 0.62475 | BE112: 1.083044043 | BF112: 0.234615099 | BG112: 0.5703005179 | BH112: 0.7234987891 | BI112: 0.1071432375 | BJ112: 62.70325092 | BK112: 585.2282641 | BM112: 29.01109899 | BN112: 0.62475 | BO112: 1.221432108 | BP112: 0.321164785 | BQ112: 0.7806848069 | BR112: 1.045487156 | BS112: 0.3524035846 | BT112: 62.70325092 | BU112: 177.9302302 | BW112: 21.29298464 | BX112: 0.62475 | BY112: 1.221432108 | BZ112: 0.2751465678 | CA112: 0.6688240901 | CB112: 0.8956841348 | CC112: 0.2193788666 | CD112: 62.70325092 | CE112: 285.821747 | CG112: 15.48175741 | CH112: 0.62475 | CI112: 1.221432108 | CJ112: 0.234615099 | CK112: 0.5703005179 | CL112: 0.7637421162 | CM112: 0.1255337692 | CN112: 62.70325092 | CO112: 499.493095 | CQ112: 29.01109899 | CR112: 0.62475 | CS112: 1.454555127 | CT112: 0.321164785 | CU112: 0.7806848069 | CV112: 1.132243546 | CW112: 0.4061529741 | CX112: 62.70325092 | CY112: 154.3833356 | DA112: 21.29298464 | DB112: 0.62475 | DC112: 1.454555127 | DD112: 0.2751465678 | DE112: 0.6688240901 | DF112: 0.9700096033 | DG112: 0.2528390261 | DH112: 62.70325092 | DI112: 247.9967269 | DK112: 15.48175741 | DL112: 0.62475 | DM112: 1.454555127 | DN112: 0.234615099 | DO112: 0.5703005179 | DP112: 0.8271188004 | DQ112: 0.1446804628 | DR112: 62.70325092 | DS112: 433.3912797 | DV112: 0.7806848069 | DW112: 0.3007769241
A113: 109 | B113: 57 | D113: ='21'!E107 -> ΦΑΚΗ | E113: 43.96830305 | F113: 7.57728 | G113: 9.608340499 | H113: 0.3953808963 | I113: 3.076250676 | J113: 3.458037211 | K113: 0.4824077484 | L113: 69.67942144 | M113: 144.4409251 | O113: 33.28895376 | P113: 7.57728 | Q113: 9.608340499 | R113: 0.3440296728 | S113: 2.67671383 | T113: 3.008914749 | U113: 0.3002805572 | V113: 69.67942144 | W113: 232.0477293 | Y113: 24.27237265 | Z113: 7.57728 | AA113: 9.608340499 | AB113: 0.2937662808 | AC113: 2.28564083 | AD113: 2.56930656 | AE113: 0.1717950828 | AF113: 69.67942144 | AG113: 405.5961341 | AI113: 43.96830305 | AJ113: 7.57728 | AK113: 10.16522788 | AL113: 0.3953808963 | AM113: 3.076250676 | AN113: 3.555563644 | AO113: 0.4899980801 | AP113: 69.67942144 | AQ113: 142.2034581 | AS113: 33.28895376 | AT113: 7.57728 | AU113: 10.16522788 | AV113: 0.3440296728 | AW113: 2.67671383 | AX113: 3.093774658 | AY113: 0.3050052513 | AZ113: 69.67942144 | BA113: 228.4531861 | BC113: 24.27237265 | BD113: 7.57728 | BE113: 10.16522788 | BF113: 0.2937662808 | BG113: 2.28564083 | BH113: 2.641768274 | BI113: 0.1744981523 | BJ113: 69.67942144 | BK113: 399.3132336 | BM113: 43.96830305 | BN113: 7.57728 | BO113: 11.41003534 | BP113: 0.3953808963 | BQ113: 3.076250676 | BR113: 3.764438885 | BS113: 0.5759155517 | BT113: 69.67942144 | BU113: 120.9889562 | BW113: 33.28895376 | BX113: 7.57728 | BY113: 11.41003534 | BZ113: 0.3440296728 | CA113: 2.67671383 | CB113: 3.27552163 | CC113: 0.3584856241 | CD113: 69.67942144 | CE113: 194.3715919 | CG113: 24.27237265 | CH113: 7.57728 | CI113: 11.41003534 | CJ113: 0.2937662808 | CK113: 2.28564083 | CL113: 2.796961666 | CM113: 0.2050950886 | CN113: 69.67942144 | CO113: 339.7420286 | CQ113: 43.96830305 | CR113: 7.57728 | CS113: 13.11390798 | CT113: 0.3953808963 | CU113: 3.076250676 | CV113: 4.032843441 | CW113: 0.6897758043 | CX113: 69.67942144 | CY113: 101.0174915 | DA113: 33.28895376 | DB113: 7.57728 | DC113: 13.11390798 | DD113: 0.3440296728 | DE113: 2.67671383 | DF113: 3.509066377 | DG113: 0.4293593201 | DH113: 69.67942144 | DI113: 162.2869661 | DK113: 24.27237265 | DL113: 7.57728 | DM113: 13.11390798 | DN113: 0.2937662808 | DO113: 2.28564083 | DP113: 2.99638508 | DQ113: 0.2456430101 | DR113: 69.67942144 | DS113: 283.6613239 | DV113: 3.076250676 | DW113: 0.4899980801
A114: 110 | D114: ='21'!E108 -> ΦΑΣΟΛΙΑ | E114: 44.00532235 | F114: 1.188 | G114: 1.64878462 | H114: 0.3955473076 | I114: 1.271565291 | J114: 1.477608054 | K114: 0.5424770147 | L114: 69.67942144 | M114: 128.446772 | O114: 33.09271893 | P114: 1.188 | Q114: 1.64878462 | R114: 0.3430141648 | S114: 1.102687082 | T114: 1.281365043 | U114: 0.3376273473 | V114: 69.67942144 | W114: 206.3796728 | Y114: 23.97531745 | Z114: 1.188 | AA114: 1.64878462 | AB114: 0.2919631311 | AC114: 0.9385734063 | AD114: 1.090658603 | AE114: 0.193111822 | AF114: 69.67942144 | AG114: 360.8242143 | AI114: 44.00532235 | AJ114: 1.188 | AK114: 1.766101384 | AL114: 0.3955473076 | AM114: 1.271565291 | AN114: 1.525629138 | AO114: 0.5848159074 | AP114: 69.67942144 | AQ114: 119.1476165 | AS114: 33.09271893 | AT114: 1.188 | AU114: 1.766101384 | AV114: 0.3430141648 | AW114: 1.102687082 | AX114: 1.323008385 | AY114: 0.3639935131 | AZ114: 69.67942144 | BA114: 191.4303935 | BC114: 23.97531745 | BD114: 1.188 | BE114: 1.766101384 | BF114: 0.2919631311 | BG114: 0.9385734063 | BH114: 1.126104138 | BI114: 0.2082096903 | BJ114: 69.67942144 | BK114: 334.6598391 | BM114: 44.00532235 | BN114: 1.188 | BO114: 1.956038566 | BP114: 0.3955473076 | BQ114: 1.271565291 | BR114: 1.600323717 | BS114: 0.6082303246 | BT114: 69.67942144 | BU114: 114.5609132 | BW114: 33.09271893 | BX114: 1.188 | BY114: 1.956038566 | BZ114: 0.3430141648 | CA114: 1.102687082 | CB114: 1.387782681 | CC114: 0.3785668102 | CD114: 69.67942144 | CE114: 184.0610945 | CG114: 23.97531745 | CH114: 1.188 | CI114: 1.956038566 | CJ114: 0.2919631311 | CK114: 0.9385734063 | CL114: 1.181238032 | CM114: 0.2165458324 | CN114: 69.67942144 | CO114: 321.7767835 | CQ114: 44.00532235 | CR114: 1.188 | CS114: 2.277195055 | CT114: 0.3955473076 | CU114: 1.271565291 | CV114: 1.719254773 | CW114: 0.7246138309 | CX114: 69.67942144 | CY114: 96.16076656 | DA114: 33.09271893 | DB114: 1.188 | DC114: 2.277195055 | DD114: 0.3430141648 | DE114: 1.102687082 | DF114: 1.490918352 | DG114: 0.451004719 | DH114: 69.67942144 | DI114: 154.4982092 | DK114: 23.97531745 | DL114: 1.188 | DM114: 2.277195055 | DN114: 0.2919631311 | DO114: 0.9385734063 | DP114: 1.26902395 | DQ114: 0.257981391 | DR114: 69.67942144 | DS114: 270.0947582 | DV114: 1.271565291 | DW114: 0.5848159074
A115: 111 | D115: ='21'!E109 -> ΛΟΙΠΑ ΨΥΧΑΝΘΗ | E115: 32.8714706 | F115: 1.974212885 | G115: 3.021548817 | H115: 0.3731715186 | I115: 1.162797363 | J115: 1.414521826 | K115: 0.3811097154 | L115: 61.65756991 | M115: 206.1938063 | O115: 25.28045575 | P115: 1.974212885 | Q115: 3.021548817 | R115: 0.3321109747 | S115: 1.045013089 | T115: 1.272631108 | U115: 0.2637120014 | V115: 61.65756991 | W115: 281.4822945 | Y115: 19.1032777 | Z115: 1.974212885 | AA115: 3.021548817 | AB115: 0.2931735918 | AC115: 0.9317249313 | AD115: 1.136026555 | AE115: 0.1736522102 | AF115: 61.65756991 | AG115: 423.1382972 | AI115: 32.8714706 | AJ115: 1.974212885 | AK115: 3.202215868 | AL115: 0.3731715186 | AM115: 1.162797363 | AN115: 1.44835289 | AO115: 0.3802747317 | AP115: 61.65756991 | AQ115: 203.5353106 | AS115: 25.28045575 | AT115: 1.974212885 | AU115: 3.202215868 | AV115: 0.3321109747 | AW115: 1.045013089 | AX115: 1.303646977 | AY115: 0.2630025705 | AZ115: 61.65756991 | BA115: 278.8301751 | BC115: 19.1032777 | BD115: 1.974212885 | BE115: 3.202215868 | BF115: 0.2931735918 | BG115: 0.9317249313 | BH115: 1.164301558 | BI115: 0.1752372983 | BJ115: 61.65756991 | BK115: 418.424155 | BM115: 32.8714706 | BN115: 1.974212885 | BO115: 3.524697304 | BP115: 0.3731715186 | BQ115: 1.162797363 | BR115: 1.518015061 | BS115: 0.4349364423 | BT115: 61.65756991 | BU115: 180.3106566 | BW115: 25.28045575 | BX115: 1.974212885 | BY115: 3.524697304 | BZ115: 0.3321109747 | CA115: 1.045013089 | CB115: 1.365846153 | CC115: 0.3009568358 | CD115: 61.65756991 | CE115: 246.3095431 | CG115: 19.1032777 | CH115: 1.974212885 | CI115: 3.524697304 | CJ115: 0.2931735918 | CK115: 0.9317249313 | CL115: 1.219309549 | CM115: 0.198210193 | CN115: 61.65756991 | CO115: 370.4575753 | CQ115: 32.8714706 | CR115: 1.974212885 | CS115: 4.20478898 | CT115: 0.3731715186 | CU115: 1.162797363 | CV115: 1.643137239 | CW115: 0.5245662446 | CX115: 61.65756991 | CY115: 149.2960763 | DA115: 25.28045575 | DB115: 1.974212885 | DC115: 4.20478898 | DD115: 0.3321109747 | DE115: 1.045013089 | DF115: 1.479250424 | DG115: 0.3632978523 | DH115: 61.65756991 | DI115: 204.4474801 | DK115: 19.1032777 | DL115: 1.974212885 | DM115: 4.20478898 | DN115: 0.2931735918 | DO115: 0.9317249313 | DP115: 1.321396074 | DQ115: 0.2416250422 | DR115: 61.65756991 | DS115: 307.1321639 | DV115: 1.162797363 | DW115: 0.3802747317
A116: 112 | DV116: 0 | DW116: 0
A117: 113 | D117: ='21'!E111 -> ΑΓΡΙΟΑΓΓΙΝΑΡΑ | E117: 15.37862096 | F117: 0.19453125 | G117: 0.2593008239 | H117: 0.5913391667 | I117: 0.6582206692 | J117: 0.679028764 | K117: 0.07267881408 | L117: 69.55131518 | M117: 956.9682177 | O117: 12.48481814 | P117: 0.19453125 | Q117: 0.2593008239 | R117: 0.5328059409 | S117: 0.5930672324 | T117: 0.6118156549 | U117: 0.05096607242 | V117: 69.55131518 | W117: 1364.659113 | Y117: 10.01069905 | Z117: 0.19453125 | AA117: 0.2593008239 | AB117: 0.477100807 | AC117: 0.5310617496 | AD117: 0.5478500149 | AE117: 0.0484666548 | AF117: 69.55131518 | AG117: 1435.034365 | AI117: 15.37862096 | AJ117: 0.19453125 | AK117: 0.2631335908 | AL117: 0.5913391667 | AM117: 0.6582206692 | AN117: 0.6802401449 | AO117: 0.07857031823 | AP117: 69.55131518 | AQ117: 885.2110662 | AS117: 12.48481814 | AT117: 0.19453125 | AU117: 0.2631335908 | AV117: 0.5328059409 | AW117: 0.5930672324 | AX117: 0.6129071283 | AY117: 0.05509749408 | AZ117: 69.55131518 | BA117: 1262.331733 | BC117: 10.01069905 | BD117: 0.19453125 | BE117: 0.2631335908 | BF117: 0.477100807 | BG117: 0.5310617496 | BH117: 0.5488273742 | BI117: 0.05101365701 | BJ117: 69.55131518 | BK117: 1363.386184 | BM117: 15.37862096 | BN117: 0.19453125 | BO117: 0.2970287024 | BP117: 0.5913391667 | BQ117: 0.6582206692 | BR117: 0.6908605582 | BS117: 0.08942861435 | BT117: 69.55131518 | BU117: 777.7299881 | BW117: 12.48481814 | BX117: 0.19453125 | BY117: 0.2970287024 | BZ117: 0.5328059409 | CA117: 0.5930672324 | CB117: 0.6224762886 | CC117: 0.0627118823 | CD117: 69.55131518 | CE117: 1109.061196 | CG117: 10.01069905 | CH117: 0.19453125 | CI117: 0.2970287024 | CJ117: 0.477100807 | CK117: 0.5310617496 | CL117: 0.5573960738 | CM117: 0.05980660929 | CN117: 69.55131518 | CO117: 1162.93694 | CQ117: 15.37862096 | CR117: 0.19453125 | CS117: 0.3587124847 | CT117: 0.5913391667 | CU117: 0.6582206692 | CV117: 0.709780416 | CW117: 0.09985268685 | CX117: 69.55131518 | CY117: 696.5392457 | DA117: 12.48481814 | DB117: 0.19453125 | DC117: 0.3587124847 | DD117: 0.5328059409 | DE117: 0.5930672324 | DF117: 0.6395233797 | DG117: 0.07002177089 | DH117: 69.55131518 | DI117: 993.2812936 | DK117: 10.01069905 | DL117: 0.19453125 | DM117: 0.3587124847 | DN117: 0.477100807 | DO117: 0.5310617496 | DP117: 0.5726608829 | DQ117: 0.06499108316 | DR117: 69.55131518 | DS117: 1070.167041 | DV117: 0.6582206692 | DW117: 0.07857031823
A118: 114 | D118: ='21'!E112 -> ΑΛΟΗ | E118: 20.4041568 | F118: 3.385714286 | G118: 5.374675573 | H118: 0.6811413953 | I118: 1.547194626 | J118: 1.878169166 | K118: 0.2219297689 | L118: 60.87028189 | M118: 274.2772283 | O118: 18.30882954 | P118: 3.385714286 | Q118: 5.374675573 | R118: 0.6452206214 | S118: 1.46560154 | T118: 1.779121758 | U118: 0.2143072698 | V118: 60.87028189 | W118: 284.032744 | Y118: 16.4284029 | Z118: 3.385714286 | AA118: 5.374675573 | AB118: 0.6111891292 | AC118: 1.388299907 | AD118: 1.685283827 | AE118: 0.2048707496 | AF118: 60.87028189 | AG118: 297.1155326 | AI118: 20.4041568 | AJ118: 3.385714286 | AK118: 5.757720579 | AL118: 0.6811413953 | AM118: 1.547194626 | AN118: 1.935421175 | AO118: 0.2251399976 | AP118: 60.87028189 | AQ118: 270.3663611 | AS118: 18.30882954 | AT118: 3.385714286 | AU118: 5.757720579 | AV118: 0.6452206214 | AW118: 1.46560154 | AX118: 1.833354516 | AY118: 0.2174072385 | AZ118: 60.87028189 | BA118: 279.9827748 | BC118: 16.4284029 | BD118: 3.385714286 | BE118: 5.757720579 | BF118: 0.6111891292 | BG118: 1.388299907 | BH118: 1.736656134 | BI118: 0.2110802519 | BJ118: 60.87028189 | BK118: 288.3750675 | BM118: 20.4041568 | BN118: 3.385714286 | BO118: 6.294977167 | BP118: 0.6811413953 | BQ118: 1.547194626 | BR118: 2.012980738 | BS118: 0.2546813681 | BT118: 60.87028189 | BU118: 239.0056342 | BW118: 18.30882954 | BX118: 3.385714286 | BY118: 6.294977167 | BZ118: 0.6452206214 | CA118: 1.46560154 | CB118: 1.906823887 | CC118: 0.2459339678 | CD118: 60.87028189 | CE118: 247.5066069 | CG118: 16.4284029 | CH118: 3.385714286 | CI118: 6.294977167 | CJ118: 0.6111891292 | CK118: 1.388299907 | CL118: 1.806250439 | CM118: 0.2342707675 | CN118: 60.87028189 | CO118: 259.8287552 | CQ118: 20.4041568 | CR118: 3.385714286 | CS118: 7.185648132 | CT118: 0.6811413953 | CU118: 1.547194626 | CV118: 2.135362738 | CW118: 0.3082634347 | CX118: 60.87028189 | CY118: 197.4618948 | DA118: 18.30882954 | DB118: 3.385714286 | DC118: 7.185648132 | DD118: 0.6452206214 | DE118: 1.46560154 | DF118: 2.022751932 | DG118: 0.2976756808 | DH118: 60.87028189 | DI118: 204.4852362 | DK118: 16.4284029 | DL118: 3.385714286 | DM118: 7.185648132 | DN118: 0.6111891292 | DO118: 1.388299907 | DP118: 1.91606398 | DQ118: 0.2835586756 | DR118: 60.87028189 | DS118: 214.66556 | DV118: 1.547194626 | DW118: 0.2251399976
A119: 115 | D119: ='21'!E113 -> ΒΑΤΟΜΟΥΡΑ | E119: 17.59519103 | F119: 18.5625 | G119: 28.19713778 | H119: 0.7275577798 | I119: 3.10698753 | J119: 3.793295125 | K119: 0.0901523479 | L119: 30.0068372 | M119: 332.8458759 | O119: 16.82565963 | P119: 18.5625 | Q119: 28.19713778 | R119: 0.7114699232 | S119: 3.038285399 | T119: 3.709417268 | U119: 0.07314368332 | V119: 30.0068372 | W119: 410.2450935 | Y119: 15.9920006 | Z119: 18.5625 | AA119: 28.19713778 | AB119: 0.6936204589 | AC119: 2.962060439 | AD119: 3.61635485 | AE119: 0.05471763002 | AF119: 30.0068372 | AG119: 548.3943144 | AI119: 17.59519103 | AJ119: 18.5625 | AK119: 30.40627332 | AL119: 0.7275577798 | AM119: 3.10698753 | AN119: 3.933820658 | AO119: 0.09937517033 | AP119: 30.0068372 | AQ119: 301.9550769 | AS119: 16.82565963 | AT119: 18.5625 | AU119: 30.40627332 | AV119: 0.7114699232 | AW119: 3.038285399 | AX119: 3.84683548 | AY119: 0.08062647461 | AZ119: 30.0068372 | BA119: 372.1710189 | BC119: 15.9920006 | BD119: 18.5625 | BE119: 30.40627332 | BF119: 0.6936204589 | BG119: 2.962060439 | BH119: 3.750325494 | BI119: 0.06031538757 | BJ119: 30.0068372 | BK119: 497.4988707 | BM119: 17.59519103 | BN119: 18.5625 | BO119: 33.29931491 | BP119: 0.7275577798 | BQ119: 3.10698753 | BR119: 4.11059151 | BS119: 0.1073944251 | BT119: 30.0068372 | BU119: 279.4077735 | BW119: 16.82565963 | BX119: 18.5625 | BY119: 33.29931491 | BZ119: 0.7114699232 | CA119: 3.038285399 | CB119: 4.019697552 | CC119: 0.08713277028 | CD119: 30.0068372 | CE119: 344.3806171 | CG119: 15.9920006 | CH119: 18.5625 | CI119: 33.29931491 | CJ119: 0.6936204589 | CK119: 2.962060439 | CL119: 3.918850776 | CM119: 0.06549994997 | CN119: 30.0068372 | CO119: 458.1200019 | CQ119: 17.59519103 | CR119: 18.5625 | CS119: 39.70839175 | CT119: 0.7275577798 | CU119: 3.10698753 | CV119: 4.477411978 | CW119: 0.1259801993 | CX119: 30.0068372 | CY119: 238.1869324 | DA119: 16.82565963 | DB119: 18.5625 | DC119: 39.70839175 | DD119: 0.7114699232 | DE119: 3.038285399 | DF119: 4.378406836 | DG119: 0.1022120445 | DH119: 30.0068372 | DI119: 293.5743761 | DK119: 15.9920006 | DL119: 18.5625 | DM119: 39.70839175 | DN119: 0.6936204589 | DO119: 2.962060439 | DP119: 4.268560708 | DQ119: 0.07646321026 | DR119: 30.0068372 | DS119: 392.4349645 | DV119: 3.10698753 | DW119: 0.09937517033
A120: 116 | D120: ='21'!E114 -> ΙΠΠΟΦΑΕΣ | E120: 12.96410052 | F120: 3.2 | G120: 5.625525173 | H120: 0.2146925747 | I120: 1.097724985 | J120: 1.443407334 | K120: 0.1275666931 | L120: 61.30386697 | M120: 480.5632684 | O120: 12.96410052 | P120: 3.2 | Q120: 5.625525173 | R120: 0.2146925747 | S120: 1.097724985 | T120: 1.443407334 | U120: 0.1275666931 | V120: 61.30386697 | W120: 480.5632684 | Y120: 12.96410052 | Z120: 3.2 | AA120: 5.625525173 | AB120: 0.2146925747 | AC120: 1.097724985 | AD120: 1.443407334 | AE120: 0.1275666931 | AF120: 61.30386697 | AG120: 480.5632684 | AI120: 12.96410052 | AJ120: 3.2 | AK120: 6.106834 | AL120: 0.2146925747 | AM120: 1.097724985 | AN120: 1.502576062 | AO120: 0.1283483201 | AP120: 61.30386697 | AQ120: 477.6366915 | AS120: 12.96410052 | AT120: 3.2 | AU120: 6.106834 | AV120: 0.2146925747 | AW120: 1.097724985 | AX120: 1.502576062 | AY120: 0.1283483201 | AZ120: 61.30386697 | BA120: 477.6366915 | BC120: 12.96410052 | BD120: 3.2 | BE120: 6.106834 | BF120: 0.2146925747 | BG120: 1.097724985 | BH120: 1.502576062 | BI120: 0.1283483201 | BJ120: 61.30386697 | BK120: 477.6366915 | BM120: 12.96410052 | BN120: 3.2 | BO120: 6.626328029 | BP120: 0.2146925747 | BQ120: 1.097724985 | BR120: 1.563929028 | BS120: 0.1446207135 | BT120: 61.30386697 | BU120: 423.8940984 | BW120: 12.96410052 | BX120: 3.2 | BY120: 6.626328029 | BZ120: 0.2146925747 | CA120: 1.097724985 | CB120: 1.563929028 | CC120: 0.1446207135 | CD120: 61.30386697 | CE120: 423.8940984 | CG120: 12.96410052 | CH120: 3.2 | CI120: 6.626328029 | CJ120: 0.2146925747 | CK120: 1.097724985 | CL120: 1.563929028 | CM120: 0.1446207135 | CN120: 61.30386697 | CO120: 423.8940984 | CQ120: 12.96410052 | CR120: 3.2 | CS120: 7.919219995 | CT120: 0.2146925747 | CU120: 1.097724985 | CV120: 1.707075229 | CW120: 0.1907165256 | CX120: 61.30386697 | CY120: 321.439722 | DA120: 12.96410052 | DB120: 3.2 | DC120: 7.919219995 | DD120: 0.2146925747 | DE120: 1.097724985 | DF120: 1.707075229 | DG120: 0.1907165256 | DH120: 61.30386697 | DI120: 321.439722 | DK120: 12.96410052 | DL120: 3.2 | DM120: 7.919219995 | DN120: 0.2146925747 | DO120: 1.097724985 | DP120: 1.707075229 | DQ120: 0.1907165256 | DR120: 61.30386697 | DS120: 321.439722 | DV120: 1.097724985 | DW120: 0.1283483201
A121: 117 | D121: ='21'!E115 -> ΚΑΠΠΑΡΗ | E121: 0.4749263775 | F121: 0 | G121: 0 | H121: 0.1039180752 | I121: 0.1039180752 | J121: 0.1039180752 | K121: 0.0009803051549 | L121: 21 | M121: 300 | O121: 0.4749263775 | P121: 0 | Q121: 0 | R121: 0.1039180752 | S121: 0.1039180752 | T121: 0.1039180752 | U121: 0.0009803051549 | V121: =L121 -> 21 | W121: =M121 -> 300 | Y121: 0.4749263775 | Z121: 0 | AA121: 0 | AB121: 0.1039180752 | AC121: 0.1039180752 | AD121: 0.1039180752 | AE121: 0.0009803051549 | AF121: =V121 -> 21 | AG121: =W121 -> 300 | AI121: 0.4749263775 | AJ121: 0 | AK121: 0 | AL121: 0.1039180752 | AM121: 0.1039180752 | AN121: 0.1039180752 | AO121: 0.00100189589 | AP121: =AF121 -> 21 | AQ121: =AG121 -> 300 | AS121: 0.4749263775 | AT121: 0 | AU121: 0 | AV121: 0.1039180752 | AW121: 0.1039180752 | AX121: 0.1039180752 | AY121: 0.00100189589 | AZ121: =AP121 -> 21 | BA121: =AQ121 -> 300 | BC121: 0.4749263775 | BD121: 0 | BE121: 0 | BF121: 0.1039180752 | BG121: 0.1039180752 | BH121: 0.1039180752 | BI121: 0.00100189589 | BJ121: =AZ121 -> 21 | BK121: =BA121 -> 300 | BM121: 0.4749263775 | BN121: 0 | BO121: 0 | BP121: 0.1039180752 | BQ121: 0.1039180752 | BR121: 0.1039180752 | BS121: 0.001168999446 | BT121: =BJ121 -> 21 | BU121: =BK121 -> 300 | BW121: 0.4749263775 | BX121: 0 | BY121: 0 | BZ121: 0.1039180752 | CA121: 0.1039180752 | CB121: 0.1039180752 | CC121: 0.001168999446 | CD121: =BT121 -> 21 | CE121: =BU121 -> 300 | CG121: 0.4749263775 | CH121: 0 | CI121: 0 | CJ121: 0.1039180752 | CK121: 0.1039180752 | CL121: 0.1039180752 | CM121: 0.001168999446 | CN121: =CD121 -> 21 | CO121: =CE121 -> 300 | CQ121: 0.4749263775 | CR121: 0 | CS121: 0 | CT121: 0.1039180752 | CU121: 0.1039180752 | CV121: 0.1039180752 | CW121: 0.001408158717 | CX121: =CN121 -> 21 | CY121: =CO121 -> 300 | DA121: 0.4749263775 | DB121: 0 | DC121: 0 | DD121: 0.1039180752 | DE121: 0.1039180752 | DF121: 0.1039180752 | DG121: 0.001408158717 | DH121: =CX121 -> 21 | DI121: =CY121 -> 300 | DK121: 0.4749263775 | DL121: 0 | DM121: 0 | DN121: 0.1039180752 | DO121: 0.1039180752 | DP121: 0.1039180752 | DQ121: 0.001408158717 | DR121: =DH121 -> 21 | DS121: =DI121 -> 300 | DV121: 0.1039180752 | DW121: 0.00100189589
A122: 118 | D122: ='21'!E116 -> ΚΙΝΟΑ | E122: 31.84628428 | F122: 1.02 | G122: 1.463757098 | H122: 0.3364923639 | I122: 1.010277946 | J122: 1.189725303 | K122: 0.4824077484 | L122: 69.67942144 | M122: 144.4409251 | O122: 22.73831849 | P122: 1.02 | Q122: 1.463757098 | R122: 0.2843315169 | S122: 0.8536712621 | T122: 1.005301863 | U122: 0.3002805572 | V122: 69.67942144 | W122: 232.0477293 | Y122: 15.33445077 | Z122: 1.02 | AA122: 1.463757098 | AB122: 0.2334962672 | AC122: 0.7010445247 | AD122: 0.825565294 | AE122: 0.1717950828 | AF122: 69.67942144 | AG122: 405.5961341 | AI122: 31.84628428 | AJ122: 1.02 | AK122: 1.572618252 | AL122: 0.3364923639 | AM122: 1.010277946 | AN122: 1.229753515 | AO122: 0.4899980801 | AP122: 69.67942144 | AQ122: 142.2034581 | AS122: 22.73831849 | AT122: 1.02 | AU122: 1.572618252 | AV122: 0.2843315169 | AW122: 0.8536712621 | AX122: 1.039125162 | AY122: 0.3050052513 | AZ122: 69.67942144 | BA122: 228.4531861 | BC122: 15.33445077 | BD122: 1.02 | BE122: 1.572618252 | BF122: 0.2334962672 | BG122: 0.7010445247 | BH122: 0.8533413714 | BI122: 0.1744981523 | BJ122: 69.67942144 | BK122: 399.3132336 | BM122: 31.84628428 | BN122: 1.02 | BO122: 1.754226988 | BP122: 0.3364923639 | BQ122: 1.010277946 | BR122: 1.293777566 | BS122: 0.5759155517 | BT122: 69.67942144 | BU122: 120.9889562 | BW122: 22.73831849 | BX122: 1.02 | BY122: 1.754226988 | BZ122: 0.2843315169 | CA122: 0.8536712621 | CB122: 1.093224624 | CC122: 0.3584856241 | CD122: 69.67942144 | CE122: 194.3715919 | CG122: 15.33445077 | CH122: 1.02 | CI122: 1.754226988 | CJ122: 0.2334962672 | CK122: 0.7010445247 | CL122: 0.8977684629 | CM122: 0.2050950886 | CN122: 69.67942144 | CO122: 339.7420286 | CQ122: 31.84628428 | CR122: 1.02 | CS122: 2.0619987 | CT122: 0.3364923639 | CU122: 1.010277946 | CV122: 1.395588373 | CW122: 0.6897758043 | CX122: 69.67942144 | CY122: 101.0174915 | DA122: 22.73831849 | DB122: 1.02 | DC122: 2.0619987 | DD122: 0.2843315169 | DE122: 0.8536712621 | DF122: 1.179253384 | DG122: 0.4293593201 | DH122: 69.67942144 | DI122: 162.2869661 | DK122: 15.33445077 | DL122: 1.02 | DM122: 2.0619987 | DN122: 0.2334962672 | DO122: 0.7010445247 | DP122: 0.9684162569 | DQ122: 0.2456430101 | DR122: 69.67942144 | DS122: 283.6613239 | DV122: 1.010277946 | DW122: 0.4899980801
A123: 119 | D123: ='21'!E117 -> ΚΡΟΚΟΣ | E123: 15.54260149 | F123: 0.388125 | G123: 0.4251805013 | H123: 0.2350756715 | I123: 0.4730545887 | J123: 0.4897650248 | K123: 0.1199046177 | L123: 69.67942144 | M123: 581.1237528 | O123: 12.39271437 | P123: 0.388125 | Q123: 0.4251805013 | R123: 0.2099080284 | S123: 0.4224084756 | T123: 0.437329861 | U123: 0.07463438455 | V123: 69.67942144 | W123: 933.6101833 | Y123: 9.59117535 | Z123: 0.388125 | AA123: 0.4251805013 | AB123: 0.1846637901 | AC123: 0.3716082261 | AD123: 0.384735116 | AE123: 0.04647283844 | AF123: 69.67942144 | AG123: 1499.357986 | AI123: 15.54260149 | AJ123: 0.388125 | AK123: 0.4370732833 | AL123: 0.2350756715 | AM123: 0.4730545887 | AN123: 0.4950085949 | AO123: 0.1314734369 | AP123: 69.67942144 | AQ123: 529.9885899 | AS123: 12.39271437 | AT123: 0.388125 | AU123: 0.4370732833 | AV123: 0.2099080284 | AW123: 0.4224084756 | AX123: 0.4420120446 | AY123: 0.08183537242 | AZ123: 69.67942144 | BA123: 851.4584755 | BC123: 9.59117535 | BD123: 0.388125 | BE123: 0.4370732833 | BF123: 0.1846637901 | BG123: 0.3716082261 | BH123: 0.3888542046 | BI123: 0.04681715124 | BJ123: 69.67942144 | BK123: 1488.331084 | BM123: 15.54260149 | BN123: 0.388125 | BO123: 0.4939470015 | BP123: 0.2350756715 | BQ123: 0.4730545887 | BR123: 0.5193529823 | BS123: 0.1364828058 | BT123: 69.67942144 | BU123: 510.5362615 | BW123: 12.39271437 | BX123: 0.388125 | BY123: 0.4939470015 | BZ123: 0.2099080284 | CA123: 0.4224084756 | CB123: 0.4637500762 | CC123: 0.08495344388 | CD123: 69.67942144 | CE123: 820.2071424 | CG123: 9.59117535 | CH123: 0.388125 | CI123: 0.4939470015 | CJ123: 0.1846637901 | CK123: 0.3716082261 | CL123: 0.4079779482 | CM123: 0.05336953545 | CN123: 69.67942144 | CO123: 1305.602922 | CQ123: 15.54260149 | CR123: 0.388125 | CS123: 0.5735607932 | CT123: 0.2350756715 | CU123: 0.4730545887 | CV123: 0.5516294487 | CW123: 0.1736945813 | CX123: 69.67942144 | CY123: 401.1605942 | DA123: 12.39271437 | DB123: 0.388125 | DC123: 0.5735607932 | DD123: 0.2099080284 | DE123: 0.4224084756 | DF123: 0.4925709634 | DG123: 0.1081158375 | DH123: 69.67942144 | DI123: 644.4885691 | DK123: 9.59117535 | DL123: 0.388125 | DM123: 0.5735607932 | DN123: 0.1846637901 | DO123: 0.3716082261 | DP123: 0.4333327395 | DQ123: 0.06824346492 | DR123: 69.67942144 | DS123: 1021.041671 | DV123: 0.4730545887 | DW123: 0.1314734369
A124: 120 | D124: ='21'!E118 -> ΛΕΥΚΕΣ | E124: 0.8541856683 | F124: 0 | G124: 0 | H124: 0.1006146781 | I124: 0.1006146781 | J124: 0.1006146781 | K124: 0.01948841858 | L124: 22.43044121 | M124: 1150.962615 | O124: 0.8541856683 | P124: 0 | Q124: 0 | R124: 0.1006146781 | S124: 0.1006146781 | T124: 0.1006146781 | U124: 0.01948841858 | V124: =L124 -> 22.43044121 | W124: =M124 -> 1150.962615 | Y124: 0.8541856683 | Z124: 0 | AA124: 0 | AB124: 0.1006146781 | AC124: 0.1006146781 | AD124: 0.1006146781 | AE124: 0.01948841858 | AF124: =V124 -> 22.43044121 | AG124: =W124 -> 1150.962615 | AI124: 0.8541856683 | AJ124: 0 | AK124: 0 | AL124: 0.1006146781 | AM124: 0.1006146781 | AN124: 0.1006146781 | AO124: 0.02079652384 | AP124: =AF124 -> 22.43044121 | AQ124: =AG124 -> 1150.962615 | AS124: 0.8541856683 | AT124: 0 | AU124: 0 | AV124: 0.1006146781 | AW124: 0.1006146781 | AX124: 0.1006146781 | AY124: 0.02079652384 | AZ124: =AP124 -> 22.43044121 | BA124: =AQ124 -> 1150.962615 | BC124: 0.8541856683 | BD124: 0 | BE124: 0 | BF124: 0.1006146781 | BG124: 0.1006146781 | BH124: 0.1006146781 | BI124: 0.02079652384 | BJ124: =AZ124 -> 22.43044121 | BK124: =BA124*0.95 -> 1093.414485 | BM124: 0.8541856683 | BN124: 0 | BO124: 0 | BP124: 0.1006146781 | BQ124: 0.1006146781 | BR124: 0.1006146781 | BS124: 0.02269872837 | BT124: =BJ124 -> 22.43044121 | BU124: =BK124*0.9 -> 984.0730362 | BW124: 0.8541856683 | BX124: 0 | BY124: 0 | BZ124: 0.1006146781 | CA124: 0.1006146781 | CB124: 0.1006146781 | CC124: 0.02269872837 | CD124: =BT124 -> 22.43044121 | CE124: =BU124 -> 984.0730362 | CG124: 0.8541856683 | CH124: 0 | CI124: 0 | CJ124: 0.1006146781 | CK124: 0.1006146781 | CL124: 0.1006146781 | CM124: 0.02269872837 | CN124: =CD124 -> 22.43044121 | CO124: =CE124 -> 984.0730362 | CQ124: 0.8541856683 | CR124: 0 | CS124: 0 | CT124: 0.1006146781 | CU124: 0.1006146781 | CV124: 0.1006146781 | CW124: 0.02736211069 | CX124: =CN124 -> 22.43044121 | CY124: =CO124*0.85 -> 836.4620807 | DA124: 0.8541856683 | DB124: 0 | DC124: 0 | DD124: 0.1006146781 | DE124: 0.1006146781 | DF124: 0.1006146781 | DG124: 0.02736211069 | DH124: =CX124 -> 22.43044121 | DI124: =CY124 -> 836.4620807 | DK124: 0.8541856683 | DL124: 0 | DM124: 0 | DN124: 0.1006146781 | DO124: 0.1006146781 | DP124: 0.1006146781 | DQ124: 0.02736211069 | DR124: =DH124 -> 22.43044121 | DS124: =DI124 -> 836.4620807 | DV124: 0.1006146781 | DW124: 0.02079652384
A125: 121 | D125: ='21'!E119 -> ΔΑΣΙΚΑ | E125: 12.03698225 | F125: 0 | G125: 0 | H125: 0.3776974146 | I125: 0.3776974146 | J125: 0.3776974146 | K125: 0.07357113816 | L125: 31.71599484 | M125: 431.0928936 | O125: 12.03698225 | P125: 0 | Q125: 0 | R125: 0.3776974146 | S125: 0.3776974146 | T125: 0.3776974146 | U125: 0.07357113816 | V125: 31.71599484 | W125: 431.0928936 | Y125: 12.03698225 | Z125: 0 | AA125: 0 | AB125: 0.3776974146 | AC125: 0.3776974146 | AD125: 0.3776974146 | AE125: 0.07357113816 | AF125: 31.71599484 | AG125: 431.0928936 | AI125: 12.03698225 | AJ125: 0 | AK125: 0 | AL125: 0.3776974146 | AM125: 0.3776974146 | AN125: 0.3776974146 | AO125: 0.07958236231 | AP125: 31.71599484 | AQ125: 398.5304521 | AS125: 12.03698225 | AT125: 0 | AU125: 0 | AV125: 0.3776974146 | AW125: 0.3776974146 | AX125: 0.3776974146 | AY125: 0.07958236231 | AZ125: 31.71599484 | BA125: 398.5304521 | BC125: 12.03698225 | BD125: 0 | BE125: 0 | BF125: 0.3776974146 | BG125: 0.3776974146 | BH125: 0.3776974146 | BI125: 0.07958236231 | BJ125: 31.71599484 | BK125: 398.5304521 | BM125: 12.03698225 | BN125: 0 | BO125: 0 | BP125: 0.3776974146 | BQ125: 0.3776974146 | BR125: 0.3776974146 | BS125: 0.08437216587 | BT125: 31.71599484 | BU125: 375.9058987 | BW125: 12.03698225 | BX125: 0 | BY125: 0 | BZ125: 0.3776974146 | CA125: 0.3776974146 | CB125: 0.3776974146 | CC125: 0.08437216587 | CD125: 31.71599484 | CE125: 375.9058987 | CG125: 12.03698225 | CH125: 0 | CI125: 0 | CJ125: 0.3776974146 | CK125: 0.3776974146 | CL125: 0.3776974146 | CM125: 0.08437216587 | CN125: 31.71599484 | CO125: 375.9058987 | CQ125: 12.03698225 | CR125: 0 | CS125: 0 | CT125: 0.3776974146 | CU125: 0.3776974146 | CV125: 0.3776974146 | CW125: 0.1056119038 | CX125: 31.71599484 | CY125: 300.3070081 | DA125: 12.03698225 | DB125: 0 | DC125: 0 | DD125: 0.3776974146 | DE125: 0.3776974146 | DF125: 0.3776974146 | DG125: 0.1056119038 | DH125: 31.71599484 | DI125: 300.3070081 | DK125: 12.03698225 | DL125: 0 | DM125: 0 | DN125: 0.3776974146 | DO125: 0.3776974146 | DP125: 0.3776974146 | DQ125: 0.1056119038 | DR125: 31.71599484 | DS125: 300.3070081 | DV125: 0.3776974146 | DW125: 0.07958236231
A126: 122 | D126: ='21'!E120 -> ΜΑΝΙΤΑΡΙΑ | E126: 43.13954487 | F126: 1.68609375 | G126: 2.913330921 | H126: 0.990411622 | I126: 1.735761459 | J126: 2.119396437 | K126: 0.2583931479 | L126: 60.87028189 | M126: 235.5723532 | O126: 33.85844012 | P126: 1.68609375 | Q126: 2.913330921 | R126: 0.8774278631 | S126: 1.537749996 | T126: 1.877620825 | U126: 0.1965786363 | V126: 60.87028189 | W126: 309.6485104 | Y126: 26.00216864 | Z126: 1.68609375 | AA126: 2.913330921 | AB126: 0.7689227912 | AC126: 1.347587726 | AD126: 1.645429221 | AE126: 0.158113517 | AF126: 60.87028189 | AG126: 384.9783563 | AI126: 43.13954487 | AJ126: 1.68609375 | AK126: 2.948312707 | AL126: 0.990411622 | AM126: 1.735761459 | AN126: 2.129318826 | AO126: 0.258062933 | AP126: 60.87028189 | AQ126: 235.8737893 | AS126: 33.85844012 | AT126: 1.68609375 | AU126: 2.948312707 | AV126: 0.8774278631 | AW126: 1.537749996 | AX126: 1.886411292 | AY126: 0.1994221591 | AZ126: 60.87028189 | BA126: 305.2332908 | BC126: 26.00216864 | BD126: 1.68609375 | BE126: 2.948312707 | BF126: 0.7689227912 | BG126: 1.347587726 | BH126: 1.653132635 | BI126: 0.1604006394 | BJ126: 60.87028189 | BK126: 379.4890227 | BM126: 43.13954487 | BN126: 1.68609375 | BO126: 3.339774784 | BP126: 0.990411622 | BQ126: 1.735761459 | BR126: 2.237355392 | BS126: 0.3017603363 | BT126: 60.87028189 | BU126: 201.7173053 | BW126: 33.85844012 | BX126: 1.68609375 | BY126: 3.339774784 | BZ126: 0.8774278631 | CA126: 1.537749996 | CB126: 1.982123308 | CC126: 0.2255890062 | CD126: 60.87028189 | CE126: 269.8282284 | CG126: 26.00216864 | CH126: 1.68609375 | CI126: 3.339774784 | CJ126: 0.7689227912 | CK126: 1.347587726 | CL126: 1.737008648 | CM126: 0.1814473426 | CN126: 60.87028189 | CO126: 335.4707818 | CQ126: 43.13954487 | CR126: 1.68609375 | CS126: 4.030253118 | CT126: 0.990411622 | CU126: 1.735761459 | CV126: 2.416168746 | CW126: 0.3496696884 | CX126: 60.87028189 | CY126: 174.0793781 | DA126: 33.85844012 | DB126: 1.68609375 | DC126: 4.030253118 | DD126: 0.8774278631 | DE126: 1.537749996 | DF126: 2.140538068 | DG126: 0.2730503703 | DH126: 60.87028189 | DI126: 222.926934 | DK126: 26.00216864 | DL126: 1.68609375 | DM126: 4.030253118 | DN126: 0.7689227912 | DO126: 1.347587726 | DP126: 1.875833416 | DQ126: 0.2196218023 | DR126: 60.87028189 | DS126: 277.1595592 | DV126: 1.735761459 | DW126: 0.258062933
A127: 123 | D127: ='21'!E121 -> ΣΠΑΡΑΓΓΙΑ | E127: 11.38622345 | F127: 10 | G127: 14.51503307 | H127: 0.3673457784 | I127: 1.820917445 | J127: 2.179880936 | K127: 0.03801475366 | L127: 31.71599484 | M127: 834.3075195 | O127: 11.38622345 | P127: 10 | Q127: 14.51503307 | R127: 0.3673457784 | S127: 1.820917445 | T127: 2.179880936 | U127: 0.03801475366 | V127: 31.71599484 | W127: 834.3075195 | Y127: 11.38622345 | Z127: 10 | AA127: 14.51503307 | AB127: 0.3673457784 | AC127: 1.820917445 | AD127: 2.179880936 | AE127: 0.03801475366 | AF127: 31.71599484 | AG127: 834.3075195 | AI127: 11.38622345 | AJ127: 10 | AK127: 15.36468204 | AL127: 0.3673457784 | AM127: 1.820917445 | AN127: 2.241012499 | AO127: 0.0406652736 | AP127: 31.71599484 | AQ127: 779.9282293 | AS127: 11.38622345 | AT127: 10 | AU127: 15.36468204 | AV127: 0.3673457784 | AW127: 1.820917445 | AX127: 2.241012499 | AY127: 0.0406652736 | AZ127: 31.71599484 | BA127: 779.9282293 | BC127: 11.38622345 | BD127: 10 | BE127: 15.36468204 | BF127: 0.3673457784 | BG127: 1.820917445 | BH127: 2.241012499 | BI127: 0.0406652736 | BJ127: 31.71599484 | BK127: 779.9282293 | BM127: 11.38622345 | BN127: 10 | BO127: 17.16154309 | BP127: 0.3673457784 | BQ127: 1.820917445 | BR127: 2.365096641 | BS127: 0.04402174503 | BT127: 31.71599484 | BU127: 720.4620084 | BW127: 11.38622345 | BX127: 10 | BY127: 17.16154309 | BZ127: 0.3673457784 | CA127: 1.820917445 | CB127: 2.365096641 | CC127: 0.04402174503 | CD127: 31.71599484 | CE127: 720.4620084 | CG127: 11.38622345 | CH127: 10 | CI127: 17.16154309 | CJ127: 0.3673457784 | CK127: 1.820917445 | CL127: 2.365096641 | CM127: 0.04402174503 | CN127: 31.71599484 | CO127: 720.4620084 | CQ127: 11.38622345 | CR127: 10 | CS127: 19.61586693 | CT127: 0.3673457784 | CU127: 1.820917445 | CV127: 2.524748069 | CW127: 0.05200867324 | CX127: 31.71599484 | CY127: 609.8212636 | DA127: 11.38622345 | DB127: 10 | DC127: 19.61586693 | DD127: 0.3673457784 | DE127: 1.820917445 | DF127: 2.524748069 | DG127: 0.05200867324 | DH127: 31.71599484 | DI127: 609.8212636 | DK127: 11.38622345 | DL127: 10 | DM127: 19.61586693 | DN127: 0.3673457784 | DO127: 1.820917445 | DP127: 2.524748069 | DQ127: 0.05200867324 | DR127: 31.71599484 | DS127: 609.8212636 | DV127: 1.820917445 | DW127: 0.0406652736
A128: 124 | D128: ='21'!E122 -> ΣΤΕΒΙΑ | E128: 52.16936746 | F128: 11.97 | G128: 14.7020728 | H128: 0.4306789196 | I128: 4.198843381 | J128: 4.64886497 | K128: 0.5323019451 | L128: 69.67942144 | M128: 130.9020605 | O128: 40.84019989 | P128: 11.97 | Q128: 14.7020728 | R128: 0.3810568376 | S128: 3.715059891 | T128: 4.113230769 | U128: 0.3375241086 | V128: 69.67942144 | W128: 206.4427982 | Y128: 30.98944535 | Z128: 11.97 | AA128: 14.7020728 | AB128: 0.3319347578 | AC128: 3.236151103 | AD128: 3.582993729 | AE128: 0.258558817 | AF128: 69.67942144 | AG128: 269.4915697 | AI128: 52.16936746 | AJ128: 11.97 | AK128: 15.57802184 | AL128: 0.4306789196 | AM128: 4.198843381 | AN128: 4.784196212 | AO128: 0.5470445116 | AP128: 69.67942144 | AQ128: 127.3743177 | AS128: 40.84019989 | AT128: 11.97 | AU128: 15.57802184 | AV128: 0.3810568376 | AW128: 3.715059891 | AX128: 4.23296938 | AY128: 0.3700896215 | AZ128: 69.67942144 | BA128: 188.2771561 | BC128: 30.98944535 | BD128: 11.97 | BE128: 15.57802184 | BF128: 0.3319347578 | BG128: 3.236151103 | BH128: 3.687296821 | BI128: 0.2835054809 | BJ128: 69.67942144 | BK128: 245.7780401 | BM128: 52.16936746 | BN128: 11.97 | BO128: 17.3492647 | BP128: 0.4306789196 | BQ128: 4.198843381 | BR128: 5.046771425 | BS128: 0.6012424401 | BT128: 69.67942144 | BU128: 115.8923868 | BW128: 40.84019989 | BX128: 11.97 | BY128: 17.3492647 | BZ128: 0.3810568376 | CA128: 3.715059891 | CB128: 4.465291129 | CC128: 0.3841906862 | CD128: 69.67942144 | CE128: 181.3667638 | CG128: 30.98944535 | CH128: 11.97 | CI128: 17.3492647 | CJ128: 0.3319347578 | CK128: 3.236151103 | CL128: 3.889669948 | CM128: 0.2943075377 | CN128: 69.67942144 | CO128: 236.7571758 | CQ128: 52.16936746 | CR128: 11.97 | CS128: 19.96980029 | CT128: 0.4306789196 | CU128: 4.198843381 | CV128: 5.411932171 | CW128: 0.7515530501 | CX128: 69.67942144 | CY128: 92.71390946 | DA128: 40.84019989 | DB128: 11.97 | DC128: 19.96980029 | DD128: 0.3810568376 | DE128: 3.715059891 | DF128: 4.788378684 | DG128: 0.4889395406 | DH128: 69.67942144 | DI128: 142.5113243 | DK128: 30.98944535 | DL128: 11.97 | DM128: 19.96980029 | DN128: 0.3319347578 | DO128: 3.236151103 | DP128: 4.17110825 | DQ128: 0.3745499239 | DR128: 69.67942144 | DS128: 186.0350704 | DV128: 4.198843381 | DW128: 0.5470445116

Sheet 2 (hidden)
A5: 1 | E5: ΖΩΝΗ Α | K5: =E5 -> ΖΩΝΗ Α | L5: =E5 -> ΖΩΝΗ Α | M5: =K5 -> ΖΩΝΗ Α | O5: =E5 -> ΖΩΝΗ Α | U5: =O5 -> ΖΩΝΗ Α | V5: =O5 -> ΖΩΝΗ Α | W5: =U5 -> ΖΩΝΗ Α | Y5: =E5 -> ΖΩΝΗ Α | AE5: =Y5 -> ΖΩΝΗ Α | AF5: =Y5 -> ΖΩΝΗ Α | AG5: =AE5 -> ΖΩΝΗ Α | AI5: ΖΩΝΗ Β | AO5: =AI5 -> ΖΩΝΗ Β | AP5: =AI5 -> ΖΩΝΗ Β | AQ5: =AO5 -> ΖΩΝΗ Β | AS5: =AI5 -> ΖΩΝΗ Β | AY5: =AS5 -> ΖΩΝΗ Β | AZ5: =AS5 -> ΖΩΝΗ Β | BA5: =AY5 -> ΖΩΝΗ Β | BC5: =AI5 -> ΖΩΝΗ Β | BI5: =BC5 -> ΖΩΝΗ Β | BJ5: =BC5 -> ΖΩΝΗ Β | BK5: =BI5 -> ΖΩΝΗ Β | BM5: ΖΩΝΗ Γ | BS5: =BM5 -> ΖΩΝΗ Γ | BT5: =BM5 -> ΖΩΝΗ Γ | BU5: =BS5 -> ΖΩΝΗ Γ | BW5: =BM5 -> ΖΩΝΗ Γ | CC5: =BW5 -> ΖΩΝΗ Γ | CD5: =BW5 -> ΖΩΝΗ Γ | CE5: =CC5 -> ΖΩΝΗ Γ | CG5: =BM5 -> ΖΩΝΗ Γ | CM5: =CG5 -> ΖΩΝΗ Γ | CN5: =CG5 -> ΖΩΝΗ Γ | CO5: =CM5 -> ΖΩΝΗ Γ | CQ5: ΖΩΝΗ Δ | CW5: =CQ5 -> ΖΩΝΗ Δ | CX5: =CQ5 -> ΖΩΝΗ Δ | CY5: =CW5 -> ΖΩΝΗ Δ | DA5: =CQ5 -> ΖΩΝΗ Δ | DG5: =DA5 -> ΖΩΝΗ Δ | DH5: =DA5 -> ΖΩΝΗ Δ | DI5: =DG5 -> ΖΩΝΗ Δ | DK5: =CQ5 -> ΖΩΝΗ Δ | DQ5: =DK5 -> ΖΩΝΗ Δ | DR5: =DK5 -> ΖΩΝΗ Δ | DS5: =DQ5 -> ΖΩΝΗ Δ
A6: 2 | E6: βαρύ | K6: =E6 -> βαρύ | L6: =E6 -> βαρύ | M6: =K6 -> βαρύ | O6: μέσο | U6: =O6 -> μέσο | V6: =O6 -> μέσο | W6: =U6 -> μέσο | Y6: ελαφρύ | AE6: =Y6 -> ελαφρύ | AF6: =Y6 -> ελαφρύ | AG6: =AE6 -> ελαφρύ | AI6: βαρύ | AO6: =AI6 -> βαρύ | AP6: =AI6 -> βαρύ | AQ6: =AO6 -> βαρύ | AS6: μέσο | AY6: =AS6 -> μέσο | AZ6: =AS6 -> μέσο | BA6: =AY6 -> μέσο | BC6: ελαφρύ | BI6: =BC6 -> ελαφρύ | BJ6: =BC6 -> ελαφρύ | BK6: =BI6 -> ελαφρύ | BM6: βαρύ | BS6: =BM6 -> βαρύ | BT6: =BM6 -> βαρύ | BU6: =BS6 -> βαρύ | BW6: μέσο | CC6: =BW6 -> μέσο | CD6: =BW6 -> μέσο | CE6: =CC6 -> μέσο | CG6: ελαφρύ | CM6: =CG6 -> ελαφρύ | CN6: =CG6 -> ελαφρύ | CO6: =CM6 -> ελαφρύ | CQ6: βαρύ | CW6: =CQ6 -> βαρύ | CX6: =CQ6 -> βαρύ | CY6: =CW6 -> βαρύ | DA6: μέσο | DG6: =DA6 -> μέσο | DH6: =DA6 -> μέσο | DI6: =DG6 -> μέσο | DK6: ελαφρύ | DQ6: =DK6 -> ελαφρύ | DR6: =DK6 -> ελαφρύ | DS6: =DQ6 -> ελαφρύ
A7: 3 | B7: ='18'!$F$56 -> 0 | C7: =IF(B7<20,(0.0105*B7 + 0.7895),1) -> 0.7895 | E7: Συνολ. ενέργεια (kWh/στρ) | F7: Ωριαίο κόστος από μη έγκαιρη εκτέλεση (€/ h*στρ) | H7: Ισχύς γ.ε (Hp/στρ) | L7: Ελάχ. ισχύ (Hp) | M7: ελάχ. στρέμ. | O7: Συνολ. ενέργεια (kWh/στρ) | P7: Ωριαίο κόστος από μη έγκαιρη εκτέλεση (€/ h*στρ) | R7: Ισχύς γ.ε (Hp/στρ) | V7: Ελάχ. ισχύ (Hp) | W7: ελάχ. στρέμ. | Y7: Συνολ. ενέργεια (kWh/στρ) | Z7: Ωριαίο κόστος από μη έγκαιρη εκτέλεση (€/ h*στρ) | AB7: Ισχύς γ.ε (Hp/στρ) | AF7: Ελάχ. ισχύ (Hp) | AG7: ελάχ. στρέμ. | AI7: Συνολ. ενέργεια (kWh/στρ) | AJ7: Ωριαίο κόστος από μη έγκαιρη εκτέλεση (€/ h*στρ) | AL7: Ισχύς γ.ε (Hp/στρ) | AP7: Ελάχ. ισχύ (Hp) | AQ7: ελάχ. στρέμ. | AS7: Συνολ. ενέργεια (kWh/στρ) | AT7: Ωριαίο κόστος από μη έγκαιρη εκτέλεση (€/ h*στρ) | AV7: Ισχύς γ.ε (Hp/στρ) | AZ7: Ελάχ. ισχύ (Hp) | BA7: ελάχ. στρέμ. | BC7: Συνολ. ενέργεια (kWh/στρ) | BD7: Ωριαίο κόστος από μη έγκαιρη εκτέλεση (€/ h*στρ) | BF7: Ισχύς γ.ε (Hp/στρ) | BJ7: Ελάχ. ισχύ (Hp) | BK7: ελάχ. στρέμ. | BM7: Συνολ. ενέργεια (kWh/στρ) | BN7: Ωριαίο κόστος από μη έγκαιρη εκτέλεση (€/ h*στρ) | BP7: Ισχύς γ.ε (Hp/στρ) | BT7: Ελάχ. ισχύ (Hp) | BU7: ελάχ. στρέμ. | BW7: Συνολ. ενέργεια (kWh/στρ) | BX7: Ωριαίο κόστος από μη έγκαιρη εκτέλεση (€/ h*στρ) | BZ7: Ισχύς γ.ε (Hp/στρ) | CD7: Ελάχ. ισχύ (Hp) | CE7: ελάχ. στρέμ. | CG7: Συνολ. ενέργεια (kWh/στρ) | CH7: Ωριαίο κόστος από μη έγκαιρη εκτέλεση (€/ h*στρ) | CJ7: Ισχύς γ.ε (Hp/στρ) | CN7: Ελάχ. ισχύ (Hp) | CO7: ελάχ. στρέμ. | CQ7: Συνολ. ενέργεια (kWh/στρ) | CR7: Ωριαίο κόστος από μη έγκαιρη εκτέλεση (€/ h*στρ) | CT7: Ισχύς γ.ε (Hp/στρ) | CX7: Ελάχ. ισχύ (Hp) | CY7: ελάχ. στρέμ. | DA7: Συνολ. ενέργεια (kWh/στρ) | DB7: Ωριαίο κόστος από μη έγκαιρη εκτέλεση (€/ h*στρ) | DD7: Ισχύς γ.ε (Hp/στρ) | DH7: Ελάχ. ισχύ (Hp) | DI7: ελάχ. στρέμ. | DK7: Συνολ. ενέργεια (kWh/στρ) | DL7: Ωριαίο κόστος από μη έγκαιρη εκτέλεση (€/ h*στρ) | DN7: Ισχύς γ.ε (Hp/στρ) | DR7: Ελάχ. ισχύ (Hp) | DS7: ελάχ. στρέμ.
A8: 4 | C8: Adjust | F8: αριστ. | G8: περιορ. | H8: ελαχ. | I8: αριστ. | J8: με περιορ. | K8: TEReS | P8: αριστ. | Q8: περιορ. | R8: ελαχ. | S8: αριστ. | T8: με περιορ. | U8: TEReS | Z8: αριστ. | AA8: περιορ. | AB8: ελαχ. | AC8: αριστ. | AD8: με περιορ. | AE8: TEReS | AJ8: αριστ. | AK8: περιορ. | AL8: ελαχ. | AM8: αριστ. | AN8: με περιορ. | AO8: TEReS | AT8: αριστ. | AU8: περιορ. | AV8: ελαχ. | AW8: αριστ. | AX8: με περιορ. | AY8: TEReS | BD8: αριστ. | BE8: περιορ. | BF8: ελαχ. | BG8: αριστ. | BH8: με περιορ. | BI8: TEReS | BN8: αριστ. | BO8: περιορ. | BP8: ελαχ. | BQ8: αριστ. | BR8: με περιορ. | BS8: TEReS | BX8: αριστ. | BY8: περιορ. | BZ8: ελαχ. | CA8: αριστ. | CB8: με περιορ. | CC8: TEReS | CH8: αριστ. | CI8: περιορ. | CJ8: ελαχ. | CK8: αριστ. | CL8: με περιορ. | CM8: TEReS | CR8: αριστ. | CS8: περιορ. | CT8: ελαχ. | CU8: αριστ. | CV8: με περιορ. | CW8: TEReS | DB8: αριστ. | DC8: περιορ. | DD8: ελαχ. | DE8: αριστ. | DF8: με περιορ. | DG8: TEReS | DL8: αριστ. | DM8: περιορ. | DN8: ελαχ. | DO8: αριστ. | DP8: με περιορ. | DQ8: TEReS | DV8: αριστ. | DW8: TEReS
A9: 5 | B9: 31 | C9: =1.1*C7 -> 0.86845 | D9: ='21'!E3 -> ΑΜΠΕΛΩΝΕΣ ΓΙΑ ΕΠΙΤΡΑΠΕΖΙΑ ΧΡΗΣΗ | E9: 18.99768853 | F9: 4.6875 | G9: 6.762376632 | H9: 0.7559984017 | I9: 1.749067055 | J9: 2.039704105 | K9: 0.1289661719 | L9: ='1'!L9*'2'!$C9 -> 20.13394655 | M9: 179.7663014 | O9: 17.46628275 | P9: 4.6875 | Q9: 6.762376632 | R9: 0.7248877139 | S9: 1.677089814 | T9: 1.955766629 | U9: 0.1072683617 | V9: ='1'!V9*'2'!$C9 -> 20.13394655 | W9: 216.1287016 | Y9: 15.80725982 | Z9: 4.6875 | AA9: 6.762376632 | AB9: 0.6896024434 | AC9: 1.595454319 | AD9: 1.860566016 | AE9: 0.1072683617 | AF9: ='1'!AF9*'2'!$C9 -> 20.13394655 | AG9: 216.1287016 | AI9: 18.99768853 | AJ9: 4.6875 | AK9: 7.148207071 | AL9: 0.7559984017 | AM9: 1.749067055 | AN9: 2.08929577 | AO9: 0.1257448516 | AP9: ='1'!AP9*'2'!$C9 -> 20.13394655 | AQ9: 184.3715383 | AS9: 17.46628275 | AT9: 4.6875 | AU9: 7.148207071 | AV9: 0.7248877139 | AW9: 1.677089814 | AX9: 2.003317508 | AY9: 0.1052828414 | AZ9: ='1'!AZ9*'2'!$C9 -> 20.13394655 | BA9: 220.2046547 | BC9: 15.80725982 | BD9: 4.6875 | BE9: 7.148207071 | BF9: 0.6896024434 | BG9: 1.595454319 | BH9: 1.905802267 | BI9: 0.1052828414 | BJ9: ='1'!BJ9*'2'!$C9 -> 20.13394655 | BK9: 220.2046547 | BM9: 18.99768853 | BN9: 4.6875 | BO9: 7.933059034 | BP9: 0.7559984017 | BQ9: 1.749067055 | BR9: 2.186706521 | BS9: 0.1473282453 | BT9: ='1'!BT9*'2'!$C9 -> 20.13394655 | BU9: 157.361351 | BW9: 17.46628275 | BX9: 4.6875 | BY9: 7.933059034 | BZ9: 0.7248877139 | CA9: 1.677089814 | CB9: 2.096719632 | CC9: 0.1211504899 | CD9: ='1'!CD9*'2'!$C9 -> 20.13394655 | CE9: 191.3634171 | CG9: 15.80725982 | CH9: 4.6875 | CI9: 7.933059034 | CJ9: 0.6896024434 | CK9: 1.595454319 | CL9: 1.994657867 | CM9: 0.1211504899 | CN9: ='1'!CN9*'2'!$C9 -> 20.13394655 | CO9: 191.3634171 | CQ9: 18.99768853 | CR9: 4.6875 | CS9: 9.12009094 | CT9: 0.7559984017 | CU9: 1.749067055 | CV9: 2.326296374 | CW9: 0.1697990815 | CX9: ='1'!CX9*'2'!$C9 -> 20.13394655 | CY9: 136.5364966 | DA9: 17.46628275 | DB9: 4.6875 | DC9: 9.12009094 | DD9: 0.7248877139 | DE9: 1.677089814 | DF9: 2.230565113 | DG9: 0.1415712561 | DH9: ='1'!DH9*'2'!$C9 -> 20.13394655 | DI9: 163.7604437 | DK9: 15.80725982 | DL9: 4.6875 | DM9: 9.12009094 | DN9: 0.6896024434 | DO9: 1.595454319 | DP9: 2.121988168 | DQ9: 0.1415712561 | DR9: ='1'!DR9*'2'!$C9 -> 20.13394655 | DS9: 163.7604437 | DV9: =AM9 -> 1.749067055 | DW9: =AO9 -> 0.1257448516
A10: 6 | C10: =1.1*C7 -> 0.86845 | D10: ='21'!E4 -> ΑΜΠΕΛΩΝΕΣ ΓΙΑ ΠΑΡΑΓΩΓΗ ΟΙΝΟΥ | E10: 27.25223638 | F10: 4.6875 | G10: 6.44423417 | H10: 0.9054647951 | I10: 2.094870359 | J10: 2.392883539 | K10: 0.0901523479 | L10: ='1'!L10*'2'!$C10 -> 26.05943777 | M10: 332.8458759 | O10: 26.48270497 | P10: 4.6875 | Q10: 6.44423417 | R10: 0.8925892806 | S10: 2.065081753 | T10: 2.35885725 | U10: 0.07314368332 | V10: ='1'!V10*'2'!$C10 -> 26.05943777 | W10: 410.2450935 | Y10: 25.64904595 | Z10: 4.6875 | AA10: 6.44423417 | AB10: 0.8784278646 | AC10: 2.032318104 | AD10: 2.321432692 | AE10: 0.06044712094 | AF10: ='1'!AF10*'2'!$C10 -> 26.05943777 | AG10: 496.4146635 | AI10: 27.25223638 | AJ10: 4.6875 | AK10: 6.911124714 | AL10: 0.9054647951 | AM10: 2.094870359 | AN10: 2.46603681 | AO10: 0.09937517033 | AP10: ='1'!AP10*'2'!$C10 -> 26.05943777 | AQ10: 301.9550769 | AS10: 26.48270497 | AT10: 4.6875 | AU10: 6.911124714 | AV10: 0.8925892806 | AW10: 2.065081753 | AX10: 2.430970297 | AY10: 0.08062647461 | AZ10: ='1'!AZ10*'2'!$C10 -> 26.05943777 | BA10: 372.1710189 | BC10: 25.64904595 | BD10: 4.6875 | BE10: 6.911124714 | BF10: 0.8784278646 | BG10: 2.032318104 | BH10: 2.392401627 | BI10: 0.06526281788 | BJ10: ='1'!BJ10*'2'!$C10 -> 26.05943777 | BK10: 459.7845784 | BM10: 27.25223638 | BN10: 4.6875 | BO10: 7.638678694 | BP10: 0.9054647951 | BQ10: 2.094870359 | BR10: 2.575893581 | BS10: 0.1073944251 | BT10: ='1'!BT10*'2'!$C10 -> 26.05943777 | BU10: 279.4077735 | BW10: 26.48270497 | BX10: 4.6875 | BY10: 7.638678694 | BZ10: 0.8925892806 | CA10: 2.065081753 | CB10: 2.539264929 | CC10: 0.08713277028 | CD10: ='1'!CD10*'2'!$C10 -> 26.05943777 | CE10: 344.3806171 | CG10: 25.64904595 | CH10: 4.6875 | CI10: 7.638678694 | CJ10: 0.8784278646 | CK10: 2.032318104 | CL10: 2.498978105 | CM10: 0.07233163964 | CN10: ='1'!CN10*'2'!$C10 -> 26.05943777 | CO10: 414.8507811 | CQ10: 27.25223638 | CR10: 4.6875 | CS10: 8.986668761 | CT10: 0.9054647951 | CU10: 2.094870359 | CV10: 2.767934028 | CW10: 0.1259801993 | CX10: ='1'!CX10*'2'!$C10 -> 26.05943777 | CY10: 238.1869324 | DA10: 26.48270497 | DB10: 4.6875 | DC10: 8.986668761 | DD10: 0.8925892806 | DE10: 2.065081753 | DF10: 2.728574602 | DG10: 0.1022120445 | DH10: ='1'!DH10*'2'!$C10 -> 26.05943777 | DI10: 293.5743761 | DK10: 25.64904595 | DL10: 4.6875 | DM10: 8.986668761 | DN10: 0.8784278646 | DO10: 2.032318104 | DP10: 2.685284277 | DQ10: 0.08745013809 | DR10: ='1'!DR10*'2'!$C10 -> 26.05943777 | DS10: 343.1308156 | DV10: =AM10 -> 2.094870359 | DW10: =AO10 -> 0.09937517033
A11: 7 | C11: 1 | D11: ='21'!E5 -> ΑΝΘΗ ΚΑΙ ΚΑΛΛΩΠΙΣΤΙΚΑ | E11: 51.05713971 | F11: 0 | G11: 0 | H11: 1.077472487 | I11: 1.077472487 | J11: 1.077472487 | K11: 0.3624330135 | L11: ='1'!L11*'2'!$C11 -> 40.58018793 | M11: 111.9660362 | O11: 39.58543906 | P11: 0 | Q11: 0 | R11: 0.9487366583 | S11: 0.9487366583 | T11: 0.9487366583 | U11: 0.3227952516 | V11: ='1'!V11*'2'!$C11 -> 40.58018793 | W11: 125.714947 | Y11: 29.42719348 | Z11: 0 | AA11: 0 | AB11: 0.8179982429 | AC11: 0.8179982429 | AD11: 0.8179982429 | AE11: 0.2798543428 | AF11: ='1'!AF11*'2'!$C11 -> 40.58018793 | AG11: 145.0046747 | AI11: 51.05713971 | AJ11: 0 | AK11: 0 | AL11: 1.077472487 | AM11: 1.077472487 | AN11: 1.077472487 | AO11: 0.3681356309 | AP11: ='1'!AP11*'2'!$C11 -> 40.58018793 | AQ11: 110.2316226 | AS11: 39.58543906 | AT11: 0 | AU11: 0 | AV11: 0.9487366583 | AW11: 0.9487366583 | AX11: 0.9487366583 | AY11: 0.3278741978 | AZ11: ='1'!AZ11*'2'!$C11 -> 40.58018793 | BA11: 123.7675554 | BC11: 29.42719348 | BD11: 0 | BE11: 0 | BF11: 0.8179982429 | BG11: 0.8179982429 | BH11: 0.8179982429 | BI11: 0.2842576454 | BJ11: ='1'!BJ11*'2'!$C11 -> 40.58018793 | BK11: 142.7584749 | BM11: 51.05713971 | BN11: 0 | BO11: 0 | BP11: 1.077472487 | BQ11: 1.077472487 | BR11: 1.077472487 | BS11: 0.4326854401 | BT11: ='1'!BT11*'2'!$C11 -> 40.58018793 | BU11: 93.78681177 | BW11: 39.58543906 | BX11: 0 | BY11: 0 | BZ11: 0.9487366583 | CA11: 0.9487366583 | CB11: 0.9487366583 | CC11: 0.3853644681 | CD11: ='1'!CD11*'2'!$C11 -> 40.58018793 | CE11: 105.3033979 | CG11: 29.42719348 | CH11: 0 | CI11: 0 | CJ11: 0.8179982429 | CK11: 0.8179982429 | CL11: 0.8179982429 | CM11: 0.3341000818 | CN11: ='1'!CN11*'2'!$C11 -> 40.58018793 | CO11: 121.4611733 | CQ11: 51.05713971 | CR11: 0 | CS11: 0 | CT11: 1.077472487 | CU11: 1.077472487 | CV11: 1.077472487 | CW11: 0.518228665 | CX11: ='1'!CX11*'2'!$C11 -> 40.58018793 | CY11: 78.30556407 | DA11: 39.58543906 | DB11: 0 | DC11: 0 | DD11: 0.9487366583 | DE11: 0.9487366583 | DF11: 0.9487366583 | DG11: 0.4615521932 | DH11: ='1'!DH11*'2'!$C11 -> 40.58018793 | DI11: 87.92112469 | DK11: 29.42719348 | DL11: 0 | DM11: 0 | DN11: 0.8179982429 | DO11: 0.8179982429 | DP11: 0.8179982429 | DQ11: 0.4001526821 | DR11: ='1'!DR11*'2'!$C11 -> 40.58018793 | DS11: 101.4117604 | DV11: 1.077472487 | DW11: 0.3681356309
A12: 8 | B12: 80 | C12: 1 | D12: ='21'!E6 -> ΔΥΟΣΜΟΣ | E12: 20.07044662 | F12: 1.887 | G12: 2.526532833 | H12: 0.6755483956 | I12: 1.230595224 | J12: 1.368552686 | K12: 0.1303620987 | L12: ='1'!L12*'2'!$C12 -> 60.87028189 | M12: 466.932356 | O12: 15.79956531 | P12: 1.887 | Q12: 2.526532833 | R12: 0.5993776129 | S12: 1.091840692 | T12: 1.214242899 | U12: 0.09130727873 | V12: ='1'!V12*'2'!$C12 -> 60.87028189 | W12: 666.6531162 | Y12: 12.28513612 | Z12: 1.887 | AA12: 2.526532833 | AB12: 0.5285279207 | AC12: 0.9627791868 | AD12: 1.070712787 | AE12: 0.05876159541 | AF12: ='1'!AF12*'2'!$C12 -> 60.87028189 | AG12: 1035.885453 | AI12: 20.07044662 | AJ12: 1.887 | AK12: 2.675796714 | AL12: 0.6755483956 | AM12: 1.230595224 | AN12: 1.398794265 | AO12: 0.1334249111 | AP12: ='1'!AP12*'2'!$C12 -> 60.87028189 | AQ12: 456.2137714 | AS12: 15.79956531 | AT12: 1.887 | AU12: 2.675796714 | AV12: 0.5993776129 | AW12: 1.091840692 | AX12: 1.241074619 | AY12: 0.09345251164 | AZ12: ='1'!AZ12*'2'!$C12 -> 60.87028189 | BA12: 651.3498762 | BC12: 12.28513612 | BD12: 1.887 | BE12: 2.675796714 | BF12: 0.5285279207 | BG12: 0.9627791868 | BH12: 1.094372852 | BI12: 0.06014217875 | BJ12: ='1'!BJ12*'2'!$C12 -> 60.87028189 | BK12: 1012.106365 | BM12: 20.07044662 | BN12: 1.887 | BO12: 2.971797374 | BP12: 0.6755483956 | BQ12: 1.230595224 | BR12: 1.456909877 | BS12: 0.1520090188 | BT12: ='1'!BT12*'2'!$C12 -> 60.87028189 | BU12: 400.4386212 | BW12: 15.79956531 | BX12: 1.887 | BY12: 2.971797374 | BZ12: 0.5993776129 | CA12: 1.091840692 | CB12: 1.292637463 | CC12: 0.106469058 | CD12: ='1'!CD12*'2'!$C12 -> 60.87028189 | CE12: 571.718047 | CG12: 12.28513612 | CH12: 1.887 | CI12: 2.971797374 | CJ12: 0.5285279207 | CK12: 0.9627791868 | CL12: 1.139840688 | CM12: 0.06851909065 | CN12: ='1'!CN12*'2'!$C12 -> 60.87028189 | CO12: 888.3696691 | CQ12: 20.07044662 | CR12: 1.887 | CS12: 3.417972031 | CT12: 0.6755483956 | CU12: 1.230595224 | CV12: 1.540372229 | CW12: 0.1648217359 | CX12: ='1'!CX12*'2'!$C12 -> 60.87028189 | CY12: 369.3097975 | DA12: 15.79956531 | DB12: 1.887 | DC12: 3.417972031 | DD12: 0.5993776129 | DE12: 1.091840692 | DF12: 1.366689102 | DG12: 0.1154432487 | DH12: ='1'!DH12*'2'!$C12 -> 60.87028189 | DI12: 527.2745059 | DK12: 12.28513612 | DL12: 1.887 | DM12: 3.417972031 | DN12: 0.5285279207 | DO12: 0.9627791868 | DP12: 1.20513902 | DQ12: 0.07429450931 | DR12: ='1'!DR12*'2'!$C12 -> 60.87028189 | DS12: 819.3106389 | DV12: 1.230595224 | DW12: 0.1334249111
A13: 9 | B13: 72 | C13: 1 | D13: ='21'!E7 -> ΛΕΒΑΝΤΑ | E13: 17.32065346 | F13: 1.124 | G13: 1.92668749 | H13: 0.2481578202 | I13: 0.7781015489 | J13: 0.9969108075 | K13: 0.1132340243 | L13: ='1'!L13*'2'!$C13 -> 69.55131518 | M13: 614.2262947 | O13: 13.48088655 | P13: 1.124 | Q13: 1.92668749 | R13: 0.2189298887 | S13: 0.6864570513 | T13: 0.8794950405 | U13: 0.07939784777 | V13: ='1'!V13*'2'!$C13 -> 69.55131518 | W13: 875.9848929 | Y13: 10.08182788 | Z13: 1.124 | AA13: 1.92668749 | AB13: 0.189328271 | AC13: 0.5936408564 | AD13: 0.7605780844 | AE13: 0.05120103399 | AF13: ='1'!AF13*'2'!$C13 -> 69.55131518 | AG13: 1358.396692 | AI13: 17.32065346 | AJ13: 1.124 | AK13: 2.030899908 | AL13: 0.2481578202 | AM13: 0.7781015489 | AN13: 1.021888193 | AO13: 0.1157279475 | AP13: ='1'!AP13*'2'!$C13 -> 69.55131518 | AQ13: 600.9897925 | AS13: 13.48088655 | AT13: 1.124 | AU13: 2.030899908 | AV13: 0.2189298887 | AW13: 0.6864570513 | AX13: 0.9015305992 | AY13: 0.08114654599 | AZ13: ='1'!AZ13*'2'!$C13 -> 69.55131518 | BA13: 857.1075247 | BC13: 10.08182788 | BD13: 1.124 | BE13: 2.030899908 | BF13: 0.189328271 | BG13: 0.5936408564 | BH13: 0.7796342044 | BI13: 0.05232871137 | BJ13: ='1'!BJ13*'2'!$C13 -> 69.55131518 | BK13: 1329.123408 | BM13: 17.32065346 | BN13: 1.124 | BO13: 2.249470968 | BP13: 0.2481578202 | BQ13: 0.7781015489 | BR13: 1.072386815 | BS13: 0.1267866424 | BT13: ='1'!BT13*'2'!$C13 -> 69.55131518 | BU13: 548.5697377 | BW13: 13.48088655 | BX13: 1.124 | BY13: 2.249470968 | BZ13: 0.2189298887 | CA13: 0.6864570513 | CB13: 0.9460815132 | CC13: 0.08890072217 | CD13: ='1'!CD13*'2'!$C13 -> 69.55131518 | CE13: 782.3481461 | CG13: 10.08182788 | CH13: 1.124 | CI13: 2.249470968 | CJ13: 0.189328271 | CK13: 0.5936408564 | CL13: 0.8181613674 | CM13: 0.05732912195 | CN13: ='1'!CN13*'2'!$C13 -> 69.55131518 | CO13: 1213.193449 | CQ13: 17.32065346 | CR13: 1.124 | CS13: 2.624132739 | CT13: 0.2481578202 | CU13: 0.7781015489 | CV13: 1.15381874 | CW13: 0.1626549422 | CX13: ='1'!CX13*'2'!$C13 -> 69.55131518 | CY13: 427.6003804 | DA13: 13.48088655 | DB13: 1.124 | DC13: 2.624132739 | DD13: 0.2189298887 | DE13: 0.6864570513 | DF13: 1.017922418 | DG13: 0.114050988 | DH13: ='1'!DH13*'2'!$C13 -> 69.55131518 | DI13: 609.8265032 | DK13: 10.08182788 | DL13: 1.124 | DM13: 2.624132739 | DN13: 0.189328271 | DO13: 0.5936408564 | DP13: 0.880288628 | DQ13: 0.07354769274 | DR13: ='1'!DR13*'2'!$C13 -> 69.55131518 | DS13: 945.6627745 | DV13: 0.7781015489 | DW13: 0.1157279475
A14: 10 | B14: 70 | C14: 1 | D14: ='21'!E8 -> ΛΟΥΙΖΑ | E14: 12.38363077 | F14: 1.689416667 | G14: 2.969771748 | H14: 0.2098310852 | I14: 0.7927613925 | J14: 1.03508466 | K14: 0.1486174722 | L14: ='1'!L14*'2'!$C14 -> 69.55131518 | M14: 467.9888181 | O14: 9.14533547 | P14: 1.689416667 | Q14: 2.969771748 | R14: 0.1803207271 | S14: 0.6812685096 | T14: 0.8895117631 | U14: 0.09333292307 | V14: ='1'!V14*'2'!$C14 -> 69.55131518 | W14: 745.1959383 | Y14: 6.601595234 | Z14: 1.689416667 | AA14: 2.969771748 | AB14: 0.1532040604 | AC14: 0.5788192162 | AD14: 0.755746808 | AE14: 0.06971214769 | AF14: ='1'!AF14*'2'!$C14 -> 69.55131518 | AG14: 997.6929055 | AI14: 12.38363077 | AJ14: 1.689416667 | AK14: 3.207783096 | AL14: 0.2098310852 | AM14: 0.7927613925 | AN14: 1.074122231 | AO14: 0.1607604533 | AP14: ='1'!AP14*'2'!$C14 -> 69.55131518 | AQ14: 432.6394567 | AS14: 9.14533547 | AT14: 1.689416667 | AU14: 3.207783096 | AV14: 0.1803207271 | AW14: 0.6812685096 | AX14: 0.9230591431 | AY14: 0.1016738938 | AZ14: ='1'!AZ14*'2'!$C14 -> 69.55131518 | BA14: 684.0626692 | BC14: 6.601595234 | BD14: 1.689416667 | BE14: 3.207783096 | BF14: 0.1532040604 | BG14: 0.5788192162 | BH14: 0.7842493264 | BI14: 0.07594217847 | BJ14: ='1'!BJ14*'2'!$C14 -> 69.55131518 | BK14: 915.8456681 | BM14: 12.38363077 | BN14: 1.689416667 | BO14: 3.52014623 | BP14: 0.2098310852 | BQ14: 0.7927613925 | BR14: 1.123297978 | BS14: 0.1712649241 | BT14: ='1'!BT14*'2'!$C14 -> 69.55131518 | BU14: 406.1036757 | BW14: 9.14533547 | BX14: 1.689416667 | BY14: 3.52014623 | BZ14: 0.1803207271 | CA14: 0.6812685096 | CB14: 0.9653188794 | CC14: 0.1111029993 | CD14: ='1'!CD14*'2'!$C14 -> 69.55131518 | CE14: 626.0075389 | CG14: 6.601595234 | CH14: 1.689416667 | CI14: 3.52014623 | CJ14: 0.1532040604 | CK14: 0.5788192162 | CL14: 0.8201540352 | CM14: 0.08298495797 | CN14: ='1'!CN14*'2'!$C14 -> 69.55131518 | CO14: 838.1195445 | CQ14: 12.38363077 | CR14: 1.689416667 | CS14: 4.009055008 | CT14: 0.2098310852 | CU14: 0.7927613925 | CV14: 1.196216043 | CW14: 0.2132610518 | CX14: ='1'!CX14*'2'!$C14 -> 69.55131518 | CY14: 326.1322899 | DA14: 9.14533547 | DB14: 1.689416667 | DC14: 4.009055008 | DD14: 0.1803207271 | DE14: 0.6812685096 | DF14: 1.027981847 | DG14: 0.1327500115 | DH14: ='1'!DH14*'2'!$C14 -> 69.55131518 | DI14: 523.9269992 | DK14: 6.601595234 | DL14: 1.689416667 | DM14: 4.009055008 | DN14: 0.1532040604 | DO14: 0.5788192162 | DP14: 0.8733937333 | DQ14: 0.09100871049 | DR14: ='1'!DR14*'2'!$C14 -> 69.55131518 | DS14: 764.2270152 | DV14: 0.7927613925 | DW14: 0.1607604533
A15: 11 | B15: 69 | C15: 1 | D15: ='21'!E9 -> ΜΑΣΤΙΧΟΔΕΝΔΡΑ | E15: 40.74747372 | F15: 1.5525 | G15: 2.001481544 | H15: 0.9625610692 | I15: 1.641260376 | J15: 1.790198766 | K15: 0.479048418 | L15: ='1'!L15*'2'!$C15 -> 60.87028189 | M15: 127.0649889 | O15: 31.41773243 | P15: 1.5525 | Q15: 2.001481544 | R15: 0.8452114405 | S15: 1.441167829 | T15: 1.57194855 | U15: 0.2979674852 | V15: ='1'!V15*'2'!$C15 -> 60.87028189 | W15: 204.2849805 | Y15: 24.19090415 | Z15: 1.5525 | AA15: 2.001481544 | AB15: 0.7416585348 | AC15: 1.264600039 | AD15: 1.379357878 | AE15: 0.1702201159 | AF15: ='1'!AF15*'2'!$C15 -> 60.87028189 | AG15: 357.5974648 | AI15: 40.74747372 | AJ15: 1.5525 | AK15: 2.136447564 | AL15: 0.9625610692 | AM15: 1.641260376 | AN15: 1.832605668 | AO15: 0.5252686939 | AP15: ='1'!AP15*'2'!$C15 -> 60.87028189 | AQ15: 115.8840848 | AS15: 31.41773243 | AT15: 1.5525 | AU15: 2.136447564 | AV15: 0.8452114405 | AW15: 1.441167829 | AX15: 1.609185459 | AY15: 0.326716436 | AZ15: ='1'!AZ15*'2'!$C15 -> 60.87028189 | BA15: 186.3092125 | BC15: 24.19090415 | BD15: 1.5525 | BE15: 2.136447564 | BF15: 0.7416585348 | BG15: 1.264600039 | BH15: 1.412032626 | BI15: 0.1866435513 | BJ15: ='1'!BJ15*'2'!$C15 -> 60.87028189 | BK15: 326.1311815 | BM15: 40.74747372 | BN15: 1.5525 | BO15: 2.345448172 | BP15: 0.9625610692 | BQ15: 1.641260376 | BR15: 1.896404247 | BS15: 0.5452823539 | BT15: ='1'!BT15*'2'!$C15 -> 60.87028189 | BU15: 111.6307569 | BW15: 31.41773243 | BX15: 1.5525 | BY15: 2.345448172 | BZ15: 0.8452114405 | CA15: 1.441167829 | CB15: 1.665206101 | CC15: 0.3391649061 | CD15: ='1'!CD15*'2'!$C15 -> 60.87028189 | CE15: 179.4710502 | CG15: 24.19090415 | CH15: 1.5525 | CI15: 2.345448172 | CJ15: 0.7416585348 | CK15: 1.264600039 | CL15: 1.461189778 | CM15: 0.1937549984 | CN15: ='1'!CN15*'2'!$C15 -> 60.87028189 | CO15: 314.161092 | CQ15: 40.74747372 | CR15: 1.5525 | CS15: 2.758297385 | CT15: 0.9625610692 | CU15: 1.641260376 | CV15: 2.016505792 | CW15: 0.6939525428 | CX15: ='1'!CX15*'2'!$C15 -> 60.87028189 | CY15: 87.71533807 | DA15: 31.41773243 | DB15: 1.5525 | DC15: 2.758297385 | DD15: 0.8452114405 | DE15: 1.441167829 | DF15: 1.770665592 | DG15: 0.4316375678 | DH15: ='1'!DH15*'2'!$C15 -> 60.87028189 | DI15: 141.0217424 | DK15: 24.19090415 | DL15: 1.5525 | DM15: 2.758297385 | DN15: 0.7416585348 | DO15: 1.264600039 | DP15: 1.553728671 | DQ15: 0.2465819275 | DR15: ='1'!DR15*'2'!$C15 -> 60.87028189 | DS15: 246.8562174 | DV15: 1.641260376 | DW15: 0.5252686939
A16: 12 | B16: 24 | C16: 1 | D16: ='21'!E10 -> ΜΕΝΤΑ | E16: 51.23493919 | F16: 8.2775 | G16: 13.20800693 | H16: 0.7792347551 | I16: 3.529103363 | J16: 4.41717929 | K16: 0.2257074103 | L16: ='1'!L16*'2'!$C16 -> 42.19588925 | M16: 186.9495078 | O16: 50.42291127 | P16: 8.2775 | Q16: 13.20800693 | R16: 0.7730350053 | S16: 3.501025101 | T16: 4.382035315 | U16: 0.2257074103 | V16: ='1'!V16*'2'!$C16 -> 42.19588925 | W16: 186.9495078 | Y16: 49.54321436 | Z16: 8.2775 | AA16: 13.20800693 | AB16: 0.7662620058 | AC16: 3.470350628 | AD16: 4.34364181 | AE16: 0.2257074103 | AF16: ='1'!AF16*'2'!$C16 -> 42.19588925 | AG16: 186.9495078 | AI16: 51.23493919 | AJ16: 8.2775 | AK16: 14.15530017 | AL16: 0.7792347551 | AM16: 3.529103363 | AN16: 4.568074899 | AO16: 0.2474844549 | AP16: ='1'!AP16*'2'!$C16 -> 42.19588925 | AQ16: 170.4991502 | AS16: 50.42291127 | AT16: 8.2775 | AU16: 14.15530017 | AV16: 0.7730350053 | AW16: 3.501025101 | AX16: 4.531730369 | AY16: 0.2474844549 | AZ16: ='1'!AZ16*'2'!$C16 -> 42.19588925 | BA16: 170.4991502 | BC16: 49.54321436 | BD16: 8.2775 | BE16: 14.15530017 | BF16: 0.7662620058 | BG16: 3.470350628 | BH16: 4.4920253 | BI16: 0.2474844549 | BJ16: ='1'!BJ16*'2'!$C16 -> 42.19588925 | BK16: 170.4991502 | BM16: 51.23493919 | BN16: 8.2775 | BO16: 15.57425171 | BP16: 0.7792347551 | BQ16: 3.529103363 | BR16: 4.785207997 | BS16: 0.2569140474 | BT16: ='1'!BT16*'2'!$C16 -> 42.19588925 | BU16: 164.2412693 | BW16: 50.42291127 | BX16: 8.2775 | BY16: 15.57425171 | BZ16: 0.7730350053 | CA16: 3.501025101 | CB16: 4.747135912 | CC16: 0.2569140474 | CD16: ='1'!CD16*'2'!$C16 -> 42.19588925 | CE16: 164.2412693 | CG16: 49.54321436 | CH16: 8.2775 | CI16: 15.57425171 | CJ16: 0.7662620058 | CK16: 3.470350628 | CL16: 4.705543553 | CM16: 0.2569140474 | CN16: ='1'!CN16*'2'!$C16 -> 42.19588925 | CO16: 164.2412693 | CQ16: 51.23493919 | CR16: 8.2775 | CS16: 18.08726198 | CT16: 0.7792347551 | CU16: 3.529103363 | CV16: 5.147331325 | CW16: 0.3269611701 | CX16: ='1'!CX16*'2'!$C16 -> 42.19588925 | CY16: 129.0547414 | DA16: 50.42291127 | DB16: 8.2775 | DC16: 18.08726198 | DD16: 0.7730350053 | DE16: 3.501025101 | DF16: 5.106378112 | DG16: 0.3269611701 | DH16: ='1'!DH16*'2'!$C16 -> 42.19588925 | DI16: 129.0547414 | DK16: 49.54321436 | DL16: 8.2775 | DM16: 18.08726198 | DN16: 0.7662620058 | DO16: 3.470350628 | DP16: 5.061638228 | DQ16: 0.3269611701 | DR16: ='1'!DR16*'2'!$C16 -> 42.19588925 | DS16: 129.0547414 | DV16: 3.529103363 | DW16: 0.2474844549
A17: 13 | B17: 48 | C17: 1 | D17: ='21'!E11 -> ΡΙΓΑΝΗ | E17: 50.9127067 | F17: 14.0875 | G17: 20.46564047 | H17: 0.7767804651 | I17: 4.543086731 | J17: 5.450787483 | K17: 0.2257074103 | L17: ='1'!L17*'2'!$C17 -> 42.19588925 | M17: 186.9495078 | O17: 50.9127067 | P17: 14.0875 | Q17: 20.46564047 | R17: 0.7767804651 | S17: 4.543086731 | T17: 5.450787483 | U17: 0.2257074103 | V17: ='1'!V17*'2'!$C17 -> 42.19588925 | W17: 186.9495078 | Y17: 50.9127067 | Z17: 14.0875 | AA17: 20.46564047 | AB17: 0.7767804651 | AC17: 4.543086731 | AD17: 5.450787483 | AE17: 0.2257074103 | AF17: ='1'!AF17*'2'!$C17 -> 42.19588925 | AG17: 186.9495078 | AI17: 50.9127067 | AJ17: 14.0875 | AK17: 21.93817617 | AL17: 0.7767804651 | AM17: 4.543086731 | AN17: 5.639630278 | AO17: 0.2474844549 | AP17: ='1'!AP17*'2'!$C17 -> 42.19588925 | AQ17: 170.4991502 | AS17: 50.9127067 | AT17: 14.0875 | AU17: 21.93817617 | AV17: 0.7767804651 | AW17: 4.543086731 | AX17: 5.639630278 | AY17: 0.2474844549 | AZ17: ='1'!AZ17*'2'!$C17 -> 42.19588925 | BA17: 170.4991502 | BC17: 50.9127067 | BD17: 14.0875 | BE17: 21.93817617 | BF17: 0.7767804651 | BG17: 4.543086731 | BH17: 5.639630278 | BI17: 0.2474844549 | BJ17: ='1'!BJ17*'2'!$C17 -> 42.19588925 | BK17: 170.4991502 | BM17: 50.9127067 | BN17: 14.0875 | BO17: 24.07550573 | BP17: 0.7767804651 | BQ17: 4.543086731 | BR17: 5.902990133 | BS17: 0.2569140474 | BT17: ='1'!BT17*'2'!$C17 -> 42.19588925 | BU17: 164.2412693 | BW17: 50.9127067 | BX17: 14.0875 | BY17: 24.07550573 | BZ17: 0.7767804651 | CA17: 4.543086731 | CB17: 5.902990133 | CC17: 0.2569140474 | CD17: ='1'!CD17*'2'!$C17 -> 42.19588925 | CE17: 164.2412693 | CG17: 50.9127067 | CH17: 14.0875 | CI17: 24.07550573 | CJ17: 0.7767804651 | CK17: 4.543086731 | CL17: 5.902990133 | CM17: 0.2569140474 | CN17: ='1'!CN17*'2'!$C17 -> 42.19588925 | CO17: 164.2412693 | CQ17: 50.9127067 | CR17: 14.0875 | CS17: 28.41788792 | CT17: 0.7767804651 | CU17: 4.543086731 | CV17: 6.404790298 | CW17: 0.3269611701 | CX17: ='1'!CX17*'2'!$C17 -> 42.19588925 | CY17: 129.0547414 | DA17: 50.9127067 | DB17: 14.0875 | DC17: 28.41788792 | DD17: 0.7767804651 | DE17: 4.543086731 | DF17: 6.404790298 | DG17: 0.3269611701 | DH17: ='1'!DH17*'2'!$C17 -> 42.19588925 | DI17: 129.0547414 | DK17: 50.9127067 | DL17: 14.0875 | DM17: 28.41788792 | DN17: 0.7767804651 | DO17: 4.543086731 | DP17: 6.404790298 | DQ17: 0.3269611701 | DR17: ='1'!DR17*'2'!$C17 -> 42.19588925 | DS17: 129.0547414 | DV17: 4.543086731 | DW17: 0.2474844549
A18: 14 | B18: 68 | C18: 1 | D18: ='21'!E12 -> ΤΣΑΙ ΤΟΥ ΒΟΥΝΟΥ | E18: 14.85303386 | F18: 0.903 | G18: 1.479581549 | H18: 0.7402813783 | I18: 0.9605703583 | J18: 1.077930678 | K18: 0.1305603536 | L18: ='1'!L18*'2'!$C18 -> 60.87028189 | M18: 466.223323 | O18: 11.01219015 | P18: 0.903 | Q18: 1.479581549 | R18: 0.6374205933 | S18: 0.8271008101 | T18: 0.9281541214 | U18: 0.09713412031 | V18: ='1'!V18*'2'!$C18 -> 60.87028189 | W18: 626.6622038 | Y18: 7.866357892 | Z18: 0.903 | AA18: 1.479581549 | AB18: 0.5387361149 | AC18: 0.6990503314 | AD18: 0.7844587241 | AE18: 0.06972242682 | AF18: ='1'!AF18*'2'!$C18 -> 60.87028189 | AG18: 873.0373378 | AI18: 14.85303386 | AJ18: 0.903 | AK18: 1.502123968 | AL18: 0.7402813783 | AM18: 0.9605703583 | AN18: 1.082260597 | AO18: 0.1272992138 | AP18: ='1'!AP18*'2'!$C18 -> 60.87028189 | AQ18: 478.1669902 | AS18: 11.01219015 | AT18: 0.903 | AU18: 1.502123968 | AV18: 0.6374205933 | AW18: 0.8271008101 | AX18: 0.9318824058 | AY18: 0.0947079018 | AZ18: ='1'!AZ18*'2'!$C18 -> 60.87028189 | BA18: 642.7159797 | BC18: 7.866357892 | BD18: 0.903 | BE18: 1.502123968 | BF18: 0.5387361149 | BG18: 0.6990503314 | BH18: 0.7876098013 | BI18: 0.06798089828 | BJ18: ='1'!BJ18*'2'!$C18 -> 60.87028189 | BK18: 895.4027298 | BM18: 14.85303386 | BN18: 0.903 | BO18: 1.715134128 | BP18: 0.7402813783 | BQ18: 0.9605703583 | BR18: 1.122350936 | BS18: 0.1491494049 | BT18: ='1'!BT18*'2'!$C18 -> 60.87028189 | BU18: 408.1161566 | BW18: 11.01219015 | BX18: 0.903 | BY18: 1.715134128 | BZ18: 0.6374205933 | CA18: 0.8271008101 | CB18: 0.9664022629 | CC18: 0.1109639783 | CD18: ='1'!CD18*'2'!$C18 -> 60.87028189 | CE18: 548.5589361 | CG18: 7.866357892 | CH18: 0.903 | CI18: 1.715134128 | CJ18: 0.5387361149 | CK18: 0.6990503314 | CL18: 0.8167853471 | CM18: 0.07964943558 | CN18: ='1'!CN18*'2'!$C18 -> 60.87028189 | CO18: 764.2274104 | CQ18: 14.85303386 | CR18: 0.903 | CS18: 1.988289596 | CT18: 0.7402813783 | CU18: 0.9605703583 | CV18: 1.171755582 | CW18: 0.1718980085 | CX18: ='1'!CX18*'2'!$C18 -> 60.87028189 | CY18: 354.1069639 | DA18: 11.01219015 | DB18: 0.903 | DC18: 1.988289596 | DD18: 0.6374205933 | DE18: 0.8271008101 | DF18: 1.008942222 | DG18: 0.1278884545 | DH18: ='1'!DH18*'2'!$C18 -> 60.87028189 | DI18: 475.9638555 | DK18: 7.866357892 | DL18: 0.903 | DM18: 1.988289596 | DN18: 0.5387361149 | DO18: 0.6990503314 | DP18: 0.8527393347 | DQ18: 0.09179774712 | DR18: ='1'!DR18*'2'!$C18 -> 60.87028189 | DS18: 663.0912392 | DV18: 0.9605703583 | DW18: 0.1272992138
A19: 15 | B19: 13 | C19: 1 | D19: ='21'!E13 -> ΦΑΣΚΟΜΗΛΟ | E19: 44.00532235 | F19: 1.188 | G19: 1.64878462 | H19: 0.3955473076 | I19: 1.271565291 | J19: 1.477608054 | K19: 0.5424770147 | L19: ='1'!L19*'2'!$C19 -> 69.67942144 | M19: 128.446772 | O19: 33.09271893 | P19: 1.188 | Q19: 1.64878462 | R19: 0.3430141648 | S19: 1.102687082 | T19: 1.281365043 | U19: 0.3376273473 | V19: ='1'!V19*'2'!$C19 -> 69.67942144 | W19: 206.3796728 | Y19: 23.97531745 | Z19: 1.188 | AA19: 1.64878462 | AB19: 0.2919631311 | AC19: 0.9385734063 | AD19: 1.090658603 | AE19: 0.193111822 | AF19: ='1'!AF19*'2'!$C19 -> 69.67942144 | AG19: 360.8242143 | AI19: 44.00532235 | AJ19: 1.188 | AK19: 1.766101384 | AL19: 0.3955473076 | AM19: 1.271565291 | AN19: 1.525629138 | AO19: 0.5848159074 | AP19: ='1'!AP19*'2'!$C19 -> 69.67942144 | AQ19: 119.1476165 | AS19: 33.09271893 | AT19: 1.188 | AU19: 1.766101384 | AV19: 0.3430141648 | AW19: 1.102687082 | AX19: 1.323008385 | AY19: 0.3639935131 | AZ19: ='1'!AZ19*'2'!$C19 -> 69.67942144 | BA19: 191.4303935 | BC19: 23.97531745 | BD19: 1.188 | BE19: 1.766101384 | BF19: 0.2919631311 | BG19: 0.9385734063 | BH19: 1.126104138 | BI19: 0.2082096903 | BJ19: ='1'!BJ19*'2'!$C19 -> 69.67942144 | BK19: 334.6598391 | BM19: 44.00532235 | BN19: 1.188 | BO19: 1.956038566 | BP19: 0.3955473076 | BQ19: 1.271565291 | BR19: 1.600323717 | BS19: 0.6082303246 | BT19: ='1'!BT19*'2'!$C19 -> 69.67942144 | BU19: 114.5609132 | BW19: 33.09271893 | BX19: 1.188 | BY19: 1.956038566 | BZ19: 0.3430141648 | CA19: 1.102687082 | CB19: 1.387782681 | CC19: 0.3785668102 | CD19: ='1'!CD19*'2'!$C19 -> 69.67942144 | CE19: 184.0610945 | CG19: 23.97531745 | CH19: 1.188 | CI19: 1.956038566 | CJ19: 0.2919631311 | CK19: 0.9385734063 | CL19: 1.181238032 | CM19: 0.2165458324 | CN19: ='1'!CN19*'2'!$C19 -> 69.67942144 | CO19: 321.7767835 | CQ19: 44.00532235 | CR19: 1.188 | CS19: 2.277195055 | CT19: 0.3955473076 | CU19: 1.271565291 | CV19: 1.719254773 | CW19: 0.7246138309 | CX19: ='1'!CX19*'2'!$C19 -> 69.67942144 | CY19: 96.16076656 | DA19: 33.09271893 | DB19: 1.188 | DC19: 2.277195055 | DD19: 0.3430141648 | DE19: 1.102687082 | DF19: 1.490918352 | DG19: 0.451004719 | DH19: ='1'!DH19*'2'!$C19 -> 69.67942144 | DI19: 154.4982092 | DK19: 23.97531745 | DL19: 1.188 | DM19: 2.277195055 | DN19: 0.2919631311 | DO19: 0.9385734063 | DP19: 1.26902395 | DQ19: 0.257981391 | DR19: ='1'!DR19*'2'!$C19 -> 69.67942144 | DS19: 270.0947582 | DV19: 1.271565291 | DW19: 0.5848159074
A20: 16 | B20: 32 | C20: 1 | D20: ='21'!E14 -> ΧΑΜΟΜΗΛΙ | E20: 32.55508217 | F20: 0.30364125 | G20: 0.7449916831 | H20: 0.3402163863 | I20: 0.6260122658 | J20: 0.8906593441 | K20: 0.3233987329 | L20: ='1'!L20*'2'!$C20 -> 69.55131518 | M20: 215.0636601 | O20: 23.44669707 | P20: 0.30364125 | Q20: 0.6857985814 | R20: 0.2887265128 | S20: 0.5312687623 | T20: 0.7297654669 | U20: 0.199374791 | V20: ='1'!V20*'2'!$C20 -> 69.55131518 | W20: 348.8470876 | Y20: 16.37602918 | Z20: 0.30364125 | AA20: 0.6857985814 | AB20: 0.2412960047 | AC20: 0.4439946596 | AD20: 0.6098833454 | AE20: 0.1539159539 | AF20: ='1'!AF20*'2'!$C20 -> 69.55131518 | AG20: 451.8785313 | AI20: 32.55508217 | AJ20: 0.30364125 | AK20: 0.7449916831 | AL20: 0.3402163863 | AM20: 0.6260122658 | AN20: 0.8906593441 | AO20: 0.3233987329 | AP20: ='1'!AP20*'2'!$C20 -> 69.55131518 | AQ20: 215.0636601 | AS20: 23.44669707 | AT20: 0.30364125 | AU20: 0.7449916831 | AV20: 0.2887265128 | AW20: 0.5312687623 | AX20: 0.755862965 | AY20: 0.2186381636 | AZ20: ='1'!AZ20*'2'!$C20 -> 69.55131518 | BA20: 318.1115045 | BC20: 16.37602918 | BD20: 0.30364125 | BE20: 0.7449916831 | BF20: 0.2412960047 | BG20: 0.4439946596 | BH20: 0.6316936806 | BI20: 0.1687871438 | BJ20: ='1'!BJ20*'2'!$C20 -> 69.55131518 | BK20: 412.0652416 | BM20: 32.55508217 | BN20: 0.30364125 | BO20: 0.7919667579 | BP20: 0.3402163863 | BQ20: 0.6260122658 | BR20: 0.9143277218 | BS20: 0.3801042641 | BT20: ='1'!BT20*'2'!$C20 -> 69.55131518 | BU20: 182.979571 | BW20: 23.44669707 | BX20: 0.30364125 | BY20: 0.7919667579 | BZ20: 0.2887265128 | CA20: 0.5312687623 | CB20: 0.7759492643 | CC20: 0.2366005119 | CD20: ='1'!CD20*'2'!$C20 -> 69.55131518 | CE20: 293.9609666 | CG20: 16.37602918 | CH20: 0.30364125 | CI20: 0.7919667579 | CJ20: 0.2412960047 | CK20: 0.4439946596 | CL20: 0.6484803059 | CM20: 0.1785840758 | CN20: ='1'!CN20*'2'!$C20 -> 69.55131518 | CO20: 389.4597817 | CQ20: 32.55508217 | CR20: 0.30364125 | CS20: 0.9822418426 | CT20: 0.3402163863 | CU20: 0.6260122658 | CV20: 1.00450952 | CW20: 0.4552520308 | CX20: ='1'!CX20*'2'!$C20 -> 69.55131518 | CY20: 152.7754089 | DA20: 23.44669707 | DB20: 0.30364125 | DC20: 0.9822418426 | DD20: 0.2887265128 | DE20: 0.5312687623 | DF20: 0.8524825445 | DG20: 0.2888015495 | DH20: ='1'!DH20*'2'!$C20 -> 69.55131518 | DI20: 240.8273616 | DK20: 16.37602918 | DL20: 0.30364125 | DM20: 0.9822418426 | DN20: 0.2412960047 | DO20: 0.4439946596 | DP20: 0.712441092 | DQ20: 0.2229527903 | DR20: ='1'!DR20*'2'!$C20 -> 69.55131518 | DS20: 311.9553475 | DV20: 0.6260122658 | DW20: 0.3233987329
A21: 17 | B21: 73 | C21: 1 | D21: ='21'!E15 -> ΛΟΙΠΑ ΑΡΩΜΑΤΙΚΑ ΦΥΤΑ | E21: 17.37087683 | F21: 0 | G21: 0 | H21: 0.2485173419 | I21: 0.2485173419 | J21: 0.2485173419 | K21: 0.1132340243 | L21: ='1'!L21*'2'!$C21 -> 69.55131518 | M21: 614.2262947 | O21: 13.53110992 | P21: 0 | Q21: 0 | R21: 0.2193373239 | S21: 0.2193373239 | T21: 0.2193373239 | U21: 0.07939784777 | V21: ='1'!V21*'2'!$C21 -> 69.55131518 | W21: 875.9848929 | Y21: 10.13205125 | Z21: 0 | AA21: 0 | AB21: 0.1897992615 | AC21: 0.1897992615 | AD21: 0.1897992615 | AE21: 0.05120103399 | AF21: ='1'!AF21*'2'!$C21 -> 69.55131518 | AG21: 1358.396692 | AI21: 17.37087683 | AJ21: 0 | AK21: 0 | AL21: 0.2485173419 | AM21: 0.2485173419 | AN21: 0.2485173419 | AO21: 0.1157279475 | AP21: ='1'!AP21*'2'!$C21 -> 69.55131518 | AQ21: 600.9897925 | AS21: 13.53110992 | AT21: 0 | AU21: 0 | AV21: 0.2193373239 | AW21: 0.2193373239 | AX21: 0.2193373239 | AY21: 0.08114654599 | AZ21: ='1'!AZ21*'2'!$C21 -> 69.55131518 | BA21: 857.1075247 | BC21: 10.13205125 | BD21: 0 | BE21: 0 | BF21: 0.1897992615 | BG21: 0.1897992615 | BH21: 0.1897992615 | BI21: 0.05232871137 | BJ21: ='1'!BJ21*'2'!$C21 -> 69.55131518 | BK21: 1329.123408 | BM21: 17.37087683 | BN21: 0 | BO21: 0 | BP21: 0.2485173419 | BQ21: 0.2485173419 | BR21: 0.2485173419 | BS21: 0.1267866424 | BT21: ='1'!BT21*'2'!$C21 -> 69.55131518 | BU21: 548.5697377 | BW21: 13.53110992 | BX21: 0 | BY21: 0 | BZ21: 0.2193373239 | CA21: 0.2193373239 | CB21: 0.2193373239 | CC21: 0.08890072217 | CD21: ='1'!CD21*'2'!$C21 -> 69.55131518 | CE21: 782.3481461 | CG21: 10.13205125 | CH21: 0 | CI21: 0 | CJ21: 0.1897992615 | CK21: 0.1897992615 | CL21: 0.1897992615 | CM21: 0.05732912195 | CN21: ='1'!CN21*'2'!$C21 -> 69.55131518 | CO21: 1213.193449 | CQ21: 17.37087683 | CR21: 0 | CS21: 0 | CT21: 0.2485173419 | CU21: 0.2485173419 | CV21: 0.2485173419 | CW21: 0.1626549422 | CX21: ='1'!CX21*'2'!$C21 -> 69.55131518 | CY21: 427.6003804 | DA21: 13.53110992 | DB21: 0 | DC21: 0 | DD21: 0.2193373239 | DE21: 0.2193373239 | DF21: 0.2193373239 | DG21: 0.114050988 | DH21: ='1'!DH21*'2'!$C21 -> 69.55131518 | DI21: 609.8265032 | DK21: 10.13205125 | DL21: 0 | DM21: 0 | DN21: 0.1897992615 | DO21: 0.1897992615 | DP21: 0.1897992615 | DQ21: 0.07354769274 | DR21: ='1'!DR21*'2'!$C21 -> 69.55131518 | DS21: 945.6627745 | DV21: 0.2485173419 | DW21: 0.1157279475
A22: 18 | B22: 63 | DV22: 0 | DW22: 0
A23: 19 | B23: 17 | C23: 1 | D23: ='21'!E17 -> ΕΛΑΙΟΚΡΑΜΒΗ | E23: 32.13085649 | F23: 0.15 | G23: 0.2554219632 | H23: 0.3379924355 | I23: 0.4988763113 | J23: 0.586091636 | K23: 0.3826798463 | L23: ='1'!L23*'2'!$C23 -> 69.67942144 | M23: 182.0828092 | O23: 23.21810416 | P23: 0.15 | Q23: 0.2554219632 | R23: 0.2873156 | S23: 0.4240773807 | T23: 0.4982160912 | U23: 0.263767928 | V23: ='1'!V23*'2'!$C23 -> 69.67942144 | W23: 264.1694233 | Y23: 16.16656158 | Z23: 0.15 | AA23: 0.2554219632 | AB23: 0.2397478161 | AC23: 0.3538674053 | AD23: 0.4157317592 | AE23: 0.1725337903 | AF23: ='1'!AF23*'2'!$C23 -> 69.67942144 | AG23: 403.8595646 | AI23: 32.13085649 | AJ23: 0.15 | AK23: 0.2632617038 | AL23: 0.3379924355 | AM23: 0.4988763113 | AN23: 0.5920644292 | AO23: 0.3698209805 | AP23: ='1'!AP23*'2'!$C23 -> 69.67942144 | AQ23: 188.4139222 | AS23: 23.21810416 | AT23: 0.15 | AU23: 0.2632617038 | AV23: 0.2873156 | AW23: 0.4240773807 | AX23: 0.5032933548 | AY23: 0.2549047584 | AZ23: ='1'!AZ23*'2'!$C23 -> 69.67942144 | BA23: 273.3547301 | BC23: 16.16656158 | BD23: 0.15 | BE23: 0.2632617038 | BF23: 0.2397478161 | BG23: 0.3538674053 | BH23: 0.4199684343 | BI23: 0.1682242369 | BJ23: ='1'!BJ23*'2'!$C23 -> 69.67942144 | BK23: 414.2056026 | BM23: 32.13085649 | BN23: 0.15 | BO23: 0.2974967739 | BP23: 0.3379924355 | BQ23: 0.4988763113 | BR23: 0.6174701513 | BS23: 0.434279068 | BT23: ='1'!BT23*'2'!$C23 -> 69.67942144 | BU23: 160.4484917 | BW23: 23.21810416 | BX23: 0.15 | BY23: 0.2974967739 | BZ23: 0.2873156 | CA23: 0.4240773807 | CB23: 0.5248898744 | CC23: 0.2993334795 | CD23: ='1'!CD23*'2'!$C23 -> 69.67942144 | CE23: 232.7819178 | CG23: 16.16656158 | CH23: 0.15 | CI23: 0.2974967739 | CJ23: 0.2397478161 | CK23: 0.3538674053 | CL23: 0.4379894482 | CM23: 0.1970989772 | CN23: ='1'!CN23*'2'!$C23 -> 69.67942144 | CO23: 353.525028 | CQ23: 32.13085649 | CR23: 0.15 | CS23: 0.3373470429 | CT23: 0.3379924355 | CU23: 0.4988763113 | CV23: 0.6457852898 | CW23: 0.5344138919 | CX23: ='1'!CX23*'2'!$C23 -> 69.67942144 | CY23: 130.3847495 | DA23: 23.21810416 | DB23: 0.15 | DC23: 0.3373470429 | DD23: 0.2873156 | DE23: 0.4240773807 | DF23: 0.5489595877 | DG23: 0.3683529361 | DH23: ='1'!DH23*'2'!$C23 -> 69.67942144 | DI23: 189.1648325 | DK23: 16.16656158 | DL23: 0.15 | DM23: 0.3373470429 | DN23: 0.2397478161 | DO23: 0.3538674053 | DP23: 0.4580741954 | DQ23: 0.2365479541 | DR23: ='1'!DR23*'2'!$C23 -> 69.67942144 | DS23: 294.5678465 | DV23: 0.4988763113 | DW23: 0.3698209805
A24: 20 | B24: 74 | C24: 1 | D24: ='21'!E18 -> ΗΛΙΑΝΘΟΣ | E24: 30.21886626 | F24: 0.216 | G24: 0.3288818779 | H24: 0.327781858 | I24: 0.5383155034 | J24: 0.6205449837 | K24: 0.3508552892 | L24: ='1'!L24*'2'!$C24 -> 60.87028189 | M24: 173.4911337 | O24: 21.55167052 | P24: 0.216 | Q24: 0.3288818779 | R24: 0.2768128832 | S24: 0.4546092559 | T24: 0.524052329 | U24: 0.2184150192 | V24: ='1'!V24*'2'!$C24 -> 60.87028189 | W24: 278.6909166 | Y24: 15.01396361 | Z24: 0.216 | AA24: 0.3288818779 | AB24: 0.2310433691 | AC24: 0.3794420726 | AD24: 0.4374031089 | AE24: 0.1399983809 | AF24: ='1'!AF24*'2'!$C24 -> 60.87028189 | AG24: 434.7927562 | AI24: 30.21886626 | AJ24: 0.216 | AK24: 0.3525005118 | AL24: 0.327781858 | AM24: 0.5383155034 | AN24: 0.636407439 | AO24: 0.3443610137 | AP24: ='1'!AP24*'2'!$C24 -> 60.87028189 | AQ24: 176.7629885 | AS24: 21.55167052 | AT24: 0.216 | AU24: 0.3525005118 | AV24: 0.2768128832 | AW24: 0.4546092559 | AX24: 0.5374482259 | AY24: 0.214372192 | AZ24: ='1'!AZ24*'2'!$C24 -> 60.87028189 | BA24: 283.9467252 | BC24: 15.01396361 | BD24: 0.216 | BE24: 0.3525005118 | BF24: 0.2310433691 | BG24: 0.3794420726 | BH24: 0.4485840666 | BI24: 0.15100614 | BJ24: ='1'!BJ24*'2'!$C24 -> 60.87028189 | BK24: 403.0980587 | BM24: 30.21886626 | BN24: 0.216 | BO24: 0.389800341 | BP24: 0.327781858 | BQ24: 0.5383155034 | BR24: 0.6606830978 | BS24: 0.3962612042 | BT24: ='1'!BT24*'2'!$C24 -> 60.87028189 | BU24: 153.6115099 | BW24: 21.55167052 | BX24: 0.216 | BY24: 0.389800341 | BZ24: 0.2768128832 | CA24: 0.4546092559 | CB24: 0.5579491016 | CC24: 0.2466811851 | CD24: ='1'!CD24*'2'!$C24 -> 60.87028189 | CE24: 246.7568894 | CG24: 15.01396361 | CH24: 0.216 | CI24: 0.389800341 | CJ24: 0.2310433691 | CK24: 0.3794420726 | CL24: 0.4656952333 | CM24: 0.1661683464 | CN24: ='1'!CN24*'2'!$C24 -> 60.87028189 | CO24: 366.3169503 | CQ24: 30.21886626 | CR24: 0.216 | CS24: 0.4545486788 | CT24: 0.327781858 | CU24: 0.5383155034 | CV24: 0.7008290334 | CW24: 0.4630538143 | CX24: ='1'!CX24*'2'!$C24 -> 60.87028189 | CY24: 131.4540125 | DA24: 21.55167052 | DB24: 0.216 | DC24: 0.4545486788 | DD24: 0.2768128832 | DE24: 0.4546092559 | DF24: 0.5918524794 | DG24: 0.2882610319 | DH24: ='1'!DH24*'2'!$C24 -> 60.87028189 | DI24: 211.1637549 | DK24: 15.01396361 | DL24: 0.216 | DM24: 0.4545486788 | DN24: 0.2310433691 | DO24: 0.3794420726 | DP24: 0.4939928709 | DQ24: 0.189280136 | DR24: ='1'!DR24*'2'!$C24 -> 60.87028189 | DS24: 321.5883251 | DV24: 0.5383155034 | DW24: 0.3443610137
A25: 21 | B25: 59 | C25: 1 | D25: ='21'!E19 -> ΣΟΥΣΑΜΙ | E25: 45.77373423 | F25: 0.912 | G25: 1.190895695 | H25: 0.4034168196 | I25: 1.152792364 | J25: 1.298290197 | K25: 0.5569987152 | L25: ='1'!L25*'2'!$C25 -> 69.67942144 | M25: 125.0979931 | O25: 34.45512388 | P25: 0.912 | Q25: 1.190895695 | R25: 0.350003782 | S25: 1.000160796 | T25: 1.126394481 | U25: 0.346672571 | V25: ='1'!V25*'2'!$C25 -> 69.67942144 | W25: 200.9949078 | Y25: 24.82958161 | Z25: 0.912 | AA25: 1.190895695 | AB25: 0.2971190721 | AC25: 0.8490389619 | AD25: 0.9561990475 | AE25: 0.1982935495 | AF25: ='1'!AF25*'2'!$C25 -> 69.67942144 | AG25: 351.3953007 | AI25: 45.77373423 | AJ25: 0.912 | AK25: 1.268663727 | AL25: 0.4034168196 | AM25: 1.152792364 | AN25: 1.336039045 | AO25: 0.5894762474 | AP25: ='1'!AP25*'2'!$C25 -> 69.67942144 | AQ25: 118.2056474 | AS25: 34.45512388 | AT25: 0.912 | AU25: 1.268663727 | AV25: 0.350003782 | AW25: 1.000160796 | AX25: 1.159145321 | AY25: 0.366886387 | AZ25: ='1'!AZ25*'2'!$C25 -> 69.67942144 | BA25: 189.920978 | BC25: 24.82958161 | BD25: 0.912 | BE25: 1.268663727 | BF25: 0.2971190721 | BG25: 0.8490389619 | BH25: 0.9840013162 | BI25: 0.209855668 | BJ25: ='1'!BJ25*'2'!$C25 -> 69.67942144 | BK25: 332.0349749 | BM25: 45.77373423 | BN25: 0.912 | BO25: 1.397956081 | BP25: 0.4034168196 | BQ25: 1.152792364 | BR25: 1.396541435 | BS25: 0.6146777699 | BT25: ='1'!BT25*'2'!$C25 -> 69.67942144 | BU25: 113.359267 | BW25: 34.45512388 | BX25: 0.912 | BY25: 1.397956081 | BZ25: 0.350003782 | CA25: 1.000160796 | CB25: 1.211637097 | CC25: 0.3825716595 | CD25: ='1'!CD25*'2'!$C25 -> 69.67942144 | CE25: 182.1343001 | CG25: 24.82958161 | CH25: 0.912 | CI25: 1.397956081 | CJ25: 0.2971190721 | CK25: 0.8490389619 | CL25: 1.028561714 | CM25: 0.2188275008 | CN25: ='1'!CN25*'2'!$C25 -> 69.67942144 | CO25: 318.4216846 | CQ25: 45.77373423 | CR25: 0.912 | CS25: 1.639048283 | CT25: 0.4034168196 | CU25: 1.152792364 | CV25: 1.502869059 | CW25: 0.7190707879 | CX25: ='1'!CX25*'2'!$C25 -> 69.67942144 | CY25: 96.90203331 | DA25: 34.45512388 | DB25: 0.912 | DC25: 1.639048283 | DD25: 0.350003782 | DE25: 1.000160796 | DF25: 1.303886772 | DG25: 0.4475452312 | DH25: ='1'!DH25*'2'!$C25 -> 69.67942144 | DI25: 155.6924677 | DK25: 24.82958161 | DL25: 0.912 | DM25: 1.639048283 | DN25: 0.2971190721 | DO25: 0.8490389619 | DP25: 1.10687269 | DQ25: 0.2559917913 | DR25: ='1'!DR25*'2'!$C25 -> 69.67942144 | DS25: 272.193968 | DV25: 1.152792364 | DW25: 0.5894762474
A26: 22 | DV26: 0 | DW26: 0
